Workbook

Sheet CGr 6 8yrs
D1: VAULT | M1: BARS | S1: BEAM | Y1: FLOOR | AE1: RANGE | AK1: AA
A2: No | B2: GYMNAST | C2: CLUB | D2: V1 SV | E2: V1 | F2: V2 SV | G2: V2 | H2: SCORE | I2: POS | J2: idx | K2: sort | L2: ties | M2: SV | N2: SCORE | O2: POS | P2: idx | Q2: sort | R2: ties | S2: SV | T2: SCORE | U2: POS | V2: idx | W2: sort | X2: ties | Y2: SV | Z2: SCORE | AA2: POS | AB2: idx | AC2: sort | AD2: ties | AE2: SV | AF2: SCORE | AG2: POS | AH2: idx | AI2: sort | AJ2: ties | AK2: TOTAL | AL2: POS | AM2: idx | AN2: sort | AO2: ties
B3: Club Grade 6 - 8 years | AR3: =B3 -> Club Grade 6 - 8 years | AT3: summary results for presentation
A4: 1 | B4: Eva Keeligan | C4: SD | D4: 4.0 | E4: 11.85 | F4: 0.0 | G4: 0.00 | H4: =MAX(E4, G4) -> 11.85 | I4: =VLOOKUP(H4, K$4:L$65, 2,FALSE) -> 10 | J4: =IF(ISNUMBER(J3), J3+1, 1) -> 1 | K4: =LARGE(H$4:H$65,J4) -> 12.65 | L4: =IF(K4=K3, L3, L3+1) -> 1 | M4: 4.0 | N4: 11.10 | O4: =VLOOKUP(N4, Q$4:R$65, 2,FALSE) -> 22 | P4: =IF(ISNUMBER(P3), P3+1, 1) -> 1 | Q4: =LARGE(N$4:N$65,P4) -> 13.4 | R4: =IF(Q4=Q3, R3, R3+1) -> 1 | S4: 3.5 | T4: 10.30 | U4: =VLOOKUP(T4, W$4:X$65, 2,FALSE) -> 20 | V4: =IF(ISNUMBER(V3), V3+1, 1) -> 1 | W4: =LARGE(T$4:T$65,V4) -> 12.85 | X4: =IF(W4=W3, X3, X3+1) -> 1 | Y4: 3.5 | Z4: 10.90 | AA4: =VLOOKUP(Z4, AC$4:AD$65, 2,FALSE) -> 13 | AB4: =IF(ISNUMBER(AB3), AB3+1, 1) -> 1 | AC4: =LARGE(Z$4:Z$65,AB4) -> 12.25 | AD4: =IF(AC4=AC3, AD3, AD3+1) -> 1 | AE4: 4.0 | AF4: 10.55 | AG4: =VLOOKUP(AF4, AI$4:AJ$65, 2,FALSE) -> 15 | AH4: =IF(ISNUMBER(AH3), AH3+1, 1) -> 1 | AI4: =LARGE(AF$4:AF$65,AH4) -> 12.85 | AJ4: =IF(AI4=AI3, AJ3, AJ3+1) -> 1 | AK4: =SUMIF(D$2:AJ$2, "SCORE", D4:AJ4) -> 54.70 | AL4: =VLOOKUP(AK4, AN$4:AO$65, 2,FALSE) -> 19 | AM4: =IF(ISNUMBER(AM3), AM3+1, 1) -> 1 | AN4: =LARGE($AK$4:$AK$65,$AM4) -> 62.1 | AO4: =IF(AN4=AN3, AO3, AO3+1) -> 1 | AR4: 6th Place | AS4: =IFERROR(INDEX(vault,MATCH(AR5,gymnasts,0)), "") -> 12.20 | AT4: 5th Place | AU4: =IFERROR(INDEX(vault,MATCH(AT5,gymnasts,0)), "") -> 12.25 | AV4: 4th Place | AW4: =IFERROR(INDEX(vault,MATCH(AV5,gymnasts,0)), "") -> 12.30 | AX4: 3rd Place | AY4: =IFERROR(INDEX(vault,MATCH(AX5,gymnasts,0)), "") -> 12.35 | AZ4: 2nd Place | BA4: =IFERROR(INDEX(vault,MATCH(AZ5,gymnasts,0)), "") -> 12.50 | BB4: 1st Place | BC4: =IFERROR(INDEX(vault,MATCH(BB5,gymnasts,0)), "") -> 12.65
A5: 2 | B5: Lottie Carey | C5: SD | D5: 4.0 | E5: 12.05 | F5: 0.0 | G5: 0.00 | H5: =MAX(E5, G5) -> 12.05 | I5: =VLOOKUP(H5, K$4:L$65, 2,FALSE) -> 8 | J5: 2 | K5: =LARGE(H$4:H$65,J5) -> 12.5 | L5: =IF(K5=K4, L4, L4+1) -> 2 | M5: 4.0 | N5: 12.95 | O5: =VLOOKUP(N5, Q$4:R$65, 2,FALSE) -> 4 | P5: 2 | Q5: =LARGE(N$4:N$65,P5) -> 13.35 | R5: =IF(Q5=Q4, R4, R4+1) -> 2 | S5: 4.0 | T5: 12.85 | U5: =VLOOKUP(T5, W$4:X$65, 2,FALSE) -> 1 | V5: 2 | W5: =LARGE(T$4:T$65,V5) -> 12.8 | X5: =IF(W5=W4, X4, X4+1) -> 2 | Y5: 4.0 | Z5: 12.25 | AA5: =VLOOKUP(Z5, AC$4:AD$65, 2,FALSE) -> 1 | AB5: 2 | AC5: =LARGE(Z$4:Z$65,AB5) -> 12.2 | AD5: =IF(AC5=AC4, AD4, AD4+1) -> 2 | AE5: 4.0 | AF5: 12.00 | AG5: =VLOOKUP(AF5, AI$4:AJ$65, 2,FALSE) -> 6 | AH5: 2 | AI5: =LARGE(AF$4:AF$65,AH5) -> 12.7 | AJ5: =IF(AI5=AI4, AJ4, AJ4+1) -> 2 | AK5: 62.10 | AL5: =VLOOKUP(AK5, AN$4:AO$65, 2,FALSE) -> 1 | AM5: 2 | AN5: =LARGE($AK$4:$AK$65,$AM5) -> 61.9 | AO5: =IF(AN5=AN4, AO4, AO4+1) -> 2 | AQ5: Vault | AR5: =IFERROR(INDEX(gymnasts, SMALL(IF(VALUE(LEFT(AR$32, 1))=vaultPos, ROW(vaultPos)-MIN(ROW(vaultPos))+1, ""), ROW()-4)), "") -> Gabrille Rae | AS5: =IFERROR( INDEX(entries, MATCH(AR5, gymnasts, 0), 2), "") -> CNGA | AT5: =IFERROR(INDEX(gymnasts, SMALL(IF(VALUE(LEFT(AT$32, 1))=vaultPos, ROW(vaultPos)-MIN(ROW(vaultPos))+1, ""), ROW()-4)), "") -> Niamh Morris | AU5: =IFERROR( INDEX(entries, MATCH(AT5, gymnasts, 0), 2), "") -> Redcar | AV5: =IFERROR(INDEX(gymnasts, SMALL(IF(VALUE(LEFT(AV$32, 1))=vaultPos, ROW(vaultPos)-MIN(ROW(vaultPos))+1, ""), ROW()-4)), "") -> Lara Cowie | AW5: =IFERROR( INDEX(entries, MATCH(AV5, gymnasts, 0), 2), "") -> CNGA | AX5: =IFERROR(INDEX(gymnasts, SMALL(IF(VALUE(LEFT(AX$32, 1))=vaultPos, ROW(vaultPos)-MIN(ROW(vaultPos))+1, ""), ROW()-4)), "") -> Isabel Gallagher | AY5: =IFERROR( INDEX(entries, MATCH(AX5, gymnasts, 0), 2), "") -> CNGA | AZ5: =IFERROR(INDEX(gymnasts, SMALL(IF(VALUE(LEFT(AZ$32, 1))=vaultPos, ROW(vaultPos)-MIN(ROW(vaultPos))+1, ""), ROW()-4)), "") -> Madeleine Petitjean | BA5: =IFERROR( INDEX(entries, MATCH(AZ5, gymnasts, 0), 2), "") -> Darlington | BB5: =IFERROR(INDEX(gymnasts, SMALL(IF(VALUE(LEFT(BB$32, 1))=vaultPos, ROW(vaultPos)-MIN(ROW(vaultPos))+1, ""), ROW()-4)), "") -> Charlotte Campbell | BC5: =IFERROR( INDEX(entries, MATCH(BB5, gymnasts, 0), 2), "") -> Hartlepool
A6: 3 | B6: Sofia Metcalfe | C6: SD | D6: 4.0 | E6: 11.75 | F6: 0.0 | G6: 0.00 | H6: 11.75 | I6: 12 | J6: 3 | K6: 12.5 | L6: 2 | M6: 4.0 | N6: 12.90 | O6: 5 | P6: 3 | Q6: 13.05 | R6: 3 | S6: 4.0 | T6: 11.15 | U6: 16 | V6: 3 | W6: 12.6 | X6: 3 | Y6: 4.0 | Z6: 11.95 | AA6: 4 | AB6: 3 | AC6: 12.15 | AD6: 3 | AE6: 4.0 | AF6: 12.70 | AG6: 2 | AH6: 3 | AI6: 12.5 | AJ6: 3 | AK6: 60.45 | AL6: 6 | AM6: 3 | AN6: 61.8 | AO6: 3 | AR6: Marcy Armstrong | AS6: =IFERROR( INDEX(entries, MATCH(AR6, gymnasts, 0), 2), "") -> Carlisle | AT6: Maya Ward | AU6: =IFERROR( INDEX(entries, MATCH(AT6, gymnasts, 0), 2), "") -> Carlisle | AW6: =IFERROR( INDEX(entries, MATCH(AV6, gymnasts, 0), 2), "") ->  | AY6: =IFERROR( INDEX(entries, MATCH(AX6, gymnasts, 0), 2), "") ->  | AZ6: Eva Marcu | BA6: =IFERROR( INDEX(entries, MATCH(AZ6, gymnasts, 0), 2), "") -> North Lakes
A7: 4 | B7: Lyla Bradley | C7: SD | D7: 4.0 | E7: 11.75 | F7: 0.0 | G7: 0.00 | H7: 11.75 | I7: 12 | J7: 4 | K7: 12.35 | L7: 3 | M7: 4.0 | N7: 11,30 | P7: 4 | Q7: 12.95 | R7: 4 | S7: 4.0 | T7: 11.85 | U7: 10 | V7: 4 | W7: 12.35 | X7: 4 | Y7: 4.0 | Z7: 11.50 | AA7: 9 | AB7: 4 | AC7: 11.95 | AD7: 4 | AE7: 4.0 | AF7: 11.25 | AG7: 8 | AH7: 4 | AI7: 12.4 | AJ7: 4 | AK7: 57.65 | AL7: 12 | AM7: 4 | AN7: 61.25 | AO7: 4
A8: 5 | B8: Emilie Kennedy | C8: Redcar | D8: 4.0 | E8: 12.10 | F8: 0.0 | G8: 0.00 | H8: 12.10 | I8: 7 | J8: 5 | K8: 12.3 | L8: 4 | M8: 4.0 | N8: 12.85 | O8: 6 | P8: 5 | Q8: 12.9 | R8: 5 | S8: 4.0 | T8: 12.10 | U8: 7 | V8: 5 | W8: 12.2 | X8: 5 | Y8: 3.5 | Z8: 9.00 | AA8: 22 | AB8: 5 | AC8: 11.9 | AD8: 5 | AE8: 4.0 | AF8: 10.75 | AG8: 13 | AH8: 5 | AI8: 12.25 | AJ8: 5 | AK8: 56.80 | AL8: 15 | AM8: 5 | AN8: 60.5 | AO8: 5
A9: 6 | B9: Ava Golden | C9: Redcar | D9: 4.0 | E9: 11.95 | F9: 0.0 | G9: 0.00 | H9: 11.95 | I9: 9 | J9: 6 | K9: 12.25 | L9: 5 | M9: 4.0 | N9: 12.20 | O9: 11 | P9: 6 | Q9: 12.85 | R9: 6 | S9: 4.0 | T9: 12.20 | U9: 5 | V9: 6 | W9: 12.2 | X9: 5 | Y9: 4.0 | Z9: 10.60 | AA9: 16 | AB9: 6 | AC9: 11.9 | AD9: 5 | AE9: 4.0 | AF9: 10.80 | AG9: 12 | AH9: 6 | AI9: 12 | AJ9: 6 | AK9: 57.75 | AL9: 11 | AM9: 6 | AN9: 60.45 | AO9: 6
A10: 7 | B10: Niamh Morris | C10: Redcar | D10: 4.0 | E10: 12.25 | F10: 0.0 | G10: 0.00 | H10: 12.25 | I10: 5 | J10: 7 | K10: 12.25 | L10: 5 | M10: 4.0 | N10: 13.05 | O10: 3 | P10: 7 | Q10: 12.85 | R10: 6 | S10: 4.0 | T10: 12.60 | U10: 3 | V10: 7 | W10: 12.15 | X10: 6 | Y10: 4.0 | Z10: 11.90 | AA10: 5 | AB10: 7 | AC10: 11.85 | AD10: 6 | AE10: 3.5 | AF10: 10.70 | AG10: 14 | AH10: 7 | AI10: 11.4 | AJ10: 7 | AK10: 60.50 | AL10: 5 | AM10: 7 | AN10: 59.2 | AO10: 7
A11: 8 | B11: Florence Fox | C11: Richmondshire | D11: 4.0 | E11: 11.10 | F11: 0.0 | G11: 0.00 | H11: 11.10 | I11: 17 | J11: 8 | K11: 12.2 | L11: 6 | M11: 4.0 | N11: 11.55 | O11: 16 | P11: 8 | Q11: 12.55 | R11: 7 | S11: 4.0 | T11: 9.75 | U11: 23 | V11: 8 | W11: 12.15 | X11: 6 | Y11: 3.5 | Z11: 9.05 | AA11: 21 | AB11: 8 | AC11: 11.75 | AD11: 7 | AE11: 4.0 | AF11: 9.20 | AG11: 21 | AH11: 8 | AI11: 11.25 | AJ11: 8 | AK11: 50.65 | AL11: 25 | AM11: 8 | AN11: 58.7 | AO11: 8 | AR11: 6th Place | AS11: =IFERROR(INDEX(bars,MATCH(AR12,gymnasts,0)), "") ->  | AT11: 5th Place | AU11: =IFERROR(INDEX(bars,MATCH(AT12,gymnasts,0)), "") ->  | AV11: 4th Place | AW11: =IFERROR(INDEX(bars,MATCH(AV12,gymnasts,0)), "") ->  | AX11: 3rd Place | AY11: =IFERROR(INDEX(bars,MATCH(AX12,gymnasts,0)), "") ->  | AZ11: 2nd Place | BA11: =IFERROR(INDEX(bars,MATCH(AZ12,gymnasts,0)), "") ->  | BB11: 1st Place | BC11: =IFERROR(INDEX(bars,MATCH(BB12,gymnasts,0)), "") -> 
A12: 9 | B12: Connie Wilford | C12: Richmondshire | D12: 4.0 | E12: 11.60 | F12: 0.0 | G12: 0.00 | H12: 11.60 | I12: 13 | J12: 9 | K12: 12.2 | L12: 6 | M12: 4.0 | N12: 11.25 | O12: 21 | P12: 9 | Q12: 12.45 | R12: 8 | S12: 4.0 | T12: 10.65 | U12: 19 | V12: 9 | W12: 12.1 | X12: 7 | Y12: 4.0 | Z12: 10.75 | AA12: 14 | AB12: 9 | AC12: 11.75 | AD12: 7 | AE12: 3.5 | AF12: 4.25 | AG12: 28 | AH12: 9 | AI12: 11.15 | AJ12: 9 | AK12: 48.50 | AL12: 27 | AM12: 9 | AN12: 58.5 | AO12: 9 | AQ12: Bars | AR12: =IFERROR(INDEX(gymnasts, SMALL(IF(VALUE(LEFT(AR$32, 1))=BarPos, ROW(BarPos)-MIN(ROW(BarPos))+1, ""), ROW()-11)), "") ->  | AS12: =IFERROR( INDEX(entries, MATCH(AR12, gymnasts, 0), 2), "") ->  | AT12: =IFERROR(INDEX(gymnasts, SMALL(IF(VALUE(LEFT(AT$32, 1))=BarPos, ROW(BarPos)-MIN(ROW(BarPos))+1, ""), ROW()-11)), "") ->  | AU12: =IFERROR( INDEX(entries, MATCH(AT12, gymnasts, 0), 2), "") ->  | AV12: =IFERROR(INDEX(gymnasts, SMALL(IF(VALUE(LEFT(AV$32, 1))=BarPos, ROW(BarPos)-MIN(ROW(BarPos))+1, ""), ROW()-11)), "") ->  | AW12: =IFERROR( INDEX(entries, MATCH(AV12, gymnasts, 0), 2), "") ->  | AX12: =IFERROR(INDEX(gymnasts, SMALL(IF(VALUE(LEFT(AX$32, 1))=BarPos, ROW(BarPos)-MIN(ROW(BarPos))+1, ""), ROW()-11)), "") ->  | AY12: =IFERROR( INDEX(entries, MATCH(AX12, gymnasts, 0), 2), "") ->  | AZ12: =IFERROR(INDEX(gymnasts, SMALL(IF(VALUE(LEFT(AZ$32, 1))=BarPos, ROW(BarPos)-MIN(ROW(BarPos))+1, ""), ROW()-11)), "") ->  | BA12: =IFERROR( INDEX(entries, MATCH(AZ12, gymnasts, 0), 2), "") ->  | BB12: =IFERROR(INDEX(gymnasts, SMALL(IF(VALUE(LEFT(BB$32, 1))=BarPos, ROW(BarPos)-MIN(ROW(BarPos))+1, ""), ROW()-11)), "") ->  | BC12: =IFERROR( INDEX(entries, MATCH(BB12, gymnasts, 0), 2), "") -> 
A13: 10 | B13: Effie Wilson | C13: Richmondshire | D13: 4.0 | E13: 11.80 | F13: 0.0 | G13: 0.00 | H13: 11.80 | I13: 11 | J13: 10 | K13: 12.1 | L13: 7 | M13: 4.0 | N13: 10.80 | O13: 23 | P13: 10 | Q13: 12.3 | R13: 9 | S13: 3.0 | T13: 9.90 | U13: 22 | V13: 10 | W13: 12.1 | X13: 7 | Y13: 3.5 | Z13: 8.50 | AA13: 23 | AB13: 10 | AC13: 11.7 | AD13: 8 | AE13: 3.0 | AF13: 9.00 | AG13: 22 | AH13: 10 | AI13: 11.05 | AJ13: 10 | AK13: 50.00 | AL13: 26 | AM13: 10 | AN13: 58.35 | AO13: 10 | AS13: =IFERROR( INDEX(entries, MATCH(AR13, gymnasts, 0), 2), "") ->  | AU13: =IFERROR( INDEX(entries, MATCH(AT13, gymnasts, 0), 2), "") ->  | AW13: =IFERROR( INDEX(entries, MATCH(AV13, gymnasts, 0), 2), "") ->  | AY13: =IFERROR( INDEX(entries, MATCH(AX13, gymnasts, 0), 2), "") ->  | BA13: =IFERROR( INDEX(entries, MATCH(AZ13, gymnasts, 0), 2), "") -> 
A14: 11 | B14: Lola Corner | C14: Richmondshire | D14: 4.0 | E14: 11.45 | F14: 0.0 | G14: 0.00 | H14: 11.45 | I14: 15 | J14: 11 | K14: 12.1 | L14: 7 | M14: 4.0 | N14: 10.70 | O14: 24 | P14: 11 | Q14: 12.25 | R14: 10 | S14: 3.0 | T14: 10.00 | U14: 21 | V14: 11 | W14: 12.05 | X14: 8 | Y14: 4.0 | Z14: 10.30 | AA14: 18 | AB14: 11 | AC14: 11.5 | AD14: 9 | AE14: 3.5 | AF14: 9.95 | AG14: 18 | AH14: 11 | AI14: 10.85 | AJ14: 11 | AK14: 52.40 | AL14: 24 | AM14: 11 | AN14: 57.75 | AO14: 11
A15: 12 | B15: Aaleia Paton | C15: CNGA | D15: 4.0 | E15: 11.80 | F15: 0.0 | G15: 0.00 | H15: 11.80 | I15: 11 | J15: 12 | K15: 12.05 | L15: 8 | M15: 4.0 | N15: 12.85 | O15: 6 | P15: 12 | Q15: 12.2 | R15: 11 | S15: 4.0 | T15: 12.80 | U15: 2 | V15: 12 | W15: 12 | X15: 9 | Y15: 4.0 | Z15: 11.30 | AA15: 10 | AB15: 12 | AC15: 11.3 | AD15: 10 | AE15: 4.0 | AF15: 12.50 | AG15: 3 | AH15: 12 | AI15: 10.8 | AJ15: 12 | AK15: 61.25 | AL15: 4 | AM15: 12 | AN15: 57.65 | AO15: 12
A16: 13 | B16: Elsie Reavely | C16: CNGA | D16: 4.0 | E16: 11.50 | F16: 0.0 | G16: 0.00 | H16: 11.50 | I16: 14 | J16: 13 | K16: 12.05 | L16: 8 | M16: 4.0 | N16: 12.25 | O16: 10 | P16: 13 | Q16: 12.15 | R16: 12 | S16: 3.5 | T16: 11.65 | U16: 12 | V16: 13 | W16: 11.85 | X16: 10 | Y16: 4.0 | Z16: 10.75 | AA16: 14 | AB16: 13 | AC16: 11.25 | AD16: 11 | AE16: 4.0 | AF16: 10.85 | AG16: 11 | AH16: 13 | AI16: 10.75 | AJ16: 13 | AK16: 57.00 | AL16: 14 | AM16: 13 | AN16: 57.3 | AO16: 13
A17: 14 | B17: Gabrille Rae | C17: CNGA | D17: 4.0 | E17: 12.20 | F17: 0.0 | G17: 0.00 | H17: 12.20 | I17: 6 | J17: 14 | K17: 11.95 | L17: 9 | M17: 4.0 | N17: 12.55 | O17: 7 | P17: 14 | Q17: 12.05 | R17: 13 | S17: 4.0 | T17: 12.00 | U17: 9 | V17: 14 | W17: 11.8 | X17: 11 | Y17: 4.0 | Z17: 12.20 | AA17: 2 | AB17: 14 | AC17: 11.1 | AD17: 12 | AE17: 4.0 | AF17: 12.85 | AG17: 1 | AH17: 14 | AI17: 10.7 | AJ17: 14 | AK17: 61.80 | AL17: 3 | AM17: 14 | AN17: 57 | AO17: 14
A18: 15 | B18: Isabel Gallagher | C18: CNGA | D18: 4.0 | E18: 12.35 | F18: 0.0 | G18: 0.00 | H18: 12.35 | I18: 3 | J18: 15 | K18: 11.85 | L18: 10 | M18: 4.0 | N18: 12.30 | O18: 9 | P18: 15 | Q18: 11.75 | R18: 14 | S18: 4.0 | T18: 9.70 | U18: 24 | V18: 15 | W18: 11.8 | X18: 11 | Y18: 4.0 | Z18: 11.75 | AA18: 7 | AB18: 15 | AC18: 10.9 | AD18: 13 | AE18: 3.5 | AF18: 12.40 | AG18: 4 | AH18: 15 | AI18: 10.7 | AJ18: 14 | AK18: 58.50 | AL18: 9 | AM18: 15 | AN18: 56.8 | AO18: 15 | AR18: 6th Place | AS18: =IFERROR(INDEX(beam,MATCH(AR19,gymnasts,0)), "") -> 12.15 | AT18: 5th Place | AU18: =IFERROR(INDEX(beam,MATCH(AT19,gymnasts,0)), "") -> 12.20 | AV18: 4th Place | AW18: =IFERROR(INDEX(beam,MATCH(AV19,gymnasts,0)), "") -> 12.35 | AX18: 3rd Place | AY18: =IFERROR(INDEX(beam,MATCH(AX19,gymnasts,0)), "") -> 12.60 | AZ18: 2nd Place | BA18: =IFERROR(INDEX(beam,MATCH(AZ19,gymnasts,0)), "") -> 12.80 | BB18: 1st Place | BC18: =IFERROR(INDEX(beam,MATCH(BB19,gymnasts,0)), "") -> 12.85
A19: 16 | B19: Lara Cowie | C19: CNGA | D19: 4.0 | E19: 12.30 | F19: 0.0 | G19: 0.00 | H19: 12.30 | I19: 4 | J19: 16 | K19: 11.85 | L19: 10 | M19: 4.0 | N19: 13.35 | O19: 2 | P19: 16 | Q19: 11.75 | R19: 14 | S19: 4.0 | T19: 12.10 | U19: 7 | V19: 16 | W19: 11.65 | X19: 12 | Y19: 4.0 | Z19: 11.90 | AA19: 5 | AB19: 16 | AC19: 10.9 | AD19: 13 | AE19: 4.0 | AF19: 12.25 | AG19: 5 | AH19: 16 | AI19: 10.55 | AJ19: 15 | AK19: 61.90 | AL19: 2 | AM19: 16 | AN19: 55.75 | AO19: 16 | AQ19: Beam | AR19: =IFERROR(INDEX(gymnasts, SMALL(IF(VALUE(LEFT(AR$32, 1))=BeamPos, ROW(BeamPos)-MIN(ROW(BeamPos))+1, ""), ROW()-18)), "") -> Izzy Easby | AS19: =IFERROR( INDEX(entries, MATCH(AR19, gymnasts, 0), 2), "") -> Darlington | AT19: =IFERROR(INDEX(gymnasts, SMALL(IF(VALUE(LEFT(AT$32, 1))=BeamPos, ROW(BeamPos)-MIN(ROW(BeamPos))+1, ""), ROW()-18)), "") -> Ava Golden | AU19: =IFERROR( INDEX(entries, MATCH(AT19, gymnasts, 0), 2), "") -> Redcar | AV19: =IFERROR(INDEX(gymnasts, SMALL(IF(VALUE(LEFT(AV$32, 1))=BeamPos, ROW(BeamPos)-MIN(ROW(BeamPos))+1, ""), ROW()-18)), "") -> Maya Ward | AW19: =IFERROR( INDEX(entries, MATCH(AV19, gymnasts, 0), 2), "") -> Carlisle | AX19: =IFERROR(INDEX(gymnasts, SMALL(IF(VALUE(LEFT(AX$32, 1))=BeamPos, ROW(BeamPos)-MIN(ROW(BeamPos))+1, ""), ROW()-18)), "") -> Niamh Morris | AY19: =IFERROR( INDEX(entries, MATCH(AX19, gymnasts, 0), 2), "") -> Redcar | AZ19: =IFERROR(INDEX(gymnasts, SMALL(IF(VALUE(LEFT(AZ$32, 1))=BeamPos, ROW(BeamPos)-MIN(ROW(BeamPos))+1, ""), ROW()-18)), "") -> Aaleia Paton | BA19: =IFERROR( INDEX(entries, MATCH(AZ19, gymnasts, 0), 2), "") -> CNGA | BB19: =IFERROR(INDEX(gymnasts, SMALL(IF(VALUE(LEFT(BB$32, 1))=BeamPos, ROW(BeamPos)-MIN(ROW(BeamPos))+1, ""), ROW()-18)), "") -> Lottie Carey | BC19: =IFERROR( INDEX(entries, MATCH(BB19, gymnasts, 0), 2), "") -> SD
A20: 17 | B20: Lucy Taylor | C20: Darlington | D20: 4.0 | E20: 12.10 | F20: 0.0 | G20: 0.00 | H20: 12.10 | I20: 7 | J20: 17 | K20: 11.8 | L20: 11 | M20: 4.0 | N20: 11.75 | O20: 14 | P20: 17 | Q20: 11.7 | R20: 15 | S20: 4.0 | T20: 11.50 | U20: 15 | V20: 17 | W20: 11.6 | X20: 13 | Y20: 3.5 | Z20: 8.10 | AA20: 24 | AB20: 17 | AC20: 10.75 | AD20: 14 | AE20: 4.0 | AF20: 11.15 | AG20: 9 | AH20: 17 | AI20: 10.25 | AJ20: 16 | AK20: 54.60 | AL20: 20 | AM20: 17 | AN20: 55.25 | AO20: 17 | AR20: Annie Pape | AS20: =IFERROR( INDEX(entries, MATCH(AR20, gymnasts, 0), 2), "") -> Carlisle | AT20: Eva Marcu | AU20: =IFERROR( INDEX(entries, MATCH(AT20, gymnasts, 0), 2), "") -> North Lakes | AW20: =IFERROR( INDEX(entries, MATCH(AV20, gymnasts, 0), 2), "") ->  | AY20: =IFERROR( INDEX(entries, MATCH(AX20, gymnasts, 0), 2), "") ->  | BA20: =IFERROR( INDEX(entries, MATCH(AZ20, gymnasts, 0), 2), "") -> 
A21: 18 | B21: Madeleine Petitjean | C21: Darlington | D21: 4.0 | E21: 12.50 | F21: 0.0 | G21: 0.00 | H21: 12.50 | I21: 2 | J21: 18 | K21: 11.8 | L21: 11 | M21: 4.0 | N21: 10.60 | O21: 25 | P21: 18 | Q21: 11.55 | R21: 16 | S21: 3.5 | T21: 11.55 | U21: 14 | V21: 18 | W21: 11.55 | X21: 14 | Y21: 4.0 | Z21: 11.25 | AA21: 11 | AB21: 18 | AC21: 10.75 | AD21: 14 | AE21: 2.0 | AF21: 7.95 | AG21: 25 | AH21: 18 | AI21: 10 | AJ21: 17 | AK21: 53.85 | AL21: 23 | AM21: 18 | AN21: 54.9 | AO21: 18
A22: 19 | B22: Connie Dulson | C22: Darlington | D22: 0.0 | E22: 0.00 | F22: 0.0 | G22: 0.00 | H22: 0.00 | I22: 19 | J22: 19 | K22: 11.8 | L22: 11 | M22: 0.0 | N22: 0.00 | O22: 27 | P22: 19 | Q22: 11.5 | R22: 17 | S22: 0.0 | T22: 0.00 | U22: 26 | V22: 19 | W22: 11.5 | X22: 15 | Y22: 0.0 | Z22: 0.00 | AA22: 25 | AB22: 19 | AC22: 10.75 | AD22: 14 | AE22: 0.0 | AF22: 0.00 | AG22: 29 | AH22: 19 | AI22: 9.95 | AJ22: 18 | AK22: 0.00 | AL22: 29 | AM22: 19 | AN22: 54.7 | AO22: 19
A23: 20 | B23: Imogen Bruce | C23: Darlington | D23: 4.0 | E23: 11.20 | F23: 0.0 | G23: 0.00 | H23: 11.20 | I23: 16 | J23: 20 | K23: 11.8 | L23: 11 | M23: 4.0 | N23: 11.35 | O23: 19 | P23: 20 | Q23: 11.45 | R23: 18 | S23: 1.0 | T23: 8.40 | U23: 25 | V23: 20 | W23: 11.5 | X23: 15 | Y23: 4.0 | Z23: 10.25 | AA23: 19 | AB23: 20 | AC23: 10.7 | AD23: 15 | AE23: 2.5 | AF23: 4.45 | AG23: 27 | AH23: 20 | AI23: 9.7 | AJ23: 19 | AK23: 45.65 | AL23: 28 | AM23: 20 | AN23: 54.7 | AO23: 19 | AP23: F
A24: 21 | B24: Izzy Easby | C24: Darlington | D24: 4.0 | E24: 11.80 | F24: 0.0 | G24: 0.00 | H24: 11.80 | I24: 11 | J24: 21 | K24: 11.8 | L24: 11 | M24: 4.0 | N24: 12.05 | O24: 13 | P24: 21 | Q24: 11.35 | R24: 19 | S24: 4.0 | T24: 12.15 | U24: 6 | V24: 21 | W24: 11.15 | X24: 16 | Y24: 4.0 | Z24: 12.15 | AA24: 3 | AB24: 21 | AC24: 10.6 | AD24: 16 | AE24: 3.5 | AF24: 11.05 | AG24: 10 | AH24: 21 | AI24: 9.35 | AJ24: 20 | AK24: 59.20 | AL24: 7 | AM24: 21 | AN24: 54.6 | AO24: 20
A25: 22 | B25: Maya Ward | C25: Carlisle | D25: 4.0 | E25: 12.25 | F25: 0.0 | G25: 0.00 | H25: 12.25 | I25: 5 | J25: 22 | K25: 11.8 | L25: 11 | M25: 4.0 | N25: 11.50 | O25: 17 | P25: 22 | Q25: 11.3 | R25: 20 | S25: 4.0 | T25: 12.35 | U25: 4 | V25: 22 | W25: 11.05 | X25: 17 | Y25: 4.0 | Z25: 11.85 | AA25: 6 | AB25: 22 | AC25: 10.45 | AD25: 17 | AE25: 2.5 | AF25: 9.35 | AG25: 20 | AH25: 22 | AI25: 9.35 | AJ25: 20 | AK25: 57.30 | AL25: 13 | AM25: 22 | AN25: 54.6 | AO25: 20 | AR25: 6th Place | AS25: =IFERROR(INDEX(floor,MATCH(AR26,gymnasts,0)), "") -> 11.85 | AT25: 5th Place | AU25: =IFERROR(INDEX(floor,MATCH(AT26,gymnasts,0)), "") -> 11.90 | AV25: 4th Place | AW25: =IFERROR(INDEX(floor,MATCH(AV26,gymnasts,0)), "") -> 11.95 | AX25: 3rd Place | AY25: =IFERROR(INDEX(floor,MATCH(AX26,gymnasts,0)), "") -> 12.15 | AZ25: 2nd Place | BA25: =IFERROR(INDEX(floor,MATCH(AZ26,gymnasts,0)), "") -> 12.20 | BB25: 1st Place | BC25: =IFERROR(INDEX(floor,MATCH(BB26,gymnasts,0)), "") -> 12.25
A26: 23 | B26: Annie Pape | C26: Carlisle | D26: 4.0 | E26: 11.80 | F26: 0.0 | G26: 0.00 | H26: 11.80 | I26: 11 | J26: 23 | K26: 11.75 | L26: 12 | M26: 4.0 | N26: 12.45 | O26: 8 | P26: 23 | Q26: 11.25 | R26: 21 | S26: 4.0 | T26: 12.15 | U26: 6 | V26: 23 | W26: 10.85 | X26: 18 | Y26: 4.0 | Z26: 11.70 | AA26: 8 | AB26: 23 | AC26: 10.3 | AD26: 18 | AE26: 3.5 | AF26: 10.25 | AG26: 16 | AH26: 23 | AI26: 9.2 | AJ26: 21 | AK26: 58.35 | AL26: 10 | AM26: 23 | AN26: 54.4 | AO26: 21 | AQ26: Floor | AR26: =IFERROR(INDEX(gymnasts, SMALL(IF(VALUE(LEFT(AR$32, 1))=FloorPos, ROW(FloorPos)-MIN(ROW(FloorPos))+1, ""), ROW()-25)), "") -> Maya Ward | AS26: =IFERROR( INDEX(entries, MATCH(AR26, gymnasts, 0), 2), "") -> Carlisle | AT26: =IFERROR(INDEX(gymnasts, SMALL(IF(VALUE(LEFT(AT$32, 1))=FloorPos, ROW(FloorPos)-MIN(ROW(FloorPos))+1, ""), ROW()-25)), "") -> Niamh Morris | AU26: =IFERROR( INDEX(entries, MATCH(AT26, gymnasts, 0), 2), "") -> Redcar | AV26: =IFERROR(INDEX(gymnasts, SMALL(IF(VALUE(LEFT(AV$32, 1))=FloorPos, ROW(FloorPos)-MIN(ROW(FloorPos))+1, ""), ROW()-25)), "") -> Sofia Metcalfe | AW26: =IFERROR( INDEX(entries, MATCH(AV26, gymnasts, 0), 2), "") -> SD | AX26: =IFERROR(INDEX(gymnasts, SMALL(IF(VALUE(LEFT(AX$32, 1))=FloorPos, ROW(FloorPos)-MIN(ROW(FloorPos))+1, ""), ROW()-25)), "") -> Izzy Easby | AY26: =IFERROR( INDEX(entries, MATCH(AX26, gymnasts, 0), 2), "") -> Darlington | AZ26: =IFERROR(INDEX(gymnasts, SMALL(IF(VALUE(LEFT(AZ$32, 1))=FloorPos, ROW(FloorPos)-MIN(ROW(FloorPos))+1, ""), ROW()-25)), "") -> Gabrille Rae | BA26: =IFERROR( INDEX(entries, MATCH(AZ26, gymnasts, 0), 2), "") -> CNGA | BB26: =IFERROR(INDEX(gymnasts, SMALL(IF(VALUE(LEFT(BB$32, 1))=FloorPos, ROW(FloorPos)-MIN(ROW(FloorPos))+1, ""), ROW()-25)), "") -> Lottie Carey | BC26: =IFERROR( INDEX(entries, MATCH(BB26, gymnasts, 0), 2), "") -> SD
A27: 24 | B27: Kylah Miller | C27: Carlisle | D27: 4.0 | E27: 11.85 | F27: 0.0 | G27: 0.00 | H27: 11.85 | I27: 10 | J27: 24 | K27: 11.75 | L27: 12 | M27: 4.0 | N27: 11.70 | O27: 15 | P27: 24 | Q27: 11.1 | R27: 22 | S27: 4.0 | T27: 11.50 | U27: 15 | V27: 24 | W27: 10.65 | X27: 19 | Y27: 4.0 | Z27: 11.75 | AA27: 7 | AB27: 24 | AC27: 10.25 | AD27: 19 | AE27: 2.0 | AF27: 7.50 | AG27: 26 | AH27: 24 | AI27: 9 | AJ27: 22 | AK27: 54.30 | AL27: 22 | AM27: 24 | AN27: 54.3 | AO27: 22 | AS27: =IFERROR( INDEX(entries, MATCH(AR27, gymnasts, 0), 2), "") ->  | AT27: Lara Cowie | AU27: =IFERROR( INDEX(entries, MATCH(AT27, gymnasts, 0), 2), "") -> CNGA | AW27: =IFERROR( INDEX(entries, MATCH(AV27, gymnasts, 0), 2), "") ->  | AY27: =IFERROR( INDEX(entries, MATCH(AX27, gymnasts, 0), 2), "") ->  | BA27: =IFERROR( INDEX(entries, MATCH(AZ27, gymnasts, 0), 2), "") -> 
A28: 25 | B28: Marcy Armstrong | C28: Carlisle | D28: 4.0 | E28: 12.20 | F28: 0.0 | G28: 0.00 | H28: 12.20 | I28: 6 | J28: 25 | K28: 11.6 | L28: 13 | M28: 4.0 | N28: 10.60 | O28: 25 | P28: 25 | Q28: 10.8 | R28: 23 | S28: 4.0 | T28: 12.05 | U28: 8 | V28: 25 | W28: 10.3 | X28: 20 | Y28: 4.0 | Z28: 10.70 | AA28: 15 | AB28: 25 | AC28: 10.25 | AD28: 19 | AE28: 3.0 | AF28: 9.70 | AG28: 19 | AH28: 25 | AI28: 8.85 | AJ28: 23 | AK28: 55.25 | AL28: 17 | AM28: 25 | AN28: 53.85 | AO28: 23
A29: 26 | B29: Adrianna Warwick | C29: Wansbeck | D29: 4.0 | E29: 12.05 | F29: 0.0 | G29: 0.00 | H29: 12.05 | I29: 8 | J29: 26 | K29: 11.5 | L29: 14 | M29: 4.0 | N29: 11.75 | O29: 14 | P29: 26 | Q29: 10.7 | R29: 24 | S29: 4.0 | T29: 11.60 | U29: 13 | V29: 26 | W29: 10 | X29: 21 | Y29: 4.0 | Z29: 10.45 | AA29: 17 | AB29: 26 | AC29: 9.45 | AD29: 20 | AE29: 3.0 | AF29: 8.85 | AG29: 23 | AH29: 26 | AI29: 8.55 | AJ29: 24 | AK29: 54.70 | AL29: 19 | AM29: 26 | AN29: 52.4 | AO29: 24
A30: 27 | B30: Hattie Hunter | C30: Gymtopia | D30: 4.0 | E30: 10.90 | F30: 0.0 | G30: 0.00 | H30: 10.90 | I30: 18 | J30: 27 | K30: 11.45 | L30: 15 | M30: 4.0 | N30: 12.15 | O30: 12 | P30: 27 | Q30: 10.6 | R30: 25 | S30: 4.0 | T30: 11.80 | U30: 11 | V30: 27 | W30: 9.9 | X30: 22 | Y30: 4.0 | Z30: 10.90 | AA30: 13 | AB30: 27 | AC30: 9.05 | AD30: 21 | AE30: 4.0 | AF30: 10.00 | AG30: 17 | AH30: 27 | AI30: 7.95 | AJ30: 25 | AK30: 55.75 | AL30: 16 | AM30: 27 | AN30: 50.65 | AO30: 25
A31: 28 | B31: Charlotte Bage | C31: Hartlepool | D31: 4.0 | E31: 11.80 | F31: 0.0 | G31: 0.00 | H31: 11.80 | I31: 11 | J31: 28 | K31: 11.2 | L31: 16 | M31: 4.0 | N31: 11.30 | O31: 20 | P31: 28 | Q31: 10.6 | R31: 25 | S31: 3.5 | T31: 10.85 | U31: 18 | V31: 28 | W31: 9.75 | X31: 23 | Y31: 4.0 | Z31: 10.25 | AA31: 19 | AB31: 28 | AC31: 9 | AD31: 22 | AE31: 4.0 | AF31: 10.70 | AG31: 14 | AH31: 28 | AI31: 7.5 | AJ31: 26 | AK31: 54.90 | AL31: 18 | AM31: 28 | AN31: 50 | AO31: 26
A32: 29 | B32: Charlotte Campbell | C32: Hartlepool | D32: 4.0 | E32: 12.65 | F32: 0.0 | G32: 0.00 | H32: 12.65 | I32: 1 | J32: 29 | K32: 11.1 | L32: 17 | M32: 4.0 | N32: 13.40 | O32: 1 | P32: 29 | Q32: 10.25 | R32: 26 | S32: 4.0 | T32: 11.80 | U32: 11 | V32: 29 | W32: 9.7 | X32: 24 | Y32: 3.5 | Z32: 9.45 | AA32: 20 | AB32: 29 | AC32: 8.5 | AD32: 23 | AE32: 4.0 | AF32: 11.40 | AG32: 7 | AH32: 29 | AI32: 4.45 | AJ32: 27 | AK32: 58.70 | AL32: 8 | AM32: 29 | AN32: 48.5 | AO32: 27 | AR32: 6th Place | AS32: =IFERROR(INDEX(range,MATCH(AR33,gymnasts,0)), "") -> 12.00 | AT32: 5th Place | AU32: =IFERROR(INDEX(range,MATCH(AT33,gymnasts,0)), "") -> 12.25 | AV32: 4th Place | AW32: =IFERROR(INDEX(range,MATCH(AV33,gymnasts,0)), "") -> 12.40 | AX32: 3rd Place | AY32: =IFERROR(INDEX(range,MATCH(AX33,gymnasts,0)), "") -> 12.50 | AZ32: 2nd Place | BA32: =IFERROR(INDEX(range,MATCH(AZ33,gymnasts,0)), "") -> 12.70 | BB32: 1st Place | BC32: =IFERROR(INDEX(range,MATCH(BB33,gymnasts,0)), "") -> 12.85
A33: 30 | B33: Evie Howarth | C33: Kendal | D33: 0.0 | E33: 0.00 | F33: 0.0 | G33: 0.00 | H33: 0.00 | I33: 19 | J33: 30 | K33: 10.9 | L33: 18 | M33: 0.0 | N33: 0.00 | O33: 27 | P33: 30 | Q33: 0 | R33: 27 | S33: 0.0 | T33: 0.00 | U33: 26 | V33: 30 | W33: 8.4 | X33: 25 | Y33: 0.0 | Z33: 0.00 | AA33: 25 | AB33: 30 | AC33: 8.1 | AD33: 24 | AE33: 0.0 | AF33: 0.00 | AG33: 29 | AH33: 30 | AI33: 4.25 | AJ33: 28 | AK33: 0.00 | AL33: 29 | AM33: 30 | AN33: 45.65 | AO33: 28 | AQ33: Range | AR33: =IFERROR(INDEX(gymnasts, SMALL(IF(VALUE(LEFT(AR$32, 1))=RangePos, ROW(RangePos)-MIN(ROW(RangePos))+1, ""), ROW()-32)), "") -> Lottie Carey | AS33: =IFERROR( INDEX(entries, MATCH(AR33, gymnasts, 0), 2), "") -> SD | AT33: =IFERROR(INDEX(gymnasts, SMALL(IF(VALUE(LEFT(AT$32, 1))=RangePos, ROW(RangePos)-MIN(ROW(RangePos))+1, ""), ROW()-32)), "") -> Lara Cowie | AU33: =IFERROR( INDEX(entries, MATCH(AT33, gymnasts, 0), 2), "") -> CNGA | AV33: =IFERROR(INDEX(gymnasts, SMALL(IF(VALUE(LEFT(AV$32, 1))=RangePos, ROW(RangePos)-MIN(ROW(RangePos))+1, ""), ROW()-32)), "") -> Isabel Gallagher | AW33: =IFERROR( INDEX(entries, MATCH(AV33, gymnasts, 0), 2), "") -> CNGA | AX33: =IFERROR(INDEX(gymnasts, SMALL(IF(VALUE(LEFT(AX$32, 1))=RangePos, ROW(RangePos)-MIN(ROW(RangePos))+1, ""), ROW()-32)), "") -> Aaleia Paton | AY33: =IFERROR( INDEX(entries, MATCH(AX33, gymnasts, 0), 2), "") -> CNGA | AZ33: =IFERROR(INDEX(gymnasts, SMALL(IF(VALUE(LEFT(AZ$32, 1))=RangePos, ROW(RangePos)-MIN(ROW(RangePos))+1, ""), ROW()-32)), "") -> Sofia Metcalfe | BA33: =IFERROR( INDEX(entries, MATCH(AZ33, gymnasts, 0), 2), "") -> SD | BB33: =IFERROR(INDEX(gymnasts, SMALL(IF(VALUE(LEFT(BB$32, 1))=RangePos, ROW(RangePos)-MIN(ROW(RangePos))+1, ""), ROW()-32)), "") -> Gabrille Rae | BC33: =IFERROR( INDEX(entries, MATCH(BB33, gymnasts, 0), 2), "") -> CNGA
A34: 31 | B34: Eva Marcu | C34: North Lakes | D34: 4.0 | E34: 12.50 | F34: 0.0 | G34: 0.00 | H34: 12.50 | I34: 2 | J34: 31 | K34: 0 | L34: 19 | M34: 4.0 | N34: 10.25 | O34: 26 | P34: 31 | Q34: 0 | R34: 27 | S34: 4.0 | T34: 12.20 | U34: 5 | V34: 31 | W34: 0 | X34: 26 | Y34: 3.5 | Z34: 11.10 | AA34: 12 | AB34: 31 | AC34: 0 | AD34: 25 | AE34: 3.5 | AF34: 8.55 | AG34: 24 | AH34: 31 | AI34: 0 | AJ34: 29 | AK34: 54.60 | AL34: 20 | AM34: 31 | AN34: 0 | AO34: 29 | AS34: =IFERROR( INDEX(entries, MATCH(AR34, gymnasts, 0), 2), "") ->  | AU34: =IFERROR( INDEX(entries, MATCH(AT34, gymnasts, 0), 2), "") ->  | AW34: =IFERROR( INDEX(entries, MATCH(AV34, gymnasts, 0), 2), "") ->  | AY34: =IFERROR( INDEX(entries, MATCH(AX34, gymnasts, 0), 2), "") ->  | BA34: =IFERROR( INDEX(entries, MATCH(AZ34, gymnasts, 0), 2), "") -> 
A35: 32 | B35: India Cooper-Smith | C35: North Lakes | D35: 4.0 | E35: 11.80 | F35: 0.0 | G35: 0.00 | H35: 11.80 | I35: 11 | J35: 32 | K35: 0 | L35: 19 | M35: 4.0 | N35: 11.45 | O35: 18 | P35: 32 | Q35: 0 | R35: 27 | S35: 4.0 | T35: 11.05 | U35: 17 | V35: 32 | W35: 0 | X35: 26 | Y35: 4.0 | Z35: 10.75 | AA35: 14 | AB35: 32 | AC35: 0 | AD35: 25 | AE35: 3.0 | AF35: 9.35 | AG35: 20 | AH35: 32 | AI35: 0 | AJ35: 29 | AK35: 54.40 | AL35: 21 | AM35: 32 | AN35: 0 | AO35: 29
D36: 0.0 | E36: 0.00 | F36: 0.0 | G36: 0.00 | H36: 0.00 | I36: 19 | J36: 33 | K36: 0 | L36: 19 | M36: 0.0 | N36: 0.00 | O36: 27 | P36: 33 | Q36: 0 | R36: 27 | S36: 0.0 | T36: 0.00 | U36: 26 | V36: 33 | W36: 0 | X36: 26 | Y36: 0.0 | Z36: 0.00 | AA36: 25 | AB36: 33 | AC36: 0 | AD36: 25 | AE36: 0.0 | AF36: 0.00 | AG36: 29 | AH36: 33 | AI36: 0 | AJ36: 29 | AK36: =SUMIF(D$2:AJ$2, "SCORE", D36:AJ36) -> 0.00 | AL36: 29 | AM36: 33 | AN36: 0 | AO36: 29
D37: 0.0 | E37: 0.00 | F37: 0.0 | G37: 0.00 | H37: 0.00 | I37: 19 | J37: 34 | K37: 0 | L37: 19 | M37: 0.0 | N37: 0.00 | O37: 27 | P37: 34 | Q37: 0 | R37: 27 | S37: 0.0 | T37: 0.00 | U37: 26 | V37: 34 | W37: 0 | X37: 26 | Y37: 0.0 | Z37: 0.00 | AA37: 25 | AB37: 34 | AC37: 0 | AD37: 25 | AE37: 0.0 | AF37: 0.00 | AG37: 29 | AH37: 34 | AI37: 0 | AJ37: 29 | AK37: 0.00 | AL37: 29 | AM37: 34 | AN37: 0 | AO37: 29
D38: 0.0 | E38: 0.00 | F38: 0.0 | G38: 0.00 | H38: 0.00 | I38: 19 | J38: 35 | K38: 0 | L38: 19 | M38: 0.0 | N38: 0.00 | O38: 27 | P38: 35 | Q38: 0 | R38: 27 | S38: 0.0 | T38: 0.00 | U38: 26 | V38: 35 | W38: 0 | X38: 26 | Y38: 0.0 | Z38: 0.00 | AA38: 25 | AB38: 35 | AC38: 0 | AD38: 25 | AE38: 0.0 | AF38: 0.00 | AG38: 29 | AH38: 35 | AI38: 0 | AJ38: 29 | AK38: 0.00 | AL38: 29 | AM38: 35 | AN38: 0 | AO38: 29
D39: 0.0 | E39: 0.00 | F39: 0.0 | G39: 0.00 | H39: 0.00 | I39: 19 | J39: 36 | K39: 0 | L39: 19 | M39: 0.0 | N39: 0.00 | O39: 27 | P39: 36 | Q39: 0 | R39: 27 | S39: 0.0 | T39: 0.00 | U39: 26 | V39: 36 | W39: 0 | X39: 26 | Y39: 0.0 | Z39: 0.00 | AA39: 25 | AB39: 36 | AC39: 0 | AD39: 25 | AE39: 0.0 | AF39: 0.00 | AG39: 29 | AH39: 36 | AI39: 0 | AJ39: 29 | AK39: 0.00 | AL39: 29 | AM39: 36 | AN39: 0 | AO39: 29 | AR39: 6th Place | AS39: =IFERROR(INDEX(AAscores,MATCH(AR40,gymnasts,0)), "") -> 60.45 | AT39: 5th Place | AU39: =IFERROR(INDEX(AAscores,MATCH(AT40,gymnasts,0)), "") -> 60.50 | AV39: 4th Place | AW39: =IFERROR(INDEX(AAscores,MATCH(AV40,gymnasts,0)), "") -> 61.25 | AX39: 3rd Place | AY39: =IFERROR(INDEX(AAscores,MATCH(AX40,gymnasts,0)), "") -> 61.80 | AZ39: 2nd Place | BA39: =IFERROR(INDEX(AAscores,MATCH(AZ40,gymnasts,0)), "") -> 61.90 | BB39: 1st Place | BC39: =IFERROR(INDEX(AAscores,MATCH(BB40,gymnasts,0)), "") -> 62.10
D40: 0.0 | E40: 0.00 | F40: 0.0 | G40: 0.00 | H40: 0.00 | I40: 19 | J40: 37 | K40: 0 | L40: 19 | M40: 0.0 | N40: 0.00 | O40: 27 | P40: 37 | Q40: 0 | R40: 27 | S40: 0.0 | T40: 0.00 | U40: 26 | V40: 37 | W40: 0 | X40: 26 | Y40: 0.0 | Z40: 0.00 | AA40: 25 | AB40: 37 | AC40: 0 | AD40: 25 | AE40: 0.0 | AF40: 0.00 | AG40: 29 | AH40: 37 | AI40: 0 | AJ40: 29 | AK40: 0.00 | AL40: 29 | AM40: 37 | AN40: 0 | AO40: 29 | AQ40: AA | AR40: =IFERROR(INDEX(gymnasts, SMALL(IF(VALUE(LEFT(AR$39, 1))=AApos, ROW(AApos)-MIN(ROW(AApos))+1, ""), ROW()-39)), "") -> Sofia Metcalfe | AS40: =IFERROR( INDEX(entries, MATCH(AR40, gymnasts, 0), 2), "") -> SD | AT40: =IFERROR(INDEX(gymnasts, SMALL(IF(VALUE(LEFT(AT$39, 1))=AApos, ROW(AApos)-MIN(ROW(AApos))+1, ""), ROW()-39)), "") -> Niamh Morris | AU40: =IFERROR( INDEX(entries, MATCH(AT40, gymnasts, 0), 2), "") -> Redcar | AV40: =IFERROR(INDEX(gymnasts, SMALL(IF(VALUE(LEFT(AV$39, 1))=AApos, ROW(AApos)-MIN(ROW(AApos))+1, ""), ROW()-39)), "") -> Aaleia Paton | AW40: =IFERROR( INDEX(entries, MATCH(AV40, gymnasts, 0), 2), "") -> CNGA | AX40: =IFERROR(INDEX(gymnasts, SMALL(IF(VALUE(LEFT(AX$39, 1))=AApos, ROW(AApos)-MIN(ROW(AApos))+1, ""), ROW()-39)), "") -> Gabrille Rae | AY40: =IFERROR( INDEX(entries, MATCH(AX40, gymnasts, 0), 2), "") -> CNGA | AZ40: =IFERROR(INDEX(gymnasts, SMALL(IF(VALUE(LEFT(AZ$39, 1))=AApos, ROW(AApos)-MIN(ROW(AApos))+1, ""), ROW()-39)), "") -> Lara Cowie | BA40: =IFERROR( INDEX(entries, MATCH(AZ40, gymnasts, 0), 2), "") -> CNGA | BB40: =IFERROR(INDEX(gymnasts, SMALL(IF(VALUE(LEFT(BB$39, 1))=AApos, ROW(AApos)-MIN(ROW(AApos))+1, ""), ROW()-39)), "") -> Lottie Carey | BC40: =IFERROR( INDEX(entries, MATCH(BB40, gymnasts, 0), 2), "") -> SD
D41: 0.0 | E41: 0.00 | F41: 0.0 | G41: 0.00 | H41: 0.00 | I41: 19 | J41: 38 | K41: 0 | L41: 19 | M41: 0.0 | N41: 0.00 | O41: 27 | P41: 38 | Q41: 0 | R41: 27 | S41: 0.0 | T41: 0.00 | U41: 26 | V41: 38 | W41: 0 | X41: 26 | Y41: 0.0 | Z41: 0.00 | AA41: 25 | AB41: 38 | AC41: 0 | AD41: 25 | AE41: 0.0 | AF41: 0.00 | AG41: 29 | AH41: 38 | AI41: 0 | AJ41: 29 | AK41: 0.00 | AL41: 29 | AM41: 38 | AN41: 0 | AO41: 29 | AS41: =IFERROR( INDEX(entries, MATCH(AR41, gymnasts, 0), 2), "") ->  | AU41: =IFERROR( INDEX(entries, MATCH(AT41, gymnasts, 0), 2), "") ->  | AW41: =IFERROR( INDEX(entries, MATCH(AV41, gymnasts, 0), 2), "") ->  | AY41: =IFERROR( INDEX(entries, MATCH(AX41, gymnasts, 0), 2), "") ->  | BA41: =IFERROR( INDEX(entries, MATCH(AZ41, gymnasts, 0), 2), "") -> 
D42: 0.0 | E42: 0.00 | F42: 0.0 | G42: 0.00 | H42: 0.00 | I42: 19 | J42: 39 | K42: 0 | L42: 19 | M42: 0.0 | N42: 0.00 | O42: 27 | P42: 39 | Q42: 0 | R42: 27 | S42: 0.0 | T42: 0.00 | U42: 26 | V42: 39 | W42: 0 | X42: 26 | Y42: 0.0 | Z42: 0.00 | AA42: 25 | AB42: 39 | AC42: 0 | AD42: 25 | AE42: 0.0 | AF42: 0.00 | AG42: 29 | AH42: 39 | AI42: 0 | AJ42: 29 | AK42: 0.00 | AL42: 29 | AM42: 39 | AN42: 0 | AO42: 29
D43: 0.0 | E43: 0.00 | F43: 0.0 | G43: 0.00 | H43: 0.00 | I43: 19 | J43: 40 | K43: 0 | L43: 19 | M43: 0.0 | N43: 0.00 | O43: 27 | P43: 40 | Q43: 0 | R43: 27 | S43: 0.0 | T43: 0.00 | U43: 26 | V43: 40 | W43: 0 | X43: 26 | Y43: 0.0 | Z43: 0.00 | AA43: 25 | AB43: 40 | AC43: 0 | AD43: 25 | AE43: 0.0 | AF43: 0.00 | AG43: 29 | AH43: 40 | AI43: 0 | AJ43: 29 | AK43: 0.00 | AL43: 29 | AM43: 40 | AN43: 0 | AO43: 29
D44: 0.0 | E44: 0.00 | F44: 0.0 | G44: 0.00 | H44: 0.00 | I44: 19 | J44: 41 | K44: 0 | L44: 19 | M44: 0.0 | N44: 0.00 | O44: 27 | P44: 41 | Q44: 0 | R44: 27 | S44: 0.0 | T44: 0.00 | U44: 26 | V44: 41 | W44: 0 | X44: 26 | Y44: 0.0 | Z44: 0.00 | AA44: 25 | AB44: 41 | AC44: 0 | AD44: 25 | AE44: 0.0 | AF44: 0.00 | AG44: 29 | AH44: 41 | AI44: 0 | AJ44: 29 | AK44: 0.00 | AL44: 29 | AM44: 41 | AN44: 0 | AO44: 29
D45: 0.0 | E45: 0.00 | F45: 0.0 | G45: 0.00 | H45: 0.00 | I45: 19 | J45: 42 | K45: 0 | L45: 19 | M45: 0.0 | N45: 0.00 | O45: 27 | P45: 42 | Q45: 0 | R45: 27 | S45: 0.0 | T45: 0.00 | U45: 26 | V45: 42 | W45: 0 | X45: 26 | Y45: 0.0 | Z45: 0.00 | AA45: 25 | AB45: 42 | AC45: 0 | AD45: 25 | AE45: 0.0 | AF45: 0.00 | AG45: 29 | AH45: 42 | AI45: 0 | AJ45: 29 | AK45: 0.00 | AL45: 29 | AM45: 42 | AN45: 0 | AO45: 29
D46: 0.0 | E46: 0.00 | F46: 0.0 | G46: 0.00 | H46: 0.00 | I46: 19 | J46: 43 | K46: 0 | L46: 19 | M46: 0.0 | N46: 0.00 | O46: 27 | P46: 43 | Q46: 0 | R46: 27 | S46: 0.0 | T46: 0.00 | U46: 26 | V46: 43 | W46: 0 | X46: 26 | Y46: 0.0 | Z46: 0.00 | AA46: 25 | AB46: 43 | AC46: 0 | AD46: 25 | AE46: 0.0 | AF46: 0.00 | AG46: 29 | AH46: 43 | AI46: 0 | AJ46: 29 | AK46: 0.00 | AL46: 29 | AM46: 43 | AN46: 0 | AO46: 29 | AQ46: Team | AR46: 3rd place Team | AS46: =IF(COUNTIF(AR47, 0), "", INDEX(teamTotals, MATCH(AR47, teams, 0))) -> 175.05 | AV46: 2nd Place Team | AW46: =IF(COUNTIF(AV47, 0), "", INDEX(teamTotals, MATCH(AV47, teams, 0))) -> 180.10 | AZ46: 1st Place Team | BA46: =IF(COUNTIF(AZ47, 0), "", INDEX(teamTotals, MATCH(AZ47, teams, 0))) -> 186.10
D47: 0.0 | E47: 0.00 | F47: 0.0 | G47: 0.00 | H47: 0.00 | I47: 19 | J47: 44 | K47: 0 | L47: 19 | M47: 0.0 | N47: 0.00 | O47: 27 | P47: 44 | Q47: 0 | R47: 27 | S47: 0.0 | T47: 0.00 | U47: 26 | V47: 44 | W47: 0 | X47: 26 | Y47: 0.0 | Z47: 0.00 | AA47: 25 | AB47: 44 | AC47: 0 | AD47: 25 | AE47: 0.0 | AF47: 0.00 | AG47: 29 | AH47: 44 | AI47: 0 | AJ47: 29 | AK47: 0.00 | AL47: 29 | AM47: 44 | AN47: 0 | AO47: 29 | AR47: =IFERROR(INDEX(teams, SMALL(IF(VALUE(LEFT(AR$46, 1))=teamPos, ROW(teamPos)-MIN(ROW(teamPos))+1, ""), ROW()-46)), "") -> Redcar | AS47: =IFERROR(IF(COUNTIF(AR47, 0), "", INDEX(gymnasts, SMALL(IF(AR$47=club, ROW(club)-MIN(ROW(club))+1, ""), ROW()-46))), "") -> Emilie Kennedy | AV47: =IFERROR(INDEX(teams, SMALL(IF(VALUE(LEFT(AV$46, 1))=teamPos, ROW(teamPos)-MIN(ROW(teamPos))+1, ""), ROW()-46)), "") -> SD | AW47: =IFERROR(IF(COUNTIF(AV47, 0), "", INDEX(gymnasts, SMALL(IF(AV$47=club, ROW(club)-MIN(ROW(club))+1, ""), ROW()-46))), "") -> Eva Keeligan | AZ47: =IFERROR(INDEX(teams, SMALL(IF(VALUE(LEFT(AZ$46, 1))=teamPos, ROW(teamPos)-MIN(ROW(teamPos))+1, ""), ROW()-46)), "") -> CNGA | BA47: =IFERROR(IF(COUNTIF(AZ47, 0), "", INDEX(gymnasts, SMALL(IF(AZ$47=club, ROW(club)-MIN(ROW(club))+1, ""), ROW()-46))), "") -> Aaleia Paton
D48: 0.0 | E48: 0.00 | F48: 0.0 | G48: 0.00 | H48: 0.00 | I48: 19 | J48: 45 | K48: 0 | L48: 19 | M48: 0.0 | N48: 0.00 | O48: 27 | P48: 45 | Q48: 0 | R48: 27 | S48: 0.0 | T48: 0.00 | U48: 26 | V48: 45 | W48: 0 | X48: 26 | Y48: 0.0 | Z48: 0.00 | AA48: 25 | AB48: 45 | AC48: 0 | AD48: 25 | AE48: 0.0 | AF48: 0.00 | AG48: 29 | AH48: 45 | AI48: 0 | AJ48: 29 | AK48: 0.00 | AL48: 29 | AM48: 45 | AN48: 0 | AO48: 29 | AS48: =IFERROR(IF(COUNTIF(AR48, 0), "", INDEX(gymnasts, SMALL(IF(AR$47=club, ROW(club)-MIN(ROW(club))+1, ""), ROW()-46))), "") -> Ava Golden | AW48: =IFERROR(IF(COUNTIF(AV48, 0), "", INDEX(gymnasts, SMALL(IF(AV$47=club, ROW(club)-MIN(ROW(club))+1, ""), ROW()-46))), "") -> Lottie Carey | BA48: =IFERROR(IF(COUNTIF(AZ48, 0), "", INDEX(gymnasts, SMALL(IF(AZ$47=club, ROW(club)-MIN(ROW(club))+1, ""), ROW()-46))), "") -> Elsie Reavely
D49: 0.0 | E49: 0.00 | F49: 0.0 | G49: 0.00 | H49: 0.00 | I49: 19 | J49: 46 | K49: 0 | L49: 19 | M49: 0.0 | N49: 0.00 | O49: 27 | P49: 46 | Q49: 0 | R49: 27 | S49: 0.0 | T49: 0.00 | U49: 26 | V49: 46 | W49: 0 | X49: 26 | Y49: 0.0 | Z49: 0.00 | AA49: 25 | AB49: 46 | AC49: 0 | AD49: 25 | AE49: 0.0 | AF49: 0.00 | AG49: 29 | AH49: 46 | AI49: 0 | AJ49: 29 | AK49: 0.00 | AL49: 29 | AM49: 46 | AN49: 0 | AO49: 29 | AS49: =IFERROR(IF(COUNTIF(AR49, 0), "", INDEX(gymnasts, SMALL(IF(AR$47=club, ROW(club)-MIN(ROW(club))+1, ""), ROW()-46))), "") -> Niamh Morris | AW49: =IFERROR(IF(COUNTIF(AV49, 0), "", INDEX(gymnasts, SMALL(IF(AV$47=club, ROW(club)-MIN(ROW(club))+1, ""), ROW()-46))), "") -> Sofia Metcalfe | BA49: =IFERROR(IF(COUNTIF(AZ49, 0), "", INDEX(gymnasts, SMALL(IF(AZ$47=club, ROW(club)-MIN(ROW(club))+1, ""), ROW()-46))), "") -> Gabrille Rae
D50: 0.0 | E50: 0.00 | F50: 0.0 | G50: 0.00 | H50: 0.00 | I50: 19 | J50: 47 | K50: 0 | L50: 19 | M50: 0.0 | N50: 0.00 | O50: 27 | P50: 47 | Q50: 0 | R50: 27 | S50: 0.0 | T50: 0.00 | U50: 26 | V50: 47 | W50: 0 | X50: 26 | Y50: 0.0 | Z50: 0.00 | AA50: 25 | AB50: 47 | AC50: 0 | AD50: 25 | AE50: 0.0 | AF50: 0.00 | AG50: 29 | AH50: 47 | AI50: 0 | AJ50: 29 | AK50: 0.00 | AL50: 29 | AM50: 47 | AN50: 0 | AO50: 29 | AS50: =IFERROR(IF(COUNTIF(AR50, 0), "", INDEX(gymnasts, SMALL(IF(AR$47=club, ROW(club)-MIN(ROW(club))+1, ""), ROW()-46))), "") ->  | AW50: =IFERROR(IF(COUNTIF(AV50, 0), "", INDEX(gymnasts, SMALL(IF(AV$47=club, ROW(club)-MIN(ROW(club))+1, ""), ROW()-46))), "") -> Lyla Bradley | BA50: =IFERROR(IF(COUNTIF(AZ50, 0), "", INDEX(gymnasts, SMALL(IF(AZ$47=club, ROW(club)-MIN(ROW(club))+1, ""), ROW()-46))), "") -> Isabel Gallagher
D51: 0.0 | E51: 0.00 | F51: 0.0 | G51: 0.00 | H51: 0.00 | I51: 19 | J51: 48 | K51: 0 | L51: 19 | M51: 0.0 | N51: 0.00 | O51: 27 | P51: 48 | Q51: 0 | R51: 27 | S51: 0.0 | T51: 0.00 | U51: 26 | V51: 48 | W51: 0 | X51: 26 | Y51: 0.0 | Z51: 0.00 | AA51: 25 | AB51: 48 | AC51: 0 | AD51: 25 | AE51: 0.0 | AF51: 0.00 | AG51: 29 | AH51: 48 | AI51: 0 | AJ51: 29 | AK51: 0.00 | AL51: 29 | AM51: 48 | AN51: 0 | AO51: 29 | AS51: =IFERROR(IF(COUNTIF(AR51, 0), "", INDEX(gymnasts, SMALL(IF(AR$47=club, ROW(club)-MIN(ROW(club))+1, ""), ROW()-46))), "") ->  | AW51: =IFERROR(IF(COUNTIF(AV51, 0), "", INDEX(gymnasts, SMALL(IF(AV$47=club, ROW(club)-MIN(ROW(club))+1, ""), ROW()-46))), "") ->  | BA51: =IFERROR(IF(COUNTIF(AZ51, 0), "", INDEX(gymnasts, SMALL(IF(AZ$47=club, ROW(club)-MIN(ROW(club))+1, ""), ROW()-46))), "") -> Lara Cowie
D52: 0.0 | E52: 0.00 | F52: 0.0 | G52: 0.00 | H52: 0.00 | I52: 19 | J52: 49 | K52: 0 | L52: 19 | M52: 0.0 | N52: 0.00 | O52: 27 | P52: 49 | Q52: 0 | R52: 27 | S52: 0.0 | T52: 0.00 | U52: 26 | V52: 49 | W52: 0 | X52: 26 | Y52: 0.0 | Z52: 0.00 | AA52: 25 | AB52: 49 | AC52: 0 | AD52: 25 | AE52: 0.0 | AF52: 0.00 | AG52: 29 | AH52: 49 | AI52: 0 | AJ52: 29 | AK52: 0.00 | AL52: 29 | AM52: 49 | AN52: 0 | AO52: 29 | AR52: =IFERROR(INDEX(teams, SMALL(IF(VALUE(LEFT(AR$46, 1))=teamPos, ROW(teamPos)-MIN(ROW(teamPos))+1, ""), ROW()-50)), "") ->  | AS52: =IFERROR(IF(COUNTIF(AR$52, 0), "", INDEX(gymnasts, SMALL(IF(AR$52=club, ROW(club)-MIN(ROW(club))+1, ""), ROW()-51))), "") -> 0 | AV52: =IFERROR(INDEX(teams, SMALL(IF(VALUE(LEFT(AV$46, 1))=teamPos, ROW(teamPos)-MIN(ROW(teamPos))+1, ""), ROW()-50)), "") ->  | AW52: =IFERROR(IF(COUNTIF(AV$52, 0), "", INDEX(gymnasts, SMALL(IF(AV$52=club, ROW(club)-MIN(ROW(club))+1, ""), ROW()-51))), "") -> 0 | AZ52: =IFERROR(INDEX(teams, SMALL(IF(VALUE(LEFT(AZ$46, 1))=teamPos, ROW(teamPos)-MIN(ROW(teamPos))+1, ""), ROW()-50)), "") ->  | BA52: =IFERROR(IF(COUNTIF(AZ$52, 0), "", INDEX(gymnasts, SMALL(IF(AZ$52=club, ROW(club)-MIN(ROW(club))+1, ""), ROW()-51))), "") -> 0
D53: 0.0 | E53: 0.00 | F53: 0.0 | G53: 0.00 | H53: 0.00 | I53: 19 | J53: 50 | K53: 0 | L53: 19 | M53: 0.0 | N53: 0.00 | O53: 27 | P53: 50 | Q53: 0 | R53: 27 | S53: 0.0 | T53: 0.00 | U53: 26 | V53: 50 | W53: 0 | X53: 26 | Y53: 0.0 | Z53: 0.00 | AA53: 25 | AB53: 50 | AC53: 0 | AD53: 25 | AE53: 0.0 | AF53: 0.00 | AG53: 29 | AH53: 50 | AI53: 0 | AJ53: 29 | AK53: 0.00 | AL53: 29 | AM53: 50 | AN53: 0 | AO53: 29 | AS53: =IFERROR(IF(COUNTIF(AR$52, 0), "", INDEX(gymnasts, SMALL(IF(AR$52=club, ROW(club)-MIN(ROW(club))+1, ""), ROW()-51))), "") -> 0 | AW53: =IFERROR(IF(COUNTIF(AV$52, 0), "", INDEX(gymnasts, SMALL(IF(AV$52=club, ROW(club)-MIN(ROW(club))+1, ""), ROW()-51))), "") -> 0 | BA53: =IFERROR(IF(COUNTIF(AZ$52, 0), "", INDEX(gymnasts, SMALL(IF(AZ$52=club, ROW(club)-MIN(ROW(club))+1, ""), ROW()-51))), "") -> 0
D54: 0.0 | E54: 0.00 | F54: 0.0 | G54: 0.00 | H54: 0.00 | I54: 19 | J54: 51 | K54: 0 | L54: 19 | M54: 0.0 | N54: 0.00 | O54: 27 | P54: 51 | Q54: 0 | R54: 27 | S54: 0.0 | T54: 0.00 | U54: 26 | V54: 51 | W54: 0 | X54: 26 | Y54: 0.0 | Z54: 0.00 | AA54: 25 | AB54: 51 | AC54: 0 | AD54: 25 | AE54: 0.0 | AF54: 0.00 | AG54: 29 | AH54: 51 | AI54: 0 | AJ54: 29 | AK54: 0.00 | AL54: 29 | AM54: 51 | AN54: 0 | AO54: 29 | AS54: =IFERROR(IF(COUNTIF(AR$52, 0), "", INDEX(gymnasts, SMALL(IF(AR$52=club, ROW(club)-MIN(ROW(club))+1, ""), ROW()-51))), "") -> 0 | AW54: =IFERROR(IF(COUNTIF(AV$52, 0), "", INDEX(gymnasts, SMALL(IF(AV$52=club, ROW(club)-MIN(ROW(club))+1, ""), ROW()-51))), "") -> 0 | BA54: =IFERROR(IF(COUNTIF(AZ$52, 0), "", INDEX(gymnasts, SMALL(IF(AZ$52=club, ROW(club)-MIN(ROW(club))+1, ""), ROW()-51))), "") -> 0
D55: 0.0 | E55: 0.00 | F55: 0.0 | G55: 0.00 | H55: 0.00 | I55: 19 | J55: 52 | K55: 0 | L55: 19 | M55: 0.0 | N55: 0.00 | O55: 27 | P55: 52 | Q55: 0 | R55: 27 | S55: 0.0 | T55: 0.00 | U55: 26 | V55: 52 | W55: 0 | X55: 26 | Y55: 0.0 | Z55: 0.00 | AA55: 25 | AB55: 52 | AC55: 0 | AD55: 25 | AE55: 0.0 | AF55: 0.00 | AG55: 29 | AH55: 52 | AI55: 0 | AJ55: 29 | AK55: 0.00 | AL55: 29 | AM55: 52 | AN55: 0 | AO55: 29 | AS55: =IFERROR(IF(COUNTIF(AR$52, 0), "", INDEX(gymnasts, SMALL(IF(AR$52=club, ROW(club)-MIN(ROW(club))+1, ""), ROW()-51))), "") -> 0 | AW55: =IFERROR(IF(COUNTIF(AV$52, 0), "", INDEX(gymnasts, SMALL(IF(AV$52=club, ROW(club)-MIN(ROW(club))+1, ""), ROW()-51))), "") -> 0 | BA55: =IFERROR(IF(COUNTIF(AZ$52, 0), "", INDEX(gymnasts, SMALL(IF(AZ$52=club, ROW(club)-MIN(ROW(club))+1, ""), ROW()-51))), "") -> 0
D56: 0.0 | E56: 0.00 | F56: 0.0 | G56: 0.00 | H56: 0.00 | I56: 19 | J56: 53 | K56: 0 | L56: 19 | M56: 0.0 | N56: 0.00 | O56: 27 | P56: 53 | Q56: 0 | R56: 27 | S56: 0.0 | T56: 0.00 | U56: 26 | V56: 53 | W56: 0 | X56: 26 | Y56: 0.0 | Z56: 0.00 | AA56: 25 | AB56: 53 | AC56: 0 | AD56: 25 | AE56: 0.0 | AF56: 0.00 | AG56: 29 | AH56: 53 | AI56: 0 | AJ56: 29 | AK56: 0.00 | AL56: 29 | AM56: 53 | AN56: 0 | AO56: 29 | AS56: =IFERROR(IF(ISTEXT(AR$52), INDEX(gymnasts, SMALL(IF(AR$52=club, ROW(club)-MIN(ROW(club))+1, ""), ROW()-51)), ""), "") -> 0 | AW56: =IFERROR(IF(ISTEXT(AV$52), INDEX(gymnasts, SMALL(IF(AV$52=club, ROW(club)-MIN(ROW(club))+1, ""), ROW()-51)), ""), "") -> 0 | BA56: =IFERROR(IF(ISTEXT(AZ$52), INDEX(gymnasts, SMALL(IF(AZ$52=club, ROW(club)-MIN(ROW(club))+1, ""), ROW()-51)), ""), "") -> 0
D57: 0.0 | E57: 0.00 | F57: 0.0 | G57: 0.00 | H57: 0.00 | I57: 19 | J57: 54 | K57: 0 | L57: 19 | M57: 0.0 | N57: 0.00 | O57: 27 | P57: 54 | Q57: 0 | R57: 27 | S57: 0.0 | T57: 0.00 | U57: 26 | V57: 54 | W57: 0 | X57: 26 | Y57: 0.0 | Z57: 0.00 | AA57: 25 | AB57: 54 | AC57: 0 | AD57: 25 | AE57: 0.0 | AF57: 0.00 | AG57: 29 | AH57: 54 | AI57: 0 | AJ57: 29 | AK57: 0.00 | AL57: 29 | AM57: 54 | AN57: 0 | AO57: 29
D58: 0.0 | E58: 0.00 | F58: 0.0 | G58: 0.00 | H58: 0.00 | I58: 19 | J58: 55 | K58: 0 | L58: 19 | M58: 0.0 | N58: 0.00 | O58: 27 | P58: 55 | Q58: 0 | R58: 27 | S58: 0.0 | T58: 0.00 | U58: 26 | V58: 55 | W58: 0 | X58: 26 | Y58: 0.0 | Z58: 0.00 | AA58: 25 | AB58: 55 | AC58: 0 | AD58: 25 | AE58: 0.0 | AF58: 0.00 | AG58: 29 | AH58: 55 | AI58: 0 | AJ58: 29 | AK58: 0.00 | AL58: 29 | AM58: 55 | AN58: 0 | AO58: 29
D59: 0.0 | E59: 0.00 | F59: 0.0 | G59: 0.00 | H59: 0.00 | I59: 19 | J59: 56 | K59: 0 | L59: 19 | M59: 0.0 | N59: 0.00 | O59: 27 | P59: 56 | Q59: 0 | R59: 27 | S59: 0.0 | T59: 0.00 | U59: 26 | V59: 56 | W59: 0 | X59: 26 | Y59: 0.0 | Z59: 0.00 | AA59: 25 | AB59: 56 | AC59: 0 | AD59: 25 | AE59: 0.0 | AF59: 0.00 | AG59: 29 | AH59: 56 | AI59: 0 | AJ59: 29 | AK59: 0.00 | AL59: 29 | AM59: 56 | AN59: 0 | AO59: 29
D60: 0.0 | E60: 0.00 | F60: 0.0 | G60: 0.00 | H60: 0.00 | I60: 19 | J60: 57 | K60: 0 | L60: 19 | M60: 0.0 | N60: 0.00 | O60: 27 | P60: 57 | Q60: 0 | R60: 27 | S60: 0.0 | T60: 0.00 | U60: 26 | V60: 57 | W60: 0 | X60: 26 | Y60: 0.0 | Z60: 0.00 | AA60: 25 | AB60: 57 | AC60: 0 | AD60: 25 | AE60: 0.0 | AF60: 0.00 | AG60: 29 | AH60: 57 | AI60: 0 | AJ60: 29 | AK60: 0.00 | AL60: 29 | AM60: 57 | AN60: 0 | AO60: 29
D61: 0.0 | E61: 0.00 | F61: 0.0 | G61: 0.00 | H61: 0.00 | I61: 19 | J61: 58 | K61: 0 | L61: 19 | M61: 0.0 | N61: 0.00 | O61: 27 | P61: 58 | Q61: 0 | R61: 27 | S61: 0.0 | T61: 0.00 | U61: 26 | V61: 58 | W61: 0 | X61: 26 | Y61: 0.0 | Z61: 0.00 | AA61: 25 | AB61: 58 | AC61: 0 | AD61: 25 | AE61: 0.0 | AF61: 0.00 | AG61: 29 | AH61: 58 | AI61: 0 | AJ61: 29 | AK61: 0.00 | AL61: 29 | AM61: 58 | AN61: 0 | AO61: 29
D62: 0.0 | E62: 0.00 | F62: 0.0 | G62: 0.00 | H62: 0.00 | I62: 19 | J62: 59 | K62: 0 | L62: 19 | M62: 0.0 | N62: 0.00 | O62: 27 | P62: 59 | Q62: 0 | R62: 27 | S62: 0.0 | T62: 0.00 | U62: 26 | V62: 59 | W62: 0 | X62: 26 | Y62: 0.0 | Z62: 0.00 | AA62: 25 | AB62: 59 | AC62: 0 | AD62: 25 | AE62: 0.0 | AF62: 0.00 | AG62: 29 | AH62: 59 | AI62: 0 | AJ62: 29 | AK62: 0.00 | AL62: 29 | AM62: 59 | AN62: 0 | AO62: 29
D63: 0.0 | E63: 0.00 | F63: 0.0 | G63: 0.00 | H63: 0.00 | I63: 19 | J63: 60 | K63: 0 | L63: 19 | M63: 0.0 | N63: 0.00 | O63: 27 | P63: 60 | Q63: 0 | R63: 27 | S63: 0.0 | T63: 0.00 | U63: 26 | V63: 60 | W63: 0 | X63: 26 | Y63: 0.0 | Z63: 0.00 | AA63: 25 | AB63: 60 | AC63: 0 | AD63: 25 | AE63: 0.0 | AF63: 0.00 | AG63: 29 | AH63: 60 | AI63: 0 | AJ63: 29 | AK63: 0.00 | AL63: 29 | AM63: 60 | AN63: 0 | AO63: 29
D64: 0.0 | E64: 0.00 | F64: 0.0 | G64: 0.00 | H64: 0.00 | I64: 19 | J64: 61 | K64: 0 | L64: 19 | M64: 0.0 | N64: 0.00 | O64: 27 | P64: 61 | Q64: 0 | R64: 27 | S64: 0.0 | T64: 0.00 | U64: 26 | V64: 61 | W64: 0 | X64: 26 | Y64: 0.0 | Z64: 0.00 | AA64: 25 | AB64: 61 | AC64: 0 | AD64: 25 | AE64: 0.0 | AF64: 0.00 | AG64: 29 | AH64: 61 | AI64: 0 | AJ64: 29 | AK64: 0.00 | AL64: 29 | AM64: 61 | AN64: 0 | AO64: 29
D65: 0.0 | E65: 0.00 | F65: 0.0 | G65: 0.00 | H65: 0.00 | I65: 19 | J65: 62 | K65: 0 | L65: 19 | M65: 0.0 | N65: 0.00 | O65: 27 | P65: 62 | S65: 0.0 | T65: 0.00 | U65: 26 | V65: 62 | W65: 0 | X65: 26 | Y65: 0.0 | Z65: 0.00 | AA65: 25 | AB65: 62 | AC65: 0 | AD65: 25 | AE65: 0.0 | AF65: 0.00 | AG65: 29 | AH65: 62 | AI65: 0 | AJ65: 29 | AK65: 0.00 | AL65: 29 | AM65: 62 | AN65: 0 | AO65: 29
B66: Teams
B67: =IF(AND(COUNTIF(club,C67)>=3,COUNTIF(club,C67)<=5),"TEAM",IF(COUNTIF(club,C67)>5,"Too Many!!!!!","NO TEAM")) -> TEAM | C67: SD | H67: =IF($B67="NO TEAM", 0, SUM(LARGE(IF(club=$C67, vault), ROW($1:$3)))) -> 35.65 | N67: =IF($B67="NO TEAM", 0, SUM(LARGE(IF(club=$C67, bars), ROW($1:$3)))) -> 36.95 | T67: =IF($B67="NO TEAM", 0, SUM(LARGE(IF(club=$C67, beam), ROW($1:$3)))) -> 35.85 | Z67: =IF($B67="NO TEAM", 0, SUM(LARGE(IF(club=$C67, floor), ROW($1:$3)))) -> 35.70 | AF67: =IF($B67="NO TEAM", 0, SUM(LARGE(IF(club=$C67, range), ROW($1:$3)))) -> 35.95 | AK67: =IF(B67="TEAM", SUMIF(D$2:AJ$2, "SCORE", D67:AJ67), 0) -> 180.10 | AL67: =VLOOKUP(AK67,AN$67:AO$81, 2,FALSE) -> 2 | AM67: =IF(ISNUMBER(AM66), AM66+1, 1) -> 1 | AN67: =LARGE((AK$67:AK$81), $AM67) -> 186.1 | AO67: =IF(AN67=AN66, AO66, AO66+1) -> 1
B68: =IF(AND(COUNTIF(club,C68)>=3,COUNTIF(club,C68)<=5),"TEAM",IF(COUNTIF(club,C68)>5,"Too Many!!!!!","NO TEAM")) -> TEAM | C68: Redcar | H68: =IF($B68="NO TEAM", 0, SUM(LARGE(IF(club=$C68, vault), ROW($1:$3)))) -> 36.30 | N68: =IF($B68="NO TEAM", 0, SUM(LARGE(IF(club=$C68, bars), ROW($1:$3)))) -> 38.10 | T68: =IF($B68="NO TEAM", 0, SUM(LARGE(IF(club=$C68, beam), ROW($1:$3)))) -> 36.90 | Z68: =IF($B68="NO TEAM", 0, SUM(LARGE(IF(club=$C68, floor), ROW($1:$3)))) -> 31.50 | AF68: =IF($B68="NO TEAM", 0, SUM(LARGE(IF(club=$C68, range), ROW($1:$3)))) -> 32.25 | AK68: 175.05 | AL68: =VLOOKUP(AK68,AN$67:AO$81, 2,FALSE) -> 3 | AM68: =IF(ISNUMBER(AM67), AM67+1, 1) -> 2 | AN68: =LARGE((AK$67:AK$81), $AM68) -> 180.1 | AO68: =IF(AN68=AN67, AO67, AO67+1) -> 2
B69: =IF(AND(COUNTIF(club,C69)>=3,COUNTIF(club,C69)<=5),"TEAM",IF(COUNTIF(club,C69)>5,"Too Many!!!!!","NO TEAM")) -> TEAM | C69: Richmondshire | H69: =IF($B69="NO TEAM", 0, SUM(LARGE(IF(club=$C69, vault), ROW($1:$3)))) -> 34.85 | N69: =IF($B69="NO TEAM", 0, SUM(LARGE(IF(club=$C69, bars), ROW($1:$3)))) -> 33.60 | T69: =IF($B69="NO TEAM", 0, SUM(LARGE(IF(club=$C69, beam), ROW($1:$3)))) -> 30.55 | Z69: =IF($B69="NO TEAM", 0, SUM(LARGE(IF(club=$C69, floor), ROW($1:$3)))) -> 30.10 | AF69: =IF($B69="NO TEAM", 0, SUM(LARGE(IF(club=$C69, range), ROW($1:$3)))) -> 28.15 | AK69: 157.25 | AL69: 6 | AM69: 3 | AN69: 175.05 | AO69: 3
B70: =IF(AND(COUNTIF(club,C70)>=3,COUNTIF(club,C70)<=5),"TEAM",IF(COUNTIF(club,C70)>5,"Too Many!!!!!","NO TEAM")) -> TEAM | C70: CNGA | H70: =IF($B70="NO TEAM", 0, SUM(LARGE(IF(club=$C70, vault), ROW($1:$3)))) -> 36.85 | N70: =IF($B70="NO TEAM", 0, SUM(LARGE(IF(club=$C70, bars), ROW($1:$3)))) -> 38.75 | T70: =IF($B70="NO TEAM", 0, SUM(LARGE(IF(club=$C70, beam), ROW($1:$3)))) -> 36.90 | Z70: =IF($B70="NO TEAM", 0, SUM(LARGE(IF(club=$C70, floor), ROW($1:$3)))) -> 35.85 | AF70: =IF($B70="NO TEAM", 0, SUM(LARGE(IF(club=$C70, range), ROW($1:$3)))) -> 37.75 | AK70: 186.10 | AL70: 1 | AM70: 4 | AN70: 173.1 | AO70: 4
B71: =IF(AND(COUNTIF(club,C71)>=3,COUNTIF(club,C71)<=5),"TEAM",IF(COUNTIF(club,C71)>5,"Too Many!!!!!","NO TEAM")) -> TEAM | C71: Darlington | H71: =IF($B71="NO TEAM", 0, SUM(LARGE(IF(club=$C71, vault), ROW($1:$3)))) -> 36.40 | N71: =IF($B71="NO TEAM", 0, SUM(LARGE(IF(club=$C71, bars), ROW($1:$3)))) -> 35.15 | T71: =IF($B71="NO TEAM", 0, SUM(LARGE(IF(club=$C71, beam), ROW($1:$3)))) -> 35.20 | Z71: =IF($B71="NO TEAM", 0, SUM(LARGE(IF(club=$C71, floor), ROW($1:$3)))) -> 33.65 | AF71: =IF($B71="NO TEAM", 0, SUM(LARGE(IF(club=$C71, range), ROW($1:$3)))) -> 30.15 | AK71: 170.55 | AL71: 5 | AM71: 5 | AN71: 170.55 | AO71: 5
B72: =IF(AND(COUNTIF(club,C72)>=3,COUNTIF(club,C72)<=5),"TEAM",IF(COUNTIF(club,C72)>5,"Too Many!!!!!","NO TEAM")) -> TEAM | C72: Carlisle | H72: =IF($B72="NO TEAM", 0, SUM(LARGE(IF(club=$C72, vault), ROW($1:$3)))) -> 36.30 | N72: =IF($B72="NO TEAM", 0, SUM(LARGE(IF(club=$C72, bars), ROW($1:$3)))) -> 35.65 | T72: =IF($B72="NO TEAM", 0, SUM(LARGE(IF(club=$C72, beam), ROW($1:$3)))) -> 36.55 | Z72: =IF($B72="NO TEAM", 0, SUM(LARGE(IF(club=$C72, floor), ROW($1:$3)))) -> 35.30 | AF72: =IF($B72="NO TEAM", 0, SUM(LARGE(IF(club=$C72, range), ROW($1:$3)))) -> 29.30 | AK72: 173.10 | AL72: 4 | AM72: 6 | AN72: 157.25 | AO72: 6
B73: =IF(AND(COUNTIF(club,C73)>=3,COUNTIF(club,C73)<=5),"TEAM",IF(COUNTIF(club,C73)>5,"Too Many!!!!!","NO TEAM")) -> NO TEAM | H73: =IF($B73="NO TEAM", 0, SUM(LARGE(IF(club=$C73, vault), ROW($1:$3)))) -> 0.00 | N73: =IF($B73="NO TEAM", 0, SUM(LARGE(IF(club=$C73, bars), ROW($1:$3)))) -> 0.00 | T73: =IF($B73="NO TEAM", 0, SUM(LARGE(IF(club=$C73, beam), ROW($1:$3)))) -> 0.00 | Z73: =IF($B73="NO TEAM", 0, SUM(LARGE(IF(club=$C73, floor), ROW($1:$3)))) -> 0.00 | AF73: =IF($B73="NO TEAM", 0, SUM(LARGE(IF(club=$C73, range), ROW($1:$3)))) -> 0.00 | AK73: 0.00 | AL73: 7 | AM73: 7 | AN73: 0 | AO73: 7
B74: =IF(AND(COUNTIF(club,C74)>=3,COUNTIF(club,C74)<=5),"TEAM",IF(COUNTIF(club,C74)>5,"Too Many!!!!!","NO TEAM")) -> NO TEAM | H74: =IF($B74="NO TEAM", 0, SUM(LARGE(IF(club=$C74, vault), ROW($1:$3)))) -> 0.00 | N74: =IF($B74="NO TEAM", 0, SUM(LARGE(IF(club=$C74, bars), ROW($1:$3)))) -> 0.00 | T74: =IF($B74="NO TEAM", 0, SUM(LARGE(IF(club=$C74, beam), ROW($1:$3)))) -> 0.00 | Z74: =IF($B74="NO TEAM", 0, SUM(LARGE(IF(club=$C74, floor), ROW($1:$3)))) -> 0.00 | AF74: =IF($B74="NO TEAM", 0, SUM(LARGE(IF(club=$C74, range), ROW($1:$3)))) -> 0.00 | AK74: 0.00 | AL74: 7 | AM74: 8 | AN74: 0 | AO74: 7
B75: =IF(AND(COUNTIF(club,C75)>=3,COUNTIF(club,C75)<=5),"TEAM",IF(COUNTIF(club,C75)>5,"Too Many!!!!!","NO TEAM")) -> NO TEAM | H75: =IF($B75="NO TEAM", 0, SUM(LARGE(IF(club=$C75, vault), ROW($1:$3)))) -> 0.00 | N75: =IF($B75="NO TEAM", 0, SUM(LARGE(IF(club=$C75, bars), ROW($1:$3)))) -> 0.00 | T75: =IF($B75="NO TEAM", 0, SUM(LARGE(IF(club=$C75, beam), ROW($1:$3)))) -> 0.00 | Z75: =IF($B75="NO TEAM", 0, SUM(LARGE(IF(club=$C75, floor), ROW($1:$3)))) -> 0.00 | AF75: =IF($B75="NO TEAM", 0, SUM(LARGE(IF(club=$C75, range), ROW($1:$3)))) -> 0.00 | AK75: 0.00 | AL75: 7 | AM75: 9 | AN75: 0 | AO75: 7
B76: =IF(AND(COUNTIF(club,C76)>=3,COUNTIF(club,C76)<=5),"TEAM",IF(COUNTIF(club,C76)>5,"Too Many!!!!!","NO TEAM")) -> NO TEAM | H76: =IF($B76="NO TEAM", 0, SUM(LARGE(IF(club=$C76, vault), ROW($1:$3)))) -> 0.00 | N76: =IF($B76="NO TEAM", 0, SUM(LARGE(IF(club=$C76, bars), ROW($1:$3)))) -> 0.00 | T76: =IF($B76="NO TEAM", 0, SUM(LARGE(IF(club=$C76, beam), ROW($1:$3)))) -> 0.00 | Z76: =IF($B76="NO TEAM", 0, SUM(LARGE(IF(club=$C76, floor), ROW($1:$3)))) -> 0.00 | AF76: =IF($B76="NO TEAM", 0, SUM(LARGE(IF(club=$C76, range), ROW($1:$3)))) -> 0.00 | AK76: 0.00 | AL76: 7 | AM76: 10 | AN76: 0 | AO76: 7
B77: =IF(AND(COUNTIF(club,C77)>=3,COUNTIF(club,C77)<=5),"TEAM",IF(COUNTIF(club,C77)>5,"Too Many!!!!!","NO TEAM")) -> NO TEAM | H77: =IF($B77="NO TEAM", 0, SUM(LARGE(IF(club=$C77, vault), ROW($1:$3)))) -> 0.00 | N77: =IF($B77="NO TEAM", 0, SUM(LARGE(IF(club=$C77, bars), ROW($1:$3)))) -> 0.00 | T77: =IF($B77="NO TEAM", 0, SUM(LARGE(IF(club=$C77, beam), ROW($1:$3)))) -> 0.00 | Z77: =IF($B77="NO TEAM", 0, SUM(LARGE(IF(club=$C77, floor), ROW($1:$3)))) -> 0.00 | AF77: =IF($B77="NO TEAM", 0, SUM(LARGE(IF(club=$C77, range), ROW($1:$3)))) -> 0.00 | AK77: 0.00 | AL77: 7 | AM77: 11 | AN77: 0 | AO77: 7
B78: =IF(AND(COUNTIF(club,C78)>=3,COUNTIF(club,C78)<=5),"TEAM",IF(COUNTIF(club,C78)>5,"Too Many!!!!!","NO TEAM")) -> NO TEAM | H78: =IF($B78="NO TEAM", 0, SUM(LARGE(IF(club=$C78, vault), ROW($1:$3)))) -> 0.00 | N78: =IF($B78="NO TEAM", 0, SUM(LARGE(IF(club=$C78, bars), ROW($1:$3)))) -> 0.00 | T78: =IF($B78="NO TEAM", 0, SUM(LARGE(IF(club=$C78, beam), ROW($1:$3)))) -> 0.00 | Z78: =IF($B78="NO TEAM", 0, SUM(LARGE(IF(club=$C78, floor), ROW($1:$3)))) -> 0.00 | AF78: =IF($B78="NO TEAM", 0, SUM(LARGE(IF(club=$C78, range), ROW($1:$3)))) -> 0.00 | AK78: 0.00 | AL78: 7 | AM78: 12 | AN78: 0 | AO78: 7
B79: =IF(AND(COUNTIF(club,C79)>=3,COUNTIF(club,C79)<=5),"TEAM",IF(COUNTIF(club,C79)>5,"Too Many!!!!!","NO TEAM")) -> NO TEAM | H79: =IF($B79="NO TEAM", 0, SUM(LARGE(IF(club=$C79, vault), ROW($1:$3)))) -> 0.00 | N79: =SUM(LARGE(IF(club=$C79, bars), ROW($1:$3))) -> 0.00 | T79: =SUM(LARGE(IF(club=$C79, beam), ROW($1:$3))) -> 0.00 | Z79: =SUM(LARGE(IF(club=$C79, floor), ROW($1:$3))) -> 0.00 | AF79: =SUM(LARGE(IF(club=$C79, range), ROW($1:$3))) -> 0.00 | AK79: 0.00 | AL79: 7 | AM79: 13 | AN79: 0 | AO79: 7
B80: =IF(AND(COUNTIF(club,C80)>=3,COUNTIF(club,C80)<=5),"TEAM",IF(COUNTIF(club,C80)>5,"Too Many!!!!!","NO TEAM")) -> NO TEAM | H80: =IF($B80="NO TEAM", 0, SUM(LARGE(IF(club=$C80, vault), ROW($1:$3)))) -> 0.00 | N80: =SUM(LARGE(IF(club=$C80, bars), ROW($1:$3))) -> 0.00 | T80: =SUM(LARGE(IF(club=$C80, beam), ROW($1:$3))) -> 0.00 | Z80: =SUM(LARGE(IF(club=$C80, floor), ROW($1:$3))) -> 0.00 | AF80: =SUM(LARGE(IF(club=$C80, range), ROW($1:$3))) -> 0.00 | AK80: 0.00 | AL80: 7 | AM80: 14 | AN80: 0 | AO80: 7
B81: =IF(AND(COUNTIF(club,C81)>=3,COUNTIF(club,C81)<=5),"TEAM",IF(COUNTIF(club,C81)>5,"Too Many!!!!!","NO TEAM")) -> NO TEAM | H81: =IF($B81="NO TEAM", 0, SUM(LARGE(IF(club=$C81, vault), ROW($1:$3)))) -> 0.00 | N81: =SUM(LARGE(IF(club=$C81, bars), ROW($1:$3))) -> 0.00 | T81: =SUM(LARGE(IF(club=$C81, beam), ROW($1:$3))) -> 0.00 | Z81: =SUM(LARGE(IF(club=$C81, floor), ROW($1:$3))) -> 0.00 | AF81: =SUM(LARGE(IF(club=$C81, range), ROW($1:$3))) -> 0.00 | AK81: 0.00 | AL81: 7 | AM81: 15 | AN81: 0 | AO81: 7

Sheet CGr 6 <11
D1: VAULT | M1: BARS | S1: BEAM | Y1: FLOOR | AE1: RANGE | AK1: AA
A2: No | B2: GYMNAST | C2: CLUB | D2: V1 SV | E2: V1 | F2: V2 SV | G2: V2 | H2: SCORE | I2: POS | J2: idx | K2: sort | L2: ties | M2: SV | N2: SCORE | O2: POS | P2: idx | Q2: sort | R2: ties | S2: SV | T2: SCORE | U2: POS | V2: idx | W2: sort | X2: ties | Y2: SV | Z2: SCORE | AA2: POS | AB2: idx | AC2: sort | AD2: ties | AE2: SV | AF2: SCORE | AG2: POS | AH2: idx | AI2: sort | AJ2: ties | AK2: TOTAL | AL2: POS | AM2: idx | AN2: sort | AO2: ties
B3: Club Grade 6 - 11 & Under | AR3: =B3 -> Club Grade 6 - 11 & Under | AT3: summary results for presentation
A4: 33 | B4: Ashleigh-Jo Wilkinson | C4: SD 1 | D4: 4.0 | E4: 12.40 | F4: 0.0 | G4: 0.00 | H4: =MAX(E4, G4) -> 12.40 | I4: =VLOOKUP(H4, K$4:L$65, 2,FALSE) -> 1 | J4: =IF(ISNUMBER(J3), J3+1, 1) -> 1 | K4: =LARGE(H$4:H$65,J4) -> 12.4 | L4: =IF(K4=K3, L3, L3+1) -> 1 | M4: 4.0 | N4: 12.35 | O4: =VLOOKUP(N4, Q$4:R$65, 2,FALSE) -> 5 | P4: =IF(ISNUMBER(P3), P3+1, 1) -> 1 | Q4: =LARGE(N$4:N$65,P4) -> 13 | R4: =IF(Q4=Q3, R3, R3+1) -> 1 | S4: 4.0 | T4: 12.50 | U4: =VLOOKUP(T4, W$4:X$65, 2,FALSE) -> 3 | V4: =IF(ISNUMBER(V3), V3+1, 1) -> 1 | W4: =LARGE(T$4:T$65,V4) -> 13.15 | X4: =IF(W4=W3, X3, X3+1) -> 1 | Y4: 4.0 | Z4: 12.05 | AA4: =VLOOKUP(Z4, AC$4:AD$65, 2,FALSE) -> 6 | AB4: =IF(ISNUMBER(AB3), AB3+1, 1) -> 1 | AC4: =LARGE(Z$4:Z$65,AB4) -> 13.15 | AD4: =IF(AC4=AC3, AD3, AD3+1) -> 1 | AE4: 4.0 | AF4: 12.40 | AG4: =VLOOKUP(AF4, AI$4:AJ$65, 2,FALSE) -> 4 | AH4: =IF(ISNUMBER(AH3), AH3+1, 1) -> 1 | AI4: =LARGE(AF$4:AF$65,AH4) -> 13 | AJ4: =IF(AI4=AI3, AJ3, AJ3+1) -> 1 | AK4: =SUMIF(D$2:AJ$2, "SCORE", D4:AJ4) -> 61.70 | AL4: =VLOOKUP(AK4, AN$4:AO$65, 2,FALSE) -> 3 | AM4: =IF(ISNUMBER(AM3), AM3+1, 1) -> 1 | AN4: =LARGE($AK$4:$AK$65,$AM4) -> 64.25 | AO4: =IF(AN4=AN3, AO3, AO3+1) -> 1 | AR4: 6th Place | AS4: =IFERROR(INDEX(vault,MATCH(AR5,gymnasts,0)), "") -> 12.10 | AT4: 5th Place | AU4: =IFERROR(INDEX(vault,MATCH(AT5,gymnasts,0)), "") -> 12.20 | AV4: 4th Place | AW4: =IFERROR(INDEX(vault,MATCH(AV5,gymnasts,0)), "") -> 12.25 | AX4: 3rd Place | AY4: =IFERROR(INDEX(vault,MATCH(AX5,gymnasts,0)), "") -> 12.30 | AZ4: 2nd Place | BA4: =IFERROR(INDEX(vault,MATCH(AZ5,gymnasts,0)), "") -> 12.35 | BB4: 1st Place | BC4: =IFERROR(INDEX(vault,MATCH(BB5,gymnasts,0)), "") -> 12.40
A5: 34 | B5: Chloe Bailes | C5: SD 1 | D5: 4.0 | E5: 12.35 | F5: 0.0 | G5: 0.00 | H5: =MAX(E5, G5) -> 12.35 | I5: =VLOOKUP(H5, K$4:L$65, 2,FALSE) -> 2 | J5: 2 | K5: =LARGE(H$4:H$65,J5) -> 12.35 | L5: =IF(K5=K4, L4, L4+1) -> 2 | M5: 4.0 | N5: 12.60 | O5: =VLOOKUP(N5, Q$4:R$65, 2,FALSE) -> 3 | P5: 2 | Q5: =LARGE(N$4:N$65,P5) -> 12.85 | R5: =IF(Q5=Q4, R4, R4+1) -> 2 | S5: 4.0 | T5: 12.30 | U5: =VLOOKUP(T5, W$4:X$65, 2,FALSE) -> 4 | V5: 2 | W5: =LARGE(T$4:T$65,V5) -> 12.6 | X5: =IF(W5=W4, X4, X4+1) -> 2 | Y5: 4.0 | Z5: 12.55 | AA5: =VLOOKUP(Z5, AC$4:AD$65, 2,FALSE) -> 2 | AB5: 2 | AC5: =LARGE(Z$4:Z$65,AB5) -> 12.55 | AD5: =IF(AC5=AC4, AD4, AD4+1) -> 2 | AE5: 4.0 | AF5: 12.80 | AG5: =VLOOKUP(AF5, AI$4:AJ$65, 2,FALSE) -> 2 | AH5: 2 | AI5: =LARGE(AF$4:AF$65,AH5) -> 12.8 | AJ5: =IF(AI5=AI4, AJ4, AJ4+1) -> 2 | AK5: 62.60 | AL5: =VLOOKUP(AK5, AN$4:AO$65, 2,FALSE) -> 2 | AM5: 2 | AN5: =LARGE($AK$4:$AK$65,$AM5) -> 62.6 | AO5: =IF(AN5=AN4, AO4, AO4+1) -> 2 | AQ5: Vault | AR5: =IFERROR(INDEX(gymnasts, SMALL(IF(VALUE(LEFT(AR$32, 1))=vaultPos, ROW(vaultPos)-MIN(ROW(vaultPos))+1, ""), ROW()-4)), "") -> Millie Fuller | AS5: =IFERROR( INDEX(entries, MATCH(AR5, gymnasts, 0), 2), "") -> Darlington | AT5: =IFERROR(INDEX(gymnasts, SMALL(IF(VALUE(LEFT(AT$32, 1))=vaultPos, ROW(vaultPos)-MIN(ROW(vaultPos))+1, ""), ROW()-4)), "") -> Amelia Hammond | AU5: =IFERROR( INDEX(entries, MATCH(AT5, gymnasts, 0), 2), "") -> SD 1 | AV5: =IFERROR(INDEX(gymnasts, SMALL(IF(VALUE(LEFT(AV$32, 1))=vaultPos, ROW(vaultPos)-MIN(ROW(vaultPos))+1, ""), ROW()-4)), "") -> Zara Wilson | AW5: =IFERROR( INDEX(entries, MATCH(AV5, gymnasts, 0), 2), "") -> DC Gymnastics | AX5: =IFERROR(INDEX(gymnasts, SMALL(IF(VALUE(LEFT(AX$32, 1))=vaultPos, ROW(vaultPos)-MIN(ROW(vaultPos))+1, ""), ROW()-4)), "") -> Nicola Denham | AY5: =IFERROR( INDEX(entries, MATCH(AX5, gymnasts, 0), 2), "") -> Darlington | AZ5: =IFERROR(INDEX(gymnasts, SMALL(IF(VALUE(LEFT(AZ$32, 1))=vaultPos, ROW(vaultPos)-MIN(ROW(vaultPos))+1, ""), ROW()-4)), "") -> Chloe Bailes | BA5: =IFERROR( INDEX(entries, MATCH(AZ5, gymnasts, 0), 2), "") -> SD 1 | BB5: =IFERROR(INDEX(gymnasts, SMALL(IF(VALUE(LEFT(BB$32, 1))=vaultPos, ROW(vaultPos)-MIN(ROW(vaultPos))+1, ""), ROW()-4)), "") -> Ashleigh-Jo Wilkinson | BC5: =IFERROR( INDEX(entries, MATCH(BB5, gymnasts, 0), 2), "") -> SD 1
A6: 35 | B6: Amelia Hammond | C6: SD 1 | D6: 4.0 | E6: 12.20 | F6: 0.0 | G6: 0.00 | H6: 12.20 | I6: 5 | J6: 3 | K6: 12.3 | L6: 3 | M6: 3.5 | N6: 11.95 | O6: 7 | P6: 3 | Q6: 12.6 | R6: 3 | S6: 4.0 | T6: 11.70 | U6: 9 | V6: 3 | W6: 12.5 | X6: 3 | Y6: 4.0 | Z6: 12.30 | AA6: 3 | AB6: 3 | AC6: 12.3 | AD6: 3 | AE6: 3.5 | AF6: 12.40 | AG6: 4 | AH6: 3 | AI6: 12.6 | AJ6: 3 | AK6: 60.55 | AL6: 5 | AM6: 3 | AN6: 61.7 | AO6: 3 | AR6: Robyn Selby | AS6: =IFERROR( INDEX(entries, MATCH(AR6, gymnasts, 0), 2), "") -> Darlington | AT6: Grace Jackson | AU6: =IFERROR( INDEX(entries, MATCH(AT6, gymnasts, 0), 2), "") -> SD 1 | AW6: =IFERROR( INDEX(entries, MATCH(AV6, gymnasts, 0), 2), "") ->  | AX6: Megan Atkinson | AY6: =IFERROR( INDEX(entries, MATCH(AX6, gymnasts, 0), 2), "") -> Darlington | BA6: =IFERROR( INDEX(entries, MATCH(AZ6, gymnasts, 0), 2), "") -> 
A7: 36 | B7: Grace Jackson | C7: SD 1 | D7: 4.0 | E7: 12.20 | F7: 0.0 | G7: 0.00 | H7: 12.20 | I7: 5 | J7: 4 | K7: 12.3 | L7: 3 | M7: 4.0 | N7: 11.40 | O7: 11 | P7: 4 | Q7: 12.4 | R7: 4 | S7: 4.0 | T7: 12.05 | U7: 6 | V7: 4 | W7: 12.3 | X7: 4 | Y7: 4.0 | Z7: 12.05 | AA7: 6 | AB7: 4 | AC7: 12.25 | AD7: 4 | AE7: 4.0 | AF7: 11.35 | AG7: 8 | AH7: 4 | AI7: 12.4 | AJ7: 4 | AK7: 59.05 | AL7: 7 | AM7: 4 | AN7: 61.15 | AO7: 4 | AT7: Annabelle Cammiss | AU7: Hartlepool
A8: 37 | B8: Isobel Mackie | C8: SD 1 | D8: 4.0 | E8: 12.00 | F8: 0.0 | G8: 0.00 | H8: 12.00 | I8: 8 | J8: 5 | K8: 12.25 | L8: 4 | M8: 4.0 | N8: 13.00 | O8: 1 | P8: 5 | Q8: 12.35 | R8: 5 | S8: 4.0 | T8: 11.75 | U8: 8 | V8: 5 | W8: 12.2 | X8: 5 | Y8: 4.0 | Z8: 11.80 | AA8: 8 | AB8: 5 | AC8: 12.2 | AD8: 5 | AE8: 4.0 | AF8: 12.60 | AG8: 3 | AH8: 5 | AI8: 12.4 | AJ8: 4 | AK8: 61.15 | AL8: 4 | AM8: 5 | AN8: 60.55 | AO8: 5
A9: 38 | B9: Freya Boon | C9: SD 2 | D9: 4.0 | E9: 11.90 | F9: 0.0 | G9: 0.00 | H9: 11.90 | I9: 10 | J9: 6 | K9: 12.2 | L9: 5 | M9: 4.0 | N9: 11.90 | O9: 8 | P9: 6 | Q9: 12.25 | R9: 6 | S9: 4.0 | T9: 11.85 | U9: 7 | V9: 6 | W9: 12.05 | X9: 6 | Y9: 4.0 | Z9: 12.20 | AA9: 5 | AB9: 6 | AC9: 12.05 | AD9: 6 | AE9: 1.5 | AF9: 8.85 | AG9: 17 | AH9: 6 | AI9: 12.35 | AJ9: 5 | AK9: 56.70 | AL9: 11 | AM9: 6 | AN9: 59.55 | AO9: 6
A10: 39 | B10: Ruby Ellingham | C10: SD 2 | D10: 4.0 | E10: 12.00 | F10: 0.0 | G10: 0.00 | H10: 12.00 | I10: 8 | J10: 7 | K10: 12.2 | L10: 5 | M10: 4.0 | N10: 12.40 | O10: 4 | P10: 7 | Q10: 11.95 | R10: 7 | S10: 4.0 | T10: 11.10 | U10: 13 | V10: 7 | W10: 11.85 | X10: 7 | Y10: 4.0 | Z10: 11.80 | AA10: 8 | AB10: 7 | AC10: 12.05 | AD10: 6 | AE10: 3.0 | AF10: 11.15 | AG10: 9 | AH10: 7 | AI10: 11.95 | AJ10: 6 | AK10: 58.45 | AL10: 8 | AM10: 7 | AN10: 59.05 | AO10: 7
A11: 40 | B11: Poppy Clark | C11: SD 2 | D11: 4.0 | E11: 11.80 | F11: 0.0 | G11: 0.00 | H11: 11.80 | I11: 11 | J11: 8 | K11: 12.2 | L11: 5 | M11: 4.0 | N11: 11.70 | O11: 9 | P11: 8 | Q11: 11.9 | R11: 8 | S11: 4.0 | T11: 10.65 | U11: 15 | V11: 8 | W11: 11.75 | X11: 8 | Y11: 4.0 | Z11: 11.90 | AA11: 7 | AB11: 8 | AC11: 11.9 | AD11: 7 | AE11: 3.5 | AF11: 10.50 | AG11: 13 | AH11: 8 | AI11: 11.5 | AJ11: 7 | AK11: 56.55 | AL11: 12 | AM11: 8 | AN11: 58.45 | AO11: 8 | AR11: 6th Place | AS11: =IFERROR(INDEX(bars,MATCH(AR12,gymnasts,0)), "") -> 12.25 | AT11: 5th Place | AU11: =IFERROR(INDEX(bars,MATCH(AT12,gymnasts,0)), "") -> 12.35 | AV11: 4th Place | AW11: =IFERROR(INDEX(bars,MATCH(AV12,gymnasts,0)), "") -> 12.40 | AX11: 3rd Place | AY11: =IFERROR(INDEX(bars,MATCH(AX12,gymnasts,0)), "") -> 12.60 | AZ11: 2nd Place | BA11: =IFERROR(INDEX(bars,MATCH(AZ12,gymnasts,0)), "") -> 12.85 | BB11: 1st Place | BC11: =IFERROR(INDEX(bars,MATCH(BB12,gymnasts,0)), "") -> 13.00
A12: 41 | B12: Harriet Barker | C12: SD 2 | D12: 4.0 | E12: 11.70 | F12: 0.0 | G12: 0.00 | H12: 11.70 | I12: 13 | J12: 9 | K12: 12.1 | L12: 6 | M12: 4.0 | N12: 10.95 | O12: 13 | P12: 9 | Q12: 11.7 | R12: 9 | S12: 4.0 | T12: 11.20 | U12: 12 | V12: 9 | W12: 11.7 | X12: 9 | Y12: 4.0 | Z12: 11.15 | AA12: 11 | AB12: 9 | AC12: 11.9 | AD12: 7 | AE12: 3.5 | AF12: 10.70 | AG12: 12 | AH12: 9 | AI12: 11.35 | AJ12: 8 | AK12: 55.70 | AL12: 13 | AM12: 9 | AN12: 58.05 | AO12: 9 | AQ12: Bars | AR12: =IFERROR(INDEX(gymnasts, SMALL(IF(VALUE(LEFT(AR$32, 1))=BarPos, ROW(BarPos)-MIN(ROW(BarPos))+1, ""), ROW()-11)), "") -> Megan Atkinson | AS12: =IFERROR( INDEX(entries, MATCH(AR12, gymnasts, 0), 2), "") -> Darlington | AT12: =IFERROR(INDEX(gymnasts, SMALL(IF(VALUE(LEFT(AT$32, 1))=BarPos, ROW(BarPos)-MIN(ROW(BarPos))+1, ""), ROW()-11)), "") -> Ashleigh-Jo Wilkinson | AU12: =IFERROR( INDEX(entries, MATCH(AT12, gymnasts, 0), 2), "") -> SD 1 | AV12: =IFERROR(INDEX(gymnasts, SMALL(IF(VALUE(LEFT(AV$32, 1))=BarPos, ROW(BarPos)-MIN(ROW(BarPos))+1, ""), ROW()-11)), "") -> Ruby Ellingham | AW12: =IFERROR( INDEX(entries, MATCH(AV12, gymnasts, 0), 2), "") -> SD 2 | AX12: =IFERROR(INDEX(gymnasts, SMALL(IF(VALUE(LEFT(AX$32, 1))=BarPos, ROW(BarPos)-MIN(ROW(BarPos))+1, ""), ROW()-11)), "") -> Chloe Bailes | AY12: =IFERROR( INDEX(entries, MATCH(AX12, gymnasts, 0), 2), "") -> SD 1 | AZ12: =IFERROR(INDEX(gymnasts, SMALL(IF(VALUE(LEFT(AZ$32, 1))=BarPos, ROW(BarPos)-MIN(ROW(BarPos))+1, ""), ROW()-11)), "") -> Robyn Selby | BA12: =IFERROR( INDEX(entries, MATCH(AZ12, gymnasts, 0), 2), "") -> Darlington | BB12: =IFERROR(INDEX(gymnasts, SMALL(IF(VALUE(LEFT(BB$32, 1))=BarPos, ROW(BarPos)-MIN(ROW(BarPos))+1, ""), ROW()-11)), "") -> Isobel Mackie | BC12: =IFERROR( INDEX(entries, MATCH(BB12, gymnasts, 0), 2), "") -> SD 1
A13: 42 | B13: Zara Wilson | C13: DC Gymnastics | D13: 4.0 | E13: 12.25 | F13: 0.0 | G13: 0.00 | H13: 12.25 | I13: 4 | J13: 10 | K13: 12.1 | L13: 6 | M13: 4.0 | N13: 10.65 | O13: 15 | P13: 10 | Q13: 11.5 | R13: 10 | S13: 4.0 | T13: 10.45 | U13: 16 | V13: 10 | W13: 11.5 | X13: 10 | Y13: 4.0 | Z13: 10.60 | AA13: 13 | AB13: 10 | AC13: 11.8 | AD13: 8 | AE13: 3.5 | AF13: 10.40 | AG13: 14 | AH13: 10 | AI13: 11.15 | AJ13: 9 | AK13: 54.35 | AL13: 15 | AM13: 10 | AN13: 57.9 | AO13: 10 | AS13: =IFERROR( INDEX(entries, MATCH(AR13, gymnasts, 0), 2), "") ->  | AU13: =IFERROR( INDEX(entries, MATCH(AT13, gymnasts, 0), 2), "") ->  | AW13: =IFERROR( INDEX(entries, MATCH(AV13, gymnasts, 0), 2), "") ->  | AY13: =IFERROR( INDEX(entries, MATCH(AX13, gymnasts, 0), 2), "") ->  | BA13: =IFERROR( INDEX(entries, MATCH(AZ13, gymnasts, 0), 2), "") -> 
A14: 43 | B14: Flori McKenna | C14: DC Gymnastics | D14: 4.0 | E14: 11.75 | F14: 0.0 | G14: 0.00 | H14: 11.75 | I14: 12 | J14: 11 | K14: 12.05 | L14: 7 | M14: 4.0 | N14: 9.90 | O14: 18 | P14: 11 | Q14: 11.4 | R14: 11 | S14: 4.0 | T14: 9.35 | U14: 18 | V14: 11 | W14: 11.45 | X14: 11 | Y14: 4.0 | Z14: 10.40 | AA14: 14 | AB14: 11 | AC14: 11.8 | AD14: 8 | AE14: 4.0 | AF14: 11.50 | AG14: 7 | AH14: 11 | AI14: 11.1 | AJ14: 10 | AK14: 52.90 | AL14: 16 | AM14: 11 | AN14: 56.7 | AO14: 11
A15: 44 | B15: Kitty Mykura | C15: DC Gymnastics | D15: 4.0 | E15: 11.95 | F15: 0.0 | G15: 0.00 | H15: 11.95 | I15: 9 | J15: 12 | K15: 12 | L15: 8 | M15: 3.5 | N15: 8.15 | O15: 19 | P15: 12 | Q15: 11.2 | R15: 12 | S15: 4.0 | T15: 9.80 | U15: 17 | V15: 12 | W15: 11.2 | X15: 12 | Y15: 3.5 | Z15: 7.50 | AA15: 15 | AB15: 12 | AC15: 11.75 | AD15: 9 | AE15: 4.0 | AF15: 10.10 | AG15: 16 | AH15: 12 | AI15: 11 | AJ15: 11 | AK15: 47.50 | AL15: 17 | AM15: 12 | AN15: 56.55 | AO15: 12
A16: 45 | B16: Nicola Denham | C16: Darlington | D16: 4.0 | E16: 12.30 | F16: 0.0 | G16: 0.00 | H16: 12.30 | I16: 3 | J16: 13 | K16: 12 | L16: 8 | M16: 4.0 | N16: 11.50 | O16: 10 | P16: 13 | Q16: 10.95 | R16: 13 | S16: 4.0 | T16: 11.50 | U16: 10 | V16: 13 | W16: 11.1 | X16: 13 | Y16: 4.0 | Z16: 11.75 | AA16: 9 | AB16: 13 | AC16: 11.75 | AD16: 9 | AE16: 4.0 | AF16: 11.00 | AG16: 11 | AH16: 13 | AI16: 10.7 | AJ16: 12 | AK16: 58.05 | AL16: 9 | AM16: 13 | AN16: 56.55 | AO16: 12
A17: 46 | B17: Millie Fuller | C17: Darlington | D17: 4.0 | E17: 12.10 | F17: 0.0 | G17: 0.00 | H17: 12.10 | I17: 6 | J17: 14 | K17: 11.95 | L17: 9 | M17: 4.0 | N17: 9.95 | O17: 17 | P17: 14 | Q17: 10.7 | R17: 14 | S17: 4.0 | T17: 10.80 | U17: 14 | V17: 14 | W17: 10.8 | X17: 14 | Y17: 4.0 | Z17: 11.75 | AA17: 9 | AB17: 14 | AC17: 11.3 | AD17: 10 | AE17: 4.0 | AF17: 11.95 | AG17: 6 | AH17: 14 | AI17: 10.5 | AJ17: 13 | AK17: 56.55 | AL17: 12 | AM17: 14 | AN17: 55.7 | AO17: 13
A18: 47 | B18: Maggie Moore | C18: Darlington | D18: 4.0 | E18: 12.05 | F18: 0.0 | G18: 0.00 | H18: 12.05 | I18: 7 | J18: 15 | K18: 11.9 | L18: 10 | M18: 4.0 | N18: 10.70 | O18: 14 | P18: 15 | Q18: 10.65 | R18: 15 | S18: 4.0 | T18: 11.45 | U18: 11 | V18: 15 | W18: 10.65 | X18: 15 | Y18: 4.0 | Z18: 11.30 | AA18: 10 | AB18: 15 | AC18: 11.15 | AD18: 11 | AE18: 3.5 | AF18: 8.85 | AG18: 17 | AH18: 15 | AI18: 10.4 | AJ18: 14 | AK18: 54.35 | AL18: 15 | AM18: 15 | AN18: 54.55 | AO18: 14 | AR18: 6th Place | AS18: =IFERROR(INDEX(beam,MATCH(AR19,gymnasts,0)), "") -> 12.05 | AT18: 5th Place | AU18: =IFERROR(INDEX(beam,MATCH(AT19,gymnasts,0)), "") -> 12.20 | AV18: 4th Place | AW18: =IFERROR(INDEX(beam,MATCH(AV19,gymnasts,0)), "") -> 12.30 | AX18: 3rd Place | AY18: =IFERROR(INDEX(beam,MATCH(AX19,gymnasts,0)), "") -> 12.50 | AZ18: 2nd Place | BA18: =IFERROR(INDEX(beam,MATCH(AZ19,gymnasts,0)), "") -> 12.60 | BB18: 1st Place | BC18: =IFERROR(INDEX(beam,MATCH(BB19,gymnasts,0)), "") -> 13.15
A19: 48 | B19: Tendai Kushamba | C19: Darlington 2 | D19: 0.0 | E19: 0.00 | F19: 0.0 | G19: 0.00 | H19: 0.00 | I19: 15 | J19: 16 | K19: 11.8 | L19: 11 | M19: 0.0 | N19: 0.00 | O19: 20 | P19: 16 | Q19: 10.15 | R19: 16 | S19: 0.0 | T19: 0.00 | U19: 20 | V19: 16 | W19: 10.45 | X19: 16 | Y19: 0.0 | Z19: 0.00 | AA19: 16 | AB19: 16 | AC19: 10.95 | AD19: 12 | AE19: 0.0 | AF19: 0.00 | AG19: 18 | AH19: 16 | AI19: 10.2 | AJ19: 15 | AK19: 0.00 | AL19: 18 | AM19: 16 | AN19: 54.35 | AO19: 15 | AQ19: Beam | AR19: =IFERROR(INDEX(gymnasts, SMALL(IF(VALUE(LEFT(AR$32, 1))=BeamPos, ROW(BeamPos)-MIN(ROW(BeamPos))+1, ""), ROW()-18)), "") -> Grace Jackson | AS19: =IFERROR( INDEX(entries, MATCH(AR19, gymnasts, 0), 2), "") -> SD 1 | AT19: =IFERROR(INDEX(gymnasts, SMALL(IF(VALUE(LEFT(AT$32, 1))=BeamPos, ROW(BeamPos)-MIN(ROW(BeamPos))+1, ""), ROW()-18)), "") -> Megan Atkinson | AU19: =IFERROR( INDEX(entries, MATCH(AT19, gymnasts, 0), 2), "") -> Darlington | AV19: =IFERROR(INDEX(gymnasts, SMALL(IF(VALUE(LEFT(AV$32, 1))=BeamPos, ROW(BeamPos)-MIN(ROW(BeamPos))+1, ""), ROW()-18)), "") -> Chloe Bailes | AW19: =IFERROR( INDEX(entries, MATCH(AV19, gymnasts, 0), 2), "") -> SD 1 | AX19: =IFERROR(INDEX(gymnasts, SMALL(IF(VALUE(LEFT(AX$32, 1))=BeamPos, ROW(BeamPos)-MIN(ROW(BeamPos))+1, ""), ROW()-18)), "") -> Ashleigh-Jo Wilkinson | AY19: =IFERROR( INDEX(entries, MATCH(AX19, gymnasts, 0), 2), "") -> SD 1 | AZ19: =IFERROR(INDEX(gymnasts, SMALL(IF(VALUE(LEFT(AZ$32, 1))=BeamPos, ROW(BeamPos)-MIN(ROW(BeamPos))+1, ""), ROW()-18)), "") -> Annabelle Cammiss | BA19: =IFERROR( INDEX(entries, MATCH(AZ19, gymnasts, 0), 2), "") -> Hartlepool | BB19: =IFERROR(INDEX(gymnasts, SMALL(IF(VALUE(LEFT(BB$32, 1))=BeamPos, ROW(BeamPos)-MIN(ROW(BeamPos))+1, ""), ROW()-18)), "") -> Robyn Selby | BC19: =IFERROR( INDEX(entries, MATCH(BB19, gymnasts, 0), 2), "") -> Darlington
A20: 49 | B20: Megan Atkinson | C20: Darlington | D20: 4.0 | E20: 12.30 | F20: 0.0 | G20: 0.00 | H20: 12.30 | I20: 3 | J20: 17 | K20: 11.75 | L20: 12 | M20: 4.0 | N20: 12.25 | O20: 6 | P20: 17 | Q20: 9.95 | R20: 17 | S20: 4.0 | T20: 12.20 | U20: 5 | V20: 17 | W20: 9.8 | X20: 17 | Y20: 4.0 | Z20: 10.95 | AA20: 12 | AB20: 17 | AC20: 10.6 | AD20: 13 | AE20: 4.0 | AF20: 10.20 | AG20: 15 | AH20: 17 | AI20: 10.1 | AJ20: 16 | AK20: 57.90 | AL20: 10 | AM20: 17 | AN20: 54.35 | AO20: 15 | AS20: =IFERROR( INDEX(entries, MATCH(AR20, gymnasts, 0), 2), "") ->  | AU20: =IFERROR( INDEX(entries, MATCH(AT20, gymnasts, 0), 2), "") ->  | AW20: =IFERROR( INDEX(entries, MATCH(AV20, gymnasts, 0), 2), "") ->  | AY20: =IFERROR( INDEX(entries, MATCH(AX20, gymnasts, 0), 2), "") ->  | BA20: =IFERROR( INDEX(entries, MATCH(AZ20, gymnasts, 0), 2), "") -> 
A21: 50 | B21: Robyn Selby | C21: Darlington | D21: 4.0 | E21: 12.10 | F21: 0.0 | G21: 0.00 | H21: 12.10 | I21: 6 | J21: 18 | K21: 11.7 | L21: 13 | M21: 4.0 | N21: 12.85 | O21: 2 | P21: 18 | Q21: 9.9 | R21: 18 | S21: 4.0 | T21: 13.15 | U21: 1 | V21: 18 | W21: 9.35 | X21: 18 | Y21: 4.0 | Z21: 13.15 | AA21: 1 | AB21: 18 | AC21: 10.4 | AD21: 14 | AE21: 4.0 | AF21: 13.00 | AG21: 1 | AH21: 18 | AI21: 8.85 | AJ21: 17 | AK21: 64.25 | AL21: 1 | AM21: 18 | AN21: 52.9 | AO21: 16
A22: 51 | B22: Annabelle Cammiss | C22: Hartlepool | D22: 4.0 | E22: 12.20 | F22: 0.0 | G22: 0.00 | H22: 12.20 | I22: 5 | J22: 19 | K22: 11.65 | L22: 14 | M22: 4.0 | N22: 10.15 | O22: 16 | P22: 19 | Q22: 8.15 | R22: 19 | S22: 4.0 | T22: 12.60 | U22: 2 | V22: 19 | W22: 8.7 | X22: 19 | Y22: 4.0 | Z22: 12.25 | AA22: 4 | AB22: 19 | AC22: 7.5 | AD22: 15 | AE22: 4.0 | AF22: 12.35 | AG22: 5 | AH22: 19 | AI22: 8.85 | AJ22: 17 | AK22: 59.55 | AL22: 6 | AM22: 19 | AN22: 47.5 | AO22: 17
A23: 52 | B23: Maggie-May Martin | C23: Wansbeck | D23: 4.0 | E23: 11.65 | F23: 0.0 | G23: 0.00 | H23: 11.65 | I23: 14 | J23: 20 | K23: 0 | L23: 15 | M23: 4.0 | N23: 11.20 | O23: 12 | P23: 20 | Q23: 0 | R23: 20 | S23: 3.5 | T23: 8.70 | U23: 19 | V23: 20 | W23: 0 | X23: 20 | Y23: 4.0 | Z23: 11.90 | AA23: 7 | AB23: 20 | AC23: 0 | AD23: 16 | AE23: 4.0 | AF23: 11.10 | AG23: 10 | AH23: 20 | AI23: 0 | AJ23: 18 | AK23: 54.55 | AL23: 14 | AM23: 20 | AN23: 0 | AO23: 18
D24: 0.0 | E24: 0.00 | F24: 0.0 | G24: 0.00 | H24: 0.00 | I24: 15 | J24: 21 | K24: 0 | L24: 15 | M24: 0.0 | N24: 0.00 | O24: 20 | P24: 21 | Q24: 0 | R24: 20 | S24: 0.0 | T24: 0.00 | U24: 20 | V24: 21 | W24: 0 | X24: 20 | Y24: 0.0 | Z24: 0.00 | AA24: 16 | AB24: 21 | AC24: 0 | AD24: 16 | AE24: 0.0 | AF24: 0.00 | AG24: 18 | AH24: 21 | AI24: 0 | AJ24: 18 | AK24: 0.00 | AL24: 18 | AM24: 21 | AN24: 0 | AO24: 18
D25: 0.0 | E25: 0.00 | F25: 0.0 | G25: 0.00 | H25: 0.00 | I25: 15 | J25: 22 | K25: 0 | L25: 15 | M25: 0.0 | N25: 0.00 | O25: 20 | P25: 22 | Q25: 0 | R25: 20 | S25: 0.0 | T25: 0.00 | U25: 20 | V25: 22 | W25: 0 | X25: 20 | Y25: 0.0 | Z25: 0.00 | AA25: 16 | AB25: 22 | AC25: 0 | AD25: 16 | AE25: 0.0 | AF25: 0.00 | AG25: 18 | AH25: 22 | AI25: 0 | AJ25: 18 | AK25: 0.00 | AL25: 18 | AM25: 22 | AN25: 0 | AO25: 18 | AR25: 6th Place | AS25: =IFERROR(INDEX(floor,MATCH(AR26,gymnasts,0)), "") -> 12.05 | AT25: 5th Place | AU25: =IFERROR(INDEX(floor,MATCH(AT26,gymnasts,0)), "") -> 12.20 | AV25: 4th Place | AW25: =IFERROR(INDEX(floor,MATCH(AV26,gymnasts,0)), "") -> 12.25 | AX25: 3rd Place | AY25: =IFERROR(INDEX(floor,MATCH(AX26,gymnasts,0)), "") -> 12.30 | AZ25: 2nd Place | BA25: =IFERROR(INDEX(floor,MATCH(AZ26,gymnasts,0)), "") -> 12.55 | BB25: 1st Place | BC25: =IFERROR(INDEX(floor,MATCH(BB26,gymnasts,0)), "") -> 13.15
D26: 0.0 | E26: 0.00 | F26: 0.0 | G26: 0.00 | H26: 0.00 | I26: 15 | J26: 23 | K26: 0 | L26: 15 | M26: 0.0 | N26: 0.00 | O26: 20 | P26: 23 | Q26: 0 | R26: 20 | S26: 0.0 | T26: 0.00 | U26: 20 | V26: 23 | W26: 0 | X26: 20 | Y26: 0.0 | Z26: 0.00 | AA26: 16 | AB26: 23 | AC26: 0 | AD26: 16 | AE26: 0.0 | AF26: 0.00 | AG26: 18 | AH26: 23 | AI26: 0 | AJ26: 18 | AK26: 0.00 | AL26: 18 | AM26: 23 | AN26: 0 | AO26: 18 | AQ26: Floor | AR26: =IFERROR(INDEX(gymnasts, SMALL(IF(VALUE(LEFT(AR$32, 1))=FloorPos, ROW(FloorPos)-MIN(ROW(FloorPos))+1, ""), ROW()-25)), "") -> Ashleigh-Jo Wilkinson | AS26: =IFERROR( INDEX(entries, MATCH(AR26, gymnasts, 0), 2), "") -> SD 1 | AT26: =IFERROR(INDEX(gymnasts, SMALL(IF(VALUE(LEFT(AT$32, 1))=FloorPos, ROW(FloorPos)-MIN(ROW(FloorPos))+1, ""), ROW()-25)), "") -> Freya Boon | AU26: =IFERROR( INDEX(entries, MATCH(AT26, gymnasts, 0), 2), "") -> SD 2 | AV26: =IFERROR(INDEX(gymnasts, SMALL(IF(VALUE(LEFT(AV$32, 1))=FloorPos, ROW(FloorPos)-MIN(ROW(FloorPos))+1, ""), ROW()-25)), "") -> Annabelle Cammiss | AW26: =IFERROR( INDEX(entries, MATCH(AV26, gymnasts, 0), 2), "") -> Hartlepool | AX26: =IFERROR(INDEX(gymnasts, SMALL(IF(VALUE(LEFT(AX$32, 1))=FloorPos, ROW(FloorPos)-MIN(ROW(FloorPos))+1, ""), ROW()-25)), "") -> Amelia Hammond | AY26: =IFERROR( INDEX(entries, MATCH(AX26, gymnasts, 0), 2), "") -> SD 1 | AZ26: =IFERROR(INDEX(gymnasts, SMALL(IF(VALUE(LEFT(AZ$32, 1))=FloorPos, ROW(FloorPos)-MIN(ROW(FloorPos))+1, ""), ROW()-25)), "") -> Chloe Bailes | BA26: =IFERROR( INDEX(entries, MATCH(AZ26, gymnasts, 0), 2), "") -> SD 1 | BB26: =IFERROR(INDEX(gymnasts, SMALL(IF(VALUE(LEFT(BB$32, 1))=FloorPos, ROW(FloorPos)-MIN(ROW(FloorPos))+1, ""), ROW()-25)), "") -> Robyn Selby | BC26: =IFERROR( INDEX(entries, MATCH(BB26, gymnasts, 0), 2), "") -> Darlington
D27: 0.0 | E27: 0.00 | F27: 0.0 | G27: 0.00 | H27: 0.00 | I27: 15 | J27: 24 | K27: 0 | L27: 15 | M27: 0.0 | N27: 0.00 | O27: 20 | P27: 24 | Q27: 0 | R27: 20 | S27: 0.0 | T27: 0.00 | U27: 20 | V27: 24 | W27: 0 | X27: 20 | Y27: 0.0 | Z27: 0.00 | AA27: 16 | AB27: 24 | AC27: 0 | AD27: 16 | AE27: 0.0 | AF27: 0.00 | AG27: 18 | AH27: 24 | AI27: 0 | AJ27: 18 | AK27: 0.00 | AL27: 18 | AM27: 24 | AN27: 0 | AO27: 18 | AR27: Grace Jackson | AS27: =IFERROR( INDEX(entries, MATCH(AR27, gymnasts, 0), 2), "") -> SD 1 | AU27: =IFERROR( INDEX(entries, MATCH(AT27, gymnasts, 0), 2), "") ->  | AW27: =IFERROR( INDEX(entries, MATCH(AV27, gymnasts, 0), 2), "") ->  | AY27: =IFERROR( INDEX(entries, MATCH(AX27, gymnasts, 0), 2), "") ->  | BA27: =IFERROR( INDEX(entries, MATCH(AZ27, gymnasts, 0), 2), "") -> 
D28: 0.0 | E28: 0.00 | F28: 0.0 | G28: 0.00 | H28: 0.00 | I28: 15 | J28: 25 | K28: 0 | L28: 15 | M28: 0.0 | N28: 0.00 | O28: 20 | P28: 25 | Q28: 0 | R28: 20 | S28: 0.0 | T28: 0.00 | U28: 20 | V28: 25 | W28: 0 | X28: 20 | Y28: 0.0 | Z28: 0.00 | AA28: 16 | AB28: 25 | AC28: 0 | AD28: 16 | AE28: 0.0 | AF28: 0.00 | AG28: 18 | AH28: 25 | AI28: 0 | AJ28: 18 | AK28: 0.00 | AL28: 18 | AM28: 25 | AN28: 0 | AO28: 18
D29: 0.0 | E29: 0.00 | F29: 0.0 | G29: 0.00 | H29: 0.00 | I29: 15 | J29: 26 | K29: 0 | L29: 15 | M29: 0.0 | N29: 0.00 | O29: 20 | P29: 26 | Q29: 0 | R29: 20 | S29: 0.0 | T29: 0.00 | U29: 20 | V29: 26 | W29: 0 | X29: 20 | Y29: 0.0 | Z29: 0.00 | AA29: 16 | AB29: 26 | AC29: 0 | AD29: 16 | AE29: 0.0 | AF29: 0.00 | AG29: 18 | AH29: 26 | AI29: 0 | AJ29: 18 | AK29: 0.00 | AL29: 18 | AM29: 26 | AN29: 0 | AO29: 18
D30: 0.0 | E30: 0.00 | F30: 0.0 | G30: 0.00 | H30: 0.00 | I30: 15 | J30: 27 | K30: 0 | L30: 15 | M30: 0.0 | N30: 0.00 | O30: 20 | P30: 27 | Q30: 0 | R30: 20 | S30: 0.0 | T30: 0.00 | U30: 20 | V30: 27 | W30: 0 | X30: 20 | Y30: 0.0 | Z30: 0.00 | AA30: 16 | AB30: 27 | AC30: 0 | AD30: 16 | AE30: 0.0 | AF30: 0.00 | AG30: 18 | AH30: 27 | AI30: 0 | AJ30: 18 | AK30: 0.00 | AL30: 18 | AM30: 27 | AN30: 0 | AO30: 18
D31: 0.0 | E31: 0.00 | F31: 0.0 | G31: 0.00 | H31: 0.00 | I31: 15 | J31: 28 | K31: 0 | L31: 15 | M31: 0.0 | N31: 0.00 | O31: 20 | P31: 28 | Q31: 0 | R31: 20 | S31: 0.0 | T31: 0.00 | U31: 20 | V31: 28 | W31: 0 | X31: 20 | Y31: 0.0 | Z31: 0.00 | AA31: 16 | AB31: 28 | AC31: 0 | AD31: 16 | AE31: 0.0 | AF31: 0.00 | AG31: 18 | AH31: 28 | AI31: 0 | AJ31: 18 | AK31: 0.00 | AL31: 18 | AM31: 28 | AN31: 0 | AO31: 18
D32: 0.0 | E32: 0.00 | F32: 0.0 | G32: 0.00 | H32: 0.00 | I32: 15 | J32: 29 | K32: 0 | L32: 15 | M32: 0.0 | N32: 0.00 | O32: 20 | P32: 29 | Q32: 0 | R32: 20 | S32: 0.0 | T32: 0.00 | U32: 20 | V32: 29 | W32: 0 | X32: 20 | Y32: 0.0 | Z32: 0.00 | AA32: 16 | AB32: 29 | AC32: 0 | AD32: 16 | AE32: 0.0 | AF32: 0.00 | AG32: 18 | AH32: 29 | AI32: 0 | AJ32: 18 | AK32: 0.00 | AL32: 18 | AM32: 29 | AN32: 0 | AO32: 18 | AR32: 6th Place | AS32: =IFERROR(INDEX(range,MATCH(AR33,gymnasts,0)), "") -> 11.95 | AT32: 5th Place | AU32: =IFERROR(INDEX(range,MATCH(AT33,gymnasts,0)), "") -> 12.35 | AV32: 4th Place | AW32: =IFERROR(INDEX(range,MATCH(AV33,gymnasts,0)), "") -> 12.40 | AX32: 3rd Place | AY32: =IFERROR(INDEX(range,MATCH(AX33,gymnasts,0)), "") -> 12.60 | AZ32: 2nd Place | BA32: =IFERROR(INDEX(range,MATCH(AZ33,gymnasts,0)), "") -> 12.80 | BB32: 1st Place | BC32: =IFERROR(INDEX(range,MATCH(BB33,gymnasts,0)), "") -> 13.00
D33: 0.0 | E33: 0.00 | F33: 0.0 | G33: 0.00 | H33: 0.00 | I33: 15 | J33: 30 | K33: 0 | L33: 15 | M33: 0.0 | N33: 0.00 | O33: 20 | P33: 30 | Q33: 0 | R33: 20 | S33: 0.0 | T33: 0.00 | U33: 20 | V33: 30 | W33: 0 | X33: 20 | Y33: 0.0 | Z33: 0.00 | AA33: 16 | AB33: 30 | AC33: 0 | AD33: 16 | AE33: 0.0 | AF33: 0.00 | AG33: 18 | AH33: 30 | AI33: 0 | AJ33: 18 | AK33: 0.00 | AL33: 18 | AM33: 30 | AN33: 0 | AO33: 18 | AQ33: Range | AR33: =IFERROR(INDEX(gymnasts, SMALL(IF(VALUE(LEFT(AR$32, 1))=RangePos, ROW(RangePos)-MIN(ROW(RangePos))+1, ""), ROW()-32)), "") -> Millie Fuller | AS33: =IFERROR( INDEX(entries, MATCH(AR33, gymnasts, 0), 2), "") -> Darlington | AT33: =IFERROR(INDEX(gymnasts, SMALL(IF(VALUE(LEFT(AT$32, 1))=RangePos, ROW(RangePos)-MIN(ROW(RangePos))+1, ""), ROW()-32)), "") -> Annabelle Cammiss | AU33: =IFERROR( INDEX(entries, MATCH(AT33, gymnasts, 0), 2), "") -> Hartlepool | AV33: =IFERROR(INDEX(gymnasts, SMALL(IF(VALUE(LEFT(AV$32, 1))=RangePos, ROW(RangePos)-MIN(ROW(RangePos))+1, ""), ROW()-32)), "") -> Ashleigh-Jo Wilkinson | AW33: =IFERROR( INDEX(entries, MATCH(AV33, gymnasts, 0), 2), "") -> SD 1 | AX33: =IFERROR(INDEX(gymnasts, SMALL(IF(VALUE(LEFT(AX$32, 1))=RangePos, ROW(RangePos)-MIN(ROW(RangePos))+1, ""), ROW()-32)), "") -> Isobel Mackie | AY33: =IFERROR( INDEX(entries, MATCH(AX33, gymnasts, 0), 2), "") -> SD 1 | AZ33: =IFERROR(INDEX(gymnasts, SMALL(IF(VALUE(LEFT(AZ$32, 1))=RangePos, ROW(RangePos)-MIN(ROW(RangePos))+1, ""), ROW()-32)), "") -> Chloe Bailes | BA33: =IFERROR( INDEX(entries, MATCH(AZ33, gymnasts, 0), 2), "") -> SD 1 | BB33: =IFERROR(INDEX(gymnasts, SMALL(IF(VALUE(LEFT(BB$32, 1))=RangePos, ROW(RangePos)-MIN(ROW(RangePos))+1, ""), ROW()-32)), "") -> Robyn Selby | BC33: =IFERROR( INDEX(entries, MATCH(BB33, gymnasts, 0), 2), "") -> Darlington
D34: 0.0 | E34: 0.00 | F34: 0.0 | G34: 0.00 | H34: 0.00 | I34: 15 | J34: 31 | K34: 0 | L34: 15 | M34: 0.0 | N34: 0.00 | O34: 20 | P34: 31 | Q34: 0 | R34: 20 | S34: 0.0 | T34: 0.00 | U34: 20 | V34: 31 | W34: 0 | X34: 20 | Y34: 0.0 | Z34: 0.00 | AA34: 16 | AB34: 31 | AC34: 0 | AD34: 16 | AE34: 0.0 | AF34: 0.00 | AG34: 18 | AH34: 31 | AI34: 0 | AJ34: 18 | AK34: 0.00 | AL34: 18 | AM34: 31 | AN34: 0 | AO34: 18 | AS34: =IFERROR( INDEX(entries, MATCH(AR34, gymnasts, 0), 2), "") ->  | AU34: =IFERROR( INDEX(entries, MATCH(AT34, gymnasts, 0), 2), "") ->  | AV34: Amelia Hammond | AW34: =IFERROR( INDEX(entries, MATCH(AV34, gymnasts, 0), 2), "") -> SD 1 | AY34: =IFERROR( INDEX(entries, MATCH(AX34, gymnasts, 0), 2), "") ->  | BA34: =IFERROR( INDEX(entries, MATCH(AZ34, gymnasts, 0), 2), "") -> 
D35: 0.0 | E35: 0.00 | F35: 0.0 | G35: 0.00 | H35: 0.00 | I35: 15 | J35: 32 | K35: 0 | L35: 15 | M35: 0.0 | N35: 0.00 | O35: 20 | P35: 32 | Q35: 0 | R35: 20 | S35: 0.0 | T35: 0.00 | U35: 20 | V35: 32 | W35: 0 | X35: 20 | Y35: 0.0 | Z35: 0.00 | AA35: 16 | AB35: 32 | AC35: 0 | AD35: 16 | AE35: 0.0 | AF35: 0.00 | AG35: 18 | AH35: 32 | AI35: 0 | AJ35: 18 | AK35: 0.00 | AL35: 18 | AM35: 32 | AN35: 0 | AO35: 18
D36: 0.0 | E36: 0.00 | F36: 0.0 | G36: 0.00 | H36: 0.00 | I36: 15 | J36: 33 | K36: 0 | L36: 15 | M36: 0.0 | N36: 0.00 | O36: 20 | P36: 33 | Q36: 0 | R36: 20 | S36: 0.0 | T36: 0.00 | U36: 20 | V36: 33 | W36: 0 | X36: 20 | Y36: 0.0 | Z36: 0.00 | AA36: 16 | AB36: 33 | AC36: 0 | AD36: 16 | AE36: 0.0 | AF36: 0.00 | AG36: 18 | AH36: 33 | AI36: 0 | AJ36: 18 | AK36: =SUMIF(D$2:AJ$2, "SCORE", D36:AJ36) -> 0.00 | AL36: 18 | AM36: 33 | AN36: 0 | AO36: 18
D37: 0.0 | E37: 0.00 | F37: 0.0 | G37: 0.00 | H37: 0.00 | I37: 15 | J37: 34 | K37: 0 | L37: 15 | M37: 0.0 | N37: 0.00 | O37: 20 | P37: 34 | Q37: 0 | R37: 20 | S37: 0.0 | T37: 0.00 | U37: 20 | V37: 34 | W37: 0 | X37: 20 | Y37: 0.0 | Z37: 0.00 | AA37: 16 | AB37: 34 | AC37: 0 | AD37: 16 | AE37: 0.0 | AF37: 0.00 | AG37: 18 | AH37: 34 | AI37: 0 | AJ37: 18 | AK37: 0.00 | AL37: 18 | AM37: 34 | AN37: 0 | AO37: 18
D38: 0.0 | E38: 0.00 | F38: 0.0 | G38: 0.00 | H38: 0.00 | I38: 15 | J38: 35 | K38: 0 | L38: 15 | M38: 0.0 | N38: 0.00 | O38: 20 | P38: 35 | Q38: 0 | R38: 20 | S38: 0.0 | T38: 0.00 | U38: 20 | V38: 35 | W38: 0 | X38: 20 | Y38: 0.0 | Z38: 0.00 | AA38: 16 | AB38: 35 | AC38: 0 | AD38: 16 | AE38: 0.0 | AF38: 0.00 | AG38: 18 | AH38: 35 | AI38: 0 | AJ38: 18 | AK38: 0.00 | AL38: 18 | AM38: 35 | AN38: 0 | AO38: 18
D39: 0.0 | E39: 0.00 | F39: 0.0 | G39: 0.00 | H39: 0.00 | I39: 15 | J39: 36 | K39: 0 | L39: 15 | M39: 0.0 | N39: 0.00 | O39: 20 | P39: 36 | Q39: 0 | R39: 20 | S39: 0.0 | T39: 0.00 | U39: 20 | V39: 36 | W39: 0 | X39: 20 | Y39: 0.0 | Z39: 0.00 | AA39: 16 | AB39: 36 | AC39: 0 | AD39: 16 | AE39: 0.0 | AF39: 0.00 | AG39: 18 | AH39: 36 | AI39: 0 | AJ39: 18 | AK39: 0.00 | AL39: 18 | AM39: 36 | AN39: 0 | AO39: 18 | AR39: 6th Place | AS39: =IFERROR(INDEX(AAscores,MATCH(AR40,gymnasts,0)), "") -> 59.55 | AT39: 5th Place | AU39: =IFERROR(INDEX(AAscores,MATCH(AT40,gymnasts,0)), "") -> 60.55 | AV39: 4th Place | AW39: =IFERROR(INDEX(AAscores,MATCH(AV40,gymnasts,0)), "") -> 61.15 | AX39: 3rd Place | AY39: =IFERROR(INDEX(AAscores,MATCH(AX40,gymnasts,0)), "") -> 61.70 | AZ39: 2nd Place | BA39: =IFERROR(INDEX(AAscores,MATCH(AZ40,gymnasts,0)), "") -> 62.60 | BB39: 1st Place | BC39: =IFERROR(INDEX(AAscores,MATCH(BB40,gymnasts,0)), "") -> 64.25
D40: 0.0 | E40: 0.00 | F40: 0.0 | G40: 0.00 | H40: 0.00 | I40: 15 | J40: 37 | K40: 0 | L40: 15 | M40: 0.0 | N40: 0.00 | O40: 20 | P40: 37 | Q40: 0 | R40: 20 | S40: 0.0 | T40: 0.00 | U40: 20 | V40: 37 | W40: 0 | X40: 20 | Y40: 0.0 | Z40: 0.00 | AA40: 16 | AB40: 37 | AC40: 0 | AD40: 16 | AE40: 0.0 | AF40: 0.00 | AG40: 18 | AH40: 37 | AI40: 0 | AJ40: 18 | AK40: 0.00 | AL40: 18 | AM40: 37 | AN40: 0 | AO40: 18 | AQ40: AA | AR40: =IFERROR(INDEX(gymnasts, SMALL(IF(VALUE(LEFT(AR$39, 1))=AApos, ROW(AApos)-MIN(ROW(AApos))+1, ""), ROW()-39)), "") -> Annabelle Cammiss | AS40: =IFERROR( INDEX(entries, MATCH(AR40, gymnasts, 0), 2), "") -> Hartlepool | AT40: =IFERROR(INDEX(gymnasts, SMALL(IF(VALUE(LEFT(AT$39, 1))=AApos, ROW(AApos)-MIN(ROW(AApos))+1, ""), ROW()-39)), "") -> Amelia Hammond | AU40: =IFERROR( INDEX(entries, MATCH(AT40, gymnasts, 0), 2), "") -> SD 1 | AV40: =IFERROR(INDEX(gymnasts, SMALL(IF(VALUE(LEFT(AV$39, 1))=AApos, ROW(AApos)-MIN(ROW(AApos))+1, ""), ROW()-39)), "") -> Isobel Mackie | AW40: =IFERROR( INDEX(entries, MATCH(AV40, gymnasts, 0), 2), "") -> SD 1 | AX40: =IFERROR(INDEX(gymnasts, SMALL(IF(VALUE(LEFT(AX$39, 1))=AApos, ROW(AApos)-MIN(ROW(AApos))+1, ""), ROW()-39)), "") -> Ashleigh-Jo Wilkinson | AY40: =IFERROR( INDEX(entries, MATCH(AX40, gymnasts, 0), 2), "") -> SD 1 | AZ40: =IFERROR(INDEX(gymnasts, SMALL(IF(VALUE(LEFT(AZ$39, 1))=AApos, ROW(AApos)-MIN(ROW(AApos))+1, ""), ROW()-39)), "") -> Chloe Bailes | BA40: =IFERROR( INDEX(entries, MATCH(AZ40, gymnasts, 0), 2), "") -> SD 1 | BB40: =IFERROR(INDEX(gymnasts, SMALL(IF(VALUE(LEFT(BB$39, 1))=AApos, ROW(AApos)-MIN(ROW(AApos))+1, ""), ROW()-39)), "") -> Robyn Selby | BC40: =IFERROR( INDEX(entries, MATCH(BB40, gymnasts, 0), 2), "") -> Darlington
D41: 0.0 | E41: 0.00 | F41: 0.0 | G41: 0.00 | H41: 0.00 | I41: 15 | J41: 38 | K41: 0 | L41: 15 | M41: 0.0 | N41: 0.00 | O41: 20 | P41: 38 | Q41: 0 | R41: 20 | S41: 0.0 | T41: 0.00 | U41: 20 | V41: 38 | W41: 0 | X41: 20 | Y41: 0.0 | Z41: 0.00 | AA41: 16 | AB41: 38 | AC41: 0 | AD41: 16 | AE41: 0.0 | AF41: 0.00 | AG41: 18 | AH41: 38 | AI41: 0 | AJ41: 18 | AK41: 0.00 | AL41: 18 | AM41: 38 | AN41: 0 | AO41: 18 | AS41: =IFERROR( INDEX(entries, MATCH(AR41, gymnasts, 0), 2), "") ->  | AU41: =IFERROR( INDEX(entries, MATCH(AT41, gymnasts, 0), 2), "") ->  | AW41: =IFERROR( INDEX(entries, MATCH(AV41, gymnasts, 0), 2), "") ->  | AY41: =IFERROR( INDEX(entries, MATCH(AX41, gymnasts, 0), 2), "") ->  | BA41: =IFERROR( INDEX(entries, MATCH(AZ41, gymnasts, 0), 2), "") -> 
D42: 0.0 | E42: 0.00 | F42: 0.0 | G42: 0.00 | H42: 0.00 | I42: 15 | J42: 39 | K42: 0 | L42: 15 | M42: 0.0 | N42: 0.00 | O42: 20 | P42: 39 | Q42: 0 | R42: 20 | S42: 0.0 | T42: 0.00 | U42: 20 | V42: 39 | W42: 0 | X42: 20 | Y42: 0.0 | Z42: 0.00 | AA42: 16 | AB42: 39 | AC42: 0 | AD42: 16 | AE42: 0.0 | AF42: 0.00 | AG42: 18 | AH42: 39 | AI42: 0 | AJ42: 18 | AK42: 0.00 | AL42: 18 | AM42: 39 | AN42: 0 | AO42: 18
D43: 0.0 | E43: 0.00 | F43: 0.0 | G43: 0.00 | H43: 0.00 | I43: 15 | J43: 40 | K43: 0 | L43: 15 | M43: 0.0 | N43: 0.00 | O43: 20 | P43: 40 | Q43: 0 | R43: 20 | S43: 0.0 | T43: 0.00 | U43: 20 | V43: 40 | W43: 0 | X43: 20 | Y43: 0.0 | Z43: 0.00 | AA43: 16 | AB43: 40 | AC43: 0 | AD43: 16 | AE43: 0.0 | AF43: 0.00 | AG43: 18 | AH43: 40 | AI43: 0 | AJ43: 18 | AK43: 0.00 | AL43: 18 | AM43: 40 | AN43: 0 | AO43: 18
D44: 0.0 | E44: 0.00 | F44: 0.0 | G44: 0.00 | H44: 0.00 | I44: 15 | J44: 41 | K44: 0 | L44: 15 | M44: 0.0 | N44: 0.00 | O44: 20 | P44: 41 | Q44: 0 | R44: 20 | S44: 0.0 | T44: 0.00 | U44: 20 | V44: 41 | W44: 0 | X44: 20 | Y44: 0.0 | Z44: 0.00 | AA44: 16 | AB44: 41 | AC44: 0 | AD44: 16 | AE44: 0.0 | AF44: 0.00 | AG44: 18 | AH44: 41 | AI44: 0 | AJ44: 18 | AK44: 0.00 | AL44: 18 | AM44: 41 | AN44: 0 | AO44: 18
D45: 0.0 | E45: 0.00 | F45: 0.0 | G45: 0.00 | H45: 0.00 | I45: 15 | J45: 42 | K45: 0 | L45: 15 | M45: 0.0 | N45: 0.00 | O45: 20 | P45: 42 | Q45: 0 | R45: 20 | S45: 0.0 | T45: 0.00 | U45: 20 | V45: 42 | W45: 0 | X45: 20 | Y45: 0.0 | Z45: 0.00 | AA45: 16 | AB45: 42 | AC45: 0 | AD45: 16 | AE45: 0.0 | AF45: 0.00 | AG45: 18 | AH45: 42 | AI45: 0 | AJ45: 18 | AK45: 0.00 | AL45: 18 | AM45: 42 | AN45: 0 | AO45: 18
D46: 0.0 | E46: 0.00 | F46: 0.0 | G46: 0.00 | H46: 0.00 | I46: 15 | J46: 43 | K46: 0 | L46: 15 | M46: 0.0 | N46: 0.00 | O46: 20 | P46: 43 | Q46: 0 | R46: 20 | S46: 0.0 | T46: 0.00 | U46: 20 | V46: 43 | W46: 0 | X46: 20 | Y46: 0.0 | Z46: 0.00 | AA46: 16 | AB46: 43 | AC46: 0 | AD46: 16 | AE46: 0.0 | AF46: 0.00 | AG46: 18 | AH46: 43 | AI46: 0 | AJ46: 18 | AK46: 0.00 | AL46: 18 | AM46: 43 | AN46: 0 | AO46: 18 | AQ46: Team | AR46: 3rd place Team | AS46: =IF(COUNTIF(AR47, 0), "", INDEX(teamTotals, MATCH(AR47, teams, 0))) -> 174.10 | AV46: 2nd Place Team | AW46: =IF(COUNTIF(AV47, 0), "", INDEX(teamTotals, MATCH(AV47, teams, 0))) -> 182.75 | AZ46: 1st Place Team | BA46: =IF(COUNTIF(AZ47, 0), "", INDEX(teamTotals, MATCH(AZ47, teams, 0))) -> 186.45
D47: 0.0 | E47: 0.00 | F47: 0.0 | G47: 0.00 | H47: 0.00 | I47: 15 | J47: 44 | K47: 0 | L47: 15 | M47: 0.0 | N47: 0.00 | O47: 20 | P47: 44 | Q47: 0 | R47: 20 | S47: 0.0 | T47: 0.00 | U47: 20 | V47: 44 | W47: 0 | X47: 20 | Y47: 0.0 | Z47: 0.00 | AA47: 16 | AB47: 44 | AC47: 0 | AD47: 16 | AE47: 0.0 | AF47: 0.00 | AG47: 18 | AH47: 44 | AI47: 0 | AJ47: 18 | AK47: 0.00 | AL47: 18 | AM47: 44 | AN47: 0 | AO47: 18 | AR47: =IFERROR(INDEX(teams, SMALL(IF(VALUE(LEFT(AR$46, 1))=teamPos, ROW(teamPos)-MIN(ROW(teamPos))+1, ""), ROW()-46)), "") -> SD 2 | AS47: =IFERROR(IF(COUNTIF(AR47, 0), "", INDEX(gymnasts, SMALL(IF(AR$47=club, ROW(club)-MIN(ROW(club))+1, ""), ROW()-46))), "") -> Freya Boon | AV47: =IFERROR(INDEX(teams, SMALL(IF(VALUE(LEFT(AV$46, 1))=teamPos, ROW(teamPos)-MIN(ROW(teamPos))+1, ""), ROW()-46)), "") -> Darlington | AW47: =IFERROR(IF(COUNTIF(AV47, 0), "", INDEX(gymnasts, SMALL(IF(AV$47=club, ROW(club)-MIN(ROW(club))+1, ""), ROW()-46))), "") -> Nicola Denham | AZ47: =IFERROR(INDEX(teams, SMALL(IF(VALUE(LEFT(AZ$46, 1))=teamPos, ROW(teamPos)-MIN(ROW(teamPos))+1, ""), ROW()-46)), "") -> SD 1 | BA47: =IFERROR(IF(COUNTIF(AZ47, 0), "", INDEX(gymnasts, SMALL(IF(AZ$47=club, ROW(club)-MIN(ROW(club))+1, ""), ROW()-46))), "") -> Ashleigh-Jo Wilkinson
D48: 0.0 | E48: 0.00 | F48: 0.0 | G48: 0.00 | H48: 0.00 | I48: 15 | J48: 45 | K48: 0 | L48: 15 | M48: 0.0 | N48: 0.00 | O48: 20 | P48: 45 | Q48: 0 | R48: 20 | S48: 0.0 | T48: 0.00 | U48: 20 | V48: 45 | W48: 0 | X48: 20 | Y48: 0.0 | Z48: 0.00 | AA48: 16 | AB48: 45 | AC48: 0 | AD48: 16 | AE48: 0.0 | AF48: 0.00 | AG48: 18 | AH48: 45 | AI48: 0 | AJ48: 18 | AK48: 0.00 | AL48: 18 | AM48: 45 | AN48: 0 | AO48: 18 | AS48: =IFERROR(IF(COUNTIF(AR48, 0), "", INDEX(gymnasts, SMALL(IF(AR$47=club, ROW(club)-MIN(ROW(club))+1, ""), ROW()-46))), "") -> Ruby Ellingham | AW48: =IFERROR(IF(COUNTIF(AV48, 0), "", INDEX(gymnasts, SMALL(IF(AV$47=club, ROW(club)-MIN(ROW(club))+1, ""), ROW()-46))), "") -> Millie Fuller | BA48: =IFERROR(IF(COUNTIF(AZ48, 0), "", INDEX(gymnasts, SMALL(IF(AZ$47=club, ROW(club)-MIN(ROW(club))+1, ""), ROW()-46))), "") -> Chloe Bailes
D49: 0.0 | E49: 0.00 | F49: 0.0 | G49: 0.00 | H49: 0.00 | I49: 15 | J49: 46 | K49: 0 | L49: 15 | M49: 0.0 | N49: 0.00 | O49: 20 | P49: 46 | Q49: 0 | R49: 20 | S49: 0.0 | T49: 0.00 | U49: 20 | V49: 46 | W49: 0 | X49: 20 | Y49: 0.0 | Z49: 0.00 | AA49: 16 | AB49: 46 | AC49: 0 | AD49: 16 | AE49: 0.0 | AF49: 0.00 | AG49: 18 | AH49: 46 | AI49: 0 | AJ49: 18 | AK49: 0.00 | AL49: 18 | AM49: 46 | AN49: 0 | AO49: 18 | AS49: =IFERROR(IF(COUNTIF(AR49, 0), "", INDEX(gymnasts, SMALL(IF(AR$47=club, ROW(club)-MIN(ROW(club))+1, ""), ROW()-46))), "") -> Poppy Clark | AW49: =IFERROR(IF(COUNTIF(AV49, 0), "", INDEX(gymnasts, SMALL(IF(AV$47=club, ROW(club)-MIN(ROW(club))+1, ""), ROW()-46))), "") -> Maggie Moore | BA49: =IFERROR(IF(COUNTIF(AZ49, 0), "", INDEX(gymnasts, SMALL(IF(AZ$47=club, ROW(club)-MIN(ROW(club))+1, ""), ROW()-46))), "") -> Amelia Hammond
D50: 0.0 | E50: 0.00 | F50: 0.0 | G50: 0.00 | H50: 0.00 | I50: 15 | J50: 47 | K50: 0 | L50: 15 | M50: 0.0 | N50: 0.00 | O50: 20 | P50: 47 | Q50: 0 | R50: 20 | S50: 0.0 | T50: 0.00 | U50: 20 | V50: 47 | W50: 0 | X50: 20 | Y50: 0.0 | Z50: 0.00 | AA50: 16 | AB50: 47 | AC50: 0 | AD50: 16 | AE50: 0.0 | AF50: 0.00 | AG50: 18 | AH50: 47 | AI50: 0 | AJ50: 18 | AK50: 0.00 | AL50: 18 | AM50: 47 | AN50: 0 | AO50: 18 | AS50: =IFERROR(IF(COUNTIF(AR50, 0), "", INDEX(gymnasts, SMALL(IF(AR$47=club, ROW(club)-MIN(ROW(club))+1, ""), ROW()-46))), "") -> Harriet Barker | AW50: =IFERROR(IF(COUNTIF(AV50, 0), "", INDEX(gymnasts, SMALL(IF(AV$47=club, ROW(club)-MIN(ROW(club))+1, ""), ROW()-46))), "") -> Megan Atkinson | BA50: =IFERROR(IF(COUNTIF(AZ50, 0), "", INDEX(gymnasts, SMALL(IF(AZ$47=club, ROW(club)-MIN(ROW(club))+1, ""), ROW()-46))), "") -> Grace Jackson
D51: 0.0 | E51: 0.00 | F51: 0.0 | G51: 0.00 | H51: 0.00 | I51: 15 | J51: 48 | K51: 0 | L51: 15 | M51: 0.0 | N51: 0.00 | O51: 20 | P51: 48 | Q51: 0 | R51: 20 | S51: 0.0 | T51: 0.00 | U51: 20 | V51: 48 | W51: 0 | X51: 20 | Y51: 0.0 | Z51: 0.00 | AA51: 16 | AB51: 48 | AC51: 0 | AD51: 16 | AE51: 0.0 | AF51: 0.00 | AG51: 18 | AH51: 48 | AI51: 0 | AJ51: 18 | AK51: 0.00 | AL51: 18 | AM51: 48 | AN51: 0 | AO51: 18 | AS51: =IFERROR(IF(COUNTIF(AR51, 0), "", INDEX(gymnasts, SMALL(IF(AR$47=club, ROW(club)-MIN(ROW(club))+1, ""), ROW()-46))), "") ->  | AW51: =IFERROR(IF(COUNTIF(AV51, 0), "", INDEX(gymnasts, SMALL(IF(AV$47=club, ROW(club)-MIN(ROW(club))+1, ""), ROW()-46))), "") -> Robyn Selby | BA51: =IFERROR(IF(COUNTIF(AZ51, 0), "", INDEX(gymnasts, SMALL(IF(AZ$47=club, ROW(club)-MIN(ROW(club))+1, ""), ROW()-46))), "") -> Isobel Mackie
D52: 0.0 | E52: 0.00 | F52: 0.0 | G52: 0.00 | H52: 0.00 | I52: 15 | J52: 49 | K52: 0 | L52: 15 | M52: 0.0 | N52: 0.00 | O52: 20 | P52: 49 | Q52: 0 | R52: 20 | S52: 0.0 | T52: 0.00 | U52: 20 | V52: 49 | W52: 0 | X52: 20 | Y52: 0.0 | Z52: 0.00 | AA52: 16 | AB52: 49 | AC52: 0 | AD52: 16 | AE52: 0.0 | AF52: 0.00 | AG52: 18 | AH52: 49 | AI52: 0 | AJ52: 18 | AK52: 0.00 | AL52: 18 | AM52: 49 | AN52: 0 | AO52: 18 | AR52: =IFERROR(INDEX(teams, SMALL(IF(VALUE(LEFT(AR$46, 1))=teamPos, ROW(teamPos)-MIN(ROW(teamPos))+1, ""), ROW()-50)), "") ->  | AS52: =IFERROR(IF(COUNTIF(AR$52, 0), "", INDEX(gymnasts, SMALL(IF(AR$52=club, ROW(club)-MIN(ROW(club))+1, ""), ROW()-51))), "") -> 0 | AV52: =IFERROR(INDEX(teams, SMALL(IF(VALUE(LEFT(AV$46, 1))=teamPos, ROW(teamPos)-MIN(ROW(teamPos))+1, ""), ROW()-50)), "") ->  | AW52: =IFERROR(IF(COUNTIF(AV$52, 0), "", INDEX(gymnasts, SMALL(IF(AV$52=club, ROW(club)-MIN(ROW(club))+1, ""), ROW()-51))), "") -> 0 | AZ52: =IFERROR(INDEX(teams, SMALL(IF(VALUE(LEFT(AZ$46, 1))=teamPos, ROW(teamPos)-MIN(ROW(teamPos))+1, ""), ROW()-50)), "") ->  | BA52: =IFERROR(IF(COUNTIF(AZ$52, 0), "", INDEX(gymnasts, SMALL(IF(AZ$52=club, ROW(club)-MIN(ROW(club))+1, ""), ROW()-51))), "") -> 0
D53: 0.0 | E53: 0.00 | F53: 0.0 | G53: 0.00 | H53: 0.00 | I53: 15 | J53: 50 | K53: 0 | L53: 15 | M53: 0.0 | N53: 0.00 | O53: 20 | P53: 50 | Q53: 0 | R53: 20 | S53: 0.0 | T53: 0.00 | U53: 20 | V53: 50 | W53: 0 | X53: 20 | Y53: 0.0 | Z53: 0.00 | AA53: 16 | AB53: 50 | AC53: 0 | AD53: 16 | AE53: 0.0 | AF53: 0.00 | AG53: 18 | AH53: 50 | AI53: 0 | AJ53: 18 | AK53: 0.00 | AL53: 18 | AM53: 50 | AN53: 0 | AO53: 18 | AS53: =IFERROR(IF(COUNTIF(AR$52, 0), "", INDEX(gymnasts, SMALL(IF(AR$52=club, ROW(club)-MIN(ROW(club))+1, ""), ROW()-51))), "") -> 0 | AW53: =IFERROR(IF(COUNTIF(AV$52, 0), "", INDEX(gymnasts, SMALL(IF(AV$52=club, ROW(club)-MIN(ROW(club))+1, ""), ROW()-51))), "") -> 0 | BA53: =IFERROR(IF(COUNTIF(AZ$52, 0), "", INDEX(gymnasts, SMALL(IF(AZ$52=club, ROW(club)-MIN(ROW(club))+1, ""), ROW()-51))), "") -> 0
D54: 0.0 | E54: 0.00 | F54: 0.0 | G54: 0.00 | H54: 0.00 | I54: 15 | J54: 51 | K54: 0 | L54: 15 | M54: 0.0 | N54: 0.00 | O54: 20 | P54: 51 | Q54: 0 | R54: 20 | S54: 0.0 | T54: 0.00 | U54: 20 | V54: 51 | W54: 0 | X54: 20 | Y54: 0.0 | Z54: 0.00 | AA54: 16 | AB54: 51 | AC54: 0 | AD54: 16 | AE54: 0.0 | AF54: 0.00 | AG54: 18 | AH54: 51 | AI54: 0 | AJ54: 18 | AK54: 0.00 | AL54: 18 | AM54: 51 | AN54: 0 | AO54: 18 | AS54: =IFERROR(IF(COUNTIF(AR$52, 0), "", INDEX(gymnasts, SMALL(IF(AR$52=club, ROW(club)-MIN(ROW(club))+1, ""), ROW()-51))), "") -> 0 | AW54: =IFERROR(IF(COUNTIF(AV$52, 0), "", INDEX(gymnasts, SMALL(IF(AV$52=club, ROW(club)-MIN(ROW(club))+1, ""), ROW()-51))), "") -> 0 | BA54: =IFERROR(IF(COUNTIF(AZ$52, 0), "", INDEX(gymnasts, SMALL(IF(AZ$52=club, ROW(club)-MIN(ROW(club))+1, ""), ROW()-51))), "") -> 0
D55: 0.0 | E55: 0.00 | F55: 0.0 | G55: 0.00 | H55: 0.00 | I55: 15 | J55: 52 | K55: 0 | L55: 15 | M55: 0.0 | N55: 0.00 | O55: 20 | P55: 52 | Q55: 0 | R55: 20 | S55: 0.0 | T55: 0.00 | U55: 20 | V55: 52 | W55: 0 | X55: 20 | Y55: 0.0 | Z55: 0.00 | AA55: 16 | AB55: 52 | AC55: 0 | AD55: 16 | AE55: 0.0 | AF55: 0.00 | AG55: 18 | AH55: 52 | AI55: 0 | AJ55: 18 | AK55: 0.00 | AL55: 18 | AM55: 52 | AN55: 0 | AO55: 18 | AS55: =IFERROR(IF(COUNTIF(AR$52, 0), "", INDEX(gymnasts, SMALL(IF(AR$52=club, ROW(club)-MIN(ROW(club))+1, ""), ROW()-51))), "") -> 0 | AW55: =IFERROR(IF(COUNTIF(AV$52, 0), "", INDEX(gymnasts, SMALL(IF(AV$52=club, ROW(club)-MIN(ROW(club))+1, ""), ROW()-51))), "") -> 0 | BA55: =IFERROR(IF(COUNTIF(AZ$52, 0), "", INDEX(gymnasts, SMALL(IF(AZ$52=club, ROW(club)-MIN(ROW(club))+1, ""), ROW()-51))), "") -> 0
D56: 0.0 | E56: 0.00 | F56: 0.0 | G56: 0.00 | H56: 0.00 | I56: 15 | J56: 53 | K56: 0 | L56: 15 | M56: 0.0 | N56: 0.00 | O56: 20 | P56: 53 | Q56: 0 | R56: 20 | S56: 0.0 | T56: 0.00 | U56: 20 | V56: 53 | W56: 0 | X56: 20 | Y56: 0.0 | Z56: 0.00 | AA56: 16 | AB56: 53 | AC56: 0 | AD56: 16 | AE56: 0.0 | AF56: 0.00 | AG56: 18 | AH56: 53 | AI56: 0 | AJ56: 18 | AK56: 0.00 | AL56: 18 | AM56: 53 | AN56: 0 | AO56: 18 | AS56: =IFERROR(IF(ISTEXT(AR$52), INDEX(gymnasts, SMALL(IF(AR$52=club, ROW(club)-MIN(ROW(club))+1, ""), ROW()-51)), ""), "") -> 0 | AW56: =IFERROR(IF(ISTEXT(AV$52), INDEX(gymnasts, SMALL(IF(AV$52=club, ROW(club)-MIN(ROW(club))+1, ""), ROW()-51)), ""), "") -> 0 | BA56: =IFERROR(IF(ISTEXT(AZ$52), INDEX(gymnasts, SMALL(IF(AZ$52=club, ROW(club)-MIN(ROW(club))+1, ""), ROW()-51)), ""), "") -> 0
D57: 0.0 | E57: 0.00 | F57: 0.0 | G57: 0.00 | H57: 0.00 | I57: 15 | J57: 54 | K57: 0 | L57: 15 | M57: 0.0 | N57: 0.00 | O57: 20 | P57: 54 | Q57: 0 | R57: 20 | S57: 0.0 | T57: 0.00 | U57: 20 | V57: 54 | W57: 0 | X57: 20 | Y57: 0.0 | Z57: 0.00 | AA57: 16 | AB57: 54 | AC57: 0 | AD57: 16 | AE57: 0.0 | AF57: 0.00 | AG57: 18 | AH57: 54 | AI57: 0 | AJ57: 18 | AK57: 0.00 | AL57: 18 | AM57: 54 | AN57: 0 | AO57: 18
D58: 0.0 | E58: 0.00 | F58: 0.0 | G58: 0.00 | H58: 0.00 | I58: 15 | J58: 55 | K58: 0 | L58: 15 | M58: 0.0 | N58: 0.00 | O58: 20 | P58: 55 | Q58: 0 | R58: 20 | S58: 0.0 | T58: 0.00 | U58: 20 | V58: 55 | W58: 0 | X58: 20 | Y58: 0.0 | Z58: 0.00 | AA58: 16 | AB58: 55 | AC58: 0 | AD58: 16 | AE58: 0.0 | AF58: 0.00 | AG58: 18 | AH58: 55 | AI58: 0 | AJ58: 18 | AK58: 0.00 | AL58: 18 | AM58: 55 | AN58: 0 | AO58: 18
D59: 0.0 | E59: 0.00 | F59: 0.0 | G59: 0.00 | H59: 0.00 | I59: 15 | J59: 56 | K59: 0 | L59: 15 | M59: 0.0 | N59: 0.00 | O59: 20 | P59: 56 | Q59: 0 | R59: 20 | S59: 0.0 | T59: 0.00 | U59: 20 | V59: 56 | W59: 0 | X59: 20 | Y59: 0.0 | Z59: 0.00 | AA59: 16 | AB59: 56 | AC59: 0 | AD59: 16 | AE59: 0.0 | AF59: 0.00 | AG59: 18 | AH59: 56 | AI59: 0 | AJ59: 18 | AK59: 0.00 | AL59: 18 | AM59: 56 | AN59: 0 | AO59: 18
D60: 0.0 | E60: 0.00 | F60: 0.0 | G60: 0.00 | H60: 0.00 | I60: 15 | J60: 57 | K60: 0 | L60: 15 | M60: 0.0 | N60: 0.00 | O60: 20 | P60: 57 | Q60: 0 | R60: 20 | S60: 0.0 | T60: 0.00 | U60: 20 | V60: 57 | W60: 0 | X60: 20 | Y60: 0.0 | Z60: 0.00 | AA60: 16 | AB60: 57 | AC60: 0 | AD60: 16 | AE60: 0.0 | AF60: 0.00 | AG60: 18 | AH60: 57 | AI60: 0 | AJ60: 18 | AK60: 0.00 | AL60: 18 | AM60: 57 | AN60: 0 | AO60: 18
D61: 0.0 | E61: 0.00 | F61: 0.0 | G61: 0.00 | H61: 0.00 | I61: 15 | J61: 58 | K61: 0 | L61: 15 | M61: 0.0 | N61: 0.00 | O61: 20 | P61: 58 | Q61: 0 | R61: 20 | S61: 0.0 | T61: 0.00 | U61: 20 | V61: 58 | W61: 0 | X61: 20 | Y61: 0.0 | Z61: 0.00 | AA61: 16 | AB61: 58 | AC61: 0 | AD61: 16 | AE61: 0.0 | AF61: 0.00 | AG61: 18 | AH61: 58 | AI61: 0 | AJ61: 18 | AK61: 0.00 | AL61: 18 | AM61: 58 | AN61: 0 | AO61: 18
D62: 0.0 | E62: 0.00 | F62: 0.0 | G62: 0.00 | H62: 0.00 | I62: 15 | J62: 59 | K62: 0 | L62: 15 | M62: 0.0 | N62: 0.00 | O62: 20 | P62: 59 | Q62: 0 | R62: 20 | S62: 0.0 | T62: 0.00 | U62: 20 | V62: 59 | W62: 0 | X62: 20 | Y62: 0.0 | Z62: 0.00 | AA62: 16 | AB62: 59 | AC62: 0 | AD62: 16 | AE62: 0.0 | AF62: 0.00 | AG62: 18 | AH62: 59 | AI62: 0 | AJ62: 18 | AK62: 0.00 | AL62: 18 | AM62: 59 | AN62: 0 | AO62: 18
D63: 0.0 | E63: 0.00 | F63: 0.0 | G63: 0.00 | H63: 0.00 | I63: 15 | J63: 60 | K63: 0 | L63: 15 | M63: 0.0 | N63: 0.00 | O63: 20 | P63: 60 | Q63: 0 | R63: 20 | S63: 0.0 | T63: 0.00 | U63: 20 | V63: 60 | W63: 0 | X63: 20 | Y63: 0.0 | Z63: 0.00 | AA63: 16 | AB63: 60 | AC63: 0 | AD63: 16 | AE63: 0.0 | AF63: 0.00 | AG63: 18 | AH63: 60 | AI63: 0 | AJ63: 18 | AK63: 0.00 | AL63: 18 | AM63: 60 | AN63: 0 | AO63: 18
D64: 0.0 | E64: 0.00 | F64: 0.0 | G64: 0.00 | H64: 0.00 | I64: 15 | J64: 61 | K64: 0 | L64: 15 | M64: 0.0 | N64: 0.00 | O64: 20 | P64: 61 | Q64: 0 | R64: 20 | S64: 0.0 | T64: 0.00 | U64: 20 | V64: 61 | W64: 0 | X64: 20 | Y64: 0.0 | Z64: 0.00 | AA64: 16 | AB64: 61 | AC64: 0 | AD64: 16 | AE64: 0.0 | AF64: 0.00 | AG64: 18 | AH64: 61 | AI64: 0 | AJ64: 18 | AK64: 0.00 | AL64: 18 | AM64: 61 | AN64: 0 | AO64: 18
D65: 0.0 | E65: 0.00 | F65: 0.0 | G65: 0.00 | H65: 0.00 | I65: 15 | J65: 62 | K65: 0 | L65: 15 | M65: 0.0 | N65: 0.00 | O65: 20 | P65: 62 | Q65: 0 | R65: 20 | S65: 0.0 | T65: 0.00 | U65: 20 | V65: 62 | W65: 0 | X65: 20 | Y65: 0.0 | Z65: 0.00 | AA65: 16 | AB65: 62 | AC65: 0 | AD65: 16 | AE65: 0.0 | AF65: 0.00 | AG65: 18 | AH65: 62 | AI65: 0 | AJ65: 18 | AK65: 0.00 | AL65: 18 | AM65: 62 | AN65: 0 | AO65: 18
B66: Teams
B67: =IF(AND(COUNTIF(club,C67)>=3,COUNTIF(club,C67)<=5),"TEAM",IF(COUNTIF(club,C67)>5,"Too Many!!!!!","NO TEAM")) -> TEAM | C67: SD 1 | H67: =IF($B67="NO TEAM", 0, SUM(LARGE(IF(club=$C67, vault), ROW($1:$3)))) -> 36.95 | N67: =IF($B67="NO TEAM", 0, SUM(LARGE(IF(club=$C67, bars), ROW($1:$3)))) -> 37.95 | T67: =IF($B67="NO TEAM", 0, SUM(LARGE(IF(club=$C67, beam), ROW($1:$3)))) -> 36.85 | Z67: =IF($B67="NO TEAM", 0, SUM(LARGE(IF(club=$C67, floor), ROW($1:$3)))) -> 36.90 | AF67: =IF($B67="NO TEAM", 0, SUM(LARGE(IF(club=$C67, range), ROW($1:$3)))) -> 37.80 | AK67: =IF(B67="TEAM", SUMIF(D$2:AJ$2, "SCORE", D67:AJ67), 0) -> 186.45 | AL67: =VLOOKUP(AK67,AN$67:AO$81, 2,FALSE) -> 1 | AM67: =IF(ISNUMBER(AM66), AM66+1, 1) -> 1 | AN67: =LARGE((AK$67:AK$81), $AM67) -> 186.45 | AO67: =IF(AN67=AN66, AO66, AO66+1) -> 1
B68: =IF(AND(COUNTIF(club,C68)>=3,COUNTIF(club,C68)<=5),"TEAM",IF(COUNTIF(club,C68)>5,"Too Many!!!!!","NO TEAM")) -> TEAM | C68: SD 2 | H68: =IF($B68="NO TEAM", 0, SUM(LARGE(IF(club=$C68, vault), ROW($1:$3)))) -> 35.70 | N68: =IF($B68="NO TEAM", 0, SUM(LARGE(IF(club=$C68, bars), ROW($1:$3)))) -> 36.00 | T68: =IF($B68="NO TEAM", 0, SUM(LARGE(IF(club=$C68, beam), ROW($1:$3)))) -> 34.15 | Z68: =IF($B68="NO TEAM", 0, SUM(LARGE(IF(club=$C68, floor), ROW($1:$3)))) -> 35.90 | AF68: =IF($B68="NO TEAM", 0, SUM(LARGE(IF(club=$C68, range), ROW($1:$3)))) -> 32.35 | AK68: 174.10 | AL68: =VLOOKUP(AK68,AN$67:AO$81, 2,FALSE) -> 3 | AM68: =IF(ISNUMBER(AM67), AM67+1, 1) -> 2 | AN68: =LARGE((AK$67:AK$81), $AM68) -> 182.75 | AO68: =IF(AN68=AN67, AO67, AO67+1) -> 2
B69: =IF(AND(COUNTIF(club,C69)>=3,COUNTIF(club,C69)<=5),"TEAM",IF(COUNTIF(club,C69)>5,"Too Many!!!!!","NO TEAM")) -> TEAM | C69: DC Gymnastics | H69: =IF($B69="NO TEAM", 0, SUM(LARGE(IF(club=$C69, vault), ROW($1:$3)))) -> 35.95 | N69: =IF($B69="NO TEAM", 0, SUM(LARGE(IF(club=$C69, bars), ROW($1:$3)))) -> 28.70 | T69: =IF($B69="NO TEAM", 0, SUM(LARGE(IF(club=$C69, beam), ROW($1:$3)))) -> 29.60 | Z69: =IF($B69="NO TEAM", 0, SUM(LARGE(IF(club=$C69, floor), ROW($1:$3)))) -> 28.50 | AF69: =IF($B69="NO TEAM", 0, SUM(LARGE(IF(club=$C69, range), ROW($1:$3)))) -> 32.00 | AK69: 154.75 | AL69: 4 | AM69: 3 | AN69: 174.1 | AO69: 3
B70: =IF(AND(COUNTIF(club,C70)>=3,COUNTIF(club,C70)<=5),"TEAM",IF(COUNTIF(club,C70)>5,"Too Many!!!!!","NO TEAM")) -> TEAM | C70: Darlington | H70: =IF($B70="NO TEAM", 0, SUM(LARGE(IF(club=$C70, vault), ROW($1:$3)))) -> 36.70 | N70: =IF($B70="NO TEAM", 0, SUM(LARGE(IF(club=$C70, bars), ROW($1:$3)))) -> 36.60 | T70: =IF($B70="NO TEAM", 0, SUM(LARGE(IF(club=$C70, beam), ROW($1:$3)))) -> 36.85 | Z70: =IF($B70="NO TEAM", 0, SUM(LARGE(IF(club=$C70, floor), ROW($1:$3)))) -> 36.65 | AF70: =IF($B70="NO TEAM", 0, SUM(LARGE(IF(club=$C70, range), ROW($1:$3)))) -> 35.95 | AK70: 182.75 | AL70: 2 | AM70: 4 | AN70: 154.75 | AO70: 4
B71: =IF(AND(COUNTIF(club,C71)>=3,COUNTIF(club,C71)<=5),"TEAM",IF(COUNTIF(club,C71)>5,"Too Many!!!!!","NO TEAM")) -> NO TEAM | H71: =IF($B71="NO TEAM", 0, SUM(LARGE(IF(club=$C71, vault), ROW($1:$3)))) -> 0.00 | N71: =IF($B71="NO TEAM", 0, SUM(LARGE(IF(club=$C71, bars), ROW($1:$3)))) -> 0.00 | T71: =IF($B71="NO TEAM", 0, SUM(LARGE(IF(club=$C71, beam), ROW($1:$3)))) -> 0.00 | Z71: =IF($B71="NO TEAM", 0, SUM(LARGE(IF(club=$C71, floor), ROW($1:$3)))) -> 0.00 | AF71: =IF($B71="NO TEAM", 0, SUM(LARGE(IF(club=$C71, range), ROW($1:$3)))) -> 0.00 | AK71: 0.00 | AL71: 5 | AM71: 5 | AN71: 0 | AO71: 5
B72: =IF(AND(COUNTIF(club,C72)>=3,COUNTIF(club,C72)<=5),"TEAM",IF(COUNTIF(club,C72)>5,"Too Many!!!!!","NO TEAM")) -> NO TEAM | H72: =IF($B72="NO TEAM", 0, SUM(LARGE(IF(club=$C72, vault), ROW($1:$3)))) -> 0.00 | N72: =IF($B72="NO TEAM", 0, SUM(LARGE(IF(club=$C72, bars), ROW($1:$3)))) -> 0.00 | T72: =IF($B72="NO TEAM", 0, SUM(LARGE(IF(club=$C72, beam), ROW($1:$3)))) -> 0.00 | Z72: =IF($B72="NO TEAM", 0, SUM(LARGE(IF(club=$C72, floor), ROW($1:$3)))) -> 0.00 | AF72: =IF($B72="NO TEAM", 0, SUM(LARGE(IF(club=$C72, range), ROW($1:$3)))) -> 0.00 | AK72: 0.00 | AL72: 5 | AM72: 6 | AN72: 0 | AO72: 5
B73: =IF(AND(COUNTIF(club,C73)>=3,COUNTIF(club,C73)<=5),"TEAM",IF(COUNTIF(club,C73)>5,"Too Many!!!!!","NO TEAM")) -> NO TEAM | H73: =IF($B73="NO TEAM", 0, SUM(LARGE(IF(club=$C73, vault), ROW($1:$3)))) -> 0.00 | N73: =IF($B73="NO TEAM", 0, SUM(LARGE(IF(club=$C73, bars), ROW($1:$3)))) -> 0.00 | T73: =IF($B73="NO TEAM", 0, SUM(LARGE(IF(club=$C73, beam), ROW($1:$3)))) -> 0.00 | Z73: =IF($B73="NO TEAM", 0, SUM(LARGE(IF(club=$C73, floor), ROW($1:$3)))) -> 0.00 | AF73: =IF($B73="NO TEAM", 0, SUM(LARGE(IF(club=$C73, range), ROW($1:$3)))) -> 0.00 | AK73: 0.00 | AL73: 5 | AM73: 7 | AN73: 0 | AO73: 5
B74: =IF(AND(COUNTIF(club,C74)>=3,COUNTIF(club,C74)<=5),"TEAM",IF(COUNTIF(club,C74)>5,"Too Many!!!!!","NO TEAM")) -> NO TEAM | H74: =IF($B74="NO TEAM", 0, SUM(LARGE(IF(club=$C74, vault), ROW($1:$3)))) -> 0.00 | N74: =IF($B74="NO TEAM", 0, SUM(LARGE(IF(club=$C74, bars), ROW($1:$3)))) -> 0.00 | T74: =IF($B74="NO TEAM", 0, SUM(LARGE(IF(club=$C74, beam), ROW($1:$3)))) -> 0.00 | Z74: =IF($B74="NO TEAM", 0, SUM(LARGE(IF(club=$C74, floor), ROW($1:$3)))) -> 0.00 | AF74: =IF($B74="NO TEAM", 0, SUM(LARGE(IF(club=$C74, range), ROW($1:$3)))) -> 0.00 | AK74: 0.00 | AL74: 5 | AM74: 8 | AN74: 0 | AO74: 5
B75: =IF(AND(COUNTIF(club,C75)>=3,COUNTIF(club,C75)<=5),"TEAM",IF(COUNTIF(club,C75)>5,"Too Many!!!!!","NO TEAM")) -> NO TEAM | H75: =IF($B75="NO TEAM", 0, SUM(LARGE(IF(club=$C75, vault), ROW($1:$3)))) -> 0.00 | N75: =IF($B75="NO TEAM", 0, SUM(LARGE(IF(club=$C75, bars), ROW($1:$3)))) -> 0.00 | T75: =IF($B75="NO TEAM", 0, SUM(LARGE(IF(club=$C75, beam), ROW($1:$3)))) -> 0.00 | Z75: =IF($B75="NO TEAM", 0, SUM(LARGE(IF(club=$C75, floor), ROW($1:$3)))) -> 0.00 | AF75: =IF($B75="NO TEAM", 0, SUM(LARGE(IF(club=$C75, range), ROW($1:$3)))) -> 0.00 | AK75: 0.00 | AL75: 5 | AM75: 9 | AN75: 0 | AO75: 5
B76: =IF(AND(COUNTIF(club,C76)>=3,COUNTIF(club,C76)<=5),"TEAM",IF(COUNTIF(club,C76)>5,"Too Many!!!!!","NO TEAM")) -> NO TEAM | H76: =IF($B76="NO TEAM", 0, SUM(LARGE(IF(club=$C76, vault), ROW($1:$3)))) -> 0.00 | N76: =IF($B76="NO TEAM", 0, SUM(LARGE(IF(club=$C76, bars), ROW($1:$3)))) -> 0.00 | T76: =IF($B76="NO TEAM", 0, SUM(LARGE(IF(club=$C76, beam), ROW($1:$3)))) -> 0.00 | Z76: =IF($B76="NO TEAM", 0, SUM(LARGE(IF(club=$C76, floor), ROW($1:$3)))) -> 0.00 | AF76: =IF($B76="NO TEAM", 0, SUM(LARGE(IF(club=$C76, range), ROW($1:$3)))) -> 0.00 | AK76: 0.00 | AL76: 5 | AM76: 10 | AN76: 0 | AO76: 5
B77: =IF(AND(COUNTIF(club,C77)>=3,COUNTIF(club,C77)<=5),"TEAM",IF(COUNTIF(club,C77)>5,"Too Many!!!!!","NO TEAM")) -> NO TEAM | H77: =IF($B77="NO TEAM", 0, SUM(LARGE(IF(club=$C77, vault), ROW($1:$3)))) -> 0.00 | N77: =IF($B77="NO TEAM", 0, SUM(LARGE(IF(club=$C77, bars), ROW($1:$3)))) -> 0.00 | T77: =IF($B77="NO TEAM", 0, SUM(LARGE(IF(club=$C77, beam), ROW($1:$3)))) -> 0.00 | Z77: =IF($B77="NO TEAM", 0, SUM(LARGE(IF(club=$C77, floor), ROW($1:$3)))) -> 0.00 | AF77: =IF($B77="NO TEAM", 0, SUM(LARGE(IF(club=$C77, range), ROW($1:$3)))) -> 0.00 | AK77: 0.00 | AL77: 5 | AM77: 11 | AN77: 0 | AO77: 5
B78: =IF(AND(COUNTIF(club,C78)>=3,COUNTIF(club,C78)<=5),"TEAM",IF(COUNTIF(club,C78)>5,"Too Many!!!!!","NO TEAM")) -> NO TEAM | H78: =IF($B78="NO TEAM", 0, SUM(LARGE(IF(club=$C78, vault), ROW($1:$3)))) -> 0.00 | N78: =IF($B78="NO TEAM", 0, SUM(LARGE(IF(club=$C78, bars), ROW($1:$3)))) -> 0.00 | T78: =IF($B78="NO TEAM", 0, SUM(LARGE(IF(club=$C78, beam), ROW($1:$3)))) -> 0.00 | Z78: =IF($B78="NO TEAM", 0, SUM(LARGE(IF(club=$C78, floor), ROW($1:$3)))) -> 0.00 | AF78: =IF($B78="NO TEAM", 0, SUM(LARGE(IF(club=$C78, range), ROW($1:$3)))) -> 0.00 | AK78: 0.00 | AL78: 5 | AM78: 12 | AN78: 0 | AO78: 5
B79: =IF(AND(COUNTIF(club,C79)>=3,COUNTIF(club,C79)<=5),"TEAM",IF(COUNTIF(club,C79)>5,"Too Many!!!!!","NO TEAM")) -> NO TEAM | H79: =IF($B79="NO TEAM", 0, SUM(LARGE(IF(club=$C79, vault), ROW($1:$3)))) -> 0.00 | N79: =SUM(LARGE(IF(club=$C79, bars), ROW($1:$3))) -> 0.00 | T79: =SUM(LARGE(IF(club=$C79, beam), ROW($1:$3))) -> 0.00 | Z79: =SUM(LARGE(IF(club=$C79, floor), ROW($1:$3))) -> 0.00 | AF79: =SUM(LARGE(IF(club=$C79, range), ROW($1:$3))) -> 0.00 | AK79: 0.00 | AL79: 5 | AM79: 13 | AN79: 0 | AO79: 5
B80: =IF(AND(COUNTIF(club,C80)>=3,COUNTIF(club,C80)<=5),"TEAM",IF(COUNTIF(club,C80)>5,"Too Many!!!!!","NO TEAM")) -> NO TEAM | H80: =IF($B80="NO TEAM", 0, SUM(LARGE(IF(club=$C80, vault), ROW($1:$3)))) -> 0.00 | N80: =SUM(LARGE(IF(club=$C80, bars), ROW($1:$3))) -> 0.00 | T80: =SUM(LARGE(IF(club=$C80, beam), ROW($1:$3))) -> 0.00 | Z80: =SUM(LARGE(IF(club=$C80, floor), ROW($1:$3))) -> 0.00 | AF80: =SUM(LARGE(IF(club=$C80, range), ROW($1:$3))) -> 0.00 | AK80: 0.00 | AL80: 5 | AM80: 14 | AN80: 0 | AO80: 5
B81: =IF(AND(COUNTIF(club,C81)>=3,COUNTIF(club,C81)<=5),"TEAM",IF(COUNTIF(club,C81)>5,"Too Many!!!!!","NO TEAM")) -> NO TEAM | H81: =IF($B81="NO TEAM", 0, SUM(LARGE(IF(club=$C81, vault), ROW($1:$3)))) -> 0.00 | N81: =SUM(LARGE(IF(club=$C81, bars), ROW($1:$3))) -> 0.00 | T81: =SUM(LARGE(IF(club=$C81, beam), ROW($1:$3))) -> 0.00 | Z81: =SUM(LARGE(IF(club=$C81, floor), ROW($1:$3))) -> 0.00 | AF81: =SUM(LARGE(IF(club=$C81, range), ROW($1:$3))) -> 0.00 | AK81: 0.00 | AL81: 5 | AM81: 15 | AN81: 0 | AO81: 5

Sheet CGr 6 >12
D1: VAULT | M1: BARS | S1: BEAM | Y1: FLOOR | AE1: RANGE | AK1: AA
A2: No | B2: GYMNAST | C2: CLUB | D2: V1 SV | E2: V1 | F2: V2 SV | G2: V2 | H2: SCORE | I2: POS | J2: idx | K2: sort | L2: ties | M2: SV | N2: SCORE | O2: POS | P2: idx | Q2: sort | R2: ties | S2: SV | T2: SCORE | U2: POS | V2: idx | W2: sort | X2: ties | Y2: SV | Z2: SCORE | AA2: POS | AB2: idx | AC2: sort | AD2: ties | AE2: SV | AF2: SCORE | AG2: POS | AH2: idx | AI2: sort | AJ2: ties | AK2: TOTAL | AL2: POS | AM2: idx | AN2: sort | AO2: ties
B3: Club Grade 6 - 12 & Over | AR3: =B3 -> Club Grade 6 - 12 & Over | AT3: summary results for presentation
A4: 53 | B4: Myrah Hunter | C4: Darlington | D4: 4.0 | E4: 12.20 | F4: 0.0 | G4: 0.00 | H4: =MAX(E4, G4) -> 12.20 | I4: =VLOOKUP(H4, K$4:L$65, 2,FALSE) -> 1 | J4: =IF(ISNUMBER(J3), J3+1, 1) -> 1 | K4: =LARGE(H$4:H$65,J4) -> 12.2 | L4: =IF(K4=K3, L3, L3+1) -> 1 | M4: 4.0 | N4: 11.75 | O4: =VLOOKUP(N4, Q$4:R$65, 2,FALSE) -> 1 | P4: =IF(ISNUMBER(P3), P3+1, 1) -> 1 | Q4: =LARGE(N$4:N$65,P4) -> 11.75 | R4: =IF(Q4=Q3, R3, R3+1) -> 1 | S4: 4.0 | T4: 12.15 | U4: =VLOOKUP(T4, W$4:X$65, 2,FALSE) -> 1 | V4: =IF(ISNUMBER(V3), V3+1, 1) -> 1 | W4: =LARGE(T$4:T$65,V4) -> 12.15 | X4: =IF(W4=W3, X3, X3+1) -> 1 | Y4: 4.0 | Z4: 12.00 | AA4: =VLOOKUP(Z4, AC$4:AD$65, 2,FALSE) -> 1 | AB4: =IF(ISNUMBER(AB3), AB3+1, 1) -> 1 | AC4: =LARGE(Z$4:Z$65,AB4) -> 12 | AD4: =IF(AC4=AC3, AD3, AD3+1) -> 1 | AE4: 3.5 | AF4: 10.95 | AG4: =VLOOKUP(AF4, AI$4:AJ$65, 2,FALSE) -> 1 | AH4: =IF(ISNUMBER(AH3), AH3+1, 1) -> 1 | AI4: =LARGE(AF$4:AF$65,AH4) -> 10.95 | AJ4: =IF(AI4=AI3, AJ3, AJ3+1) -> 1 | AK4: =SUMIF(D$2:AJ$2, "SCORE", D4:AJ4) -> 59.05 | AL4: =VLOOKUP(AK4, AN$4:AO$65, 2,FALSE) -> 1 | AM4: =IF(ISNUMBER(AM3), AM3+1, 1) -> 1 | AN4: =LARGE($AK$4:$AK$65,$AM4) -> 59.05 | AO4: =IF(AN4=AN3, AO3, AO3+1) -> 1 | AR4: 6th Place | AS4: =IFERROR(INDEX(vault,MATCH(AR5,gymnasts,0)), "") ->  | AT4: 5th Place | AU4: =IFERROR(INDEX(vault,MATCH(AT5,gymnasts,0)), "") ->  | AV4: 4th Place | AW4: =IFERROR(INDEX(vault,MATCH(AV5,gymnasts,0)), "") ->  | AX4: 3rd Place | AY4: =IFERROR(INDEX(vault,MATCH(AX5,gymnasts,0)), "") ->  | AZ4: 2nd Place | BA4: =IFERROR(INDEX(vault,MATCH(AZ5,gymnasts,0)), "") -> 0.00 | BB4: 1st Place | BC4: =IFERROR(INDEX(vault,MATCH(BB5,gymnasts,0)), "") -> 12.20
A5: 54 | B5: Ella Hodgson | C5: Darlington | D5: 0.0 | E5: 0.00 | F5: 0.0 | G5: 0.00 | H5: =MAX(E5, G5) -> 0.00 | I5: =VLOOKUP(H5, K$4:L$65, 2,FALSE) -> 2 | J5: 2 | K5: =LARGE(H$4:H$65,J5) -> 0 | L5: =IF(K5=K4, L4, L4+1) -> 2 | M5: 0.0 | N5: 0.00 | O5: =VLOOKUP(N5, Q$4:R$65, 2,FALSE) -> 2 | P5: 2 | Q5: =LARGE(N$4:N$65,P5) -> 0 | R5: =IF(Q5=Q4, R4, R4+1) -> 2 | S5: 0.0 | T5: 0.00 | U5: =VLOOKUP(T5, W$4:X$65, 2,FALSE) -> 2 | V5: 2 | W5: =LARGE(T$4:T$65,V5) -> 0 | X5: =IF(W5=W4, X4, X4+1) -> 2 | Y5: 0.0 | Z5: 0.00 | AA5: =VLOOKUP(Z5, AC$4:AD$65, 2,FALSE) -> 2 | AB5: 2 | AC5: =LARGE(Z$4:Z$65,AB5) -> 0 | AD5: =IF(AC5=AC4, AD4, AD4+1) -> 2 | AE5: 0.0 | AF5: 0.00 | AG5: =VLOOKUP(AF5, AI$4:AJ$65, 2,FALSE) -> 2 | AH5: 2 | AI5: =LARGE(AF$4:AF$65,AH5) -> 0 | AJ5: =IF(AI5=AI4, AJ4, AJ4+1) -> 2 | AK5: 0.00 | AL5: =VLOOKUP(AK5, AN$4:AO$65, 2,FALSE) -> 2 | AM5: 2 | AN5: =LARGE($AK$4:$AK$65,$AM5) -> 0 | AO5: =IF(AN5=AN4, AO4, AO4+1) -> 2 | AQ5: Vault | AR5: =IFERROR(INDEX(gymnasts, SMALL(IF(VALUE(LEFT(AR$32, 1))=vaultPos, ROW(vaultPos)-MIN(ROW(vaultPos))+1, ""), ROW()-4)), "") ->  | AS5: =IFERROR( INDEX(entries, MATCH(AR5, gymnasts, 0), 2), "") ->  | AT5: =IFERROR(INDEX(gymnasts, SMALL(IF(VALUE(LEFT(AT$32, 1))=vaultPos, ROW(vaultPos)-MIN(ROW(vaultPos))+1, ""), ROW()-4)), "") ->  | AU5: =IFERROR( INDEX(entries, MATCH(AT5, gymnasts, 0), 2), "") ->  | AV5: =IFERROR(INDEX(gymnasts, SMALL(IF(VALUE(LEFT(AV$32, 1))=vaultPos, ROW(vaultPos)-MIN(ROW(vaultPos))+1, ""), ROW()-4)), "") ->  | AW5: =IFERROR( INDEX(entries, MATCH(AV5, gymnasts, 0), 2), "") ->  | AX5: =IFERROR(INDEX(gymnasts, SMALL(IF(VALUE(LEFT(AX$32, 1))=vaultPos, ROW(vaultPos)-MIN(ROW(vaultPos))+1, ""), ROW()-4)), "") ->  | AY5: =IFERROR( INDEX(entries, MATCH(AX5, gymnasts, 0), 2), "") ->  | AZ5: =IFERROR(INDEX(gymnasts, SMALL(IF(VALUE(LEFT(AZ$32, 1))=vaultPos, ROW(vaultPos)-MIN(ROW(vaultPos))+1, ""), ROW()-4)), "") -> Ella Hodgson | BA5: =IFERROR( INDEX(entries, MATCH(AZ5, gymnasts, 0), 2), "") -> Darlington | BB5: =IFERROR(INDEX(gymnasts, SMALL(IF(VALUE(LEFT(BB$32, 1))=vaultPos, ROW(vaultPos)-MIN(ROW(vaultPos))+1, ""), ROW()-4)), "") -> Myrah Hunter | BC5: =IFERROR( INDEX(entries, MATCH(BB5, gymnasts, 0), 2), "") -> Darlington
D6: 0.0 | E6: 0.00 | F6: 0.0 | G6: 0.00 | H6: 0.00 | I6: 2 | J6: 3 | K6: 0 | L6: 2 | M6: 0.0 | N6: 0.00 | O6: 2 | P6: 3 | Q6: 0 | R6: 2 | S6: 0.0 | T6: 0.00 | U6: 2 | V6: 3 | W6: 0 | X6: 2 | Y6: 0.0 | Z6: 0.00 | AA6: 2 | AB6: 3 | AC6: 0 | AD6: 2 | AE6: 0.0 | AF6: 0.00 | AG6: 2 | AH6: 3 | AI6: 0 | AJ6: 2 | AK6: 0.00 | AL6: 2 | AM6: 3 | AN6: 0 | AO6: 2 | AS6: =IFERROR( INDEX(entries, MATCH(AR6, gymnasts, 0), 2), "") ->  | AU6: =IFERROR( INDEX(entries, MATCH(AT6, gymnasts, 0), 2), "") ->  | AW6: =IFERROR( INDEX(entries, MATCH(AV6, gymnasts, 0), 2), "") ->  | AY6: =IFERROR( INDEX(entries, MATCH(AX6, gymnasts, 0), 2), "") ->  | AZ6: 0 | BA6: =IFERROR( INDEX(entries, MATCH(AZ6, gymnasts, 0), 2), "") -> 
D7: 0.0 | E7: 0.00 | F7: 0.0 | G7: 0.00 | H7: 0.00 | I7: 2 | J7: 4 | K7: 0 | L7: 2 | M7: 0.0 | N7: 0.00 | O7: 2 | P7: 4 | Q7: 0 | R7: 2 | S7: 0.0 | T7: 0.00 | U7: 2 | V7: 4 | W7: 0 | X7: 2 | Y7: 0.0 | Z7: 0.00 | AA7: 2 | AB7: 4 | AC7: 0 | AD7: 2 | AE7: 0.0 | AF7: 0.00 | AG7: 2 | AH7: 4 | AI7: 0 | AJ7: 2 | AK7: 0.00 | AL7: 2 | AM7: 4 | AN7: 0 | AO7: 2 | AZ7: 0
D8: 0.0 | E8: 0.00 | F8: 0.0 | G8: 0.00 | H8: 0.00 | I8: 2 | J8: 5 | K8: 0 | L8: 2 | M8: 0.0 | N8: 0.00 | O8: 2 | P8: 5 | Q8: 0 | R8: 2 | S8: 0.0 | T8: 0.00 | U8: 2 | V8: 5 | W8: 0 | X8: 2 | Y8: 0.0 | Z8: 0.00 | AA8: 2 | AB8: 5 | AC8: 0 | AD8: 2 | AE8: 0.0 | AF8: 0.00 | AG8: 2 | AH8: 5 | AI8: 0 | AJ8: 2 | AK8: 0.00 | AL8: 2 | AM8: 5 | AN8: 0 | AO8: 2 | AZ8: 0
D9: 0.0 | E9: 0.00 | F9: 0.0 | G9: 0.00 | H9: 0.00 | I9: 2 | J9: 6 | K9: 0 | L9: 2 | M9: 0.0 | N9: 0.00 | O9: 2 | P9: 6 | Q9: 0 | R9: 2 | S9: 0.0 | T9: 0.00 | U9: 2 | V9: 6 | W9: 0 | X9: 2 | Y9: 0.0 | Z9: 0.00 | AA9: 2 | AB9: 6 | AC9: 0 | AD9: 2 | AE9: 0.0 | AF9: 0.00 | AG9: 2 | AH9: 6 | AI9: 0 | AJ9: 2 | AK9: 0.00 | AL9: 2 | AM9: 6 | AN9: 0 | AO9: 2 | AZ9: 0
D10: 0.0 | E10: 0.00 | F10: 0.0 | G10: 0.00 | H10: 0.00 | I10: 2 | J10: 7 | K10: 0 | L10: 2 | M10: 0.0 | N10: 0.00 | O10: 2 | P10: 7 | Q10: 0 | R10: 2 | S10: 0.0 | T10: 0.00 | U10: 2 | V10: 7 | W10: 0 | X10: 2 | Y10: 0.0 | Z10: 0.00 | AA10: 2 | AB10: 7 | AC10: 0 | AD10: 2 | AE10: 0.0 | AF10: 0.00 | AG10: 2 | AH10: 7 | AI10: 0 | AJ10: 2 | AK10: 0.00 | AL10: 2 | AM10: 7 | AN10: 0 | AO10: 2 | AZ10: 0
D11: 0.0 | E11: 0.00 | F11: 0.0 | G11: 0.00 | H11: 0.00 | I11: 2 | J11: 8 | K11: 0 | L11: 2 | M11: 0.0 | N11: 0.00 | O11: 2 | P11: 8 | Q11: 0 | R11: 2 | S11: 0.0 | T11: 0.00 | U11: 2 | V11: 8 | W11: 0 | X11: 2 | Y11: 0.0 | Z11: 0.00 | AA11: 2 | AB11: 8 | AC11: 0 | AD11: 2 | AE11: 0.0 | AF11: 0.00 | AG11: 2 | AH11: 8 | AI11: 0 | AJ11: 2 | AK11: 0.00 | AL11: 2 | AM11: 8 | AN11: 0 | AO11: 2 | AR11: 6th Place | AS11: =IFERROR(INDEX(bars,MATCH(AR12,gymnasts,0)), "") ->  | AT11: 5th Place | AU11: =IFERROR(INDEX(bars,MATCH(AT12,gymnasts,0)), "") ->  | AV11: 4th Place | AW11: =IFERROR(INDEX(bars,MATCH(AV12,gymnasts,0)), "") ->  | AX11: 3rd Place | AY11: =IFERROR(INDEX(bars,MATCH(AX12,gymnasts,0)), "") ->  | AZ11: 2nd Place | BA11: =IFERROR(INDEX(bars,MATCH(AZ12,gymnasts,0)), "") -> 0.00 | BB11: 1st Place | BC11: =IFERROR(INDEX(bars,MATCH(BB12,gymnasts,0)), "") -> 11.75
D12: 0.0 | E12: 0.00 | F12: 0.0 | G12: 0.00 | H12: 0.00 | I12: 2 | J12: 9 | K12: 0 | L12: 2 | M12: 0.0 | N12: 0.00 | O12: 2 | P12: 9 | Q12: 0 | R12: 2 | S12: 0.0 | T12: 0.00 | U12: 2 | V12: 9 | W12: 0 | X12: 2 | Y12: 0.0 | Z12: 0.00 | AA12: 2 | AB12: 9 | AC12: 0 | AD12: 2 | AE12: 0.0 | AF12: 0.00 | AG12: 2 | AH12: 9 | AI12: 0 | AJ12: 2 | AK12: 0.00 | AL12: 2 | AM12: 9 | AN12: 0 | AO12: 2 | AQ12: Bars | AR12: =IFERROR(INDEX(gymnasts, SMALL(IF(VALUE(LEFT(AR$32, 1))=BarPos, ROW(BarPos)-MIN(ROW(BarPos))+1, ""), ROW()-11)), "") ->  | AS12: =IFERROR( INDEX(entries, MATCH(AR12, gymnasts, 0), 2), "") ->  | AT12: =IFERROR(INDEX(gymnasts, SMALL(IF(VALUE(LEFT(AT$32, 1))=BarPos, ROW(BarPos)-MIN(ROW(BarPos))+1, ""), ROW()-11)), "") ->  | AU12: =IFERROR( INDEX(entries, MATCH(AT12, gymnasts, 0), 2), "") ->  | AV12: =IFERROR(INDEX(gymnasts, SMALL(IF(VALUE(LEFT(AV$32, 1))=BarPos, ROW(BarPos)-MIN(ROW(BarPos))+1, ""), ROW()-11)), "") ->  | AW12: =IFERROR( INDEX(entries, MATCH(AV12, gymnasts, 0), 2), "") ->  | AX12: =IFERROR(INDEX(gymnasts, SMALL(IF(VALUE(LEFT(AX$32, 1))=BarPos, ROW(BarPos)-MIN(ROW(BarPos))+1, ""), ROW()-11)), "") ->  | AY12: =IFERROR( INDEX(entries, MATCH(AX12, gymnasts, 0), 2), "") ->  | AZ12: =IFERROR(INDEX(gymnasts, SMALL(IF(VALUE(LEFT(AZ$32, 1))=BarPos, ROW(BarPos)-MIN(ROW(BarPos))+1, ""), ROW()-11)), "") -> Ella Hodgson | BA12: =IFERROR( INDEX(entries, MATCH(AZ12, gymnasts, 0), 2), "") -> Darlington | BB12: =IFERROR(INDEX(gymnasts, SMALL(IF(VALUE(LEFT(BB$32, 1))=BarPos, ROW(BarPos)-MIN(ROW(BarPos))+1, ""), ROW()-11)), "") -> Myrah Hunter | BC12: =IFERROR( INDEX(entries, MATCH(BB12, gymnasts, 0), 2), "") -> Darlington
D13: 0.0 | E13: 0.00 | F13: 0.0 | G13: 0.00 | H13: 0.00 | I13: 2 | J13: 10 | K13: 0 | L13: 2 | M13: 0.0 | N13: 0.00 | O13: 2 | P13: 10 | Q13: 0 | R13: 2 | S13: 0.0 | T13: 0.00 | U13: 2 | V13: 10 | W13: 0 | X13: 2 | Y13: 0.0 | Z13: 0.00 | AA13: 2 | AB13: 10 | AC13: 0 | AD13: 2 | AE13: 0.0 | AF13: 0.00 | AG13: 2 | AH13: 10 | AI13: 0 | AJ13: 2 | AK13: 0.00 | AL13: 2 | AM13: 10 | AN13: 0 | AO13: 2 | AS13: =IFERROR( INDEX(entries, MATCH(AR13, gymnasts, 0), 2), "") ->  | AU13: =IFERROR( INDEX(entries, MATCH(AT13, gymnasts, 0), 2), "") ->  | AW13: =IFERROR( INDEX(entries, MATCH(AV13, gymnasts, 0), 2), "") ->  | AY13: =IFERROR( INDEX(entries, MATCH(AX13, gymnasts, 0), 2), "") ->  | AZ13: 0 | BA13: =IFERROR( INDEX(entries, MATCH(AZ13, gymnasts, 0), 2), "") -> 
D14: 0.0 | E14: 0.00 | F14: 0.0 | G14: 0.00 | H14: 0.00 | I14: 2 | J14: 11 | K14: 0 | L14: 2 | M14: 0.0 | N14: 0.00 | O14: 2 | P14: 11 | Q14: 0 | R14: 2 | S14: 0.0 | T14: 0.00 | U14: 2 | V14: 11 | W14: 0 | X14: 2 | Y14: 0.0 | Z14: 0.00 | AA14: 2 | AB14: 11 | AC14: 0 | AD14: 2 | AE14: 0.0 | AF14: 0.00 | AG14: 2 | AH14: 11 | AI14: 0 | AJ14: 2 | AK14: 0.00 | AL14: 2 | AM14: 11 | AN14: 0 | AO14: 2 | AZ14: 0
D15: 0.0 | E15: 0.00 | F15: 0.0 | G15: 0.00 | H15: 0.00 | I15: 2 | J15: 12 | K15: 0 | L15: 2 | M15: 0.0 | N15: 0.00 | O15: 2 | P15: 12 | Q15: 0 | R15: 2 | S15: 0.0 | T15: 0.00 | U15: 2 | V15: 12 | W15: 0 | X15: 2 | Y15: 0.0 | Z15: 0.00 | AA15: 2 | AB15: 12 | AC15: 0 | AD15: 2 | AE15: 0.0 | AF15: 0.00 | AG15: 2 | AH15: 12 | AI15: 0 | AJ15: 2 | AK15: 0.00 | AL15: 2 | AM15: 12 | AN15: 0 | AO15: 2 | AZ15: 0
D16: 0.0 | E16: 0.00 | F16: 0.0 | G16: 0.00 | H16: 0.00 | I16: 2 | J16: 13 | K16: 0 | L16: 2 | M16: 0.0 | N16: 0.00 | O16: 2 | P16: 13 | Q16: 0 | R16: 2 | S16: 0.0 | T16: 0.00 | U16: 2 | V16: 13 | W16: 0 | X16: 2 | Y16: 0.0 | Z16: 0.00 | AA16: 2 | AB16: 13 | AC16: 0 | AD16: 2 | AE16: 0.0 | AF16: 0.00 | AG16: 2 | AH16: 13 | AI16: 0 | AJ16: 2 | AK16: 0.00 | AL16: 2 | AM16: 13 | AN16: 0 | AO16: 2 | AZ16: 0
D17: 0.0 | E17: 0.00 | F17: 0.0 | G17: 0.00 | H17: 0.00 | I17: 2 | J17: 14 | K17: 0 | L17: 2 | M17: 0.0 | N17: 0.00 | O17: 2 | P17: 14 | Q17: 0 | R17: 2 | S17: 0.0 | T17: 0.00 | U17: 2 | V17: 14 | W17: 0 | X17: 2 | Y17: 0.0 | Z17: 0.00 | AA17: 2 | AB17: 14 | AC17: 0 | AD17: 2 | AE17: 0.0 | AF17: 0.00 | AG17: 2 | AH17: 14 | AI17: 0 | AJ17: 2 | AK17: 0.00 | AL17: 2 | AM17: 14 | AN17: 0 | AO17: 2 | AZ17: 0
D18: 0.0 | E18: 0.00 | F18: 0.0 | G18: 0.00 | H18: 0.00 | I18: 2 | J18: 15 | K18: 0 | L18: 2 | M18: 0.0 | N18: 0.00 | O18: 2 | P18: 15 | Q18: 0 | R18: 2 | S18: 0.0 | T18: 0.00 | U18: 2 | V18: 15 | W18: 0 | X18: 2 | Y18: 0.0 | Z18: 0.00 | AA18: 2 | AB18: 15 | AC18: 0 | AD18: 2 | AE18: 0.0 | AF18: 0.00 | AG18: 2 | AH18: 15 | AI18: 0 | AJ18: 2 | AK18: 0.00 | AL18: 2 | AM18: 15 | AN18: 0 | AO18: 2 | AR18: 6th Place | AS18: =IFERROR(INDEX(beam,MATCH(AR19,gymnasts,0)), "") ->  | AT18: 5th Place | AU18: =IFERROR(INDEX(beam,MATCH(AT19,gymnasts,0)), "") ->  | AV18: 4th Place | AW18: =IFERROR(INDEX(beam,MATCH(AV19,gymnasts,0)), "") ->  | AX18: 3rd Place | AY18: =IFERROR(INDEX(beam,MATCH(AX19,gymnasts,0)), "") ->  | AZ18: 2nd Place | BA18: =IFERROR(INDEX(beam,MATCH(AZ19,gymnasts,0)), "") -> 0.00 | BB18: 1st Place | BC18: =IFERROR(INDEX(beam,MATCH(BB19,gymnasts,0)), "") -> 12.15
D19: 0.0 | E19: 0.00 | F19: 0.0 | G19: 0.00 | H19: 0.00 | I19: 2 | J19: 16 | K19: 0 | L19: 2 | M19: 0.0 | N19: 0.00 | O19: 2 | P19: 16 | Q19: 0 | R19: 2 | S19: 0.0 | T19: 0.00 | U19: 2 | V19: 16 | W19: 0 | X19: 2 | Y19: 0.0 | Z19: 0.00 | AA19: 2 | AB19: 16 | AC19: 0 | AD19: 2 | AE19: 0.0 | AF19: 0.00 | AG19: 2 | AH19: 16 | AI19: 0 | AJ19: 2 | AK19: 0.00 | AL19: 2 | AM19: 16 | AN19: 0 | AO19: 2 | AQ19: Beam | AR19: =IFERROR(INDEX(gymnasts, SMALL(IF(VALUE(LEFT(AR$32, 1))=BeamPos, ROW(BeamPos)-MIN(ROW(BeamPos))+1, ""), ROW()-18)), "") ->  | AS19: =IFERROR( INDEX(entries, MATCH(AR19, gymnasts, 0), 2), "") ->  | AT19: =IFERROR(INDEX(gymnasts, SMALL(IF(VALUE(LEFT(AT$32, 1))=BeamPos, ROW(BeamPos)-MIN(ROW(BeamPos))+1, ""), ROW()-18)), "") ->  | AU19: =IFERROR( INDEX(entries, MATCH(AT19, gymnasts, 0), 2), "") ->  | AV19: =IFERROR(INDEX(gymnasts, SMALL(IF(VALUE(LEFT(AV$32, 1))=BeamPos, ROW(BeamPos)-MIN(ROW(BeamPos))+1, ""), ROW()-18)), "") ->  | AW19: =IFERROR( INDEX(entries, MATCH(AV19, gymnasts, 0), 2), "") ->  | AX19: =IFERROR(INDEX(gymnasts, SMALL(IF(VALUE(LEFT(AX$32, 1))=BeamPos, ROW(BeamPos)-MIN(ROW(BeamPos))+1, ""), ROW()-18)), "") ->  | AY19: =IFERROR( INDEX(entries, MATCH(AX19, gymnasts, 0), 2), "") ->  | AZ19: =IFERROR(INDEX(gymnasts, SMALL(IF(VALUE(LEFT(AZ$32, 1))=BeamPos, ROW(BeamPos)-MIN(ROW(BeamPos))+1, ""), ROW()-18)), "") -> Ella Hodgson | BA19: =IFERROR( INDEX(entries, MATCH(AZ19, gymnasts, 0), 2), "") -> Darlington | BB19: =IFERROR(INDEX(gymnasts, SMALL(IF(VALUE(LEFT(BB$32, 1))=BeamPos, ROW(BeamPos)-MIN(ROW(BeamPos))+1, ""), ROW()-18)), "") -> Myrah Hunter | BC19: =IFERROR( INDEX(entries, MATCH(BB19, gymnasts, 0), 2), "") -> Darlington
D20: 0.0 | E20: 0.00 | F20: 0.0 | G20: 0.00 | H20: 0.00 | I20: 2 | J20: 17 | K20: 0 | L20: 2 | M20: 0.0 | N20: 0.00 | O20: 2 | P20: 17 | Q20: 0 | R20: 2 | S20: 0.0 | T20: 0.00 | U20: 2 | V20: 17 | W20: 0 | X20: 2 | Y20: 0.0 | Z20: 0.00 | AA20: 2 | AB20: 17 | AC20: 0 | AD20: 2 | AE20: 0.0 | AF20: 0.00 | AG20: 2 | AH20: 17 | AI20: 0 | AJ20: 2 | AK20: 0.00 | AL20: 2 | AM20: 17 | AN20: 0 | AO20: 2 | AS20: =IFERROR( INDEX(entries, MATCH(AR20, gymnasts, 0), 2), "") ->  | AU20: =IFERROR( INDEX(entries, MATCH(AT20, gymnasts, 0), 2), "") ->  | AW20: =IFERROR( INDEX(entries, MATCH(AV20, gymnasts, 0), 2), "") ->  | AY20: =IFERROR( INDEX(entries, MATCH(AX20, gymnasts, 0), 2), "") ->  | AZ20: 0 | BA20: =IFERROR( INDEX(entries, MATCH(AZ20, gymnasts, 0), 2), "") -> 
D21: 0.0 | E21: 0.00 | F21: 0.0 | G21: 0.00 | H21: 0.00 | I21: 2 | J21: 18 | K21: 0 | L21: 2 | M21: 0.0 | N21: 0.00 | O21: 2 | P21: 18 | Q21: 0 | R21: 2 | S21: 0.0 | T21: 0.00 | U21: 2 | V21: 18 | W21: 0 | X21: 2 | Y21: 0.0 | Z21: 0.00 | AA21: 2 | AB21: 18 | AC21: 0 | AD21: 2 | AE21: 0.0 | AF21: 0.00 | AG21: 2 | AH21: 18 | AI21: 0 | AJ21: 2 | AK21: 0.00 | AL21: 2 | AM21: 18 | AN21: 0 | AO21: 2 | AZ21: 0
D22: 0.0 | E22: 0.00 | F22: 0.0 | G22: 0.00 | H22: 0.00 | I22: 2 | J22: 19 | K22: 0 | L22: 2 | M22: 0.0 | N22: 0.00 | O22: 2 | P22: 19 | Q22: 0 | R22: 2 | S22: 0.0 | T22: 0.00 | U22: 2 | V22: 19 | W22: 0 | X22: 2 | Y22: 0.0 | Z22: 0.00 | AA22: 2 | AB22: 19 | AC22: 0 | AD22: 2 | AE22: 0.0 | AF22: 0.00 | AG22: 2 | AH22: 19 | AI22: 0 | AJ22: 2 | AK22: 0.00 | AL22: 2 | AM22: 19 | AN22: 0 | AO22: 2 | AZ22: 0
D23: 0.0 | E23: 0.00 | F23: 0.0 | G23: 0.00 | H23: 0.00 | I23: 2 | J23: 20 | K23: 0 | L23: 2 | M23: 0.0 | N23: 0.00 | O23: 2 | P23: 20 | Q23: 0 | R23: 2 | S23: 0.0 | T23: 0.00 | U23: 2 | V23: 20 | W23: 0 | X23: 2 | Y23: 0.0 | Z23: 0.00 | AA23: 2 | AB23: 20 | AC23: 0 | AD23: 2 | AE23: 0.0 | AF23: 0.00 | AG23: 2 | AH23: 20 | AI23: 0 | AJ23: 2 | AK23: 0.00 | AL23: 2 | AM23: 20 | AN23: 0 | AO23: 2 | AZ23: 0
D24: 0.0 | E24: 0.00 | F24: 0.0 | G24: 0.00 | H24: 0.00 | I24: 2 | J24: 21 | K24: 0 | L24: 2 | M24: 0.0 | N24: 0.00 | O24: 2 | P24: 21 | Q24: 0 | R24: 2 | S24: 0.0 | T24: 0.00 | U24: 2 | V24: 21 | W24: 0 | X24: 2 | Y24: 0.0 | Z24: 0.00 | AA24: 2 | AB24: 21 | AC24: 0 | AD24: 2 | AE24: 0.0 | AF24: 0.00 | AG24: 2 | AH24: 21 | AI24: 0 | AJ24: 2 | AK24: 0.00 | AL24: 2 | AM24: 21 | AN24: 0 | AO24: 2 | AZ24: 0
D25: 0.0 | E25: 0.00 | F25: 0.0 | G25: 0.00 | H25: 0.00 | I25: 2 | J25: 22 | K25: 0 | L25: 2 | M25: 0.0 | N25: 0.00 | O25: 2 | P25: 22 | Q25: 0 | R25: 2 | S25: 0.0 | T25: 0.00 | U25: 2 | V25: 22 | W25: 0 | X25: 2 | Y25: 0.0 | Z25: 0.00 | AA25: 2 | AB25: 22 | AC25: 0 | AD25: 2 | AE25: 0.0 | AF25: 0.00 | AG25: 2 | AH25: 22 | AI25: 0 | AJ25: 2 | AK25: 0.00 | AL25: 2 | AM25: 22 | AN25: 0 | AO25: 2 | AR25: 6th Place | AS25: =IFERROR(INDEX(floor,MATCH(AR26,gymnasts,0)), "") ->  | AT25: 5th Place | AU25: =IFERROR(INDEX(floor,MATCH(AT26,gymnasts,0)), "") ->  | AV25: 4th Place | AW25: =IFERROR(INDEX(floor,MATCH(AV26,gymnasts,0)), "") ->  | AX25: 3rd Place | AY25: =IFERROR(INDEX(floor,MATCH(AX26,gymnasts,0)), "") ->  | AZ25: 2nd Place | BA25: =IFERROR(INDEX(floor,MATCH(AZ26,gymnasts,0)), "") -> 0.00 | BB25: 1st Place | BC25: =IFERROR(INDEX(floor,MATCH(BB26,gymnasts,0)), "") -> 12.00
D26: 0.0 | E26: 0.00 | F26: 0.0 | G26: 0.00 | H26: 0.00 | I26: 2 | J26: 23 | K26: 0 | L26: 2 | M26: 0.0 | N26: 0.00 | O26: 2 | P26: 23 | Q26: 0 | R26: 2 | S26: 0.0 | T26: 0.00 | U26: 2 | V26: 23 | W26: 0 | X26: 2 | Y26: 0.0 | Z26: 0.00 | AA26: 2 | AB26: 23 | AC26: 0 | AD26: 2 | AE26: 0.0 | AF26: 0.00 | AG26: 2 | AH26: 23 | AI26: 0 | AJ26: 2 | AK26: 0.00 | AL26: 2 | AM26: 23 | AN26: 0 | AO26: 2 | AQ26: Floor | AR26: =IFERROR(INDEX(gymnasts, SMALL(IF(VALUE(LEFT(AR$32, 1))=FloorPos, ROW(FloorPos)-MIN(ROW(FloorPos))+1, ""), ROW()-25)), "") ->  | AS26: =IFERROR( INDEX(entries, MATCH(AR26, gymnasts, 0), 2), "") ->  | AT26: =IFERROR(INDEX(gymnasts, SMALL(IF(VALUE(LEFT(AT$32, 1))=FloorPos, ROW(FloorPos)-MIN(ROW(FloorPos))+1, ""), ROW()-25)), "") ->  | AU26: =IFERROR( INDEX(entries, MATCH(AT26, gymnasts, 0), 2), "") ->  | AV26: =IFERROR(INDEX(gymnasts, SMALL(IF(VALUE(LEFT(AV$32, 1))=FloorPos, ROW(FloorPos)-MIN(ROW(FloorPos))+1, ""), ROW()-25)), "") ->  | AW26: =IFERROR( INDEX(entries, MATCH(AV26, gymnasts, 0), 2), "") ->  | AX26: =IFERROR(INDEX(gymnasts, SMALL(IF(VALUE(LEFT(AX$32, 1))=FloorPos, ROW(FloorPos)-MIN(ROW(FloorPos))+1, ""), ROW()-25)), "") ->  | AY26: =IFERROR( INDEX(entries, MATCH(AX26, gymnasts, 0), 2), "") ->  | AZ26: =IFERROR(INDEX(gymnasts, SMALL(IF(VALUE(LEFT(AZ$32, 1))=FloorPos, ROW(FloorPos)-MIN(ROW(FloorPos))+1, ""), ROW()-25)), "") -> Ella Hodgson | BA26: =IFERROR( INDEX(entries, MATCH(AZ26, gymnasts, 0), 2), "") -> Darlington | BB26: =IFERROR(INDEX(gymnasts, SMALL(IF(VALUE(LEFT(BB$32, 1))=FloorPos, ROW(FloorPos)-MIN(ROW(FloorPos))+1, ""), ROW()-25)), "") -> Myrah Hunter | BC26: =IFERROR( INDEX(entries, MATCH(BB26, gymnasts, 0), 2), "") -> Darlington
D27: 0.0 | E27: 0.00 | F27: 0.0 | G27: 0.00 | H27: 0.00 | I27: 2 | J27: 24 | K27: 0 | L27: 2 | M27: 0.0 | N27: 0.00 | O27: 2 | P27: 24 | Q27: 0 | R27: 2 | S27: 0.0 | T27: 0.00 | U27: 2 | V27: 24 | W27: 0 | X27: 2 | Y27: 0.0 | Z27: 0.00 | AA27: 2 | AB27: 24 | AC27: 0 | AD27: 2 | AE27: 0.0 | AF27: 0.00 | AG27: 2 | AH27: 24 | AI27: 0 | AJ27: 2 | AK27: 0.00 | AL27: 2 | AM27: 24 | AN27: 0 | AO27: 2 | AS27: =IFERROR( INDEX(entries, MATCH(AR27, gymnasts, 0), 2), "") ->  | AU27: =IFERROR( INDEX(entries, MATCH(AT27, gymnasts, 0), 2), "") ->  | AW27: =IFERROR( INDEX(entries, MATCH(AV27, gymnasts, 0), 2), "") ->  | AY27: =IFERROR( INDEX(entries, MATCH(AX27, gymnasts, 0), 2), "") ->  | AZ27: 0 | BA27: =IFERROR( INDEX(entries, MATCH(AZ27, gymnasts, 0), 2), "") -> 
D28: 0.0 | E28: 0.00 | F28: 0.0 | G28: 0.00 | H28: 0.00 | I28: 2 | J28: 25 | K28: 0 | L28: 2 | M28: 0.0 | N28: 0.00 | O28: 2 | P28: 25 | Q28: 0 | R28: 2 | S28: 0.0 | T28: 0.00 | U28: 2 | V28: 25 | W28: 0 | X28: 2 | Y28: 0.0 | Z28: 0.00 | AA28: 2 | AB28: 25 | AC28: 0 | AD28: 2 | AE28: 0.0 | AF28: 0.00 | AG28: 2 | AH28: 25 | AI28: 0 | AJ28: 2 | AK28: 0.00 | AL28: 2 | AM28: 25 | AN28: 0 | AO28: 2 | AZ28: 0
D29: 0.0 | E29: 0.00 | F29: 0.0 | G29: 0.00 | H29: 0.00 | I29: 2 | J29: 26 | K29: 0 | L29: 2 | M29: 0.0 | N29: 0.00 | O29: 2 | P29: 26 | Q29: 0 | R29: 2 | S29: 0.0 | T29: 0.00 | U29: 2 | V29: 26 | W29: 0 | X29: 2 | Y29: 0.0 | Z29: 0.00 | AA29: 2 | AB29: 26 | AC29: 0 | AD29: 2 | AE29: 0.0 | AF29: 0.00 | AG29: 2 | AH29: 26 | AI29: 0 | AJ29: 2 | AK29: 0.00 | AL29: 2 | AM29: 26 | AN29: 0 | AO29: 2 | AZ29: 0
D30: 0.0 | E30: 0.00 | F30: 0.0 | G30: 0.00 | H30: 0.00 | I30: 2 | J30: 27 | K30: 0 | L30: 2 | M30: 0.0 | N30: 0.00 | O30: 2 | P30: 27 | Q30: 0 | R30: 2 | S30: 0.0 | T30: 0.00 | U30: 2 | V30: 27 | W30: 0 | X30: 2 | Y30: 0.0 | Z30: 0.00 | AA30: 2 | AB30: 27 | AC30: 0 | AD30: 2 | AE30: 0.0 | AF30: 0.00 | AG30: 2 | AH30: 27 | AI30: 0 | AJ30: 2 | AK30: 0.00 | AL30: 2 | AM30: 27 | AN30: 0 | AO30: 2 | AZ30: 0
D31: 0.0 | E31: 0.00 | F31: 0.0 | G31: 0.00 | H31: 0.00 | I31: 2 | J31: 28 | K31: 0 | L31: 2 | M31: 0.0 | N31: 0.00 | O31: 2 | P31: 28 | Q31: 0 | R31: 2 | S31: 0.0 | T31: 0.00 | U31: 2 | V31: 28 | W31: 0 | X31: 2 | Y31: 0.0 | Z31: 0.00 | AA31: 2 | AB31: 28 | AC31: 0 | AD31: 2 | AE31: 0.0 | AF31: 0.00 | AG31: 2 | AH31: 28 | AI31: 0 | AJ31: 2 | AK31: 0.00 | AL31: 2 | AM31: 28 | AN31: 0 | AO31: 2 | AZ31: 0
D32: 0.0 | E32: 0.00 | F32: 0.0 | G32: 0.00 | H32: 0.00 | I32: 2 | J32: 29 | K32: 0 | L32: 2 | M32: 0.0 | N32: 0.00 | O32: 2 | P32: 29 | Q32: 0 | R32: 2 | S32: 0.0 | T32: 0.00 | U32: 2 | V32: 29 | W32: 0 | X32: 2 | Y32: 0.0 | Z32: 0.00 | AA32: 2 | AB32: 29 | AC32: 0 | AD32: 2 | AE32: 0.0 | AF32: 0.00 | AG32: 2 | AH32: 29 | AI32: 0 | AJ32: 2 | AK32: 0.00 | AL32: 2 | AM32: 29 | AN32: 0 | AO32: 2 | AR32: 6th Place | AS32: =IFERROR(INDEX(range,MATCH(AR33,gymnasts,0)), "") ->  | AT32: 5th Place | AU32: =IFERROR(INDEX(range,MATCH(AT33,gymnasts,0)), "") ->  | AV32: 4th Place | AW32: =IFERROR(INDEX(range,MATCH(AV33,gymnasts,0)), "") ->  | AX32: 3rd Place | AY32: =IFERROR(INDEX(range,MATCH(AX33,gymnasts,0)), "") ->  | AZ32: 2nd Place | BA32: =IFERROR(INDEX(range,MATCH(AZ33,gymnasts,0)), "") -> 0.00 | BB32: 1st Place | BC32: =IFERROR(INDEX(range,MATCH(BB33,gymnasts,0)), "") -> 10.95
D33: 0.0 | E33: 0.00 | F33: 0.0 | G33: 0.00 | H33: 0.00 | I33: 2 | J33: 30 | K33: 0 | L33: 2 | M33: 0.0 | N33: 0.00 | O33: 2 | P33: 30 | Q33: 0 | R33: 2 | S33: 0.0 | T33: 0.00 | U33: 2 | V33: 30 | W33: 0 | X33: 2 | Y33: 0.0 | Z33: 0.00 | AA33: 2 | AB33: 30 | AC33: 0 | AD33: 2 | AE33: 0.0 | AF33: 0.00 | AG33: 2 | AH33: 30 | AI33: 0 | AJ33: 2 | AK33: 0.00 | AL33: 2 | AM33: 30 | AN33: 0 | AO33: 2 | AQ33: Range | AR33: =IFERROR(INDEX(gymnasts, SMALL(IF(VALUE(LEFT(AR$32, 1))=RangePos, ROW(RangePos)-MIN(ROW(RangePos))+1, ""), ROW()-32)), "") ->  | AS33: =IFERROR( INDEX(entries, MATCH(AR33, gymnasts, 0), 2), "") ->  | AT33: =IFERROR(INDEX(gymnasts, SMALL(IF(VALUE(LEFT(AT$32, 1))=RangePos, ROW(RangePos)-MIN(ROW(RangePos))+1, ""), ROW()-32)), "") ->  | AU33: =IFERROR( INDEX(entries, MATCH(AT33, gymnasts, 0), 2), "") ->  | AV33: =IFERROR(INDEX(gymnasts, SMALL(IF(VALUE(LEFT(AV$32, 1))=RangePos, ROW(RangePos)-MIN(ROW(RangePos))+1, ""), ROW()-32)), "") ->  | AW33: =IFERROR( INDEX(entries, MATCH(AV33, gymnasts, 0), 2), "") ->  | AX33: =IFERROR(INDEX(gymnasts, SMALL(IF(VALUE(LEFT(AX$32, 1))=RangePos, ROW(RangePos)-MIN(ROW(RangePos))+1, ""), ROW()-32)), "") ->  | AY33: =IFERROR( INDEX(entries, MATCH(AX33, gymnasts, 0), 2), "") ->  | AZ33: =IFERROR(INDEX(gymnasts, SMALL(IF(VALUE(LEFT(AZ$32, 1))=RangePos, ROW(RangePos)-MIN(ROW(RangePos))+1, ""), ROW()-32)), "") -> Ella Hodgson | BA33: =IFERROR( INDEX(entries, MATCH(AZ33, gymnasts, 0), 2), "") -> Darlington | BB33: =IFERROR(INDEX(gymnasts, SMALL(IF(VALUE(LEFT(BB$32, 1))=RangePos, ROW(RangePos)-MIN(ROW(RangePos))+1, ""), ROW()-32)), "") -> Myrah Hunter | BC33: =IFERROR( INDEX(entries, MATCH(BB33, gymnasts, 0), 2), "") -> Darlington
D34: 0.0 | E34: 0.00 | F34: 0.0 | G34: 0.00 | H34: 0.00 | I34: 2 | J34: 31 | K34: 0 | L34: 2 | M34: 0.0 | N34: 0.00 | O34: 2 | P34: 31 | Q34: 0 | R34: 2 | S34: 0.0 | T34: 0.00 | U34: 2 | V34: 31 | W34: 0 | X34: 2 | Y34: 0.0 | Z34: 0.00 | AA34: 2 | AB34: 31 | AC34: 0 | AD34: 2 | AE34: 0.0 | AF34: 0.00 | AG34: 2 | AH34: 31 | AI34: 0 | AJ34: 2 | AK34: 0.00 | AL34: 2 | AM34: 31 | AN34: 0 | AO34: 2 | AS34: =IFERROR( INDEX(entries, MATCH(AR34, gymnasts, 0), 2), "") ->  | AU34: =IFERROR( INDEX(entries, MATCH(AT34, gymnasts, 0), 2), "") ->  | AW34: =IFERROR( INDEX(entries, MATCH(AV34, gymnasts, 0), 2), "") ->  | AY34: =IFERROR( INDEX(entries, MATCH(AX34, gymnasts, 0), 2), "") ->  | AZ34: 0 | BA34: =IFERROR( INDEX(entries, MATCH(AZ34, gymnasts, 0), 2), "") -> 
D35: 0.0 | E35: 0.00 | F35: 0.0 | G35: 0.00 | H35: 0.00 | I35: 2 | J35: 32 | K35: 0 | L35: 2 | M35: 0.0 | N35: 0.00 | O35: 2 | P35: 32 | Q35: 0 | R35: 2 | S35: 0.0 | T35: 0.00 | U35: 2 | V35: 32 | W35: 0 | X35: 2 | Y35: 0.0 | Z35: 0.00 | AA35: 2 | AB35: 32 | AC35: 0 | AD35: 2 | AE35: 0.0 | AF35: 0.00 | AG35: 2 | AH35: 32 | AI35: 0 | AJ35: 2 | AK35: 0.00 | AL35: 2 | AM35: 32 | AN35: 0 | AO35: 2 | AZ35: 0
D36: 0.0 | E36: 0.00 | F36: 0.0 | G36: 0.00 | H36: 0.00 | I36: 2 | J36: 33 | K36: 0 | L36: 2 | M36: 0.0 | N36: 0.00 | O36: 2 | P36: 33 | Q36: 0 | R36: 2 | S36: 0.0 | T36: 0.00 | U36: 2 | V36: 33 | W36: 0 | X36: 2 | Y36: 0.0 | Z36: 0.00 | AA36: 2 | AB36: 33 | AC36: 0 | AD36: 2 | AE36: 0.0 | AF36: 0.00 | AG36: 2 | AH36: 33 | AI36: 0 | AJ36: 2 | AK36: =SUMIF(D$2:AJ$2, "SCORE", D36:AJ36) -> 0.00 | AL36: 2 | AM36: 33 | AN36: 0 | AO36: 2 | AZ36: 0
D37: 0.0 | E37: 0.00 | F37: 0.0 | G37: 0.00 | H37: 0.00 | I37: 2 | J37: 34 | K37: 0 | L37: 2 | M37: 0.0 | N37: 0.00 | O37: 2 | P37: 34 | Q37: 0 | R37: 2 | S37: 0.0 | T37: 0.00 | U37: 2 | V37: 34 | W37: 0 | X37: 2 | Y37: 0.0 | Z37: 0.00 | AA37: 2 | AB37: 34 | AC37: 0 | AD37: 2 | AE37: 0.0 | AF37: 0.00 | AG37: 2 | AH37: 34 | AI37: 0 | AJ37: 2 | AK37: 0.00 | AL37: 2 | AM37: 34 | AN37: 0 | AO37: 2 | AZ37: 0
D38: 0.0 | E38: 0.00 | F38: 0.0 | G38: 0.00 | H38: 0.00 | I38: 2 | J38: 35 | K38: 0 | L38: 2 | M38: 0.0 | N38: 0.00 | O38: 2 | P38: 35 | Q38: 0 | R38: 2 | S38: 0.0 | T38: 0.00 | U38: 2 | V38: 35 | W38: 0 | X38: 2 | Y38: 0.0 | Z38: 0.00 | AA38: 2 | AB38: 35 | AC38: 0 | AD38: 2 | AE38: 0.0 | AF38: 0.00 | AG38: 2 | AH38: 35 | AI38: 0 | AJ38: 2 | AK38: 0.00 | AL38: 2 | AM38: 35 | AN38: 0 | AO38: 2 | AZ38: 0
D39: 0.0 | E39: 0.00 | F39: 0.0 | G39: 0.00 | H39: 0.00 | I39: 2 | J39: 36 | K39: 0 | L39: 2 | M39: 0.0 | N39: 0.00 | O39: 2 | P39: 36 | Q39: 0 | R39: 2 | S39: 0.0 | T39: 0.00 | U39: 2 | V39: 36 | W39: 0 | X39: 2 | Y39: 0.0 | Z39: 0.00 | AA39: 2 | AB39: 36 | AC39: 0 | AD39: 2 | AE39: 0.0 | AF39: 0.00 | AG39: 2 | AH39: 36 | AI39: 0 | AJ39: 2 | AK39: 0.00 | AL39: 2 | AM39: 36 | AN39: 0 | AO39: 2 | AR39: 6th Place | AS39: =IFERROR(INDEX(AAscores,MATCH(AR40,gymnasts,0)), "") ->  | AT39: 5th Place | AU39: =IFERROR(INDEX(AAscores,MATCH(AT40,gymnasts,0)), "") ->  | AV39: 4th Place | AW39: =IFERROR(INDEX(AAscores,MATCH(AV40,gymnasts,0)), "") ->  | AX39: 3rd Place | AY39: =IFERROR(INDEX(AAscores,MATCH(AX40,gymnasts,0)), "") ->  | AZ39: 2nd Place | BA39: =IFERROR(INDEX(AAscores,MATCH(AZ40,gymnasts,0)), "") -> 0.00 | BB39: 1st Place | BC39: =IFERROR(INDEX(AAscores,MATCH(BB40,gymnasts,0)), "") -> 59.05
D40: 0.0 | E40: 0.00 | F40: 0.0 | G40: 0.00 | H40: 0.00 | I40: 2 | J40: 37 | K40: 0 | L40: 2 | M40: 0.0 | N40: 0.00 | O40: 2 | P40: 37 | Q40: 0 | R40: 2 | S40: 0.0 | T40: 0.00 | U40: 2 | V40: 37 | W40: 0 | X40: 2 | Y40: 0.0 | Z40: 0.00 | AA40: 2 | AB40: 37 | AC40: 0 | AD40: 2 | AE40: 0.0 | AF40: 0.00 | AG40: 2 | AH40: 37 | AI40: 0 | AJ40: 2 | AK40: 0.00 | AL40: 2 | AM40: 37 | AN40: 0 | AO40: 2 | AQ40: AA | AR40: =IFERROR(INDEX(gymnasts, SMALL(IF(VALUE(LEFT(AR$39, 1))=AApos, ROW(AApos)-MIN(ROW(AApos))+1, ""), ROW()-39)), "") ->  | AS40: =IFERROR( INDEX(entries, MATCH(AR40, gymnasts, 0), 2), "") ->  | AT40: =IFERROR(INDEX(gymnasts, SMALL(IF(VALUE(LEFT(AT$39, 1))=AApos, ROW(AApos)-MIN(ROW(AApos))+1, ""), ROW()-39)), "") ->  | AU40: =IFERROR( INDEX(entries, MATCH(AT40, gymnasts, 0), 2), "") ->  | AV40: =IFERROR(INDEX(gymnasts, SMALL(IF(VALUE(LEFT(AV$39, 1))=AApos, ROW(AApos)-MIN(ROW(AApos))+1, ""), ROW()-39)), "") ->  | AW40: =IFERROR( INDEX(entries, MATCH(AV40, gymnasts, 0), 2), "") ->  | AX40: =IFERROR(INDEX(gymnasts, SMALL(IF(VALUE(LEFT(AX$39, 1))=AApos, ROW(AApos)-MIN(ROW(AApos))+1, ""), ROW()-39)), "") ->  | AY40: =IFERROR( INDEX(entries, MATCH(AX40, gymnasts, 0), 2), "") ->  | AZ40: =IFERROR(INDEX(gymnasts, SMALL(IF(VALUE(LEFT(AZ$39, 1))=AApos, ROW(AApos)-MIN(ROW(AApos))+1, ""), ROW()-39)), "") -> Ella Hodgson | BA40: =IFERROR( INDEX(entries, MATCH(AZ40, gymnasts, 0), 2), "") -> Darlington | BB40: =IFERROR(INDEX(gymnasts, SMALL(IF(VALUE(LEFT(BB$39, 1))=AApos, ROW(AApos)-MIN(ROW(AApos))+1, ""), ROW()-39)), "") -> Myrah Hunter | BC40: =IFERROR( INDEX(entries, MATCH(BB40, gymnasts, 0), 2), "") -> Darlington
D41: 0.0 | E41: 0.00 | F41: 0.0 | G41: 0.00 | H41: 0.00 | I41: 2 | J41: 38 | K41: 0 | L41: 2 | M41: 0.0 | N41: 0.00 | O41: 2 | P41: 38 | Q41: 0 | R41: 2 | S41: 0.0 | T41: 0.00 | U41: 2 | V41: 38 | W41: 0 | X41: 2 | Y41: 0.0 | Z41: 0.00 | AA41: 2 | AB41: 38 | AC41: 0 | AD41: 2 | AE41: 0.0 | AF41: 0.00 | AG41: 2 | AH41: 38 | AI41: 0 | AJ41: 2 | AK41: 0.00 | AL41: 2 | AM41: 38 | AN41: 0 | AO41: 2 | AS41: =IFERROR( INDEX(entries, MATCH(AR41, gymnasts, 0), 2), "") ->  | AU41: =IFERROR( INDEX(entries, MATCH(AT41, gymnasts, 0), 2), "") ->  | AW41: =IFERROR( INDEX(entries, MATCH(AV41, gymnasts, 0), 2), "") ->  | AY41: =IFERROR( INDEX(entries, MATCH(AX41, gymnasts, 0), 2), "") ->  | AZ41: 0 | BA41: =IFERROR( INDEX(entries, MATCH(AZ41, gymnasts, 0), 2), "") -> 
D42: 0.0 | E42: 0.00 | F42: 0.0 | G42: 0.00 | H42: 0.00 | I42: 2 | J42: 39 | K42: 0 | L42: 2 | M42: 0.0 | N42: 0.00 | O42: 2 | P42: 39 | Q42: 0 | R42: 2 | S42: 0.0 | T42: 0.00 | U42: 2 | V42: 39 | W42: 0 | X42: 2 | Y42: 0.0 | Z42: 0.00 | AA42: 2 | AB42: 39 | AC42: 0 | AD42: 2 | AE42: 0.0 | AF42: 0.00 | AG42: 2 | AH42: 39 | AI42: 0 | AJ42: 2 | AK42: 0.00 | AL42: 2 | AM42: 39 | AN42: 0 | AO42: 2 | AZ42: 0
D43: 0.0 | E43: 0.00 | F43: 0.0 | G43: 0.00 | H43: 0.00 | I43: 2 | J43: 40 | K43: 0 | L43: 2 | M43: 0.0 | N43: 0.00 | O43: 2 | P43: 40 | Q43: 0 | R43: 2 | S43: 0.0 | T43: 0.00 | U43: 2 | V43: 40 | W43: 0 | X43: 2 | Y43: 0.0 | Z43: 0.00 | AA43: 2 | AB43: 40 | AC43: 0 | AD43: 2 | AE43: 0.0 | AF43: 0.00 | AG43: 2 | AH43: 40 | AI43: 0 | AJ43: 2 | AK43: 0.00 | AL43: 2 | AM43: 40 | AN43: 0 | AO43: 2 | AZ43: 0
D44: 0.0 | E44: 0.00 | F44: 0.0 | G44: 0.00 | H44: 0.00 | I44: 2 | J44: 41 | K44: 0 | L44: 2 | M44: 0.0 | N44: 0.00 | O44: 2 | P44: 41 | Q44: 0 | R44: 2 | S44: 0.0 | T44: 0.00 | U44: 2 | V44: 41 | W44: 0 | X44: 2 | Y44: 0.0 | Z44: 0.00 | AA44: 2 | AB44: 41 | AC44: 0 | AD44: 2 | AE44: 0.0 | AF44: 0.00 | AG44: 2 | AH44: 41 | AI44: 0 | AJ44: 2 | AK44: 0.00 | AL44: 2 | AM44: 41 | AN44: 0 | AO44: 2 | AZ44: 0
D45: 0.0 | E45: 0.00 | F45: 0.0 | G45: 0.00 | H45: 0.00 | I45: 2 | J45: 42 | K45: 0 | L45: 2 | M45: 0.0 | N45: 0.00 | O45: 2 | P45: 42 | Q45: 0 | R45: 2 | S45: 0.0 | T45: 0.00 | U45: 2 | V45: 42 | W45: 0 | X45: 2 | Y45: 0.0 | Z45: 0.00 | AA45: 2 | AB45: 42 | AC45: 0 | AD45: 2 | AE45: 0.0 | AF45: 0.00 | AG45: 2 | AH45: 42 | AI45: 0 | AJ45: 2 | AK45: 0.00 | AL45: 2 | AM45: 42 | AN45: 0 | AO45: 2 | AZ45: 0
D46: 0.0 | E46: 0.00 | F46: 0.0 | G46: 0.00 | H46: 0.00 | I46: 2 | J46: 43 | K46: 0 | L46: 2 | M46: 0.0 | N46: 0.00 | O46: 2 | P46: 43 | Q46: 0 | R46: 2 | S46: 0.0 | T46: 0.00 | U46: 2 | V46: 43 | W46: 0 | X46: 2 | Y46: 0.0 | Z46: 0.00 | AA46: 2 | AB46: 43 | AC46: 0 | AD46: 2 | AE46: 0.0 | AF46: 0.00 | AG46: 2 | AH46: 43 | AI46: 0 | AJ46: 2 | AK46: 0.00 | AL46: 2 | AM46: 43 | AN46: 0 | AO46: 2 | AQ46: Team | AR46: 3rd place Team | AS46: =IF(COUNTIF(AR47, 0), "", INDEX(teamTotals, MATCH(AR47, teams, 0))) ->  | AV46: 2nd Place Team | AW46: =IF(COUNTIF(AV47, 0), "", INDEX(teamTotals, MATCH(AV47, teams, 0))) ->  | AZ46: 1st Place Team | BA46: =IF(COUNTIF(AZ47, 0), "", INDEX(teamTotals, MATCH(AZ47, teams, 0))) -> 
D47: 0.0 | E47: 0.00 | F47: 0.0 | G47: 0.00 | H47: 0.00 | I47: 2 | J47: 44 | K47: 0 | L47: 2 | M47: 0.0 | N47: 0.00 | O47: 2 | P47: 44 | Q47: 0 | R47: 2 | S47: 0.0 | T47: 0.00 | U47: 2 | V47: 44 | W47: 0 | X47: 2 | Y47: 0.0 | Z47: 0.00 | AA47: 2 | AB47: 44 | AC47: 0 | AD47: 2 | AE47: 0.0 | AF47: 0.00 | AG47: 2 | AH47: 44 | AI47: 0 | AJ47: 2 | AK47: 0.00 | AL47: 2 | AM47: 44 | AN47: 0 | AO47: 2 | AR47: =IFERROR(INDEX(teams, SMALL(IF(VALUE(LEFT(AR$46, 1))=teamPos, ROW(teamPos)-MIN(ROW(teamPos))+1, ""), ROW()-46)), "") ->  | AS47: =IFERROR(IF(COUNTIF(AR47, 0), "", INDEX(gymnasts, SMALL(IF(AR$47=club, ROW(club)-MIN(ROW(club))+1, ""), ROW()-46))), "") -> 0 | AV47: =IFERROR(INDEX(teams, SMALL(IF(VALUE(LEFT(AV$46, 1))=teamPos, ROW(teamPos)-MIN(ROW(teamPos))+1, ""), ROW()-46)), "") ->  | AW47: =IFERROR(IF(COUNTIF(AV47, 0), "", INDEX(gymnasts, SMALL(IF(AV$47=club, ROW(club)-MIN(ROW(club))+1, ""), ROW()-46))), "") -> 0 | AZ47: =IFERROR(INDEX(teams, SMALL(IF(VALUE(LEFT(AZ$46, 1))=teamPos, ROW(teamPos)-MIN(ROW(teamPos))+1, ""), ROW()-46)), "") ->  | BA47: =IFERROR(IF(COUNTIF(AZ47, 0), "", INDEX(gymnasts, SMALL(IF(AZ$47=club, ROW(club)-MIN(ROW(club))+1, ""), ROW()-46))), "") -> 0
D48: 0.0 | E48: 0.00 | F48: 0.0 | G48: 0.00 | H48: 0.00 | I48: 2 | J48: 45 | K48: 0 | L48: 2 | M48: 0.0 | N48: 0.00 | O48: 2 | P48: 45 | Q48: 0 | R48: 2 | S48: 0.0 | T48: 0.00 | U48: 2 | V48: 45 | W48: 0 | X48: 2 | Y48: 0.0 | Z48: 0.00 | AA48: 2 | AB48: 45 | AC48: 0 | AD48: 2 | AE48: 0.0 | AF48: 0.00 | AG48: 2 | AH48: 45 | AI48: 0 | AJ48: 2 | AK48: 0.00 | AL48: 2 | AM48: 45 | AN48: 0 | AO48: 2 | AS48: =IFERROR(IF(COUNTIF(AR48, 0), "", INDEX(gymnasts, SMALL(IF(AR$47=club, ROW(club)-MIN(ROW(club))+1, ""), ROW()-46))), "") -> 0 | AW48: =IFERROR(IF(COUNTIF(AV48, 0), "", INDEX(gymnasts, SMALL(IF(AV$47=club, ROW(club)-MIN(ROW(club))+1, ""), ROW()-46))), "") -> 0 | BA48: =IFERROR(IF(COUNTIF(AZ48, 0), "", INDEX(gymnasts, SMALL(IF(AZ$47=club, ROW(club)-MIN(ROW(club))+1, ""), ROW()-46))), "") -> 0
D49: 0.0 | E49: 0.00 | F49: 0.0 | G49: 0.00 | H49: 0.00 | I49: 2 | J49: 46 | K49: 0 | L49: 2 | M49: 0.0 | N49: 0.00 | O49: 2 | P49: 46 | Q49: 0 | R49: 2 | S49: 0.0 | T49: 0.00 | U49: 2 | V49: 46 | W49: 0 | X49: 2 | Y49: 0.0 | Z49: 0.00 | AA49: 2 | AB49: 46 | AC49: 0 | AD49: 2 | AE49: 0.0 | AF49: 0.00 | AG49: 2 | AH49: 46 | AI49: 0 | AJ49: 2 | AK49: 0.00 | AL49: 2 | AM49: 46 | AN49: 0 | AO49: 2 | AS49: =IFERROR(IF(COUNTIF(AR49, 0), "", INDEX(gymnasts, SMALL(IF(AR$47=club, ROW(club)-MIN(ROW(club))+1, ""), ROW()-46))), "") -> 0 | AW49: =IFERROR(IF(COUNTIF(AV49, 0), "", INDEX(gymnasts, SMALL(IF(AV$47=club, ROW(club)-MIN(ROW(club))+1, ""), ROW()-46))), "") -> 0 | BA49: =IFERROR(IF(COUNTIF(AZ49, 0), "", INDEX(gymnasts, SMALL(IF(AZ$47=club, ROW(club)-MIN(ROW(club))+1, ""), ROW()-46))), "") -> 0
D50: 0.0 | E50: 0.00 | F50: 0.0 | G50: 0.00 | H50: 0.00 | I50: 2 | J50: 47 | K50: 0 | L50: 2 | M50: 0.0 | N50: 0.00 | O50: 2 | P50: 47 | Q50: 0 | R50: 2 | S50: 0.0 | T50: 0.00 | U50: 2 | V50: 47 | W50: 0 | X50: 2 | Y50: 0.0 | Z50: 0.00 | AA50: 2 | AB50: 47 | AC50: 0 | AD50: 2 | AE50: 0.0 | AF50: 0.00 | AG50: 2 | AH50: 47 | AI50: 0 | AJ50: 2 | AK50: 0.00 | AL50: 2 | AM50: 47 | AN50: 0 | AO50: 2 | AS50: =IFERROR(IF(COUNTIF(AR50, 0), "", INDEX(gymnasts, SMALL(IF(AR$47=club, ROW(club)-MIN(ROW(club))+1, ""), ROW()-46))), "") -> 0 | AW50: =IFERROR(IF(COUNTIF(AV50, 0), "", INDEX(gymnasts, SMALL(IF(AV$47=club, ROW(club)-MIN(ROW(club))+1, ""), ROW()-46))), "") -> 0 | BA50: =IFERROR(IF(COUNTIF(AZ50, 0), "", INDEX(gymnasts, SMALL(IF(AZ$47=club, ROW(club)-MIN(ROW(club))+1, ""), ROW()-46))), "") -> 0
D51: 0.0 | E51: 0.00 | F51: 0.0 | G51: 0.00 | H51: 0.00 | I51: 2 | J51: 48 | K51: 0 | L51: 2 | M51: 0.0 | N51: 0.00 | O51: 2 | P51: 48 | Q51: 0 | R51: 2 | S51: 0.0 | T51: 0.00 | U51: 2 | V51: 48 | W51: 0 | X51: 2 | Y51: 0.0 | Z51: 0.00 | AA51: 2 | AB51: 48 | AC51: 0 | AD51: 2 | AE51: 0.0 | AF51: 0.00 | AG51: 2 | AH51: 48 | AI51: 0 | AJ51: 2 | AK51: 0.00 | AL51: 2 | AM51: 48 | AN51: 0 | AO51: 2 | AS51: =IFERROR(IF(COUNTIF(AR51, 0), "", INDEX(gymnasts, SMALL(IF(AR$47=club, ROW(club)-MIN(ROW(club))+1, ""), ROW()-46))), "") -> 0 | AW51: =IFERROR(IF(COUNTIF(AV51, 0), "", INDEX(gymnasts, SMALL(IF(AV$47=club, ROW(club)-MIN(ROW(club))+1, ""), ROW()-46))), "") -> 0 | BA51: =IFERROR(IF(COUNTIF(AZ51, 0), "", INDEX(gymnasts, SMALL(IF(AZ$47=club, ROW(club)-MIN(ROW(club))+1, ""), ROW()-46))), "") -> 0
D52: 0.0 | E52: 0.00 | F52: 0.0 | G52: 0.00 | H52: 0.00 | I52: 2 | J52: 49 | K52: 0 | L52: 2 | M52: 0.0 | N52: 0.00 | O52: 2 | P52: 49 | Q52: 0 | R52: 2 | S52: 0.0 | T52: 0.00 | U52: 2 | V52: 49 | W52: 0 | X52: 2 | Y52: 0.0 | Z52: 0.00 | AA52: 2 | AB52: 49 | AC52: 0 | AD52: 2 | AE52: 0.0 | AF52: 0.00 | AG52: 2 | AH52: 49 | AI52: 0 | AJ52: 2 | AK52: 0.00 | AL52: 2 | AM52: 49 | AN52: 0 | AO52: 2 | AR52: =IFERROR(INDEX(teams, SMALL(IF(VALUE(LEFT(AR$46, 1))=teamPos, ROW(teamPos)-MIN(ROW(teamPos))+1, ""), ROW()-50)), "") ->  | AS52: =IFERROR(IF(COUNTIF(AR$52, 0), "", INDEX(gymnasts, SMALL(IF(AR$52=club, ROW(club)-MIN(ROW(club))+1, ""), ROW()-51))), "") -> 0 | AV52: =IFERROR(INDEX(teams, SMALL(IF(VALUE(LEFT(AV$46, 1))=teamPos, ROW(teamPos)-MIN(ROW(teamPos))+1, ""), ROW()-50)), "") ->  | AW52: =IFERROR(IF(COUNTIF(AV$52, 0), "", INDEX(gymnasts, SMALL(IF(AV$52=club, ROW(club)-MIN(ROW(club))+1, ""), ROW()-51))), "") -> 0 | AZ52: =IFERROR(INDEX(teams, SMALL(IF(VALUE(LEFT(AZ$46, 1))=teamPos, ROW(teamPos)-MIN(ROW(teamPos))+1, ""), ROW()-50)), "") ->  | BA52: =IFERROR(IF(COUNTIF(AZ$52, 0), "", INDEX(gymnasts, SMALL(IF(AZ$52=club, ROW(club)-MIN(ROW(club))+1, ""), ROW()-51))), "") -> 0
D53: 0.0 | E53: 0.00 | F53: 0.0 | G53: 0.00 | H53: 0.00 | I53: 2 | J53: 50 | K53: 0 | L53: 2 | M53: 0.0 | N53: 0.00 | O53: 2 | P53: 50 | Q53: 0 | R53: 2 | S53: 0.0 | T53: 0.00 | U53: 2 | V53: 50 | W53: 0 | X53: 2 | Y53: 0.0 | Z53: 0.00 | AA53: 2 | AB53: 50 | AC53: 0 | AD53: 2 | AE53: 0.0 | AF53: 0.00 | AG53: 2 | AH53: 50 | AI53: 0 | AJ53: 2 | AK53: 0.00 | AL53: 2 | AM53: 50 | AN53: 0 | AO53: 2 | AS53: =IFERROR(IF(COUNTIF(AR$52, 0), "", INDEX(gymnasts, SMALL(IF(AR$52=club, ROW(club)-MIN(ROW(club))+1, ""), ROW()-51))), "") -> 0 | AW53: =IFERROR(IF(COUNTIF(AV$52, 0), "", INDEX(gymnasts, SMALL(IF(AV$52=club, ROW(club)-MIN(ROW(club))+1, ""), ROW()-51))), "") -> 0 | BA53: =IFERROR(IF(COUNTIF(AZ$52, 0), "", INDEX(gymnasts, SMALL(IF(AZ$52=club, ROW(club)-MIN(ROW(club))+1, ""), ROW()-51))), "") -> 0
D54: 0.0 | E54: 0.00 | F54: 0.0 | G54: 0.00 | H54: 0.00 | I54: 2 | J54: 51 | K54: 0 | L54: 2 | M54: 0.0 | N54: 0.00 | O54: 2 | P54: 51 | Q54: 0 | R54: 2 | S54: 0.0 | T54: 0.00 | U54: 2 | V54: 51 | W54: 0 | X54: 2 | Y54: 0.0 | Z54: 0.00 | AA54: 2 | AB54: 51 | AC54: 0 | AD54: 2 | AE54: 0.0 | AF54: 0.00 | AG54: 2 | AH54: 51 | AI54: 0 | AJ54: 2 | AK54: 0.00 | AL54: 2 | AM54: 51 | AN54: 0 | AO54: 2 | AS54: =IFERROR(IF(COUNTIF(AR$52, 0), "", INDEX(gymnasts, SMALL(IF(AR$52=club, ROW(club)-MIN(ROW(club))+1, ""), ROW()-51))), "") -> 0 | AW54: =IFERROR(IF(COUNTIF(AV$52, 0), "", INDEX(gymnasts, SMALL(IF(AV$52=club, ROW(club)-MIN(ROW(club))+1, ""), ROW()-51))), "") -> 0 | BA54: =IFERROR(IF(COUNTIF(AZ$52, 0), "", INDEX(gymnasts, SMALL(IF(AZ$52=club, ROW(club)-MIN(ROW(club))+1, ""), ROW()-51))), "") -> 0
D55: 0.0 | E55: 0.00 | F55: 0.0 | G55: 0.00 | H55: 0.00 | I55: 2 | J55: 52 | K55: 0 | L55: 2 | M55: 0.0 | N55: 0.00 | O55: 2 | P55: 52 | Q55: 0 | R55: 2 | S55: 0.0 | T55: 0.00 | U55: 2 | V55: 52 | W55: 0 | X55: 2 | Y55: 0.0 | Z55: 0.00 | AA55: 2 | AB55: 52 | AC55: 0 | AD55: 2 | AE55: 0.0 | AF55: 0.00 | AG55: 2 | AH55: 52 | AI55: 0 | AJ55: 2 | AK55: 0.00 | AL55: 2 | AM55: 52 | AN55: 0 | AO55: 2 | AS55: =IFERROR(IF(COUNTIF(AR$52, 0), "", INDEX(gymnasts, SMALL(IF(AR$52=club, ROW(club)-MIN(ROW(club))+1, ""), ROW()-51))), "") -> 0 | AW55: =IFERROR(IF(COUNTIF(AV$52, 0), "", INDEX(gymnasts, SMALL(IF(AV$52=club, ROW(club)-MIN(ROW(club))+1, ""), ROW()-51))), "") -> 0 | BA55: =IFERROR(IF(COUNTIF(AZ$52, 0), "", INDEX(gymnasts, SMALL(IF(AZ$52=club, ROW(club)-MIN(ROW(club))+1, ""), ROW()-51))), "") -> 0
D56: 0.0 | E56: 0.00 | F56: 0.0 | G56: 0.00 | H56: 0.00 | I56: 2 | J56: 53 | K56: 0 | L56: 2 | M56: 0.0 | N56: 0.00 | O56: 2 | P56: 53 | Q56: 0 | R56: 2 | S56: 0.0 | T56: 0.00 | U56: 2 | V56: 53 | W56: 0 | X56: 2 | Y56: 0.0 | Z56: 0.00 | AA56: 2 | AB56: 53 | AC56: 0 | AD56: 2 | AE56: 0.0 | AF56: 0.00 | AG56: 2 | AH56: 53 | AI56: 0 | AJ56: 2 | AK56: 0.00 | AL56: 2 | AM56: 53 | AN56: 0 | AO56: 2 | AS56: =IFERROR(IF(ISTEXT(AR$52), INDEX(gymnasts, SMALL(IF(AR$52=club, ROW(club)-MIN(ROW(club))+1, ""), ROW()-51)), ""), "") -> 0 | AW56: =IFERROR(IF(ISTEXT(AV$52), INDEX(gymnasts, SMALL(IF(AV$52=club, ROW(club)-MIN(ROW(club))+1, ""), ROW()-51)), ""), "") -> 0 | BA56: =IFERROR(IF(ISTEXT(AZ$52), INDEX(gymnasts, SMALL(IF(AZ$52=club, ROW(club)-MIN(ROW(club))+1, ""), ROW()-51)), ""), "") -> 0
D57: 0.0 | E57: 0.00 | F57: 0.0 | G57: 0.00 | H57: 0.00 | I57: 2 | J57: 54 | K57: 0 | L57: 2 | M57: 0.0 | N57: 0.00 | O57: 2 | P57: 54 | Q57: 0 | R57: 2 | S57: 0.0 | T57: 0.00 | U57: 2 | V57: 54 | W57: 0 | X57: 2 | Y57: 0.0 | Z57: 0.00 | AA57: 2 | AB57: 54 | AC57: 0 | AD57: 2 | AE57: 0.0 | AF57: 0.00 | AG57: 2 | AH57: 54 | AI57: 0 | AJ57: 2 | AK57: 0.00 | AL57: 2 | AM57: 54 | AN57: 0 | AO57: 2
D58: 0.0 | E58: 0.00 | F58: 0.0 | G58: 0.00 | H58: 0.00 | I58: 2 | J58: 55 | K58: 0 | L58: 2 | M58: 0.0 | N58: 0.00 | O58: 2 | P58: 55 | Q58: 0 | R58: 2 | S58: 0.0 | T58: 0.00 | U58: 2 | V58: 55 | W58: 0 | X58: 2 | Y58: 0.0 | Z58: 0.00 | AA58: 2 | AB58: 55 | AC58: 0 | AD58: 2 | AE58: 0.0 | AF58: 0.00 | AG58: 2 | AH58: 55 | AI58: 0 | AJ58: 2 | AK58: 0.00 | AL58: 2 | AM58: 55 | AN58: 0 | AO58: 2
D59: 0.0 | E59: 0.00 | F59: 0.0 | G59: 0.00 | H59: 0.00 | I59: 2 | J59: 56 | K59: 0 | L59: 2 | M59: 0.0 | N59: 0.00 | O59: 2 | P59: 56 | Q59: 0 | R59: 2 | S59: 0.0 | T59: 0.00 | U59: 2 | V59: 56 | W59: 0 | X59: 2 | Y59: 0.0 | Z59: 0.00 | AA59: 2 | AB59: 56 | AC59: 0 | AD59: 2 | AE59: 0.0 | AF59: 0.00 | AG59: 2 | AH59: 56 | AI59: 0 | AJ59: 2 | AK59: 0.00 | AL59: 2 | AM59: 56 | AN59: 0 | AO59: 2
D60: 0.0 | E60: 0.00 | F60: 0.0 | G60: 0.00 | H60: 0.00 | I60: 2 | J60: 57 | K60: 0 | L60: 2 | M60: 0.0 | N60: 0.00 | O60: 2 | P60: 57 | Q60: 0 | R60: 2 | S60: 0.0 | T60: 0.00 | U60: 2 | V60: 57 | W60: 0 | X60: 2 | Y60: 0.0 | Z60: 0.00 | AA60: 2 | AB60: 57 | AC60: 0 | AD60: 2 | AE60: 0.0 | AF60: 0.00 | AG60: 2 | AH60: 57 | AI60: 0 | AJ60: 2 | AK60: 0.00 | AL60: 2 | AM60: 57 | AN60: 0 | AO60: 2
D61: 0.0 | E61: 0.00 | F61: 0.0 | G61: 0.00 | H61: 0.00 | I61: 2 | J61: 58 | K61: 0 | L61: 2 | M61: 0.0 | N61: 0.00 | O61: 2 | P61: 58 | Q61: 0 | R61: 2 | S61: 0.0 | T61: 0.00 | U61: 2 | V61: 58 | W61: 0 | X61: 2 | Y61: 0.0 | Z61: 0.00 | AA61: 2 | AB61: 58 | AC61: 0 | AD61: 2 | AE61: 0.0 | AF61: 0.00 | AG61: 2 | AH61: 58 | AI61: 0 | AJ61: 2 | AK61: 0.00 | AL61: 2 | AM61: 58 | AN61: 0 | AO61: 2
D62: 0.0 | E62: 0.00 | F62: 0.0 | G62: 0.00 | H62: 0.00 | I62: 2 | J62: 59 | K62: 0 | L62: 2 | M62: 0.0 | N62: 0.00 | O62: 2 | P62: 59 | Q62: 0 | R62: 2 | S62: 0.0 | T62: 0.00 | U62: 2 | V62: 59 | W62: 0 | X62: 2 | Y62: 0.0 | Z62: 0.00 | AA62: 2 | AB62: 59 | AC62: 0 | AD62: 2 | AE62: 0.0 | AF62: 0.00 | AG62: 2 | AH62: 59 | AI62: 0 | AJ62: 2 | AK62: 0.00 | AL62: 2 | AM62: 59 | AN62: 0 | AO62: 2
D63: 0.0 | E63: 0.00 | F63: 0.0 | G63: 0.00 | H63: 0.00 | I63: 2 | J63: 60 | K63: 0 | L63: 2 | M63: 0.0 | N63: 0.00 | O63: 2 | P63: 60 | Q63: 0 | R63: 2 | S63: 0.0 | T63: 0.00 | U63: 2 | V63: 60 | W63: 0 | X63: 2 | Y63: 0.0 | Z63: 0.00 | AA63: 2 | AB63: 60 | AC63: 0 | AD63: 2 | AE63: 0.0 | AF63: 0.00 | AG63: 2 | AH63: 60 | AI63: 0 | AJ63: 2 | AK63: 0.00 | AL63: 2 | AM63: 60 | AN63: 0 | AO63: 2
D64: 0.0 | E64: 0.00 | F64: 0.0 | G64: 0.00 | H64: 0.00 | I64: 2 | J64: 61 | K64: 0 | L64: 2 | M64: 0.0 | N64: 0.00 | O64: 2 | P64: 61 | Q64: 0 | R64: 2 | S64: 0.0 | T64: 0.00 | U64: 2 | V64: 61 | W64: 0 | X64: 2 | Y64: 0.0 | Z64: 0.00 | AA64: 2 | AB64: 61 | AC64: 0 | AD64: 2 | AE64: 0.0 | AF64: 0.00 | AG64: 2 | AH64: 61 | AI64: 0 | AJ64: 2 | AK64: 0.00 | AL64: 2 | AM64: 61 | AN64: 0 | AO64: 2
D65: 0.0 | E65: 0.00 | F65: 0.0 | G65: 0.00 | H65: 0.00 | I65: 2 | J65: 62 | K65: 0 | L65: 2 | M65: 0.0 | N65: 0.00 | O65: 2 | P65: 62 | Q65: 0 | R65: 2 | S65: 0.0 | T65: 0.00 | U65: 2 | V65: 62 | W65: 0 | X65: 2 | Y65: 0.0 | Z65: 0.00 | AA65: 2 | AB65: 62 | AC65: 0 | AD65: 2 | AE65: 0.0 | AF65: 0.00 | AG65: 2 | AH65: 62 | AI65: 0 | AJ65: 2 | AK65: 0.00 | AL65: 2 | AM65: 62 | AN65: 0 | AO65: 2
B66: Teams
B67: =IF(AND(COUNTIF(club,C67)>=3,COUNTIF(club,C67)<=5),"TEAM",IF(COUNTIF(club,C67)>5,"Too Many!!!!!","NO TEAM")) -> NO TEAM | H67: =IF($B67="NO TEAM", 0, SUM(LARGE(IF(club=$C67, vault), ROW($1:$3)))) -> 0.00 | N67: =IF($B67="NO TEAM", 0, SUM(LARGE(IF(club=$C67, bars), ROW($1:$3)))) -> 0.00 | T67: =IF($B67="NO TEAM", 0, SUM(LARGE(IF(club=$C67, beam), ROW($1:$3)))) -> 0.00 | Z67: =IF($B67="NO TEAM", 0, SUM(LARGE(IF(club=$C67, floor), ROW($1:$3)))) -> 0.00 | AF67: =IF($B67="NO TEAM", 0, SUM(LARGE(IF(club=$C67, range), ROW($1:$3)))) -> 0.00 | AK67: =IF(B67="TEAM", SUMIF(D$2:AJ$2, "SCORE", D67:AJ67), 0) -> 0.00 | AL67: =VLOOKUP(AK67,AN$67:AO$81, 2,FALSE) -> 0 | AM67: =IF(ISNUMBER(AM66), AM66+1, 1) -> 1 | AN67: =LARGE((AK$67:AK$81), $AM67) -> 0 | AO67: =IF(AN67=AN66, AO66, AO66+1) -> 0
B68: =IF(AND(COUNTIF(club,C68)>=3,COUNTIF(club,C68)<=5),"TEAM",IF(COUNTIF(club,C68)>5,"Too Many!!!!!","NO TEAM")) -> NO TEAM | H68: =IF($B68="NO TEAM", 0, SUM(LARGE(IF(club=$C68, vault), ROW($1:$3)))) -> 0.00 | N68: =IF($B68="NO TEAM", 0, SUM(LARGE(IF(club=$C68, bars), ROW($1:$3)))) -> 0.00 | T68: =IF($B68="NO TEAM", 0, SUM(LARGE(IF(club=$C68, beam), ROW($1:$3)))) -> 0.00 | Z68: =IF($B68="NO TEAM", 0, SUM(LARGE(IF(club=$C68, floor), ROW($1:$3)))) -> 0.00 | AF68: =IF($B68="NO TEAM", 0, SUM(LARGE(IF(club=$C68, range), ROW($1:$3)))) -> 0.00 | AK68: 0.00 | AL68: =VLOOKUP(AK68,AN$67:AO$81, 2,FALSE) -> 0 | AM68: =IF(ISNUMBER(AM67), AM67+1, 1) -> 2 | AN68: =LARGE((AK$67:AK$81), $AM68) -> 0 | AO68: =IF(AN68=AN67, AO67, AO67+1) -> 0
B69: =IF(AND(COUNTIF(club,C69)>=3,COUNTIF(club,C69)<=5),"TEAM",IF(COUNTIF(club,C69)>5,"Too Many!!!!!","NO TEAM")) -> NO TEAM | H69: =IF($B69="NO TEAM", 0, SUM(LARGE(IF(club=$C69, vault), ROW($1:$3)))) -> 0.00 | N69: =IF($B69="NO TEAM", 0, SUM(LARGE(IF(club=$C69, bars), ROW($1:$3)))) -> 0.00 | T69: =IF($B69="NO TEAM", 0, SUM(LARGE(IF(club=$C69, beam), ROW($1:$3)))) -> 0.00 | Z69: =IF($B69="NO TEAM", 0, SUM(LARGE(IF(club=$C69, floor), ROW($1:$3)))) -> 0.00 | AF69: =IF($B69="NO TEAM", 0, SUM(LARGE(IF(club=$C69, range), ROW($1:$3)))) -> 0.00 | AK69: 0.00 | AL69: 0 | AM69: 3 | AN69: 0 | AO69: 0
B70: =IF(AND(COUNTIF(club,C70)>=3,COUNTIF(club,C70)<=5),"TEAM",IF(COUNTIF(club,C70)>5,"Too Many!!!!!","NO TEAM")) -> NO TEAM | H70: =IF($B70="NO TEAM", 0, SUM(LARGE(IF(club=$C70, vault), ROW($1:$3)))) -> 0.00 | N70: =IF($B70="NO TEAM", 0, SUM(LARGE(IF(club=$C70, bars), ROW($1:$3)))) -> 0.00 | T70: =IF($B70="NO TEAM", 0, SUM(LARGE(IF(club=$C70, beam), ROW($1:$3)))) -> 0.00 | Z70: =IF($B70="NO TEAM", 0, SUM(LARGE(IF(club=$C70, floor), ROW($1:$3)))) -> 0.00 | AF70: =IF($B70="NO TEAM", 0, SUM(LARGE(IF(club=$C70, range), ROW($1:$3)))) -> 0.00 | AK70: 0.00 | AL70: 0 | AM70: 4 | AN70: 0 | AO70: 0
B71: =IF(AND(COUNTIF(club,C71)>=3,COUNTIF(club,C71)<=5),"TEAM",IF(COUNTIF(club,C71)>5,"Too Many!!!!!","NO TEAM")) -> NO TEAM | H71: =IF($B71="NO TEAM", 0, SUM(LARGE(IF(club=$C71, vault), ROW($1:$3)))) -> 0.00 | N71: =IF($B71="NO TEAM", 0, SUM(LARGE(IF(club=$C71, bars), ROW($1:$3)))) -> 0.00 | T71: =IF($B71="NO TEAM", 0, SUM(LARGE(IF(club=$C71, beam), ROW($1:$3)))) -> 0.00 | Z71: =IF($B71="NO TEAM", 0, SUM(LARGE(IF(club=$C71, floor), ROW($1:$3)))) -> 0.00 | AF71: =IF($B71="NO TEAM", 0, SUM(LARGE(IF(club=$C71, range), ROW($1:$3)))) -> 0.00 | AK71: 0.00 | AL71: 0 | AM71: 5 | AN71: 0 | AO71: 0
B72: =IF(AND(COUNTIF(club,C72)>=3,COUNTIF(club,C72)<=5),"TEAM",IF(COUNTIF(club,C72)>5,"Too Many!!!!!","NO TEAM")) -> NO TEAM | H72: =IF($B72="NO TEAM", 0, SUM(LARGE(IF(club=$C72, vault), ROW($1:$3)))) -> 0.00 | N72: =IF($B72="NO TEAM", 0, SUM(LARGE(IF(club=$C72, bars), ROW($1:$3)))) -> 0.00 | T72: =IF($B72="NO TEAM", 0, SUM(LARGE(IF(club=$C72, beam), ROW($1:$3)))) -> 0.00 | Z72: =IF($B72="NO TEAM", 0, SUM(LARGE(IF(club=$C72, floor), ROW($1:$3)))) -> 0.00 | AF72: =IF($B72="NO TEAM", 0, SUM(LARGE(IF(club=$C72, range), ROW($1:$3)))) -> 0.00 | AK72: 0.00 | AL72: 0 | AM72: 6 | AN72: 0 | AO72: 0
B73: =IF(AND(COUNTIF(club,C73)>=3,COUNTIF(club,C73)<=5),"TEAM",IF(COUNTIF(club,C73)>5,"Too Many!!!!!","NO TEAM")) -> NO TEAM | H73: =IF($B73="NO TEAM", 0, SUM(LARGE(IF(club=$C73, vault), ROW($1:$3)))) -> 0.00 | N73: =IF($B73="NO TEAM", 0, SUM(LARGE(IF(club=$C73, bars), ROW($1:$3)))) -> 0.00 | T73: =IF($B73="NO TEAM", 0, SUM(LARGE(IF(club=$C73, beam), ROW($1:$3)))) -> 0.00 | Z73: =IF($B73="NO TEAM", 0, SUM(LARGE(IF(club=$C73, floor), ROW($1:$3)))) -> 0.00 | AF73: =IF($B73="NO TEAM", 0, SUM(LARGE(IF(club=$C73, range), ROW($1:$3)))) -> 0.00 | AK73: 0.00 | AL73: 0 | AM73: 7 | AN73: 0 | AO73: 0
B74: =IF(AND(COUNTIF(club,C74)>=3,COUNTIF(club,C74)<=5),"TEAM",IF(COUNTIF(club,C74)>5,"Too Many!!!!!","NO TEAM")) -> NO TEAM | H74: =IF($B74="NO TEAM", 0, SUM(LARGE(IF(club=$C74, vault), ROW($1:$3)))) -> 0.00 | N74: =IF($B74="NO TEAM", 0, SUM(LARGE(IF(club=$C74, bars), ROW($1:$3)))) -> 0.00 | T74: =IF($B74="NO TEAM", 0, SUM(LARGE(IF(club=$C74, beam), ROW($1:$3)))) -> 0.00 | Z74: =IF($B74="NO TEAM", 0, SUM(LARGE(IF(club=$C74, floor), ROW($1:$3)))) -> 0.00 | AF74: =IF($B74="NO TEAM", 0, SUM(LARGE(IF(club=$C74, range), ROW($1:$3)))) -> 0.00 | AK74: 0.00 | AL74: 0 | AM74: 8 | AN74: 0 | AO74: 0
B75: =IF(AND(COUNTIF(club,C75)>=3,COUNTIF(club,C75)<=5),"TEAM",IF(COUNTIF(club,C75)>5,"Too Many!!!!!","NO TEAM")) -> NO TEAM | H75: =IF($B75="NO TEAM", 0, SUM(LARGE(IF(club=$C75, vault), ROW($1:$3)))) -> 0.00 | N75: =IF($B75="NO TEAM", 0, SUM(LARGE(IF(club=$C75, bars), ROW($1:$3)))) -> 0.00 | T75: =IF($B75="NO TEAM", 0, SUM(LARGE(IF(club=$C75, beam), ROW($1:$3)))) -> 0.00 | Z75: =IF($B75="NO TEAM", 0, SUM(LARGE(IF(club=$C75, floor), ROW($1:$3)))) -> 0.00 | AF75: =IF($B75="NO TEAM", 0, SUM(LARGE(IF(club=$C75, range), ROW($1:$3)))) -> 0.00 | AK75: 0.00 | AL75: 0 | AM75: 9 | AN75: 0 | AO75: 0
B76: =IF(AND(COUNTIF(club,C76)>=3,COUNTIF(club,C76)<=5),"TEAM",IF(COUNTIF(club,C76)>5,"Too Many!!!!!","NO TEAM")) -> NO TEAM | H76: =IF($B76="NO TEAM", 0, SUM(LARGE(IF(club=$C76, vault), ROW($1:$3)))) -> 0.00 | N76: =IF($B76="NO TEAM", 0, SUM(LARGE(IF(club=$C76, bars), ROW($1:$3)))) -> 0.00 | T76: =IF($B76="NO TEAM", 0, SUM(LARGE(IF(club=$C76, beam), ROW($1:$3)))) -> 0.00 | Z76: =IF($B76="NO TEAM", 0, SUM(LARGE(IF(club=$C76, floor), ROW($1:$3)))) -> 0.00 | AF76: =IF($B76="NO TEAM", 0, SUM(LARGE(IF(club=$C76, range), ROW($1:$3)))) -> 0.00 | AK76: 0.00 | AL76: 0 | AM76: 10 | AN76: 0 | AO76: 0
B77: =IF(AND(COUNTIF(club,C77)>=3,COUNTIF(club,C77)<=5),"TEAM",IF(COUNTIF(club,C77)>5,"Too Many!!!!!","NO TEAM")) -> NO TEAM | H77: =IF($B77="NO TEAM", 0, SUM(LARGE(IF(club=$C77, vault), ROW($1:$3)))) -> 0.00 | N77: =IF($B77="NO TEAM", 0, SUM(LARGE(IF(club=$C77, bars), ROW($1:$3)))) -> 0.00 | T77: =IF($B77="NO TEAM", 0, SUM(LARGE(IF(club=$C77, beam), ROW($1:$3)))) -> 0.00 | Z77: =IF($B77="NO TEAM", 0, SUM(LARGE(IF(club=$C77, floor), ROW($1:$3)))) -> 0.00 | AF77: =IF($B77="NO TEAM", 0, SUM(LARGE(IF(club=$C77, range), ROW($1:$3)))) -> 0.00 | AK77: 0.00 | AL77: 0 | AM77: 11 | AN77: 0 | AO77: 0
B78: =IF(AND(COUNTIF(club,C78)>=3,COUNTIF(club,C78)<=5),"TEAM",IF(COUNTIF(club,C78)>5,"Too Many!!!!!","NO TEAM")) -> NO TEAM | H78: =IF($B78="NO TEAM", 0, SUM(LARGE(IF(club=$C78, vault), ROW($1:$3)))) -> 0.00 | N78: =IF($B78="NO TEAM", 0, SUM(LARGE(IF(club=$C78, bars), ROW($1:$3)))) -> 0.00 | T78: =IF($B78="NO TEAM", 0, SUM(LARGE(IF(club=$C78, beam), ROW($1:$3)))) -> 0.00 | Z78: =IF($B78="NO TEAM", 0, SUM(LARGE(IF(club=$C78, floor), ROW($1:$3)))) -> 0.00 | AF78: =IF($B78="NO TEAM", 0, SUM(LARGE(IF(club=$C78, range), ROW($1:$3)))) -> 0.00 | AK78: 0.00 | AL78: 0 | AM78: 12 | AN78: 0 | AO78: 0
B79: =IF(AND(COUNTIF(club,C79)>=3,COUNTIF(club,C79)<=5),"TEAM",IF(COUNTIF(club,C79)>5,"Too Many!!!!!","NO TEAM")) -> NO TEAM | H79: =IF($B79="NO TEAM", 0, SUM(LARGE(IF(club=$C79, vault), ROW($1:$3)))) -> 0.00 | N79: =SUM(LARGE(IF(club=$C79, bars), ROW($1:$3))) -> 0.00 | T79: =SUM(LARGE(IF(club=$C79, beam), ROW($1:$3))) -> 0.00 | Z79: =SUM(LARGE(IF(club=$C79, floor), ROW($1:$3))) -> 0.00 | AF79: =SUM(LARGE(IF(club=$C79, range), ROW($1:$3))) -> 0.00 | AK79: 0.00 | AL79: 0 | AM79: 13 | AN79: 0 | AO79: 0
B80: =IF(AND(COUNTIF(club,C80)>=3,COUNTIF(club,C80)<=5),"TEAM",IF(COUNTIF(club,C80)>5,"Too Many!!!!!","NO TEAM")) -> NO TEAM | H80: =IF($B80="NO TEAM", 0, SUM(LARGE(IF(club=$C80, vault), ROW($1:$3)))) -> 0.00 | N80: =SUM(LARGE(IF(club=$C80, bars), ROW($1:$3))) -> 0.00 | T80: =SUM(LARGE(IF(club=$C80, beam), ROW($1:$3))) -> 0.00 | Z80: =SUM(LARGE(IF(club=$C80, floor), ROW($1:$3))) -> 0.00 | AF80: =SUM(LARGE(IF(club=$C80, range), ROW($1:$3))) -> 0.00 | AK80: 0.00 | AL80: 0 | AM80: 14 | AN80: 0 | AO80: 0
B81: =IF(AND(COUNTIF(club,C81)>=3,COUNTIF(club,C81)<=5),"TEAM",IF(COUNTIF(club,C81)>5,"Too Many!!!!!","NO TEAM")) -> NO TEAM | H81: =IF($B81="NO TEAM", 0, SUM(LARGE(IF(club=$C81, vault), ROW($1:$3)))) -> 0.00 | N81: =SUM(LARGE(IF(club=$C81, bars), ROW($1:$3))) -> 0.00 | T81: =SUM(LARGE(IF(club=$C81, beam), ROW($1:$3))) -> 0.00 | Z81: =SUM(LARGE(IF(club=$C81, floor), ROW($1:$3))) -> 0.00 | AF81: =SUM(LARGE(IF(club=$C81, range), ROW($1:$3))) -> 0.00 | AK81: 0.00 | AL81: 0 | AM81: 15 | AN81: 0 | AO81: 0

Sheet NGr 5 >12 (hidden)
D1: VAULT | M1: BARS | S1: BEAM | Y1: FLOOR | AE1: RANGE | AK1: AA
A2: No | B2: GYMNAST | C2: CLUB | D2: V1 SV | E2: V1 | F2: V2 SV | G2: V2 | H2: SCORE | I2: POS | J2: idx | K2: sort | L2: ties | M2: SV | N2: SCORE | O2: POS | P2: idx | Q2: sort | R2: ties | S2: SV | T2: SCORE | U2: POS | V2: idx | W2: sort | X2: ties | Y2: SV | Z2: SCORE | AA2: POS | AB2: idx | AC2: sort | AD2: ties | AE2: SV | AF2: SCORE | AG2: POS | AH2: idx | AI2: sort | AJ2: ties | AK2: TOTAL | AL2: POS | AM2: idx | AN2: sort | AO2: ties
B3: North Grade 5 - 12 & Over | AR3: =B3 -> North Grade 5 - 12 & Over | AT3: summary results for presentation
A4: 88 | B4: Mya Liddle | C4: AAAsports | D4: 0.0 | E4: 0.00 | F4: 0.0 | G4: 0.00 | H4: =MAX(E4, G4) -> 0.00 | I4: =VLOOKUP(H4, K$4:L$65, 2,FALSE) -> 2 | J4: =IF(ISNUMBER(J3), J3+1, 1) -> 1 | K4: =LARGE(H$4:H$65,J4) -> 12.35 | L4: =IF(K4=K3, L3, L3+1) -> 1 | M4: 0.0 | N4: 0.00 | O4: =VLOOKUP(N4, Q$4:R$65, 2,FALSE) -> 2 | P4: =IF(ISNUMBER(P3), P3+1, 1) -> 1 | Q4: =LARGE(N$4:N$65,P4) -> 5.3 | R4: =IF(Q4=Q3, R3, R3+1) -> 1 | S4: 0.0 | T4: 0.00 | U4: =VLOOKUP(T4, W$4:X$65, 2,FALSE) -> 2 | V4: =IF(ISNUMBER(V3), V3+1, 1) -> 1 | W4: =LARGE(T$4:T$65,V4) -> 9.85 | X4: =IF(W4=W3, X3, X3+1) -> 1 | Y4: 0.0 | Z4: 0.00 | AA4: =VLOOKUP(Z4, AC$4:AD$65, 2,FALSE) -> 2 | AB4: =IF(ISNUMBER(AB3), AB3+1, 1) -> 1 | AC4: =LARGE(Z$4:Z$65,AB4) -> 12.8 | AD4: =IF(AC4=AC3, AD3, AD3+1) -> 1 | AE4: 0.0 | AF4: 0.00 | AG4: =VLOOKUP(AF4, AI$4:AJ$65, 2,FALSE) -> 2 | AH4: =IF(ISNUMBER(AH3), AH3+1, 1) -> 1 | AI4: =LARGE(AF$4:AF$65,AH4) -> 9.35 | AJ4: =IF(AI4=AI3, AJ3, AJ3+1) -> 1 | AK4: =SUMIF(D$2:AJ$2, "SCORE", D4:AJ4) -> 0.00 | AL4: =VLOOKUP(AK4, AN$4:AO$65, 2,FALSE) -> 2 | AM4: =IF(ISNUMBER(AM3), AM3+1, 1) -> 1 | AN4: =LARGE($AK$4:$AK$65,$AM4) -> 49.65 | AO4: =IF(AN4=AN3, AO3, AO3+1) -> 1 | AR4: 6th Place | AS4: =IFERROR(INDEX(vault,MATCH(AR5,gymnasts,0)), "") ->  | AT4: 5th Place | AU4: =IFERROR(INDEX(vault,MATCH(AT5,gymnasts,0)), "") ->  | AV4: 4th Place | AW4: =IFERROR(INDEX(vault,MATCH(AV5,gymnasts,0)), "") ->  | AX4: 3rd Place | AY4: =IFERROR(INDEX(vault,MATCH(AX5,gymnasts,0)), "") ->  | AZ4: 2nd Place | BA4: =IFERROR(INDEX(vault,MATCH(AZ5,gymnasts,0)), "") -> 0.00 | BB4: 1st Place | BC4: =IFERROR(INDEX(vault,MATCH(BB5,gymnasts,0)), "") -> 12.35
A5: 89 | B5: Georgia Wilson | C5: Richmondshire | D5: 4.0 | E5: 12.35 | F5: 0.0 | G5: 0.00 | H5: =MAX(E5, G5) -> 12.35 | I5: =VLOOKUP(H5, K$4:L$65, 2,FALSE) -> 1 | J5: 2 | K5: =LARGE(H$4:H$65,J5) -> 0 | L5: =IF(K5=K4, L4, L4+1) -> 2 | M5: 3.5 | N5: 5.30 | O5: =VLOOKUP(N5, Q$4:R$65, 2,FALSE) -> 1 | P5: 2 | Q5: =LARGE(N$4:N$65,P5) -> 0 | R5: =IF(Q5=Q4, R4, R4+1) -> 2 | S5: 4.0 | T5: 9.85 | U5: =VLOOKUP(T5, W$4:X$65, 2,FALSE) -> 1 | V5: 2 | W5: =LARGE(T$4:T$65,V5) -> 0 | X5: =IF(W5=W4, X4, X4+1) -> 2 | Y5: 4.0 | Z5: 12.80 | AA5: =VLOOKUP(Z5, AC$4:AD$65, 2,FALSE) -> 1 | AB5: 2 | AC5: =LARGE(Z$4:Z$65,AB5) -> 0 | AD5: =IF(AC5=AC4, AD4, AD4+1) -> 2 | AE5: 3.5 | AF5: 9.35 | AG5: =VLOOKUP(AF5, AI$4:AJ$65, 2,FALSE) -> 1 | AH5: 2 | AI5: =LARGE(AF$4:AF$65,AH5) -> 0 | AJ5: =IF(AI5=AI4, AJ4, AJ4+1) -> 2 | AK5: 49.65 | AL5: =VLOOKUP(AK5, AN$4:AO$65, 2,FALSE) -> 1 | AM5: 2 | AN5: =LARGE($AK$4:$AK$65,$AM5) -> 0 | AO5: =IF(AN5=AN4, AO4, AO4+1) -> 2 | AQ5: Vault | AR5: =IFERROR(INDEX(gymnasts, SMALL(IF(VALUE(LEFT(AR$32, 1))=vaultPos, ROW(vaultPos)-MIN(ROW(vaultPos))+1, ""), ROW()-4)), "") ->  | AS5: =IFERROR( INDEX(entries, MATCH(AR5, gymnasts, 0), 2), "") ->  | AT5: =IFERROR(INDEX(gymnasts, SMALL(IF(VALUE(LEFT(AT$32, 1))=vaultPos, ROW(vaultPos)-MIN(ROW(vaultPos))+1, ""), ROW()-4)), "") ->  | AU5: =IFERROR( INDEX(entries, MATCH(AT5, gymnasts, 0), 2), "") ->  | AV5: =IFERROR(INDEX(gymnasts, SMALL(IF(VALUE(LEFT(AV$32, 1))=vaultPos, ROW(vaultPos)-MIN(ROW(vaultPos))+1, ""), ROW()-4)), "") ->  | AW5: =IFERROR( INDEX(entries, MATCH(AV5, gymnasts, 0), 2), "") ->  | AX5: =IFERROR(INDEX(gymnasts, SMALL(IF(VALUE(LEFT(AX$32, 1))=vaultPos, ROW(vaultPos)-MIN(ROW(vaultPos))+1, ""), ROW()-4)), "") ->  | AY5: =IFERROR( INDEX(entries, MATCH(AX5, gymnasts, 0), 2), "") ->  | AZ5: =IFERROR(INDEX(gymnasts, SMALL(IF(VALUE(LEFT(AZ$32, 1))=vaultPos, ROW(vaultPos)-MIN(ROW(vaultPos))+1, ""), ROW()-4)), "") -> Mya Liddle | BA5: =IFERROR( INDEX(entries, MATCH(AZ5, gymnasts, 0), 2), "") -> AAAsports | BB5: =IFERROR(INDEX(gymnasts, SMALL(IF(VALUE(LEFT(BB$32, 1))=vaultPos, ROW(vaultPos)-MIN(ROW(vaultPos))+1, ""), ROW()-4)), "") -> Georgia Wilson | BC5: =IFERROR( INDEX(entries, MATCH(BB5, gymnasts, 0), 2), "") -> Richmondshire
D6: 0.0 | E6: 0.00 | F6: 0.0 | G6: 0.00 | H6: 0.00 | I6: 2 | J6: 3 | K6: 0 | L6: 2 | M6: 0.0 | N6: 0.00 | O6: 2 | P6: 3 | Q6: 0 | R6: 2 | S6: 0.0 | T6: 0.00 | U6: 2 | V6: 3 | W6: 0 | X6: 2 | Y6: 0.0 | Z6: 0.00 | AA6: 2 | AB6: 3 | AC6: 0 | AD6: 2 | AE6: 0.0 | AF6: 0.00 | AG6: 2 | AH6: 3 | AI6: 0 | AJ6: 2 | AK6: 0.00 | AL6: 2 | AM6: 3 | AN6: 0 | AO6: 2 | AS6: =IFERROR( INDEX(entries, MATCH(AR6, gymnasts, 0), 2), "") ->  | AU6: =IFERROR( INDEX(entries, MATCH(AT6, gymnasts, 0), 2), "") ->  | AW6: =IFERROR( INDEX(entries, MATCH(AV6, gymnasts, 0), 2), "") ->  | AY6: =IFERROR( INDEX(entries, MATCH(AX6, gymnasts, 0), 2), "") ->  | AZ6: 0 | BA6: =IFERROR( INDEX(entries, MATCH(AZ6, gymnasts, 0), 2), "") -> 
D7: 0.0 | E7: 0.00 | F7: 0.0 | G7: 0.00 | H7: 0.00 | I7: 2 | J7: 4 | K7: 0 | L7: 2 | M7: 0.0 | N7: 0.00 | O7: 2 | P7: 4 | Q7: 0 | R7: 2 | S7: 0.0 | T7: 0.00 | U7: 2 | V7: 4 | W7: 0 | X7: 2 | Y7: 0.0 | Z7: 0.00 | AA7: 2 | AB7: 4 | AC7: 0 | AD7: 2 | AE7: 0.0 | AF7: 0.00 | AG7: 2 | AH7: 4 | AI7: 0 | AJ7: 2 | AK7: 0.00 | AL7: 2 | AM7: 4 | AN7: 0 | AO7: 2 | AZ7: 0
D8: 0.0 | E8: 0.00 | F8: 0.0 | G8: 0.00 | H8: 0.00 | I8: 2 | J8: 5 | K8: 0 | L8: 2 | M8: 0.0 | N8: 0.00 | O8: 2 | P8: 5 | Q8: 0 | R8: 2 | S8: 0.0 | T8: 0.00 | U8: 2 | V8: 5 | W8: 0 | X8: 2 | Y8: 0.0 | Z8: 0.00 | AA8: 2 | AB8: 5 | AC8: 0 | AD8: 2 | AE8: 0.0 | AF8: 0.00 | AG8: 2 | AH8: 5 | AI8: 0 | AJ8: 2 | AK8: 0.00 | AL8: 2 | AM8: 5 | AN8: 0 | AO8: 2 | AZ8: 0
D9: 0.0 | E9: 0.00 | F9: 0.0 | G9: 0.00 | H9: 0.00 | I9: 2 | J9: 6 | K9: 0 | L9: 2 | M9: 0.0 | N9: 0.00 | O9: 2 | P9: 6 | Q9: 0 | R9: 2 | S9: 0.0 | T9: 0.00 | U9: 2 | V9: 6 | W9: 0 | X9: 2 | Y9: 0.0 | Z9: 0.00 | AA9: 2 | AB9: 6 | AC9: 0 | AD9: 2 | AE9: 0.0 | AF9: 0.00 | AG9: 2 | AH9: 6 | AI9: 0 | AJ9: 2 | AK9: 0.00 | AL9: 2 | AM9: 6 | AN9: 0 | AO9: 2 | AZ9: 0
D10: 0.0 | E10: 0.00 | F10: 0.0 | G10: 0.00 | H10: 0.00 | I10: 2 | J10: 7 | K10: 0 | L10: 2 | M10: 0.0 | N10: 0.00 | O10: 2 | P10: 7 | Q10: 0 | R10: 2 | S10: 0.0 | T10: 0.00 | U10: 2 | V10: 7 | W10: 0 | X10: 2 | Y10: 0.0 | Z10: 0.00 | AA10: 2 | AB10: 7 | AC10: 0 | AD10: 2 | AE10: 0.0 | AF10: 0.00 | AG10: 2 | AH10: 7 | AI10: 0 | AJ10: 2 | AK10: 0.00 | AL10: 2 | AM10: 7 | AN10: 0 | AO10: 2 | AZ10: 0
D11: 0.0 | E11: 0.00 | F11: 0.0 | G11: 0.00 | H11: 0.00 | I11: 2 | J11: 8 | K11: 0 | L11: 2 | M11: 0.0 | N11: 0.00 | O11: 2 | P11: 8 | Q11: 0 | R11: 2 | S11: 0.0 | T11: 0.00 | U11: 2 | V11: 8 | W11: 0 | X11: 2 | Y11: 0.0 | Z11: 0.00 | AA11: 2 | AB11: 8 | AC11: 0 | AD11: 2 | AE11: 0.0 | AF11: 0.00 | AG11: 2 | AH11: 8 | AI11: 0 | AJ11: 2 | AK11: 0.00 | AL11: 2 | AM11: 8 | AN11: 0 | AO11: 2 | AR11: 6th Place | AS11: =IFERROR(INDEX(bars,MATCH(AR12,gymnasts,0)), "") ->  | AT11: 5th Place | AU11: =IFERROR(INDEX(bars,MATCH(AT12,gymnasts,0)), "") ->  | AV11: 4th Place | AW11: =IFERROR(INDEX(bars,MATCH(AV12,gymnasts,0)), "") ->  | AX11: 3rd Place | AY11: =IFERROR(INDEX(bars,MATCH(AX12,gymnasts,0)), "") ->  | AZ11: 2nd Place | BA11: =IFERROR(INDEX(bars,MATCH(AZ12,gymnasts,0)), "") -> 0.00 | BB11: 1st Place | BC11: =IFERROR(INDEX(bars,MATCH(BB12,gymnasts,0)), "") -> 5.30
D12: 0.0 | E12: 0.00 | F12: 0.0 | G12: 0.00 | H12: 0.00 | I12: 2 | J12: 9 | K12: 0 | L12: 2 | M12: 0.0 | N12: 0.00 | O12: 2 | P12: 9 | Q12: 0 | R12: 2 | S12: 0.0 | T12: 0.00 | U12: 2 | V12: 9 | W12: 0 | X12: 2 | Y12: 0.0 | Z12: 0.00 | AA12: 2 | AB12: 9 | AC12: 0 | AD12: 2 | AE12: 0.0 | AF12: 0.00 | AG12: 2 | AH12: 9 | AI12: 0 | AJ12: 2 | AK12: 0.00 | AL12: 2 | AM12: 9 | AN12: 0 | AO12: 2 | AQ12: Bars | AR12: =IFERROR(INDEX(gymnasts, SMALL(IF(VALUE(LEFT(AR$32, 1))=BarPos, ROW(BarPos)-MIN(ROW(BarPos))+1, ""), ROW()-11)), "") ->  | AS12: =IFERROR( INDEX(entries, MATCH(AR12, gymnasts, 0), 2), "") ->  | AT12: =IFERROR(INDEX(gymnasts, SMALL(IF(VALUE(LEFT(AT$32, 1))=BarPos, ROW(BarPos)-MIN(ROW(BarPos))+1, ""), ROW()-11)), "") ->  | AU12: =IFERROR( INDEX(entries, MATCH(AT12, gymnasts, 0), 2), "") ->  | AV12: =IFERROR(INDEX(gymnasts, SMALL(IF(VALUE(LEFT(AV$32, 1))=BarPos, ROW(BarPos)-MIN(ROW(BarPos))+1, ""), ROW()-11)), "") ->  | AW12: =IFERROR( INDEX(entries, MATCH(AV12, gymnasts, 0), 2), "") ->  | AX12: =IFERROR(INDEX(gymnasts, SMALL(IF(VALUE(LEFT(AX$32, 1))=BarPos, ROW(BarPos)-MIN(ROW(BarPos))+1, ""), ROW()-11)), "") ->  | AY12: =IFERROR( INDEX(entries, MATCH(AX12, gymnasts, 0), 2), "") ->  | AZ12: =IFERROR(INDEX(gymnasts, SMALL(IF(VALUE(LEFT(AZ$32, 1))=BarPos, ROW(BarPos)-MIN(ROW(BarPos))+1, ""), ROW()-11)), "") -> Mya Liddle | BA12: =IFERROR( INDEX(entries, MATCH(AZ12, gymnasts, 0), 2), "") -> AAAsports | BB12: =IFERROR(INDEX(gymnasts, SMALL(IF(VALUE(LEFT(BB$32, 1))=BarPos, ROW(BarPos)-MIN(ROW(BarPos))+1, ""), ROW()-11)), "") -> Georgia Wilson | BC12: =IFERROR( INDEX(entries, MATCH(BB12, gymnasts, 0), 2), "") -> Richmondshire
D13: 0.0 | E13: 0.00 | F13: 0.0 | G13: 0.00 | H13: 0.00 | I13: 2 | J13: 10 | K13: 0 | L13: 2 | M13: 0.0 | N13: 0.00 | O13: 2 | P13: 10 | Q13: 0 | R13: 2 | S13: 0.0 | T13: 0.00 | U13: 2 | V13: 10 | W13: 0 | X13: 2 | Y13: 0.0 | Z13: 0.00 | AA13: 2 | AB13: 10 | AC13: 0 | AD13: 2 | AE13: 0.0 | AF13: 0.00 | AG13: 2 | AH13: 10 | AI13: 0 | AJ13: 2 | AK13: 0.00 | AL13: 2 | AM13: 10 | AN13: 0 | AO13: 2 | AS13: =IFERROR( INDEX(entries, MATCH(AR13, gymnasts, 0), 2), "") ->  | AU13: =IFERROR( INDEX(entries, MATCH(AT13, gymnasts, 0), 2), "") ->  | AW13: =IFERROR( INDEX(entries, MATCH(AV13, gymnasts, 0), 2), "") ->  | AY13: =IFERROR( INDEX(entries, MATCH(AX13, gymnasts, 0), 2), "") ->  | AZ13: 0 | BA13: =IFERROR( INDEX(entries, MATCH(AZ13, gymnasts, 0), 2), "") -> 
D14: 0.0 | E14: 0.00 | F14: 0.0 | G14: 0.00 | H14: 0.00 | I14: 2 | J14: 11 | K14: 0 | L14: 2 | M14: 0.0 | N14: 0.00 | O14: 2 | P14: 11 | Q14: 0 | R14: 2 | S14: 0.0 | T14: 0.00 | U14: 2 | V14: 11 | W14: 0 | X14: 2 | Y14: 0.0 | Z14: 0.00 | AA14: 2 | AB14: 11 | AC14: 0 | AD14: 2 | AE14: 0.0 | AF14: 0.00 | AG14: 2 | AH14: 11 | AI14: 0 | AJ14: 2 | AK14: 0.00 | AL14: 2 | AM14: 11 | AN14: 0 | AO14: 2 | AZ14: 0
D15: 0.0 | E15: 0.00 | F15: 0.0 | G15: 0.00 | H15: 0.00 | I15: 2 | J15: 12 | K15: 0 | L15: 2 | M15: 0.0 | N15: 0.00 | O15: 2 | P15: 12 | Q15: 0 | R15: 2 | S15: 0.0 | T15: 0.00 | U15: 2 | V15: 12 | W15: 0 | X15: 2 | Y15: 0.0 | Z15: 0.00 | AA15: 2 | AB15: 12 | AC15: 0 | AD15: 2 | AE15: 0.0 | AF15: 0.00 | AG15: 2 | AH15: 12 | AI15: 0 | AJ15: 2 | AK15: 0.00 | AL15: 2 | AM15: 12 | AN15: 0 | AO15: 2 | AZ15: 0
D16: 0.0 | E16: 0.00 | F16: 0.0 | G16: 0.00 | H16: 0.00 | I16: 2 | J16: 13 | K16: 0 | L16: 2 | M16: 0.0 | N16: 0.00 | O16: 2 | P16: 13 | Q16: 0 | R16: 2 | S16: 0.0 | T16: 0.00 | U16: 2 | V16: 13 | W16: 0 | X16: 2 | Y16: 0.0 | Z16: 0.00 | AA16: 2 | AB16: 13 | AC16: 0 | AD16: 2 | AE16: 0.0 | AF16: 0.00 | AG16: 2 | AH16: 13 | AI16: 0 | AJ16: 2 | AK16: 0.00 | AL16: 2 | AM16: 13 | AN16: 0 | AO16: 2 | AZ16: 0
D17: 0.0 | E17: 0.00 | F17: 0.0 | G17: 0.00 | H17: 0.00 | I17: 2 | J17: 14 | K17: 0 | L17: 2 | M17: 0.0 | N17: 0.00 | O17: 2 | P17: 14 | Q17: 0 | R17: 2 | S17: 0.0 | T17: 0.00 | U17: 2 | V17: 14 | W17: 0 | X17: 2 | Y17: 0.0 | Z17: 0.00 | AA17: 2 | AB17: 14 | AC17: 0 | AD17: 2 | AE17: 0.0 | AF17: 0.00 | AG17: 2 | AH17: 14 | AI17: 0 | AJ17: 2 | AK17: 0.00 | AL17: 2 | AM17: 14 | AN17: 0 | AO17: 2 | AZ17: 0
D18: 0.0 | E18: 0.00 | F18: 0.0 | G18: 0.00 | H18: 0.00 | I18: 2 | J18: 15 | K18: 0 | L18: 2 | M18: 0.0 | N18: 0.00 | O18: 2 | P18: 15 | Q18: 0 | R18: 2 | S18: 0.0 | T18: 0.00 | U18: 2 | V18: 15 | W18: 0 | X18: 2 | Y18: 0.0 | Z18: 0.00 | AA18: 2 | AB18: 15 | AC18: 0 | AD18: 2 | AE18: 0.0 | AF18: 0.00 | AG18: 2 | AH18: 15 | AI18: 0 | AJ18: 2 | AK18: 0.00 | AL18: 2 | AM18: 15 | AN18: 0 | AO18: 2 | AR18: 6th Place | AS18: =IFERROR(INDEX(beam,MATCH(AR19,gymnasts,0)), "") ->  | AT18: 5th Place | AU18: =IFERROR(INDEX(beam,MATCH(AT19,gymnasts,0)), "") ->  | AV18: 4th Place | AW18: =IFERROR(INDEX(beam,MATCH(AV19,gymnasts,0)), "") ->  | AX18: 3rd Place | AY18: =IFERROR(INDEX(beam,MATCH(AX19,gymnasts,0)), "") ->  | AZ18: 2nd Place | BA18: =IFERROR(INDEX(beam,MATCH(AZ19,gymnasts,0)), "") -> 0.00 | BB18: 1st Place | BC18: =IFERROR(INDEX(beam,MATCH(BB19,gymnasts,0)), "") -> 9.85
D19: 0.0 | E19: 0.00 | F19: 0.0 | G19: 0.00 | H19: 0.00 | I19: 2 | J19: 16 | K19: 0 | L19: 2 | M19: 0.0 | N19: 0.00 | O19: 2 | P19: 16 | Q19: 0 | R19: 2 | S19: 0.0 | T19: 0.00 | U19: 2 | V19: 16 | W19: 0 | X19: 2 | Y19: 0.0 | Z19: 0.00 | AA19: 2 | AB19: 16 | AC19: 0 | AD19: 2 | AE19: 0.0 | AF19: 0.00 | AG19: 2 | AH19: 16 | AI19: 0 | AJ19: 2 | AK19: 0.00 | AL19: 2 | AM19: 16 | AN19: 0 | AO19: 2 | AQ19: Beam | AR19: =IFERROR(INDEX(gymnasts, SMALL(IF(VALUE(LEFT(AR$32, 1))=BeamPos, ROW(BeamPos)-MIN(ROW(BeamPos))+1, ""), ROW()-18)), "") ->  | AS19: =IFERROR( INDEX(entries, MATCH(AR19, gymnasts, 0), 2), "") ->  | AT19: =IFERROR(INDEX(gymnasts, SMALL(IF(VALUE(LEFT(AT$32, 1))=BeamPos, ROW(BeamPos)-MIN(ROW(BeamPos))+1, ""), ROW()-18)), "") ->  | AU19: =IFERROR( INDEX(entries, MATCH(AT19, gymnasts, 0), 2), "") ->  | AV19: =IFERROR(INDEX(gymnasts, SMALL(IF(VALUE(LEFT(AV$32, 1))=BeamPos, ROW(BeamPos)-MIN(ROW(BeamPos))+1, ""), ROW()-18)), "") ->  | AW19: =IFERROR( INDEX(entries, MATCH(AV19, gymnasts, 0), 2), "") ->  | AX19: =IFERROR(INDEX(gymnasts, SMALL(IF(VALUE(LEFT(AX$32, 1))=BeamPos, ROW(BeamPos)-MIN(ROW(BeamPos))+1, ""), ROW()-18)), "") ->  | AY19: =IFERROR( INDEX(entries, MATCH(AX19, gymnasts, 0), 2), "") ->  | AZ19: =IFERROR(INDEX(gymnasts, SMALL(IF(VALUE(LEFT(AZ$32, 1))=BeamPos, ROW(BeamPos)-MIN(ROW(BeamPos))+1, ""), ROW()-18)), "") -> Mya Liddle | BA19: =IFERROR( INDEX(entries, MATCH(AZ19, gymnasts, 0), 2), "") -> AAAsports | BB19: =IFERROR(INDEX(gymnasts, SMALL(IF(VALUE(LEFT(BB$32, 1))=BeamPos, ROW(BeamPos)-MIN(ROW(BeamPos))+1, ""), ROW()-18)), "") -> Georgia Wilson | BC19: =IFERROR( INDEX(entries, MATCH(BB19, gymnasts, 0), 2), "") -> Richmondshire
D20: 0.0 | E20: 0.00 | F20: 0.0 | G20: 0.00 | H20: 0.00 | I20: 2 | J20: 17 | K20: 0 | L20: 2 | M20: 0.0 | N20: 0.00 | O20: 2 | P20: 17 | Q20: 0 | R20: 2 | S20: 0.0 | T20: 0.00 | U20: 2 | V20: 17 | W20: 0 | X20: 2 | Y20: 0.0 | Z20: 0.00 | AA20: 2 | AB20: 17 | AC20: 0 | AD20: 2 | AE20: 0.0 | AF20: 0.00 | AG20: 2 | AH20: 17 | AI20: 0 | AJ20: 2 | AK20: 0.00 | AL20: 2 | AM20: 17 | AN20: 0 | AO20: 2 | AS20: =IFERROR( INDEX(entries, MATCH(AR20, gymnasts, 0), 2), "") ->  | AU20: =IFERROR( INDEX(entries, MATCH(AT20, gymnasts, 0), 2), "") ->  | AW20: =IFERROR( INDEX(entries, MATCH(AV20, gymnasts, 0), 2), "") ->  | AY20: =IFERROR( INDEX(entries, MATCH(AX20, gymnasts, 0), 2), "") ->  | AZ20: 0 | BA20: =IFERROR( INDEX(entries, MATCH(AZ20, gymnasts, 0), 2), "") -> 
D21: 0.0 | E21: 0.00 | F21: 0.0 | G21: 0.00 | H21: 0.00 | I21: 2 | J21: 18 | K21: 0 | L21: 2 | M21: 0.0 | N21: 0.00 | O21: 2 | P21: 18 | Q21: 0 | R21: 2 | S21: 0.0 | T21: 0.00 | U21: 2 | V21: 18 | W21: 0 | X21: 2 | Y21: 0.0 | Z21: 0.00 | AA21: 2 | AB21: 18 | AC21: 0 | AD21: 2 | AE21: 0.0 | AF21: 0.00 | AG21: 2 | AH21: 18 | AI21: 0 | AJ21: 2 | AK21: 0.00 | AL21: 2 | AM21: 18 | AN21: 0 | AO21: 2 | AZ21: 0
D22: 0.0 | E22: 0.00 | F22: 0.0 | G22: 0.00 | H22: 0.00 | I22: 2 | J22: 19 | K22: 0 | L22: 2 | M22: 0.0 | N22: 0.00 | O22: 2 | P22: 19 | Q22: 0 | R22: 2 | S22: 0.0 | T22: 0.00 | U22: 2 | V22: 19 | W22: 0 | X22: 2 | Y22: 0.0 | Z22: 0.00 | AA22: 2 | AB22: 19 | AC22: 0 | AD22: 2 | AE22: 0.0 | AF22: 0.00 | AG22: 2 | AH22: 19 | AI22: 0 | AJ22: 2 | AK22: 0.00 | AL22: 2 | AM22: 19 | AN22: 0 | AO22: 2 | AZ22: 0
D23: 0.0 | E23: 0.00 | F23: 0.0 | G23: 0.00 | H23: 0.00 | I23: 2 | J23: 20 | K23: 0 | L23: 2 | M23: 0.0 | N23: 0.00 | O23: 2 | P23: 20 | Q23: 0 | R23: 2 | S23: 0.0 | T23: 0.00 | U23: 2 | V23: 20 | W23: 0 | X23: 2 | Y23: 0.0 | Z23: 0.00 | AA23: 2 | AB23: 20 | AC23: 0 | AD23: 2 | AE23: 0.0 | AF23: 0.00 | AG23: 2 | AH23: 20 | AI23: 0 | AJ23: 2 | AK23: 0.00 | AL23: 2 | AM23: 20 | AN23: 0 | AO23: 2 | AZ23: 0
D24: 0.0 | E24: 0.00 | F24: 0.0 | G24: 0.00 | H24: 0.00 | I24: 2 | J24: 21 | K24: 0 | L24: 2 | M24: 0.0 | N24: 0.00 | O24: 2 | P24: 21 | Q24: 0 | R24: 2 | S24: 0.0 | T24: 0.00 | U24: 2 | V24: 21 | W24: 0 | X24: 2 | Y24: 0.0 | Z24: 0.00 | AA24: 2 | AB24: 21 | AC24: 0 | AD24: 2 | AE24: 0.0 | AF24: 0.00 | AG24: 2 | AH24: 21 | AI24: 0 | AJ24: 2 | AK24: 0.00 | AL24: 2 | AM24: 21 | AN24: 0 | AO24: 2 | AZ24: 0
D25: 0.0 | E25: 0.00 | F25: 0.0 | G25: 0.00 | H25: 0.00 | I25: 2 | J25: 22 | K25: 0 | L25: 2 | M25: 0.0 | N25: 0.00 | O25: 2 | P25: 22 | Q25: 0 | R25: 2 | S25: 0.0 | T25: 0.00 | U25: 2 | V25: 22 | W25: 0 | X25: 2 | Y25: 0.0 | Z25: 0.00 | AA25: 2 | AB25: 22 | AC25: 0 | AD25: 2 | AE25: 0.0 | AF25: 0.00 | AG25: 2 | AH25: 22 | AI25: 0 | AJ25: 2 | AK25: 0.00 | AL25: 2 | AM25: 22 | AN25: 0 | AO25: 2 | AR25: 6th Place | AS25: =IFERROR(INDEX(floor,MATCH(AR26,gymnasts,0)), "") ->  | AT25: 5th Place | AU25: =IFERROR(INDEX(floor,MATCH(AT26,gymnasts,0)), "") ->  | AV25: 4th Place | AW25: =IFERROR(INDEX(floor,MATCH(AV26,gymnasts,0)), "") ->  | AX25: 3rd Place | AY25: =IFERROR(INDEX(floor,MATCH(AX26,gymnasts,0)), "") ->  | AZ25: 2nd Place | BA25: =IFERROR(INDEX(floor,MATCH(AZ26,gymnasts,0)), "") -> 0.00 | BB25: 1st Place | BC25: =IFERROR(INDEX(floor,MATCH(BB26,gymnasts,0)), "") -> 12.80
D26: 0.0 | E26: 0.00 | F26: 0.0 | G26: 0.00 | H26: 0.00 | I26: 2 | J26: 23 | K26: 0 | L26: 2 | M26: 0.0 | N26: 0.00 | O26: 2 | P26: 23 | Q26: 0 | R26: 2 | S26: 0.0 | T26: 0.00 | U26: 2 | V26: 23 | W26: 0 | X26: 2 | Y26: 0.0 | Z26: 0.00 | AA26: 2 | AB26: 23 | AC26: 0 | AD26: 2 | AE26: 0.0 | AF26: 0.00 | AG26: 2 | AH26: 23 | AI26: 0 | AJ26: 2 | AK26: 0.00 | AL26: 2 | AM26: 23 | AN26: 0 | AO26: 2 | AQ26: Floor | AR26: =IFERROR(INDEX(gymnasts, SMALL(IF(VALUE(LEFT(AR$32, 1))=FloorPos, ROW(FloorPos)-MIN(ROW(FloorPos))+1, ""), ROW()-25)), "") ->  | AS26: =IFERROR( INDEX(entries, MATCH(AR26, gymnasts, 0), 2), "") ->  | AT26: =IFERROR(INDEX(gymnasts, SMALL(IF(VALUE(LEFT(AT$32, 1))=FloorPos, ROW(FloorPos)-MIN(ROW(FloorPos))+1, ""), ROW()-25)), "") ->  | AU26: =IFERROR( INDEX(entries, MATCH(AT26, gymnasts, 0), 2), "") ->  | AV26: =IFERROR(INDEX(gymnasts, SMALL(IF(VALUE(LEFT(AV$32, 1))=FloorPos, ROW(FloorPos)-MIN(ROW(FloorPos))+1, ""), ROW()-25)), "") ->  | AW26: =IFERROR( INDEX(entries, MATCH(AV26, gymnasts, 0), 2), "") ->  | AX26: =IFERROR(INDEX(gymnasts, SMALL(IF(VALUE(LEFT(AX$32, 1))=FloorPos, ROW(FloorPos)-MIN(ROW(FloorPos))+1, ""), ROW()-25)), "") ->  | AY26: =IFERROR( INDEX(entries, MATCH(AX26, gymnasts, 0), 2), "") ->  | AZ26: =IFERROR(INDEX(gymnasts, SMALL(IF(VALUE(LEFT(AZ$32, 1))=FloorPos, ROW(FloorPos)-MIN(ROW(FloorPos))+1, ""), ROW()-25)), "") -> Mya Liddle | BA26: =IFERROR( INDEX(entries, MATCH(AZ26, gymnasts, 0), 2), "") -> AAAsports | BB26: =IFERROR(INDEX(gymnasts, SMALL(IF(VALUE(LEFT(BB$32, 1))=FloorPos, ROW(FloorPos)-MIN(ROW(FloorPos))+1, ""), ROW()-25)), "") -> Georgia Wilson | BC26: =IFERROR( INDEX(entries, MATCH(BB26, gymnasts, 0), 2), "") -> Richmondshire
D27: 0.0 | E27: 0.00 | F27: 0.0 | G27: 0.00 | H27: 0.00 | I27: 2 | J27: 24 | K27: 0 | L27: 2 | M27: 0.0 | N27: 0.00 | O27: 2 | P27: 24 | Q27: 0 | R27: 2 | S27: 0.0 | T27: 0.00 | U27: 2 | V27: 24 | W27: 0 | X27: 2 | Y27: 0.0 | Z27: 0.00 | AA27: 2 | AB27: 24 | AC27: 0 | AD27: 2 | AE27: 0.0 | AF27: 0.00 | AG27: 2 | AH27: 24 | AI27: 0 | AJ27: 2 | AK27: 0.00 | AL27: 2 | AM27: 24 | AN27: 0 | AO27: 2 | AS27: =IFERROR( INDEX(entries, MATCH(AR27, gymnasts, 0), 2), "") ->  | AU27: =IFERROR( INDEX(entries, MATCH(AT27, gymnasts, 0), 2), "") ->  | AW27: =IFERROR( INDEX(entries, MATCH(AV27, gymnasts, 0), 2), "") ->  | AY27: =IFERROR( INDEX(entries, MATCH(AX27, gymnasts, 0), 2), "") ->  | AZ27: 0 | BA27: =IFERROR( INDEX(entries, MATCH(AZ27, gymnasts, 0), 2), "") -> 
D28: 0.0 | E28: 0.00 | F28: 0.0 | G28: 0.00 | H28: 0.00 | I28: 2 | J28: 25 | K28: 0 | L28: 2 | M28: 0.0 | N28: 0.00 | O28: 2 | P28: 25 | Q28: 0 | R28: 2 | S28: 0.0 | T28: 0.00 | U28: 2 | V28: 25 | W28: 0 | X28: 2 | Y28: 0.0 | Z28: 0.00 | AA28: 2 | AB28: 25 | AC28: 0 | AD28: 2 | AE28: 0.0 | AF28: 0.00 | AG28: 2 | AH28: 25 | AI28: 0 | AJ28: 2 | AK28: 0.00 | AL28: 2 | AM28: 25 | AN28: 0 | AO28: 2 | AZ28: 0
D29: 0.0 | E29: 0.00 | F29: 0.0 | G29: 0.00 | H29: 0.00 | I29: 2 | J29: 26 | K29: 0 | L29: 2 | M29: 0.0 | N29: 0.00 | O29: 2 | P29: 26 | Q29: 0 | R29: 2 | S29: 0.0 | T29: 0.00 | U29: 2 | V29: 26 | W29: 0 | X29: 2 | Y29: 0.0 | Z29: 0.00 | AA29: 2 | AB29: 26 | AC29: 0 | AD29: 2 | AE29: 0.0 | AF29: 0.00 | AG29: 2 | AH29: 26 | AI29: 0 | AJ29: 2 | AK29: 0.00 | AL29: 2 | AM29: 26 | AN29: 0 | AO29: 2 | AZ29: 0
D30: 0.0 | E30: 0.00 | F30: 0.0 | G30: 0.00 | H30: 0.00 | I30: 2 | J30: 27 | K30: 0 | L30: 2 | M30: 0.0 | N30: 0.00 | O30: 2 | P30: 27 | Q30: 0 | R30: 2 | S30: 0.0 | T30: 0.00 | U30: 2 | V30: 27 | W30: 0 | X30: 2 | Y30: 0.0 | Z30: 0.00 | AA30: 2 | AB30: 27 | AC30: 0 | AD30: 2 | AE30: 0.0 | AF30: 0.00 | AG30: 2 | AH30: 27 | AI30: 0 | AJ30: 2 | AK30: 0.00 | AL30: 2 | AM30: 27 | AN30: 0 | AO30: 2 | AZ30: 0
D31: 0.0 | E31: 0.00 | F31: 0.0 | G31: 0.00 | H31: 0.00 | I31: 2 | J31: 28 | K31: 0 | L31: 2 | M31: 0.0 | N31: 0.00 | O31: 2 | P31: 28 | Q31: 0 | R31: 2 | S31: 0.0 | T31: 0.00 | U31: 2 | V31: 28 | W31: 0 | X31: 2 | Y31: 0.0 | Z31: 0.00 | AA31: 2 | AB31: 28 | AC31: 0 | AD31: 2 | AE31: 0.0 | AF31: 0.00 | AG31: 2 | AH31: 28 | AI31: 0 | AJ31: 2 | AK31: 0.00 | AL31: 2 | AM31: 28 | AN31: 0 | AO31: 2 | AZ31: 0
D32: 0.0 | E32: 0.00 | F32: 0.0 | G32: 0.00 | H32: 0.00 | I32: 2 | J32: 29 | K32: 0 | L32: 2 | M32: 0.0 | N32: 0.00 | O32: 2 | P32: 29 | Q32: 0 | R32: 2 | S32: 0.0 | T32: 0.00 | U32: 2 | V32: 29 | W32: 0 | X32: 2 | Y32: 0.0 | Z32: 0.00 | AA32: 2 | AB32: 29 | AC32: 0 | AD32: 2 | AE32: 0.0 | AF32: 0.00 | AG32: 2 | AH32: 29 | AI32: 0 | AJ32: 2 | AK32: 0.00 | AL32: 2 | AM32: 29 | AN32: 0 | AO32: 2 | AR32: 6th Place | AS32: =IFERROR(INDEX(range,MATCH(AR33,gymnasts,0)), "") ->  | AT32: 5th Place | AU32: =IFERROR(INDEX(range,MATCH(AT33,gymnasts,0)), "") ->  | AV32: 4th Place | AW32: =IFERROR(INDEX(range,MATCH(AV33,gymnasts,0)), "") ->  | AX32: 3rd Place | AY32: =IFERROR(INDEX(range,MATCH(AX33,gymnasts,0)), "") ->  | AZ32: 2nd Place | BA32: =IFERROR(INDEX(range,MATCH(AZ33,gymnasts,0)), "") -> 0.00 | BB32: 1st Place | BC32: =IFERROR(INDEX(range,MATCH(BB33,gymnasts,0)), "") -> 9.35
D33: 0.0 | E33: 0.00 | F33: 0.0 | G33: 0.00 | H33: 0.00 | I33: 2 | J33: 30 | K33: 0 | L33: 2 | M33: 0.0 | N33: 0.00 | O33: 2 | P33: 30 | Q33: 0 | R33: 2 | S33: 0.0 | T33: 0.00 | U33: 2 | V33: 30 | W33: 0 | X33: 2 | Y33: 0.0 | Z33: 0.00 | AA33: 2 | AB33: 30 | AC33: 0 | AD33: 2 | AE33: 0.0 | AF33: 0.00 | AG33: 2 | AH33: 30 | AI33: 0 | AJ33: 2 | AK33: 0.00 | AL33: 2 | AM33: 30 | AN33: 0 | AO33: 2 | AQ33: Range | AR33: =IFERROR(INDEX(gymnasts, SMALL(IF(VALUE(LEFT(AR$32, 1))=RangePos, ROW(RangePos)-MIN(ROW(RangePos))+1, ""), ROW()-32)), "") ->  | AS33: =IFERROR( INDEX(entries, MATCH(AR33, gymnasts, 0), 2), "") ->  | AT33: =IFERROR(INDEX(gymnasts, SMALL(IF(VALUE(LEFT(AT$32, 1))=RangePos, ROW(RangePos)-MIN(ROW(RangePos))+1, ""), ROW()-32)), "") ->  | AU33: =IFERROR( INDEX(entries, MATCH(AT33, gymnasts, 0), 2), "") ->  | AV33: =IFERROR(INDEX(gymnasts, SMALL(IF(VALUE(LEFT(AV$32, 1))=RangePos, ROW(RangePos)-MIN(ROW(RangePos))+1, ""), ROW()-32)), "") ->  | AW33: =IFERROR( INDEX(entries, MATCH(AV33, gymnasts, 0), 2), "") ->  | AX33: =IFERROR(INDEX(gymnasts, SMALL(IF(VALUE(LEFT(AX$32, 1))=RangePos, ROW(RangePos)-MIN(ROW(RangePos))+1, ""), ROW()-32)), "") ->  | AY33: =IFERROR( INDEX(entries, MATCH(AX33, gymnasts, 0), 2), "") ->  | AZ33: =IFERROR(INDEX(gymnasts, SMALL(IF(VALUE(LEFT(AZ$32, 1))=RangePos, ROW(RangePos)-MIN(ROW(RangePos))+1, ""), ROW()-32)), "") -> Mya Liddle | BA33: =IFERROR( INDEX(entries, MATCH(AZ33, gymnasts, 0), 2), "") -> AAAsports | BB33: =IFERROR(INDEX(gymnasts, SMALL(IF(VALUE(LEFT(BB$32, 1))=RangePos, ROW(RangePos)-MIN(ROW(RangePos))+1, ""), ROW()-32)), "") -> Georgia Wilson | BC33: =IFERROR( INDEX(entries, MATCH(BB33, gymnasts, 0), 2), "") -> Richmondshire
D34: 0.0 | E34: 0.00 | F34: 0.0 | G34: 0.00 | H34: 0.00 | I34: 2 | J34: 31 | K34: 0 | L34: 2 | M34: 0.0 | N34: 0.00 | O34: 2 | P34: 31 | Q34: 0 | R34: 2 | S34: 0.0 | T34: 0.00 | U34: 2 | V34: 31 | W34: 0 | X34: 2 | Y34: 0.0 | Z34: 0.00 | AA34: 2 | AB34: 31 | AC34: 0 | AD34: 2 | AE34: 0.0 | AF34: 0.00 | AG34: 2 | AH34: 31 | AI34: 0 | AJ34: 2 | AK34: 0.00 | AL34: 2 | AM34: 31 | AN34: 0 | AO34: 2 | AS34: =IFERROR( INDEX(entries, MATCH(AR34, gymnasts, 0), 2), "") ->  | AU34: =IFERROR( INDEX(entries, MATCH(AT34, gymnasts, 0), 2), "") ->  | AW34: =IFERROR( INDEX(entries, MATCH(AV34, gymnasts, 0), 2), "") ->  | AY34: =IFERROR( INDEX(entries, MATCH(AX34, gymnasts, 0), 2), "") ->  | AZ34: 0 | BA34: =IFERROR( INDEX(entries, MATCH(AZ34, gymnasts, 0), 2), "") -> 
D35: 0.0 | E35: 0.00 | F35: 0.0 | G35: 0.00 | H35: 0.00 | I35: 2 | J35: 32 | K35: 0 | L35: 2 | M35: 0.0 | N35: 0.00 | O35: 2 | P35: 32 | Q35: 0 | R35: 2 | S35: 0.0 | T35: 0.00 | U35: 2 | V35: 32 | W35: 0 | X35: 2 | Y35: 0.0 | Z35: 0.00 | AA35: 2 | AB35: 32 | AC35: 0 | AD35: 2 | AE35: 0.0 | AF35: 0.00 | AG35: 2 | AH35: 32 | AI35: 0 | AJ35: 2 | AK35: 0.00 | AL35: 2 | AM35: 32 | AN35: 0 | AO35: 2 | AZ35: 0
D36: 0.0 | E36: 0.00 | F36: 0.0 | G36: 0.00 | H36: 0.00 | I36: 2 | J36: 33 | K36: 0 | L36: 2 | M36: 0.0 | N36: 0.00 | O36: 2 | P36: 33 | Q36: 0 | R36: 2 | S36: 0.0 | T36: 0.00 | U36: 2 | V36: 33 | W36: 0 | X36: 2 | Y36: 0.0 | Z36: 0.00 | AA36: 2 | AB36: 33 | AC36: 0 | AD36: 2 | AE36: 0.0 | AF36: 0.00 | AG36: 2 | AH36: 33 | AI36: 0 | AJ36: 2 | AK36: =SUMIF(D$2:AJ$2, "SCORE", D36:AJ36) -> 0.00 | AL36: 2 | AM36: 33 | AN36: 0 | AO36: 2 | AZ36: 0
D37: 0.0 | E37: 0.00 | F37: 0.0 | G37: 0.00 | H37: 0.00 | I37: 2 | J37: 34 | K37: 0 | L37: 2 | M37: 0.0 | N37: 0.00 | O37: 2 | P37: 34 | Q37: 0 | R37: 2 | S37: 0.0 | T37: 0.00 | U37: 2 | V37: 34 | W37: 0 | X37: 2 | Y37: 0.0 | Z37: 0.00 | AA37: 2 | AB37: 34 | AC37: 0 | AD37: 2 | AE37: 0.0 | AF37: 0.00 | AG37: 2 | AH37: 34 | AI37: 0 | AJ37: 2 | AK37: 0.00 | AL37: 2 | AM37: 34 | AN37: 0 | AO37: 2 | AZ37: 0
D38: 0.0 | E38: 0.00 | F38: 0.0 | G38: 0.00 | H38: 0.00 | I38: 2 | J38: 35 | K38: 0 | L38: 2 | M38: 0.0 | N38: 0.00 | O38: 2 | P38: 35 | Q38: 0 | R38: 2 | S38: 0.0 | T38: 0.00 | U38: 2 | V38: 35 | W38: 0 | X38: 2 | Y38: 0.0 | Z38: 0.00 | AA38: 2 | AB38: 35 | AC38: 0 | AD38: 2 | AE38: 0.0 | AF38: 0.00 | AG38: 2 | AH38: 35 | AI38: 0 | AJ38: 2 | AK38: 0.00 | AL38: 2 | AM38: 35 | AN38: 0 | AO38: 2 | AZ38: 0
D39: 0.0 | E39: 0.00 | F39: 0.0 | G39: 0.00 | H39: 0.00 | I39: 2 | J39: 36 | K39: 0 | L39: 2 | M39: 0.0 | N39: 0.00 | O39: 2 | P39: 36 | Q39: 0 | R39: 2 | S39: 0.0 | T39: 0.00 | U39: 2 | V39: 36 | W39: 0 | X39: 2 | Y39: 0.0 | Z39: 0.00 | AA39: 2 | AB39: 36 | AC39: 0 | AD39: 2 | AE39: 0.0 | AF39: 0.00 | AG39: 2 | AH39: 36 | AI39: 0 | AJ39: 2 | AK39: 0.00 | AL39: 2 | AM39: 36 | AN39: 0 | AO39: 2 | AR39: 6th Place | AS39: =IFERROR(INDEX(AAscores,MATCH(AR40,gymnasts,0)), "") ->  | AT39: 5th Place | AU39: =IFERROR(INDEX(AAscores,MATCH(AT40,gymnasts,0)), "") ->  | AV39: 4th Place | AW39: =IFERROR(INDEX(AAscores,MATCH(AV40,gymnasts,0)), "") ->  | AX39: 3rd Place | AY39: =IFERROR(INDEX(AAscores,MATCH(AX40,gymnasts,0)), "") ->  | AZ39: 2nd Place | BA39: =IFERROR(INDEX(AAscores,MATCH(AZ40,gymnasts,0)), "") -> 0.00 | BB39: 1st Place | BC39: =IFERROR(INDEX(AAscores,MATCH(BB40,gymnasts,0)), "") -> 49.65
D40: 0.0 | E40: 0.00 | F40: 0.0 | G40: 0.00 | H40: 0.00 | I40: 2 | J40: 37 | K40: 0 | L40: 2 | M40: 0.0 | N40: 0.00 | O40: 2 | P40: 37 | Q40: 0 | R40: 2 | S40: 0.0 | T40: 0.00 | U40: 2 | V40: 37 | W40: 0 | X40: 2 | Y40: 0.0 | Z40: 0.00 | AA40: 2 | AB40: 37 | AC40: 0 | AD40: 2 | AE40: 0.0 | AF40: 0.00 | AG40: 2 | AH40: 37 | AI40: 0 | AJ40: 2 | AK40: 0.00 | AL40: 2 | AM40: 37 | AN40: 0 | AO40: 2 | AQ40: AA | AR40: =IFERROR(INDEX(gymnasts, SMALL(IF(VALUE(LEFT(AR$39, 1))=AApos, ROW(AApos)-MIN(ROW(AApos))+1, ""), ROW()-39)), "") ->  | AS40: =IFERROR( INDEX(entries, MATCH(AR40, gymnasts, 0), 2), "") ->  | AT40: =IFERROR(INDEX(gymnasts, SMALL(IF(VALUE(LEFT(AT$39, 1))=AApos, ROW(AApos)-MIN(ROW(AApos))+1, ""), ROW()-39)), "") ->  | AU40: =IFERROR( INDEX(entries, MATCH(AT40, gymnasts, 0), 2), "") ->  | AV40: =IFERROR(INDEX(gymnasts, SMALL(IF(VALUE(LEFT(AV$39, 1))=AApos, ROW(AApos)-MIN(ROW(AApos))+1, ""), ROW()-39)), "") ->  | AW40: =IFERROR( INDEX(entries, MATCH(AV40, gymnasts, 0), 2), "") ->  | AX40: =IFERROR(INDEX(gymnasts, SMALL(IF(VALUE(LEFT(AX$39, 1))=AApos, ROW(AApos)-MIN(ROW(AApos))+1, ""), ROW()-39)), "") ->  | AY40: =IFERROR( INDEX(entries, MATCH(AX40, gymnasts, 0), 2), "") ->  | AZ40: =IFERROR(INDEX(gymnasts, SMALL(IF(VALUE(LEFT(AZ$39, 1))=AApos, ROW(AApos)-MIN(ROW(AApos))+1, ""), ROW()-39)), "") -> Mya Liddle | BA40: =IFERROR( INDEX(entries, MATCH(AZ40, gymnasts, 0), 2), "") -> AAAsports | BB40: =IFERROR(INDEX(gymnasts, SMALL(IF(VALUE(LEFT(BB$39, 1))=AApos, ROW(AApos)-MIN(ROW(AApos))+1, ""), ROW()-39)), "") -> Georgia Wilson | BC40: =IFERROR( INDEX(entries, MATCH(BB40, gymnasts, 0), 2), "") -> Richmondshire
D41: 0.0 | E41: 0.00 | F41: 0.0 | G41: 0.00 | H41: 0.00 | I41: 2 | J41: 38 | K41: 0 | L41: 2 | M41: 0.0 | N41: 0.00 | O41: 2 | P41: 38 | Q41: 0 | R41: 2 | S41: 0.0 | T41: 0.00 | U41: 2 | V41: 38 | W41: 0 | X41: 2 | Y41: 0.0 | Z41: 0.00 | AA41: 2 | AB41: 38 | AC41: 0 | AD41: 2 | AE41: 0.0 | AF41: 0.00 | AG41: 2 | AH41: 38 | AI41: 0 | AJ41: 2 | AK41: 0.00 | AL41: 2 | AM41: 38 | AN41: 0 | AO41: 2 | AS41: =IFERROR( INDEX(entries, MATCH(AR41, gymnasts, 0), 2), "") ->  | AU41: =IFERROR( INDEX(entries, MATCH(AT41, gymnasts, 0), 2), "") ->  | AW41: =IFERROR( INDEX(entries, MATCH(AV41, gymnasts, 0), 2), "") ->  | AY41: =IFERROR( INDEX(entries, MATCH(AX41, gymnasts, 0), 2), "") ->  | AZ41: 0 | BA41: =IFERROR( INDEX(entries, MATCH(AZ41, gymnasts, 0), 2), "") -> 
D42: 0.0 | E42: 0.00 | F42: 0.0 | G42: 0.00 | H42: 0.00 | I42: 2 | J42: 39 | K42: 0 | L42: 2 | M42: 0.0 | N42: 0.00 | O42: 2 | P42: 39 | Q42: 0 | R42: 2 | S42: 0.0 | T42: 0.00 | U42: 2 | V42: 39 | W42: 0 | X42: 2 | Y42: 0.0 | Z42: 0.00 | AA42: 2 | AB42: 39 | AC42: 0 | AD42: 2 | AE42: 0.0 | AF42: 0.00 | AG42: 2 | AH42: 39 | AI42: 0 | AJ42: 2 | AK42: 0.00 | AL42: 2 | AM42: 39 | AN42: 0 | AO42: 2 | AZ42: 0
D43: 0.0 | E43: 0.00 | F43: 0.0 | G43: 0.00 | H43: 0.00 | I43: 2 | J43: 40 | K43: 0 | L43: 2 | M43: 0.0 | N43: 0.00 | O43: 2 | P43: 40 | Q43: 0 | R43: 2 | S43: 0.0 | T43: 0.00 | U43: 2 | V43: 40 | W43: 0 | X43: 2 | Y43: 0.0 | Z43: 0.00 | AA43: 2 | AB43: 40 | AC43: 0 | AD43: 2 | AE43: 0.0 | AF43: 0.00 | AG43: 2 | AH43: 40 | AI43: 0 | AJ43: 2 | AK43: 0.00 | AL43: 2 | AM43: 40 | AN43: 0 | AO43: 2 | AZ43: 0
D44: 0.0 | E44: 0.00 | F44: 0.0 | G44: 0.00 | H44: 0.00 | I44: 2 | J44: 41 | K44: 0 | L44: 2 | M44: 0.0 | N44: 0.00 | O44: 2 | P44: 41 | Q44: 0 | R44: 2 | S44: 0.0 | T44: 0.00 | U44: 2 | V44: 41 | W44: 0 | X44: 2 | Y44: 0.0 | Z44: 0.00 | AA44: 2 | AB44: 41 | AC44: 0 | AD44: 2 | AE44: 0.0 | AF44: 0.00 | AG44: 2 | AH44: 41 | AI44: 0 | AJ44: 2 | AK44: 0.00 | AL44: 2 | AM44: 41 | AN44: 0 | AO44: 2 | AZ44: 0
D45: 0.0 | E45: 0.00 | F45: 0.0 | G45: 0.00 | H45: 0.00 | I45: 2 | J45: 42 | K45: 0 | L45: 2 | M45: 0.0 | N45: 0.00 | O45: 2 | P45: 42 | Q45: 0 | R45: 2 | S45: 0.0 | T45: 0.00 | U45: 2 | V45: 42 | W45: 0 | X45: 2 | Y45: 0.0 | Z45: 0.00 | AA45: 2 | AB45: 42 | AC45: 0 | AD45: 2 | AE45: 0.0 | AF45: 0.00 | AG45: 2 | AH45: 42 | AI45: 0 | AJ45: 2 | AK45: 0.00 | AL45: 2 | AM45: 42 | AN45: 0 | AO45: 2 | AZ45: 0
D46: 0.0 | E46: 0.00 | F46: 0.0 | G46: 0.00 | H46: 0.00 | I46: 2 | J46: 43 | K46: 0 | L46: 2 | M46: 0.0 | N46: 0.00 | O46: 2 | P46: 43 | Q46: 0 | R46: 2 | S46: 0.0 | T46: 0.00 | U46: 2 | V46: 43 | W46: 0 | X46: 2 | Y46: 0.0 | Z46: 0.00 | AA46: 2 | AB46: 43 | AC46: 0 | AD46: 2 | AE46: 0.0 | AF46: 0.00 | AG46: 2 | AH46: 43 | AI46: 0 | AJ46: 2 | AK46: 0.00 | AL46: 2 | AM46: 43 | AN46: 0 | AO46: 2 | AQ46: Team | AR46: 3rd place Team | AS46: =IF(COUNTIF(AR47, 0), "", INDEX(teamTotals, MATCH(AR47, teams, 0))) ->  | AV46: 2nd Place Team | AW46: =IF(COUNTIF(AV47, 0), "", INDEX(teamTotals, MATCH(AV47, teams, 0))) ->  | AZ46: 1st Place Team | BA46: =IF(COUNTIF(AZ47, 0), "", INDEX(teamTotals, MATCH(AZ47, teams, 0))) -> 
D47: 0.0 | E47: 0.00 | F47: 0.0 | G47: 0.00 | H47: 0.00 | I47: 2 | J47: 44 | K47: 0 | L47: 2 | M47: 0.0 | N47: 0.00 | O47: 2 | P47: 44 | Q47: 0 | R47: 2 | S47: 0.0 | T47: 0.00 | U47: 2 | V47: 44 | W47: 0 | X47: 2 | Y47: 0.0 | Z47: 0.00 | AA47: 2 | AB47: 44 | AC47: 0 | AD47: 2 | AE47: 0.0 | AF47: 0.00 | AG47: 2 | AH47: 44 | AI47: 0 | AJ47: 2 | AK47: 0.00 | AL47: 2 | AM47: 44 | AN47: 0 | AO47: 2 | AR47: =IFERROR(INDEX(teams, SMALL(IF(VALUE(LEFT(AR$46, 1))=teamPos, ROW(teamPos)-MIN(ROW(teamPos))+1, ""), ROW()-46)), "") ->  | AS47: =IFERROR(IF(COUNTIF(AR47, 0), "", INDEX(gymnasts, SMALL(IF(AR$47=club, ROW(club)-MIN(ROW(club))+1, ""), ROW()-46))), "") -> 0 | AV47: =IFERROR(INDEX(teams, SMALL(IF(VALUE(LEFT(AV$46, 1))=teamPos, ROW(teamPos)-MIN(ROW(teamPos))+1, ""), ROW()-46)), "") ->  | AW47: =IFERROR(IF(COUNTIF(AV47, 0), "", INDEX(gymnasts, SMALL(IF(AV$47=club, ROW(club)-MIN(ROW(club))+1, ""), ROW()-46))), "") -> 0 | AZ47: =IFERROR(INDEX(teams, SMALL(IF(VALUE(LEFT(AZ$46, 1))=teamPos, ROW(teamPos)-MIN(ROW(teamPos))+1, ""), ROW()-46)), "") ->  | BA47: =IFERROR(IF(COUNTIF(AZ47, 0), "", INDEX(gymnasts, SMALL(IF(AZ$47=club, ROW(club)-MIN(ROW(club))+1, ""), ROW()-46))), "") -> 0
D48: 0.0 | E48: 0.00 | F48: 0.0 | G48: 0.00 | H48: 0.00 | I48: 2 | J48: 45 | K48: 0 | L48: 2 | M48: 0.0 | N48: 0.00 | O48: 2 | P48: 45 | Q48: 0 | R48: 2 | S48: 0.0 | T48: 0.00 | U48: 2 | V48: 45 | W48: 0 | X48: 2 | Y48: 0.0 | Z48: 0.00 | AA48: 2 | AB48: 45 | AC48: 0 | AD48: 2 | AE48: 0.0 | AF48: 0.00 | AG48: 2 | AH48: 45 | AI48: 0 | AJ48: 2 | AK48: 0.00 | AL48: 2 | AM48: 45 | AN48: 0 | AO48: 2 | AS48: =IFERROR(IF(COUNTIF(AR48, 0), "", INDEX(gymnasts, SMALL(IF(AR$47=club, ROW(club)-MIN(ROW(club))+1, ""), ROW()-46))), "") -> 0 | AW48: =IFERROR(IF(COUNTIF(AV48, 0), "", INDEX(gymnasts, SMALL(IF(AV$47=club, ROW(club)-MIN(ROW(club))+1, ""), ROW()-46))), "") -> 0 | BA48: =IFERROR(IF(COUNTIF(AZ48, 0), "", INDEX(gymnasts, SMALL(IF(AZ$47=club, ROW(club)-MIN(ROW(club))+1, ""), ROW()-46))), "") -> 0
D49: 0.0 | E49: 0.00 | F49: 0.0 | G49: 0.00 | H49: 0.00 | I49: 2 | J49: 46 | K49: 0 | L49: 2 | M49: 0.0 | N49: 0.00 | O49: 2 | P49: 46 | Q49: 0 | R49: 2 | S49: 0.0 | T49: 0.00 | U49: 2 | V49: 46 | W49: 0 | X49: 2 | Y49: 0.0 | Z49: 0.00 | AA49: 2 | AB49: 46 | AC49: 0 | AD49: 2 | AE49: 0.0 | AF49: 0.00 | AG49: 2 | AH49: 46 | AI49: 0 | AJ49: 2 | AK49: 0.00 | AL49: 2 | AM49: 46 | AN49: 0 | AO49: 2 | AS49: =IFERROR(IF(COUNTIF(AR49, 0), "", INDEX(gymnasts, SMALL(IF(AR$47=club, ROW(club)-MIN(ROW(club))+1, ""), ROW()-46))), "") -> 0 | AW49: =IFERROR(IF(COUNTIF(AV49, 0), "", INDEX(gymnasts, SMALL(IF(AV$47=club, ROW(club)-MIN(ROW(club))+1, ""), ROW()-46))), "") -> 0 | BA49: =IFERROR(IF(COUNTIF(AZ49, 0), "", INDEX(gymnasts, SMALL(IF(AZ$47=club, ROW(club)-MIN(ROW(club))+1, ""), ROW()-46))), "") -> 0
D50: 0.0 | E50: 0.00 | F50: 0.0 | G50: 0.00 | H50: 0.00 | I50: 2 | J50: 47 | K50: 0 | L50: 2 | M50: 0.0 | N50: 0.00 | O50: 2 | P50: 47 | Q50: 0 | R50: 2 | S50: 0.0 | T50: 0.00 | U50: 2 | V50: 47 | W50: 0 | X50: 2 | Y50: 0.0 | Z50: 0.00 | AA50: 2 | AB50: 47 | AC50: 0 | AD50: 2 | AE50: 0.0 | AF50: 0.00 | AG50: 2 | AH50: 47 | AI50: 0 | AJ50: 2 | AK50: 0.00 | AL50: 2 | AM50: 47 | AN50: 0 | AO50: 2 | AS50: =IFERROR(IF(COUNTIF(AR50, 0), "", INDEX(gymnasts, SMALL(IF(AR$47=club, ROW(club)-MIN(ROW(club))+1, ""), ROW()-46))), "") -> 0 | AW50: =IFERROR(IF(COUNTIF(AV50, 0), "", INDEX(gymnasts, SMALL(IF(AV$47=club, ROW(club)-MIN(ROW(club))+1, ""), ROW()-46))), "") -> 0 | BA50: =IFERROR(IF(COUNTIF(AZ50, 0), "", INDEX(gymnasts, SMALL(IF(AZ$47=club, ROW(club)-MIN(ROW(club))+1, ""), ROW()-46))), "") -> 0
D51: 0.0 | E51: 0.00 | F51: 0.0 | G51: 0.00 | H51: 0.00 | I51: 2 | J51: 48 | K51: 0 | L51: 2 | M51: 0.0 | N51: 0.00 | O51: 2 | P51: 48 | Q51: 0 | R51: 2 | S51: 0.0 | T51: 0.00 | U51: 2 | V51: 48 | W51: 0 | X51: 2 | Y51: 0.0 | Z51: 0.00 | AA51: 2 | AB51: 48 | AC51: 0 | AD51: 2 | AE51: 0.0 | AF51: 0.00 | AG51: 2 | AH51: 48 | AI51: 0 | AJ51: 2 | AK51: 0.00 | AL51: 2 | AM51: 48 | AN51: 0 | AO51: 2 | AS51: =IFERROR(IF(COUNTIF(AR51, 0), "", INDEX(gymnasts, SMALL(IF(AR$47=club, ROW(club)-MIN(ROW(club))+1, ""), ROW()-46))), "") -> 0 | AW51: =IFERROR(IF(COUNTIF(AV51, 0), "", INDEX(gymnasts, SMALL(IF(AV$47=club, ROW(club)-MIN(ROW(club))+1, ""), ROW()-46))), "") -> 0 | BA51: =IFERROR(IF(COUNTIF(AZ51, 0), "", INDEX(gymnasts, SMALL(IF(AZ$47=club, ROW(club)-MIN(ROW(club))+1, ""), ROW()-46))), "") -> 0
D52: 0.0 | E52: 0.00 | F52: 0.0 | G52: 0.00 | H52: 0.00 | I52: 2 | J52: 49 | K52: 0 | L52: 2 | M52: 0.0 | N52: 0.00 | O52: 2 | P52: 49 | Q52: 0 | R52: 2 | S52: 0.0 | T52: 0.00 | U52: 2 | V52: 49 | W52: 0 | X52: 2 | Y52: 0.0 | Z52: 0.00 | AA52: 2 | AB52: 49 | AC52: 0 | AD52: 2 | AE52: 0.0 | AF52: 0.00 | AG52: 2 | AH52: 49 | AI52: 0 | AJ52: 2 | AK52: 0.00 | AL52: 2 | AM52: 49 | AN52: 0 | AO52: 2 | AR52: =IFERROR(INDEX(teams, SMALL(IF(VALUE(LEFT(AR$46, 1))=teamPos, ROW(teamPos)-MIN(ROW(teamPos))+1, ""), ROW()-50)), "") ->  | AS52: =IFERROR(IF(COUNTIF(AR$52, 0), "", INDEX(gymnasts, SMALL(IF(AR$52=club, ROW(club)-MIN(ROW(club))+1, ""), ROW()-51))), "") -> 0 | AV52: =IFERROR(INDEX(teams, SMALL(IF(VALUE(LEFT(AV$46, 1))=teamPos, ROW(teamPos)-MIN(ROW(teamPos))+1, ""), ROW()-50)), "") ->  | AW52: =IFERROR(IF(COUNTIF(AV$52, 0), "", INDEX(gymnasts, SMALL(IF(AV$52=club, ROW(club)-MIN(ROW(club))+1, ""), ROW()-51))), "") -> 0 | AZ52: =IFERROR(INDEX(teams, SMALL(IF(VALUE(LEFT(AZ$46, 1))=teamPos, ROW(teamPos)-MIN(ROW(teamPos))+1, ""), ROW()-50)), "") ->  | BA52: =IFERROR(IF(COUNTIF(AZ$52, 0), "", INDEX(gymnasts, SMALL(IF(AZ$52=club, ROW(club)-MIN(ROW(club))+1, ""), ROW()-51))), "") -> 0
D53: 0.0 | E53: 0.00 | F53: 0.0 | G53: 0.00 | H53: 0.00 | I53: 2 | J53: 50 | K53: 0 | L53: 2 | M53: 0.0 | N53: 0.00 | O53: 2 | P53: 50 | Q53: 0 | R53: 2 | S53: 0.0 | T53: 0.00 | U53: 2 | V53: 50 | W53: 0 | X53: 2 | Y53: 0.0 | Z53: 0.00 | AA53: 2 | AB53: 50 | AC53: 0 | AD53: 2 | AE53: 0.0 | AF53: 0.00 | AG53: 2 | AH53: 50 | AI53: 0 | AJ53: 2 | AK53: 0.00 | AL53: 2 | AM53: 50 | AN53: 0 | AO53: 2 | AS53: =IFERROR(IF(COUNTIF(AR$52, 0), "", INDEX(gymnasts, SMALL(IF(AR$52=club, ROW(club)-MIN(ROW(club))+1, ""), ROW()-51))), "") -> 0 | AW53: =IFERROR(IF(COUNTIF(AV$52, 0), "", INDEX(gymnasts, SMALL(IF(AV$52=club, ROW(club)-MIN(ROW(club))+1, ""), ROW()-51))), "") -> 0 | BA53: =IFERROR(IF(COUNTIF(AZ$52, 0), "", INDEX(gymnasts, SMALL(IF(AZ$52=club, ROW(club)-MIN(ROW(club))+1, ""), ROW()-51))), "") -> 0
D54: 0.0 | E54: 0.00 | F54: 0.0 | G54: 0.00 | H54: 0.00 | I54: 2 | J54: 51 | K54: 0 | L54: 2 | M54: 0.0 | N54: 0.00 | O54: 2 | P54: 51 | Q54: 0 | R54: 2 | S54: 0.0 | T54: 0.00 | U54: 2 | V54: 51 | W54: 0 | X54: 2 | Y54: 0.0 | Z54: 0.00 | AA54: 2 | AB54: 51 | AC54: 0 | AD54: 2 | AE54: 0.0 | AF54: 0.00 | AG54: 2 | AH54: 51 | AI54: 0 | AJ54: 2 | AK54: 0.00 | AL54: 2 | AM54: 51 | AN54: 0 | AO54: 2 | AS54: =IFERROR(IF(COUNTIF(AR$52, 0), "", INDEX(gymnasts, SMALL(IF(AR$52=club, ROW(club)-MIN(ROW(club))+1, ""), ROW()-51))), "") -> 0 | AW54: =IFERROR(IF(COUNTIF(AV$52, 0), "", INDEX(gymnasts, SMALL(IF(AV$52=club, ROW(club)-MIN(ROW(club))+1, ""), ROW()-51))), "") -> 0 | BA54: =IFERROR(IF(COUNTIF(AZ$52, 0), "", INDEX(gymnasts, SMALL(IF(AZ$52=club, ROW(club)-MIN(ROW(club))+1, ""), ROW()-51))), "") -> 0
D55: 0.0 | E55: 0.00 | F55: 0.0 | G55: 0.00 | H55: 0.00 | I55: 2 | J55: 52 | K55: 0 | L55: 2 | M55: 0.0 | N55: 0.00 | O55: 2 | P55: 52 | Q55: 0 | R55: 2 | S55: 0.0 | T55: 0.00 | U55: 2 | V55: 52 | W55: 0 | X55: 2 | Y55: 0.0 | Z55: 0.00 | AA55: 2 | AB55: 52 | AC55: 0 | AD55: 2 | AE55: 0.0 | AF55: 0.00 | AG55: 2 | AH55: 52 | AI55: 0 | AJ55: 2 | AK55: 0.00 | AL55: 2 | AM55: 52 | AN55: 0 | AO55: 2 | AS55: =IFERROR(IF(COUNTIF(AR$52, 0), "", INDEX(gymnasts, SMALL(IF(AR$52=club, ROW(club)-MIN(ROW(club))+1, ""), ROW()-51))), "") -> 0 | AW55: =IFERROR(IF(COUNTIF(AV$52, 0), "", INDEX(gymnasts, SMALL(IF(AV$52=club, ROW(club)-MIN(ROW(club))+1, ""), ROW()-51))), "") -> 0 | BA55: =IFERROR(IF(COUNTIF(AZ$52, 0), "", INDEX(gymnasts, SMALL(IF(AZ$52=club, ROW(club)-MIN(ROW(club))+1, ""), ROW()-51))), "") -> 0
D56: 0.0 | E56: 0.00 | F56: 0.0 | G56: 0.00 | H56: 0.00 | I56: 2 | J56: 53 | K56: 0 | L56: 2 | M56: 0.0 | N56: 0.00 | O56: 2 | P56: 53 | Q56: 0 | R56: 2 | S56: 0.0 | T56: 0.00 | U56: 2 | V56: 53 | W56: 0 | X56: 2 | Y56: 0.0 | Z56: 0.00 | AA56: 2 | AB56: 53 | AC56: 0 | AD56: 2 | AE56: 0.0 | AF56: 0.00 | AG56: 2 | AH56: 53 | AI56: 0 | AJ56: 2 | AK56: 0.00 | AL56: 2 | AM56: 53 | AN56: 0 | AO56: 2 | AS56: =IFERROR(IF(ISTEXT(AR$52), INDEX(gymnasts, SMALL(IF(AR$52=club, ROW(club)-MIN(ROW(club))+1, ""), ROW()-51)), ""), "") -> 0 | AW56: =IFERROR(IF(ISTEXT(AV$52), INDEX(gymnasts, SMALL(IF(AV$52=club, ROW(club)-MIN(ROW(club))+1, ""), ROW()-51)), ""), "") -> 0 | BA56: =IFERROR(IF(ISTEXT(AZ$52), INDEX(gymnasts, SMALL(IF(AZ$52=club, ROW(club)-MIN(ROW(club))+1, ""), ROW()-51)), ""), "") -> 0
D57: 0.0 | E57: 0.00 | F57: 0.0 | G57: 0.00 | H57: 0.00 | I57: 2 | J57: 54 | K57: 0 | L57: 2 | M57: 0.0 | N57: 0.00 | O57: 2 | P57: 54 | Q57: 0 | R57: 2 | S57: 0.0 | T57: 0.00 | U57: 2 | V57: 54 | W57: 0 | X57: 2 | Y57: 0.0 | Z57: 0.00 | AA57: 2 | AB57: 54 | AC57: 0 | AD57: 2 | AE57: 0.0 | AF57: 0.00 | AG57: 2 | AH57: 54 | AI57: 0 | AJ57: 2 | AK57: 0.00 | AL57: 2 | AM57: 54 | AN57: 0 | AO57: 2
D58: 0.0 | E58: 0.00 | F58: 0.0 | G58: 0.00 | H58: 0.00 | I58: 2 | J58: 55 | K58: 0 | L58: 2 | M58: 0.0 | N58: 0.00 | O58: 2 | P58: 55 | Q58: 0 | R58: 2 | S58: 0.0 | T58: 0.00 | U58: 2 | V58: 55 | W58: 0 | X58: 2 | Y58: 0.0 | Z58: 0.00 | AA58: 2 | AB58: 55 | AC58: 0 | AD58: 2 | AE58: 0.0 | AF58: 0.00 | AG58: 2 | AH58: 55 | AI58: 0 | AJ58: 2 | AK58: 0.00 | AL58: 2 | AM58: 55 | AN58: 0 | AO58: 2
D59: 0.0 | E59: 0.00 | F59: 0.0 | G59: 0.00 | H59: 0.00 | I59: 2 | J59: 56 | K59: 0 | L59: 2 | M59: 0.0 | N59: 0.00 | O59: 2 | P59: 56 | Q59: 0 | R59: 2 | S59: 0.0 | T59: 0.00 | U59: 2 | V59: 56 | W59: 0 | X59: 2 | Y59: 0.0 | Z59: 0.00 | AA59: 2 | AB59: 56 | AC59: 0 | AD59: 2 | AE59: 0.0 | AF59: 0.00 | AG59: 2 | AH59: 56 | AI59: 0 | AJ59: 2 | AK59: 0.00 | AL59: 2 | AM59: 56 | AN59: 0 | AO59: 2
D60: 0.0 | E60: 0.00 | F60: 0.0 | G60: 0.00 | H60: 0.00 | I60: 2 | J60: 57 | K60: 0 | L60: 2 | M60: 0.0 | N60: 0.00 | O60: 2 | P60: 57 | Q60: 0 | R60: 2 | S60: 0.0 | T60: 0.00 | U60: 2 | V60: 57 | W60: 0 | X60: 2 | Y60: 0.0 | Z60: 0.00 | AA60: 2 | AB60: 57 | AC60: 0 | AD60: 2 | AE60: 0.0 | AF60: 0.00 | AG60: 2 | AH60: 57 | AI60: 0 | AJ60: 2 | AK60: 0.00 | AL60: 2 | AM60: 57 | AN60: 0 | AO60: 2
D61: 0.0 | E61: 0.00 | F61: 0.0 | G61: 0.00 | H61: 0.00 | I61: 2 | J61: 58 | K61: 0 | L61: 2 | M61: 0.0 | N61: 0.00 | O61: 2 | P61: 58 | Q61: 0 | R61: 2 | S61: 0.0 | T61: 0.00 | U61: 2 | V61: 58 | W61: 0 | X61: 2 | Y61: 0.0 | Z61: 0.00 | AA61: 2 | AB61: 58 | AC61: 0 | AD61: 2 | AE61: 0.0 | AF61: 0.00 | AG61: 2 | AH61: 58 | AI61: 0 | AJ61: 2 | AK61: 0.00 | AL61: 2 | AM61: 58 | AN61: 0 | AO61: 2
D62: 0.0 | E62: 0.00 | F62: 0.0 | G62: 0.00 | H62: 0.00 | I62: 2 | J62: 59 | K62: 0 | L62: 2 | M62: 0.0 | N62: 0.00 | O62: 2 | P62: 59 | Q62: 0 | R62: 2 | S62: 0.0 | T62: 0.00 | U62: 2 | V62: 59 | W62: 0 | X62: 2 | Y62: 0.0 | Z62: 0.00 | AA62: 2 | AB62: 59 | AC62: 0 | AD62: 2 | AE62: 0.0 | AF62: 0.00 | AG62: 2 | AH62: 59 | AI62: 0 | AJ62: 2 | AK62: 0.00 | AL62: 2 | AM62: 59 | AN62: 0 | AO62: 2
D63: 0.0 | E63: 0.00 | F63: 0.0 | G63: 0.00 | H63: 0.00 | I63: 2 | J63: 60 | K63: 0 | L63: 2 | M63: 0.0 | N63: 0.00 | O63: 2 | P63: 60 | Q63: 0 | R63: 2 | S63: 0.0 | T63: 0.00 | U63: 2 | V63: 60 | W63: 0 | X63: 2 | Y63: 0.0 | Z63: 0.00 | AA63: 2 | AB63: 60 | AC63: 0 | AD63: 2 | AE63: 0.0 | AF63: 0.00 | AG63: 2 | AH63: 60 | AI63: 0 | AJ63: 2 | AK63: 0.00 | AL63: 2 | AM63: 60 | AN63: 0 | AO63: 2
D64: 0.0 | E64: 0.00 | F64: 0.0 | G64: 0.00 | H64: 0.00 | I64: 2 | J64: 61 | K64: 0 | L64: 2 | M64: 0.0 | N64: 0.00 | O64: 2 | P64: 61 | Q64: 0 | R64: 2 | S64: 0.0 | T64: 0.00 | U64: 2 | V64: 61 | W64: 0 | X64: 2 | Y64: 0.0 | Z64: 0.00 | AA64: 2 | AB64: 61 | AC64: 0 | AD64: 2 | AE64: 0.0 | AF64: 0.00 | AG64: 2 | AH64: 61 | AI64: 0 | AJ64: 2 | AK64: 0.00 | AL64: 2 | AM64: 61 | AN64: 0 | AO64: 2
D65: 0.0 | E65: 0.00 | F65: 0.0 | G65: 0.00 | H65: 0.00 | I65: 2 | J65: 62 | K65: 0 | L65: 2 | M65: 0.0 | N65: 0.00 | O65: 2 | P65: 62 | Q65: 0 | R65: 2 | S65: 0.0 | T65: 0.00 | U65: 2 | V65: 62 | W65: 0 | X65: 2 | Y65: 0.0 | Z65: 0.00 | AA65: 2 | AB65: 62 | AC65: 0 | AD65: 2 | AE65: 0.0 | AF65: 0.00 | AG65: 2 | AH65: 62 | AI65: 0 | AJ65: 2 | AK65: 0.00 | AL65: 2 | AM65: 62 | AN65: 0 | AO65: 2
B66: Teams
B67: =IF(AND(COUNTIF(club,C67)>=3,COUNTIF(club,C67)<=5),"TEAM",IF(COUNTIF(club,C67)>5,"Too Many!!!!!","NO TEAM")) -> NO TEAM | H67: =IF($B67="NO TEAM", 0, SUM(LARGE(IF(club=$C67, vault), ROW($1:$3)))) -> 0.00 | N67: =IF($B67="NO TEAM", 0, SUM(LARGE(IF(club=$C67, bars), ROW($1:$3)))) -> 0.00 | T67: =IF($B67="NO TEAM", 0, SUM(LARGE(IF(club=$C67, beam), ROW($1:$3)))) -> 0.00 | Z67: =IF($B67="NO TEAM", 0, SUM(LARGE(IF(club=$C67, floor), ROW($1:$3)))) -> 0.00 | AF67: =IF($B67="NO TEAM", 0, SUM(LARGE(IF(club=$C67, range), ROW($1:$3)))) -> 0.00 | AK67: =IF(B67="TEAM", SUMIF(D$2:AJ$2, "SCORE", D67:AJ67), 0) -> 0.00 | AL67: =VLOOKUP(AK67,AN$67:AO$81, 2,FALSE) -> 0 | AM67: =IF(ISNUMBER(AM66), AM66+1, 1) -> 1 | AN67: =LARGE((AK$67:AK$81), $AM67) -> 0 | AO67: =IF(AN67=AN66, AO66, AO66+1) -> 0
B68: =IF(AND(COUNTIF(club,C68)>=3,COUNTIF(club,C68)<=5),"TEAM",IF(COUNTIF(club,C68)>5,"Too Many!!!!!","NO TEAM")) -> NO TEAM | H68: =IF($B68="NO TEAM", 0, SUM(LARGE(IF(club=$C68, vault), ROW($1:$3)))) -> 0.00 | N68: =IF($B68="NO TEAM", 0, SUM(LARGE(IF(club=$C68, bars), ROW($1:$3)))) -> 0.00 | T68: =IF($B68="NO TEAM", 0, SUM(LARGE(IF(club=$C68, beam), ROW($1:$3)))) -> 0.00 | Z68: =IF($B68="NO TEAM", 0, SUM(LARGE(IF(club=$C68, floor), ROW($1:$3)))) -> 0.00 | AF68: =IF($B68="NO TEAM", 0, SUM(LARGE(IF(club=$C68, range), ROW($1:$3)))) -> 0.00 | AK68: 0.00 | AL68: =VLOOKUP(AK68,AN$67:AO$81, 2,FALSE) -> 0 | AM68: =IF(ISNUMBER(AM67), AM67+1, 1) -> 2 | AN68: =LARGE((AK$67:AK$81), $AM68) -> 0 | AO68: =IF(AN68=AN67, AO67, AO67+1) -> 0
B69: =IF(AND(COUNTIF(club,C69)>=3,COUNTIF(club,C69)<=5),"TEAM",IF(COUNTIF(club,C69)>5,"Too Many!!!!!","NO TEAM")) -> NO TEAM | H69: =IF($B69="NO TEAM", 0, SUM(LARGE(IF(club=$C69, vault), ROW($1:$3)))) -> 0.00 | N69: =IF($B69="NO TEAM", 0, SUM(LARGE(IF(club=$C69, bars), ROW($1:$3)))) -> 0.00 | T69: =IF($B69="NO TEAM", 0, SUM(LARGE(IF(club=$C69, beam), ROW($1:$3)))) -> 0.00 | Z69: =IF($B69="NO TEAM", 0, SUM(LARGE(IF(club=$C69, floor), ROW($1:$3)))) -> 0.00 | AF69: =IF($B69="NO TEAM", 0, SUM(LARGE(IF(club=$C69, range), ROW($1:$3)))) -> 0.00 | AK69: 0.00 | AL69: 0 | AM69: 3 | AN69: 0 | AO69: 0
B70: =IF(AND(COUNTIF(club,C70)>=3,COUNTIF(club,C70)<=5),"TEAM",IF(COUNTIF(club,C70)>5,"Too Many!!!!!","NO TEAM")) -> NO TEAM | H70: =IF($B70="NO TEAM", 0, SUM(LARGE(IF(club=$C70, vault), ROW($1:$3)))) -> 0.00 | N70: =IF($B70="NO TEAM", 0, SUM(LARGE(IF(club=$C70, bars), ROW($1:$3)))) -> 0.00 | T70: =IF($B70="NO TEAM", 0, SUM(LARGE(IF(club=$C70, beam), ROW($1:$3)))) -> 0.00 | Z70: =IF($B70="NO TEAM", 0, SUM(LARGE(IF(club=$C70, floor), ROW($1:$3)))) -> 0.00 | AF70: =IF($B70="NO TEAM", 0, SUM(LARGE(IF(club=$C70, range), ROW($1:$3)))) -> 0.00 | AK70: 0.00 | AL70: 0 | AM70: 4 | AN70: 0 | AO70: 0
B71: =IF(AND(COUNTIF(club,C71)>=3,COUNTIF(club,C71)<=5),"TEAM",IF(COUNTIF(club,C71)>5,"Too Many!!!!!","NO TEAM")) -> NO TEAM | H71: =IF($B71="NO TEAM", 0, SUM(LARGE(IF(club=$C71, vault), ROW($1:$3)))) -> 0.00 | N71: =IF($B71="NO TEAM", 0, SUM(LARGE(IF(club=$C71, bars), ROW($1:$3)))) -> 0.00 | T71: =IF($B71="NO TEAM", 0, SUM(LARGE(IF(club=$C71, beam), ROW($1:$3)))) -> 0.00 | Z71: =IF($B71="NO TEAM", 0, SUM(LARGE(IF(club=$C71, floor), ROW($1:$3)))) -> 0.00 | AF71: =IF($B71="NO TEAM", 0, SUM(LARGE(IF(club=$C71, range), ROW($1:$3)))) -> 0.00 | AK71: 0.00 | AL71: 0 | AM71: 5 | AN71: 0 | AO71: 0
B72: =IF(AND(COUNTIF(club,C72)>=3,COUNTIF(club,C72)<=5),"TEAM",IF(COUNTIF(club,C72)>5,"Too Many!!!!!","NO TEAM")) -> NO TEAM | H72: =IF($B72="NO TEAM", 0, SUM(LARGE(IF(club=$C72, vault), ROW($1:$3)))) -> 0.00 | N72: =IF($B72="NO TEAM", 0, SUM(LARGE(IF(club=$C72, bars), ROW($1:$3)))) -> 0.00 | T72: =IF($B72="NO TEAM", 0, SUM(LARGE(IF(club=$C72, beam), ROW($1:$3)))) -> 0.00 | Z72: =IF($B72="NO TEAM", 0, SUM(LARGE(IF(club=$C72, floor), ROW($1:$3)))) -> 0.00 | AF72: =IF($B72="NO TEAM", 0, SUM(LARGE(IF(club=$C72, range), ROW($1:$3)))) -> 0.00 | AK72: 0.00 | AL72: 0 | AM72: 6 | AN72: 0 | AO72: 0
B73: =IF(AND(COUNTIF(club,C73)>=3,COUNTIF(club,C73)<=5),"TEAM",IF(COUNTIF(club,C73)>5,"Too Many!!!!!","NO TEAM")) -> NO TEAM | H73: =IF($B73="NO TEAM", 0, SUM(LARGE(IF(club=$C73, vault), ROW($1:$3)))) -> 0.00 | N73: =IF($B73="NO TEAM", 0, SUM(LARGE(IF(club=$C73, bars), ROW($1:$3)))) -> 0.00 | T73: =IF($B73="NO TEAM", 0, SUM(LARGE(IF(club=$C73, beam), ROW($1:$3)))) -> 0.00 | Z73: =IF($B73="NO TEAM", 0, SUM(LARGE(IF(club=$C73, floor), ROW($1:$3)))) -> 0.00 | AF73: =IF($B73="NO TEAM", 0, SUM(LARGE(IF(club=$C73, range), ROW($1:$3)))) -> 0.00 | AK73: 0.00 | AL73: 0 | AM73: 7 | AN73: 0 | AO73: 0
B74: =IF(AND(COUNTIF(club,C74)>=3,COUNTIF(club,C74)<=5),"TEAM",IF(COUNTIF(club,C74)>5,"Too Many!!!!!","NO TEAM")) -> NO TEAM | H74: =IF($B74="NO TEAM", 0, SUM(LARGE(IF(club=$C74, vault), ROW($1:$3)))) -> 0.00 | N74: =IF($B74="NO TEAM", 0, SUM(LARGE(IF(club=$C74, bars), ROW($1:$3)))) -> 0.00 | T74: =IF($B74="NO TEAM", 0, SUM(LARGE(IF(club=$C74, beam), ROW($1:$3)))) -> 0.00 | Z74: =IF($B74="NO TEAM", 0, SUM(LARGE(IF(club=$C74, floor), ROW($1:$3)))) -> 0.00 | AF74: =IF($B74="NO TEAM", 0, SUM(LARGE(IF(club=$C74, range), ROW($1:$3)))) -> 0.00 | AK74: 0.00 | AL74: 0 | AM74: 8 | AN74: 0 | AO74: 0
B75: =IF(AND(COUNTIF(club,C75)>=3,COUNTIF(club,C75)<=5),"TEAM",IF(COUNTIF(club,C75)>5,"Too Many!!!!!","NO TEAM")) -> NO TEAM | H75: =IF($B75="NO TEAM", 0, SUM(LARGE(IF(club=$C75, vault), ROW($1:$3)))) -> 0.00 | N75: =IF($B75="NO TEAM", 0, SUM(LARGE(IF(club=$C75, bars), ROW($1:$3)))) -> 0.00 | T75: =IF($B75="NO TEAM", 0, SUM(LARGE(IF(club=$C75, beam), ROW($1:$3)))) -> 0.00 | Z75: =IF($B75="NO TEAM", 0, SUM(LARGE(IF(club=$C75, floor), ROW($1:$3)))) -> 0.00 | AF75: =IF($B75="NO TEAM", 0, SUM(LARGE(IF(club=$C75, range), ROW($1:$3)))) -> 0.00 | AK75: 0.00 | AL75: 0 | AM75: 9 | AN75: 0 | AO75: 0
B76: =IF(AND(COUNTIF(club,C76)>=3,COUNTIF(club,C76)<=5),"TEAM",IF(COUNTIF(club,C76)>5,"Too Many!!!!!","NO TEAM")) -> NO TEAM | H76: =IF($B76="NO TEAM", 0, SUM(LARGE(IF(club=$C76, vault), ROW($1:$3)))) -> 0.00 | N76: =IF($B76="NO TEAM", 0, SUM(LARGE(IF(club=$C76, bars), ROW($1:$3)))) -> 0.00 | T76: =IF($B76="NO TEAM", 0, SUM(LARGE(IF(club=$C76, beam), ROW($1:$3)))) -> 0.00 | Z76: =IF($B76="NO TEAM", 0, SUM(LARGE(IF(club=$C76, floor), ROW($1:$3)))) -> 0.00 | AF76: =IF($B76="NO TEAM", 0, SUM(LARGE(IF(club=$C76, range), ROW($1:$3)))) -> 0.00 | AK76: 0.00 | AL76: 0 | AM76: 10 | AN76: 0 | AO76: 0
B77: =IF(AND(COUNTIF(club,C77)>=3,COUNTIF(club,C77)<=5),"TEAM",IF(COUNTIF(club,C77)>5,"Too Many!!!!!","NO TEAM")) -> NO TEAM | H77: =IF($B77="NO TEAM", 0, SUM(LARGE(IF(club=$C77, vault), ROW($1:$3)))) -> 0.00 | N77: =IF($B77="NO TEAM", 0, SUM(LARGE(IF(club=$C77, bars), ROW($1:$3)))) -> 0.00 | T77: =IF($B77="NO TEAM", 0, SUM(LARGE(IF(club=$C77, beam), ROW($1:$3)))) -> 0.00 | Z77: =IF($B77="NO TEAM", 0, SUM(LARGE(IF(club=$C77, floor), ROW($1:$3)))) -> 0.00 | AF77: =IF($B77="NO TEAM", 0, SUM(LARGE(IF(club=$C77, range), ROW($1:$3)))) -> 0.00 | AK77: 0.00 | AL77: 0 | AM77: 11 | AN77: 0 | AO77: 0
B78: =IF(AND(COUNTIF(club,C78)>=3,COUNTIF(club,C78)<=5),"TEAM",IF(COUNTIF(club,C78)>5,"Too Many!!!!!","NO TEAM")) -> NO TEAM | H78: =IF($B78="NO TEAM", 0, SUM(LARGE(IF(club=$C78, vault), ROW($1:$3)))) -> 0.00 | N78: =IF($B78="NO TEAM", 0, SUM(LARGE(IF(club=$C78, bars), ROW($1:$3)))) -> 0.00 | T78: =IF($B78="NO TEAM", 0, SUM(LARGE(IF(club=$C78, beam), ROW($1:$3)))) -> 0.00 | Z78: =IF($B78="NO TEAM", 0, SUM(LARGE(IF(club=$C78, floor), ROW($1:$3)))) -> 0.00 | AF78: =IF($B78="NO TEAM", 0, SUM(LARGE(IF(club=$C78, range), ROW($1:$3)))) -> 0.00 | AK78: 0.00 | AL78: 0 | AM78: 12 | AN78: 0 | AO78: 0
B79: =IF(AND(COUNTIF(club,C79)>=3,COUNTIF(club,C79)<=5),"TEAM",IF(COUNTIF(club,C79)>5,"Too Many!!!!!","NO TEAM")) -> NO TEAM | H79: =IF($B79="NO TEAM", 0, SUM(LARGE(IF(club=$C79, vault), ROW($1:$3)))) -> 0.00 | N79: =SUM(LARGE(IF(club=$C79, bars), ROW($1:$3))) -> 0.00 | T79: =SUM(LARGE(IF(club=$C79, beam), ROW($1:$3))) -> 0.00 | Z79: =SUM(LARGE(IF(club=$C79, floor), ROW($1:$3))) -> 0.00 | AF79: =SUM(LARGE(IF(club=$C79, range), ROW($1:$3))) -> 0.00 | AK79: 0.00 | AL79: 0 | AM79: 13 | AN79: 0 | AO79: 0
B80: =IF(AND(COUNTIF(club,C80)>=3,COUNTIF(club,C80)<=5),"TEAM",IF(COUNTIF(club,C80)>5,"Too Many!!!!!","NO TEAM")) -> NO TEAM | H80: =IF($B80="NO TEAM", 0, SUM(LARGE(IF(club=$C80, vault), ROW($1:$3)))) -> 0.00 | N80: =SUM(LARGE(IF(club=$C80, bars), ROW($1:$3))) -> 0.00 | T80: =SUM(LARGE(IF(club=$C80, beam), ROW($1:$3))) -> 0.00 | Z80: =SUM(LARGE(IF(club=$C80, floor), ROW($1:$3))) -> 0.00 | AF80: =SUM(LARGE(IF(club=$C80, range), ROW($1:$3))) -> 0.00 | AK80: 0.00 | AL80: 0 | AM80: 14 | AN80: 0 | AO80: 0
B81: =IF(AND(COUNTIF(club,C81)>=3,COUNTIF(club,C81)<=5),"TEAM",IF(COUNTIF(club,C81)>5,"Too Many!!!!!","NO TEAM")) -> NO TEAM | H81: =IF($B81="NO TEAM", 0, SUM(LARGE(IF(club=$C81, vault), ROW($1:$3)))) -> 0.00 | N81: =SUM(LARGE(IF(club=$C81, bars), ROW($1:$3))) -> 0.00 | T81: =SUM(LARGE(IF(club=$C81, beam), ROW($1:$3))) -> 0.00 | Z81: =SUM(LARGE(IF(club=$C81, floor), ROW($1:$3))) -> 0.00 | AF81: =SUM(LARGE(IF(club=$C81, range), ROW($1:$3))) -> 0.00 | AK81: 0.00 | AL81: 0 | AM81: 15 | AN81: 0 | AO81: 0

Sheet CGr 5 9yrs
D1: VAULT | M1: BARS | S1: BEAM | Y1: FLOOR | AE1: RANGE | AK1: AA
A2: No | B2: GYMNAST | C2: CLUB | D2: V1 SV | E2: V1 | F2: V2 SV | G2: V2 | H2: SCORE | I2: POS | J2: idx | K2: sort | L2: ties | M2: SV | N2: SCORE | O2: POS | P2: idx | Q2: sort | R2: ties | S2: SV | T2: SCORE | U2: POS | V2: idx | W2: sort | X2: ties | Y2: SV | Z2: SCORE | AA2: POS | AB2: idx | AC2: sort | AD2: ties | AE2: SV | AF2: SCORE | AG2: POS | AH2: idx | AI2: sort | AJ2: ties | AK2: TOTAL | AL2: POS | AM2: idx | AN2: sort | AO2: ties
B3: Club Grade 5 - 9 years | AR3: =B3 -> Club Grade 5 - 9 years | AT3: summary results for presentation
A4: 56 | B4: Millie Alcock | C4: Carlisle | D4: 4.0 | E4: 12.00 | F4: 0.0 | G4: 0.00 | H4: =MAX(E4, G4) -> 12.00 | I4: =VLOOKUP(H4, K$4:L$65, 2,FALSE) -> 9 | J4: =IF(ISNUMBER(J3), J3+1, 1) -> 1 | K4: =LARGE(H$4:H$65,J4) -> 12.75 | L4: =IF(K4=K3, L3, L3+1) -> 1 | M4: 4.0 | N4: 11.50 | O4: =VLOOKUP(N4, Q$4:R$65, 2,FALSE) -> 6 | P4: =IF(ISNUMBER(P3), P3+1, 1) -> 1 | Q4: =LARGE(N$4:N$65,P4) -> 13.05 | R4: =IF(Q4=Q3, R3, R3+1) -> 1 | S4: 4.0 | T4: 11.70 | U4: =VLOOKUP(T4, W$4:X$65, 2,FALSE) -> 3 | V4: =IF(ISNUMBER(V3), V3+1, 1) -> 1 | W4: =LARGE(T$4:T$65,V4) -> 11.8 | X4: =IF(W4=W3, X3, X3+1) -> 1 | Y4: 4.0 | Z4: 12.35 | AA4: =VLOOKUP(Z4, AC$4:AD$65, 2,FALSE) -> 1 | AB4: =IF(ISNUMBER(AB3), AB3+1, 1) -> 1 | AC4: =LARGE(Z$4:Z$65,AB4) -> 12.35 | AD4: =IF(AC4=AC3, AD3, AD3+1) -> 1 | AE4: 4.0 | AF4: 12.85 | AG4: =VLOOKUP(AF4, AI$4:AJ$65, 2,FALSE) -> 1 | AH4: =IF(ISNUMBER(AH3), AH3+1, 1) -> 1 | AI4: =LARGE(AF$4:AF$65,AH4) -> 12.85 | AJ4: =IF(AI4=AI3, AJ3, AJ3+1) -> 1 | AK4: =SUMIF(D$2:AJ$2, "SCORE", D4:AJ4) -> 60.40 | AL4: =VLOOKUP(AK4, AN$4:AO$65, 2,FALSE) -> 2 | AM4: =IF(ISNUMBER(AM3), AM3+1, 1) -> 1 | AN4: =LARGE($AK$4:$AK$65,$AM4) -> 62.45 | AO4: =IF(AN4=AN3, AO3, AO3+1) -> 1 | AR4: 6th Place | AS4: =IFERROR(INDEX(vault,MATCH(AR5,gymnasts,0)), "") -> 12.25 | AT4: 5th Place | AU4: =IFERROR(INDEX(vault,MATCH(AT5,gymnasts,0)), "") -> 12.40 | AV4: 4th Place | AW4: =IFERROR(INDEX(vault,MATCH(AV5,gymnasts,0)), "") -> 12.45 | AX4: 3rd Place | AY4: =IFERROR(INDEX(vault,MATCH(AX5,gymnasts,0)), "") -> 12.55 | AZ4: 2nd Place | BA4: =IFERROR(INDEX(vault,MATCH(AZ5,gymnasts,0)), "") -> 12.65 | BB4: 1st Place | BC4: =IFERROR(INDEX(vault,MATCH(BB5,gymnasts,0)), "") -> 12.75
A5: 57 | B5: Poppy Carmichael | C5: Carlisle | D5: 4.0 | E5: 12.15 | F5: 0.0 | G5: 0.00 | H5: =MAX(E5, G5) -> 12.15 | I5: =VLOOKUP(H5, K$4:L$65, 2,FALSE) -> 7 | J5: 2 | K5: =LARGE(H$4:H$65,J5) -> 12.65 | L5: =IF(K5=K4, L4, L4+1) -> 2 | M5: 4.0 | N5: 11.50 | O5: =VLOOKUP(N5, Q$4:R$65, 2,FALSE) -> 6 | P5: 2 | Q5: =LARGE(N$4:N$65,P5) -> 11.9 | R5: =IF(Q5=Q4, R4, R4+1) -> 2 | S5: 4.0 | T5: 11.80 | U5: =VLOOKUP(T5, W$4:X$65, 2,FALSE) -> 1 | V5: 2 | W5: =LARGE(T$4:T$65,V5) -> 11.75 | X5: =IF(W5=W4, X4, X4+1) -> 2 | Y5: 4.0 | Z5: 11.90 | AA5: =VLOOKUP(Z5, AC$4:AD$65, 2,FALSE) -> 7 | AB5: 2 | AC5: =LARGE(Z$4:Z$65,AB5) -> 12.35 | AD5: =IF(AC5=AC4, AD4, AD4+1) -> 1 | AE5: 4.0 | AF5: 11.75 | AG5: =VLOOKUP(AF5, AI$4:AJ$65, 2,FALSE) -> 6 | AH5: 2 | AI5: =LARGE(AF$4:AF$65,AH5) -> 12.75 | AJ5: =IF(AI5=AI4, AJ4, AJ4+1) -> 2 | AK5: 59.10 | AL5: =VLOOKUP(AK5, AN$4:AO$65, 2,FALSE) -> 3 | AM5: 2 | AN5: =LARGE($AK$4:$AK$65,$AM5) -> 60.4 | AO5: =IF(AN5=AN4, AO4, AO4+1) -> 2 | AQ5: Vault | AR5: =IFERROR(INDEX(gymnasts, SMALL(IF(VALUE(LEFT(AR$32, 1))=vaultPos, ROW(vaultPos)-MIN(ROW(vaultPos))+1, ""), ROW()-4)), "") -> Brogan Cairns | AS5: =IFERROR( INDEX(entries, MATCH(AR5, gymnasts, 0), 2), "") -> CNGA | AT5: =IFERROR(INDEX(gymnasts, SMALL(IF(VALUE(LEFT(AT$32, 1))=vaultPos, ROW(vaultPos)-MIN(ROW(vaultPos))+1, ""), ROW()-4)), "") -> Izzy Kilpatrick | AU5: =IFERROR( INDEX(entries, MATCH(AT5, gymnasts, 0), 2), "") -> Darlington | AV5: =IFERROR(INDEX(gymnasts, SMALL(IF(VALUE(LEFT(AV$32, 1))=vaultPos, ROW(vaultPos)-MIN(ROW(vaultPos))+1, ""), ROW()-4)), "") -> Sarah Little | AW5: =IFERROR( INDEX(entries, MATCH(AV5, gymnasts, 0), 2), "") -> CNGA | AX5: =IFERROR(INDEX(gymnasts, SMALL(IF(VALUE(LEFT(AX$32, 1))=vaultPos, ROW(vaultPos)-MIN(ROW(vaultPos))+1, ""), ROW()-4)), "") -> Tia Gavriel | AY5: =IFERROR( INDEX(entries, MATCH(AX5, gymnasts, 0), 2), "") -> Darlington | AZ5: =IFERROR(INDEX(gymnasts, SMALL(IF(VALUE(LEFT(AZ$32, 1))=vaultPos, ROW(vaultPos)-MIN(ROW(vaultPos))+1, ""), ROW()-4)), "") -> Lily May Conway | BA5: =IFERROR( INDEX(entries, MATCH(AZ5, gymnasts, 0), 2), "") -> CNGA | BB5: =IFERROR(INDEX(gymnasts, SMALL(IF(VALUE(LEFT(BB$32, 1))=vaultPos, ROW(vaultPos)-MIN(ROW(vaultPos))+1, ""), ROW()-4)), "") -> Autumn Jackson | BC5: =IFERROR( INDEX(entries, MATCH(BB5, gymnasts, 0), 2), "") -> Darlington
A6: 58 | B6: Emmy Norman | C6: Carlisle | D6: 4.0 | E6: 12.15 | F6: 0.0 | G6: 0.00 | H6: 12.15 | I6: 7 | J6: 3 | K6: 12.65 | L6: 2 | M6: 4.0 | N6: 11.10 | O6: 11 | P6: 3 | Q6: 11.85 | R6: 3 | S6: 3.5 | T6: 8.80 | U6: 17 | V6: 3 | W6: 11.7 | X6: 3 | Y6: 4.0 | Z6: 11.70 | AA6: 9 | AB6: 3 | AC6: 12.3 | AD6: 2 | AE6: 4.0 | AF6: 11.15 | AG6: 8 | AH6: 3 | AI6: 12.35 | AJ6: 3 | AK6: 54.90 | AL6: 17 | AM6: 3 | AN6: 59.1 | AO6: 3 | AS6: =IFERROR( INDEX(entries, MATCH(AR6, gymnasts, 0), 2), "") ->  | AT6: Mya Teasdale | AU6: =IFERROR( INDEX(entries, MATCH(AT6, gymnasts, 0), 2), "") -> Wansbeck | AW6: =IFERROR( INDEX(entries, MATCH(AV6, gymnasts, 0), 2), "") ->  | AY6: =IFERROR( INDEX(entries, MATCH(AX6, gymnasts, 0), 2), "") ->  | AZ6: Daisy Chapman | BA6: =IFERROR( INDEX(entries, MATCH(AZ6, gymnasts, 0), 2), "") -> Redcar
A7: 59 | B7: Autumn Jackson | C7: Darlington | D7: 4.0 | E7: 12.75 | F7: 0.0 | G7: 0.00 | H7: 12.75 | I7: 1 | J7: 4 | K7: 12.55 | L7: 3 | M7: 4.0 | N7: 10.65 | O7: 13 | P7: 4 | Q7: 11.75 | R7: 4 | S7: 4.0 | T7: 11.15 | U7: 5 | V7: 4 | W7: 11.4 | X7: 4 | Y7: 4.0 | Z7: 12.25 | AA7: 3 | AB7: 4 | AC7: 12.25 | AD7: 3 | AE7: 4.0 | AF7: 11.15 | AG7: 8 | AH7: 4 | AI7: 12.25 | AJ7: 4 | AK7: 57.95 | AL7: 6 | AM7: 4 | AN7: 58.6 | AO7: 4
A8: 60 | B8: Izzy Kilpatrick | C8: Darlington | D8: 4.0 | E8: 12.40 | F8: 0.0 | G8: 0.00 | H8: 12.40 | I8: 5 | J8: 5 | K8: 12.45 | L8: 4 | M8: 4.0 | N8: 11.30 | O8: 8 | P8: 5 | Q8: 11.7 | R8: 5 | S8: 4.0 | T8: 9.85 | U8: 13 | V8: 5 | W8: 11.4 | X8: 4 | Y8: 4.0 | Z8: 11.70 | AA8: 9 | AB8: 5 | AC8: 12.25 | AD8: 3 | AE8: 3.5 | AF8: 10.95 | AG8: 9 | AH8: 5 | AI8: 11.9 | AJ8: 5 | AK8: 56.20 | AL8: 13 | AM8: 5 | AN8: 58.3 | AO8: 5
A9: 61 | B9: Ellie Robinson | C9: Darlington | D9: 4.0 | E9: 11.55 | F9: 0.0 | G9: 0.00 | H9: 11.55 | I9: 13 | J9: 6 | K9: 12.4 | L9: 5 | M9: 4.0 | N9: 11.70 | O9: 5 | P9: 6 | Q9: 11.5 | R9: 6 | S9: 4.0 | T9: 10.75 | U9: 8 | V9: 6 | W9: 11.15 | X9: 5 | Y9: 4.0 | Z9: 11.15 | AA9: 11 | AB9: 6 | AC9: 12.05 | AD9: 4 | AE9: 4.0 | AF9: 11.15 | AG9: 8 | AH9: 6 | AI9: 11.9 | AJ9: 5 | AK9: 56.30 | AL9: 12 | AM9: 6 | AN9: 57.95 | AO9: 6
A10: 62 | B10: Tia Gavriel | C10: Darlington | D10: 4.0 | E10: 12.55 | F10: 0.0 | G10: 0.00 | H10: 12.55 | I10: 3 | J10: 7 | K10: 12.4 | L10: 5 | M10: 4.0 | N10: 11.85 | O10: 3 | P10: 7 | Q10: 11.5 | R10: 6 | S10: 4.0 | T10: 10.55 | U10: 10 | V10: 7 | W10: 10.85 | X10: 6 | Y10: 4.0 | Z10: 11.95 | AA10: 6 | AB10: 7 | AC10: 12 | AD10: 5 | AE10: 4.0 | AF10: 10.95 | AG10: 9 | AH10: 7 | AI10: 11.75 | AJ10: 6 | AK10: 57.85 | AL10: 7 | AM10: 7 | AN10: 57.85 | AO10: 7
A11: 63 | B11: Evie Beau-Reeves | C11: Richmondshire | D11: 4.0 | E11: 11.90 | F11: 0.0 | G11: 0.00 | H11: 11.90 | I11: 10 | J11: 8 | K11: 12.25 | L11: 6 | M11: 4.0 | N11: 10.60 | O11: 14 | P11: 8 | Q11: 11.5 | R11: 6 | S11: 4.0 | T11: 9.50 | U11: 14 | V11: 8 | W11: 10.85 | X11: 6 | Y11: 4.0 | Z11: 10.95 | AA11: 14 | AB11: 8 | AC11: 11.95 | AD11: 6 | AE11: 2.5 | AF11: 9.25 | AG11: 12 | AH11: 8 | AI11: 11.75 | AJ11: 6 | AK11: 52.20 | AL11: 18 | AM11: 8 | AN11: 57.8 | AO11: 8 | AR11: 6th Place | AS11: =IFERROR(INDEX(bars,MATCH(AR12,gymnasts,0)), "") -> 11.50 | AT11: 5th Place | AU11: =IFERROR(INDEX(bars,MATCH(AT12,gymnasts,0)), "") -> 11.70 | AV11: 4th Place | AW11: =IFERROR(INDEX(bars,MATCH(AV12,gymnasts,0)), "") -> 11.75 | AX11: 3rd Place | AY11: =IFERROR(INDEX(bars,MATCH(AX12,gymnasts,0)), "") -> 11.85 | AZ11: 2nd Place | BA11: =IFERROR(INDEX(bars,MATCH(AZ12,gymnasts,0)), "") -> 11.90 | BB11: 1st Place | BC11: =IFERROR(INDEX(bars,MATCH(BB12,gymnasts,0)), "") -> 13.05
A12: 64 | B12: Lily Mayhew | C12: Richmondshire | D12: 4.0 | E12: 12.00 | F12: 0.0 | G12: 0.00 | H12: 12.00 | I12: 9 | J12: 9 | K12: 12.15 | L12: 7 | M12: 4.0 | N12: 9.70 | O12: 17 | P12: 9 | Q12: 11.35 | R12: 7 | S12: 4.0 | T12: 9.35 | U12: 15 | V12: 9 | W12: 10.8 | X12: 7 | Y12: 4.0 | Z12: 11.10 | AA12: 12 | AB12: 9 | AC12: 11.9 | AD12: 7 | AE12: 4.0 | AF12: 9.55 | AG12: 11 | AH12: 9 | AI12: 11.75 | AJ12: 6 | AK12: 51.70 | AL12: 19 | AM12: 9 | AN12: 57.6 | AO12: 9 | AQ12: Bars | AR12: =IFERROR(INDEX(gymnasts, SMALL(IF(VALUE(LEFT(AR$32, 1))=BarPos, ROW(BarPos)-MIN(ROW(BarPos))+1, ""), ROW()-11)), "") -> Millie Alcock | AS12: =IFERROR( INDEX(entries, MATCH(AR12, gymnasts, 0), 2), "") -> Carlisle | AT12: =IFERROR(INDEX(gymnasts, SMALL(IF(VALUE(LEFT(AT$32, 1))=BarPos, ROW(BarPos)-MIN(ROW(BarPos))+1, ""), ROW()-11)), "") -> Ellie Robinson | AU12: =IFERROR( INDEX(entries, MATCH(AT12, gymnasts, 0), 2), "") -> Darlington | AV12: =IFERROR(INDEX(gymnasts, SMALL(IF(VALUE(LEFT(AV$32, 1))=BarPos, ROW(BarPos)-MIN(ROW(BarPos))+1, ""), ROW()-11)), "") -> Aoife McAlister | AW12: =IFERROR( INDEX(entries, MATCH(AV12, gymnasts, 0), 2), "") -> Carlisle | AX12: =IFERROR(INDEX(gymnasts, SMALL(IF(VALUE(LEFT(AX$32, 1))=BarPos, ROW(BarPos)-MIN(ROW(BarPos))+1, ""), ROW()-11)), "") -> Tia Gavriel | AY12: =IFERROR( INDEX(entries, MATCH(AX12, gymnasts, 0), 2), "") -> Darlington | AZ12: =IFERROR(INDEX(gymnasts, SMALL(IF(VALUE(LEFT(AZ$32, 1))=BarPos, ROW(BarPos)-MIN(ROW(BarPos))+1, ""), ROW()-11)), "") -> Mya Teasdale | BA12: =IFERROR( INDEX(entries, MATCH(AZ12, gymnasts, 0), 2), "") -> Wansbeck | BB12: =IFERROR(INDEX(gymnasts, SMALL(IF(VALUE(LEFT(BB$32, 1))=BarPos, ROW(BarPos)-MIN(ROW(BarPos))+1, ""), ROW()-11)), "") -> Daisy Chapman | BC12: =IFERROR( INDEX(entries, MATCH(BB12, gymnasts, 0), 2), "") -> Redcar
A13: 65 | B13: Emmi Dickinson - Brown | C13: Richmondshire | D13: 4.0 | E13: 11.85 | F13: 0.0 | G13: 0.00 | H13: 11.85 | I13: 11 | J13: 10 | K13: 12.15 | L13: 7 | M13: 4.0 | N13: 11.50 | O13: 6 | P13: 10 | Q13: 11.3 | R13: 8 | S13: 4.0 | T13: 8.90 | U13: 16 | V13: 10 | W13: 10.75 | X13: 8 | Y13: 4.0 | Z13: 11.75 | AA13: 8 | AB13: 10 | AC13: 11.75 | AD13: 8 | AE13: 4.0 | AF13: 11.75 | AG13: 6 | AH13: 10 | AI13: 11.55 | AJ13: 7 | AK13: 55.75 | AL13: 15 | AM13: 10 | AN13: 57.5 | AO13: 10 | AR13: Poppy Carmichael | AS13: =IFERROR( INDEX(entries, MATCH(AR13, gymnasts, 0), 2), "") -> Carlisle | AU13: =IFERROR( INDEX(entries, MATCH(AT13, gymnasts, 0), 2), "") ->  | AW13: =IFERROR( INDEX(entries, MATCH(AV13, gymnasts, 0), 2), "") ->  | AY13: =IFERROR( INDEX(entries, MATCH(AX13, gymnasts, 0), 2), "") ->  | BA13: =IFERROR( INDEX(entries, MATCH(AZ13, gymnasts, 0), 2), "") -> 
A14: 66 | B14: Lily May Conway | C14: CNGA | D14: 4.0 | E14: 12.65 | F14: 0.0 | G14: 0.00 | H14: 12.65 | I14: 2 | J14: 11 | K14: 12.1 | L14: 8 | M14: 4.0 | N14: 11.15 | O14: 10 | P14: 11 | Q14: 11.2 | R14: 9 | S14: 4.0 | T14: 10.20 | U14: 12 | V14: 11 | W14: 10.65 | X14: 9 | Y14: 4.0 | Z14: 11.45 | AA14: 10 | AB14: 11 | AC14: 11.7 | AD14: 9 | AE14: 4.0 | AF14: 11.90 | AG14: 5 | AH14: 11 | AI14: 11.15 | AJ14: 8 | AK14: 57.35 | AL14: 11 | AM14: 11 | AN14: 57.35 | AO14: 11 | AR14: Emmi Dickinson - Brown | AS14: Richmondshire
A15: 67 | B15: Brogan Cairns | C15: CNGA | D15: 4.0 | E15: 12.25 | F15: 0.0 | G15: 0.00 | H15: 12.25 | I15: 6 | J15: 12 | K15: 12.1 | L15: 8 | M15: 4.0 | N15: 10.80 | O15: 12 | P15: 12 | Q15: 11.15 | R15: 10 | S15: 4.0 | T15: 10.85 | U15: 6 | V15: 12 | W15: 10.55 | X15: 10 | Y15: 4.0 | Z15: 12.35 | AA15: 1 | AB15: 12 | AC15: 11.7 | AD15: 9 | AE15: 4.0 | AF15: 12.35 | AG15: 3 | AH15: 12 | AI15: 11.15 | AJ15: 8 | AK15: 58.60 | AL15: 4 | AM15: 12 | AN15: 56.3 | AO15: 12
A16: 68 | B16: Sarah Little | C16: CNGA | D16: 4.0 | E16: 12.45 | F16: 0.0 | G16: 0.00 | H16: 12.45 | I16: 4 | J16: 13 | K16: 12 | L16: 9 | M16: 4.0 | N16: 11.35 | O16: 7 | P16: 13 | Q16: 11.1 | R16: 11 | S16: 4.0 | T16: 10.85 | U16: 6 | V16: 13 | W16: 10.45 | X16: 11 | Y16: 4.0 | Z16: 12.05 | AA16: 4 | AB16: 13 | AC16: 11.45 | AD16: 10 | AE16: 3.5 | AF16: 10.90 | AG16: 10 | AH16: 13 | AI16: 11.15 | AJ16: 8 | AK16: 57.60 | AL16: 9 | AM16: 13 | AN16: 56.2 | AO16: 13
A17: 70 | B17: Mya Teasdale | C17: Wansbeck | D17: 4.0 | E17: 12.40 | F17: 0.0 | G17: 0.00 | H17: 12.40 | I17: 5 | J17: 14 | K17: 12 | L17: 9 | M17: 4.0 | N17: 11.90 | O17: 2 | P17: 14 | Q17: 10.8 | R17: 12 | S17: 4.0 | T17: 10.80 | U17: 7 | V17: 14 | W17: 10.2 | X17: 12 | Y17: 4.0 | Z17: 9.10 | AA17: 15 | AB17: 14 | AC17: 11.45 | AD17: 10 | AE17: 4.0 | AF17: 10.95 | AG17: 9 | AH17: 14 | AI17: 10.95 | AJ17: 9 | AK17: 55.15 | AL17: 16 | AM17: 14 | AN17: 55.8 | AO17: 14
A18: 71 | B18: Daisy Chapman | C18: Redcar | D18: 4.0 | E18: 12.65 | F18: 0.0 | G18: 0.00 | H18: 12.65 | I18: 2 | J18: 15 | K18: 11.9 | L18: 10 | M18: 4.0 | N18: 13.05 | O18: 1 | P18: 15 | Q18: 10.65 | R18: 13 | S18: 4.0 | T18: 11.75 | U18: 2 | V18: 15 | W18: 9.85 | X18: 13 | Y18: 4.0 | Z18: 12.25 | AA18: 3 | AB18: 15 | AC18: 11.15 | AD18: 11 | AE18: 4.0 | AF18: 12.75 | AG18: 2 | AH18: 15 | AI18: 10.95 | AJ18: 9 | AK18: 62.45 | AL18: 1 | AM18: 15 | AN18: 55.75 | AO18: 15 | AR18: 6th Place | AS18: =IFERROR(INDEX(beam,MATCH(AR19,gymnasts,0)), "") -> 10.85 | AT18: 5th Place | AU18: =IFERROR(INDEX(beam,MATCH(AT19,gymnasts,0)), "") -> 11.15 | AV18: 4th Place | AW18: =IFERROR(INDEX(beam,MATCH(AV19,gymnasts,0)), "") -> 11.40 | AX18: 3rd Place | AY18: =IFERROR(INDEX(beam,MATCH(AX19,gymnasts,0)), "") -> 11.70 | AZ18: 2nd Place | BA18: =IFERROR(INDEX(beam,MATCH(AZ19,gymnasts,0)), "") -> 11.75 | BB18: 1st Place | BC18: =IFERROR(INDEX(beam,MATCH(BB19,gymnasts,0)), "") -> 11.80
A19: 72 | B19: Shay Ho | C19: Gymtopia | D19: 4.0 | E19: 11.65 | F19: 0.0 | G19: 0.00 | H19: 11.65 | I19: 12 | J19: 16 | K19: 11.85 | L19: 11 | M19: 4.0 | N19: 10.55 | O19: 15 | P19: 16 | Q19: 10.6 | R19: 14 | S19: 4.0 | T19: 11.40 | U19: 4 | V19: 16 | W19: 9.5 | X19: 14 | Y19: 4.0 | Z19: 12.00 | AA19: 5 | AB19: 16 | AC19: 11.1 | AD19: 12 | AE19: 4.0 | AF19: 11.90 | AG19: 5 | AH19: 16 | AI19: 10.95 | AJ19: 9 | AK19: 57.50 | AL19: 10 | AM19: 16 | AN19: 55.15 | AO19: 16 | AQ19: Beam | AR19: =IFERROR(INDEX(gymnasts, SMALL(IF(VALUE(LEFT(AR$32, 1))=BeamPos, ROW(BeamPos)-MIN(ROW(BeamPos))+1, ""), ROW()-18)), "") -> Brogan Cairns | AS19: =IFERROR( INDEX(entries, MATCH(AR19, gymnasts, 0), 2), "") -> CNGA | AT19: =IFERROR(INDEX(gymnasts, SMALL(IF(VALUE(LEFT(AT$32, 1))=BeamPos, ROW(BeamPos)-MIN(ROW(BeamPos))+1, ""), ROW()-18)), "") -> Autumn Jackson | AU19: =IFERROR( INDEX(entries, MATCH(AT19, gymnasts, 0), 2), "") -> Darlington | AV19: =IFERROR(INDEX(gymnasts, SMALL(IF(VALUE(LEFT(AV$32, 1))=BeamPos, ROW(BeamPos)-MIN(ROW(BeamPos))+1, ""), ROW()-18)), "") -> Shay Ho | AW19: =IFERROR( INDEX(entries, MATCH(AV19, gymnasts, 0), 2), "") -> Gymtopia | AX19: =IFERROR(INDEX(gymnasts, SMALL(IF(VALUE(LEFT(AX$32, 1))=BeamPos, ROW(BeamPos)-MIN(ROW(BeamPos))+1, ""), ROW()-18)), "") -> Millie Alcock | AY19: =IFERROR( INDEX(entries, MATCH(AX19, gymnasts, 0), 2), "") -> Carlisle | AZ19: =IFERROR(INDEX(gymnasts, SMALL(IF(VALUE(LEFT(AZ$32, 1))=BeamPos, ROW(BeamPos)-MIN(ROW(BeamPos))+1, ""), ROW()-18)), "") -> Daisy Chapman | BA19: =IFERROR( INDEX(entries, MATCH(AZ19, gymnasts, 0), 2), "") -> Redcar | BB19: =IFERROR(INDEX(gymnasts, SMALL(IF(VALUE(LEFT(BB$32, 1))=BeamPos, ROW(BeamPos)-MIN(ROW(BeamPos))+1, ""), ROW()-18)), "") -> Poppy Carmichael | BC19: =IFERROR( INDEX(entries, MATCH(BB19, gymnasts, 0), 2), "") -> Carlisle
A20: 73 | B20: Anna Martin | C20: North Lakes | D20: 4.0 | E20: 11.65 | F20: 0.0 | G20: 0.00 | H20: 11.65 | I20: 12 | J20: 17 | K20: 11.65 | L20: 12 | M20: 4.0 | N20: 11.20 | O20: 9 | P20: 17 | Q20: 10.55 | R20: 15 | S20: 4.0 | T20: 11.40 | U20: 4 | V20: 17 | W20: 9.35 | X20: 15 | Y20: 4.0 | Z20: 12.30 | AA20: 2 | AB20: 17 | AC20: 11.05 | AD20: 13 | AE20: 3.5 | AF20: 11.75 | AG20: 6 | AH20: 17 | AI20: 10.9 | AJ20: 10 | AK20: 58.30 | AL20: 5 | AM20: 17 | AN20: 54.9 | AO20: 17 | AR20: Sarah Little | AS20: =IFERROR( INDEX(entries, MATCH(AR20, gymnasts, 0), 2), "") -> CNGA | AU20: =IFERROR( INDEX(entries, MATCH(AT20, gymnasts, 0), 2), "") ->  | AV20: Anna Martin | AW20: =IFERROR( INDEX(entries, MATCH(AV20, gymnasts, 0), 2), "") -> North Lakes | AY20: =IFERROR( INDEX(entries, MATCH(AX20, gymnasts, 0), 2), "") ->  | BA20: =IFERROR( INDEX(entries, MATCH(AZ20, gymnasts, 0), 2), "") -> 
A21: 74 | B21: Annabelle Grainger | C21: North Lakes | D21: 4.0 | E21: 12.10 | F21: 0.0 | G21: 0.00 | H21: 12.10 | I21: 8 | J21: 18 | K21: 11.65 | L21: 12 | M21: 4.0 | N21: 10.25 | O21: 16 | P21: 18 | Q21: 10.25 | R21: 16 | S21: 4.0 | T21: 10.45 | U21: 11 | V21: 18 | W21: 8.9 | X21: 16 | Y21: 4.0 | Z21: 11.45 | AA21: 10 | AB21: 18 | AC21: 10.95 | AD21: 14 | AE21: 4.0 | AF21: 11.55 | AG21: 7 | AH21: 18 | AI21: 9.55 | AJ21: 11 | AK21: 55.80 | AL21: 14 | AM21: 18 | AN21: 52.2 | AO21: 18
A22: 55 | B22: Aoife McAlister | C22: Carlisle | D22: 4.0 | E22: 12.10 | F22: 0.0 | G22: 0.00 | H22: 12.10 | I22: 8 | J22: 19 | K22: 11.55 | L22: 13 | M22: 4.0 | N22: 11.75 | O22: 4 | P22: 19 | Q22: 9.7 | R22: 17 | S22: 4.0 | T22: 10.65 | U22: 9 | V22: 19 | W22: 8.8 | X22: 17 | Y22: 4.0 | Z22: 11.05 | AA22: 13 | AB22: 19 | AC22: 9.1 | AD22: 15 | AE22: 4.0 | AF22: 12.25 | AG22: 4 | AH22: 19 | AI22: 9.25 | AJ22: 12 | AK22: 57.80 | AL22: 8 | AM22: 19 | AN22: 51.7 | AO22: 19
D23: 0.0 | E23: 0.00 | F23: 0.0 | G23: 0.00 | H23: 0.00 | I23: 14 | J23: 20 | K23: 0 | L23: 14 | M23: 0.0 | N23: 0.00 | O23: 18 | P23: 20 | Q23: 0 | R23: 18 | S23: 0.0 | T23: 0.00 | U23: 18 | V23: 20 | W23: 0 | X23: 18 | Y23: 0.0 | Z23: 0.00 | AA23: 16 | AB23: 20 | AC23: 0 | AD23: 16 | AE23: 0.0 | AF23: 0.00 | AG23: 13 | AH23: 20 | AI23: 0 | AJ23: 13 | AK23: 0.00 | AL23: 20 | AM23: 20 | AN23: 0 | AO23: 20
D24: 0.0 | E24: 0.00 | F24: 0.0 | G24: 0.00 | H24: 0.00 | I24: 14 | J24: 21 | K24: 0 | L24: 14 | M24: 0.0 | N24: 0.00 | O24: 18 | P24: 21 | Q24: 0 | R24: 18 | S24: 0.0 | T24: 0.00 | U24: 18 | V24: 21 | W24: 0 | X24: 18 | Y24: 0.0 | Z24: 0.00 | AA24: 16 | AB24: 21 | AC24: 0 | AD24: 16 | AE24: 0.0 | AF24: 0.00 | AG24: 13 | AH24: 21 | AI24: 0 | AJ24: 13 | AK24: 0.00 | AL24: 20 | AM24: 21 | AN24: 0 | AO24: 20
D25: 0.0 | E25: 0.00 | F25: 0.0 | G25: 0.00 | H25: 0.00 | I25: 14 | J25: 22 | K25: 0 | L25: 14 | M25: 0.0 | N25: 0.00 | O25: 18 | P25: 22 | Q25: 0 | R25: 18 | S25: 0.0 | T25: 0.00 | U25: 18 | V25: 22 | W25: 0 | X25: 18 | Y25: 0.0 | Z25: 0.00 | AA25: 16 | AB25: 22 | AC25: 0 | AD25: 16 | AE25: 0.0 | AF25: 0.00 | AG25: 13 | AH25: 22 | AI25: 0 | AJ25: 13 | AK25: 0.00 | AL25: 20 | AM25: 22 | AN25: 0 | AO25: 20 | AR25: 6th Place | AS25: =IFERROR(INDEX(floor,MATCH(AR26,gymnasts,0)), "") -> 11.95 | AT25: 5th Place | AU25: =IFERROR(INDEX(floor,MATCH(AT26,gymnasts,0)), "") -> 12.00 | AV25: 4th Place | AW25: =IFERROR(INDEX(floor,MATCH(AV26,gymnasts,0)), "") -> 12.05 | AX25: 3rd Place | AY25: =IFERROR(INDEX(floor,MATCH(AX26,gymnasts,0)), "") -> 12.25 | AZ25: 2nd Place | BA25: =IFERROR(INDEX(floor,MATCH(AZ26,gymnasts,0)), "") -> 12.30 | BB25: 1st Place | BC25: =IFERROR(INDEX(floor,MATCH(BB26,gymnasts,0)), "") -> 12.35
D26: 0.0 | E26: 0.00 | F26: 0.0 | G26: 0.00 | H26: 0.00 | I26: 14 | J26: 23 | K26: 0 | L26: 14 | M26: 0.0 | N26: 0.00 | O26: 18 | P26: 23 | Q26: 0 | R26: 18 | S26: 0.0 | T26: 0.00 | U26: 18 | V26: 23 | W26: 0 | X26: 18 | Y26: 0.0 | Z26: 0.00 | AA26: 16 | AB26: 23 | AC26: 0 | AD26: 16 | AE26: 0.0 | AF26: 0.00 | AG26: 13 | AH26: 23 | AI26: 0 | AJ26: 13 | AK26: 0.00 | AL26: 20 | AM26: 23 | AN26: 0 | AO26: 20 | AQ26: Floor | AR26: =IFERROR(INDEX(gymnasts, SMALL(IF(VALUE(LEFT(AR$32, 1))=FloorPos, ROW(FloorPos)-MIN(ROW(FloorPos))+1, ""), ROW()-25)), "") -> Tia Gavriel | AS26: =IFERROR( INDEX(entries, MATCH(AR26, gymnasts, 0), 2), "") -> Darlington | AT26: =IFERROR(INDEX(gymnasts, SMALL(IF(VALUE(LEFT(AT$32, 1))=FloorPos, ROW(FloorPos)-MIN(ROW(FloorPos))+1, ""), ROW()-25)), "") -> Shay Ho | AU26: =IFERROR( INDEX(entries, MATCH(AT26, gymnasts, 0), 2), "") -> Gymtopia | AV26: =IFERROR(INDEX(gymnasts, SMALL(IF(VALUE(LEFT(AV$32, 1))=FloorPos, ROW(FloorPos)-MIN(ROW(FloorPos))+1, ""), ROW()-25)), "") -> Sarah Little | AW26: =IFERROR( INDEX(entries, MATCH(AV26, gymnasts, 0), 2), "") -> CNGA | AX26: =IFERROR(INDEX(gymnasts, SMALL(IF(VALUE(LEFT(AX$32, 1))=FloorPos, ROW(FloorPos)-MIN(ROW(FloorPos))+1, ""), ROW()-25)), "") -> Autumn Jackson | AY26: =IFERROR( INDEX(entries, MATCH(AX26, gymnasts, 0), 2), "") -> Darlington | AZ26: =IFERROR(INDEX(gymnasts, SMALL(IF(VALUE(LEFT(AZ$32, 1))=FloorPos, ROW(FloorPos)-MIN(ROW(FloorPos))+1, ""), ROW()-25)), "") -> Anna Martin | BA26: =IFERROR( INDEX(entries, MATCH(AZ26, gymnasts, 0), 2), "") -> North Lakes | BB26: =IFERROR(INDEX(gymnasts, SMALL(IF(VALUE(LEFT(BB$32, 1))=FloorPos, ROW(FloorPos)-MIN(ROW(FloorPos))+1, ""), ROW()-25)), "") -> Millie Alcock | BC26: =IFERROR( INDEX(entries, MATCH(BB26, gymnasts, 0), 2), "") -> Carlisle
D27: 0.0 | E27: 0.00 | F27: 0.0 | G27: 0.00 | H27: 0.00 | I27: 14 | J27: 24 | K27: 0 | L27: 14 | M27: 0.0 | N27: 0.00 | O27: 18 | P27: 24 | Q27: 0 | R27: 18 | S27: 0.0 | T27: 0.00 | U27: 18 | V27: 24 | W27: 0 | X27: 18 | Y27: 0.0 | Z27: 0.00 | AA27: 16 | AB27: 24 | AC27: 0 | AD27: 16 | AE27: 0.0 | AF27: 0.00 | AG27: 13 | AH27: 24 | AI27: 0 | AJ27: 13 | AK27: 0.00 | AL27: 20 | AM27: 24 | AN27: 0 | AO27: 20 | AS27: =IFERROR( INDEX(entries, MATCH(AR27, gymnasts, 0), 2), "") ->  | AU27: =IFERROR( INDEX(entries, MATCH(AT27, gymnasts, 0), 2), "") ->  | AW27: =IFERROR( INDEX(entries, MATCH(AV27, gymnasts, 0), 2), "") ->  | AX27: Daisy Chapman | AY27: =IFERROR( INDEX(entries, MATCH(AX27, gymnasts, 0), 2), "") -> Redcar | BA27: =IFERROR( INDEX(entries, MATCH(AZ27, gymnasts, 0), 2), "") ->  | BB27: Brogan Cairns | BC27: CNGA
D28: 0.0 | E28: 0.00 | F28: 0.0 | G28: 0.00 | H28: 0.00 | I28: 14 | J28: 25 | K28: 0 | L28: 14 | M28: 0.0 | N28: 0.00 | O28: 18 | P28: 25 | Q28: 0 | R28: 18 | S28: 0.0 | T28: 0.00 | U28: 18 | V28: 25 | W28: 0 | X28: 18 | Y28: 0.0 | Z28: 0.00 | AA28: 16 | AB28: 25 | AC28: 0 | AD28: 16 | AE28: 0.0 | AF28: 0.00 | AG28: 13 | AH28: 25 | AI28: 0 | AJ28: 13 | AK28: 0.00 | AL28: 20 | AM28: 25 | AN28: 0 | AO28: 20
D29: 0.0 | E29: 0.00 | F29: 0.0 | G29: 0.00 | H29: 0.00 | I29: 14 | J29: 26 | K29: 0 | L29: 14 | M29: 0.0 | N29: 0.00 | O29: 18 | P29: 26 | Q29: 0 | R29: 18 | S29: 0.0 | T29: 0.00 | U29: 18 | V29: 26 | W29: 0 | X29: 18 | Y29: 0.0 | Z29: 0.00 | AA29: 16 | AB29: 26 | AC29: 0 | AD29: 16 | AE29: 0.0 | AF29: 0.00 | AG29: 13 | AH29: 26 | AI29: 0 | AJ29: 13 | AK29: 0.00 | AL29: 20 | AM29: 26 | AN29: 0 | AO29: 20
D30: 0.0 | E30: 0.00 | F30: 0.0 | G30: 0.00 | H30: 0.00 | I30: 14 | J30: 27 | K30: 0 | L30: 14 | M30: 0.0 | N30: 0.00 | O30: 18 | P30: 27 | Q30: 0 | R30: 18 | S30: 0.0 | T30: 0.00 | U30: 18 | V30: 27 | W30: 0 | X30: 18 | Y30: 0.0 | Z30: 0.00 | AA30: 16 | AB30: 27 | AC30: 0 | AD30: 16 | AE30: 0.0 | AF30: 0.00 | AG30: 13 | AH30: 27 | AI30: 0 | AJ30: 13 | AK30: 0.00 | AL30: 20 | AM30: 27 | AN30: 0 | AO30: 20
D31: 0.0 | E31: 0.00 | F31: 0.0 | G31: 0.00 | H31: 0.00 | I31: 14 | J31: 28 | K31: 0 | L31: 14 | M31: 0.0 | N31: 0.00 | O31: 18 | P31: 28 | Q31: 0 | R31: 18 | S31: 0.0 | T31: 0.00 | U31: 18 | V31: 28 | W31: 0 | X31: 18 | Y31: 0.0 | Z31: 0.00 | AA31: 16 | AB31: 28 | AC31: 0 | AD31: 16 | AE31: 0.0 | AF31: 0.00 | AG31: 13 | AH31: 28 | AI31: 0 | AJ31: 13 | AK31: 0.00 | AL31: 20 | AM31: 28 | AN31: 0 | AO31: 20
D32: 0.0 | E32: 0.00 | F32: 0.0 | G32: 0.00 | H32: 0.00 | I32: 14 | J32: 29 | K32: 0 | L32: 14 | M32: 0.0 | N32: 0.00 | O32: 18 | P32: 29 | Q32: 0 | R32: 18 | S32: 0.0 | T32: 0.00 | U32: 18 | V32: 29 | W32: 0 | X32: 18 | Y32: 0.0 | Z32: 0.00 | AA32: 16 | AB32: 29 | AC32: 0 | AD32: 16 | AE32: 0.0 | AF32: 0.00 | AG32: 13 | AH32: 29 | AI32: 0 | AJ32: 13 | AK32: 0.00 | AL32: 20 | AM32: 29 | AN32: 0 | AO32: 20 | AR32: 6th Place | AS32: =IFERROR(INDEX(range,MATCH(AR33,gymnasts,0)), "") -> 11.75 | AT32: 5th Place | AU32: =IFERROR(INDEX(range,MATCH(AT33,gymnasts,0)), "") -> 11.90 | AV32: 4th Place | AW32: =IFERROR(INDEX(range,MATCH(AV33,gymnasts,0)), "") -> 12.25 | AX32: 3rd Place | AY32: =IFERROR(INDEX(range,MATCH(AX33,gymnasts,0)), "") -> 12.35 | AZ32: 2nd Place | BA32: =IFERROR(INDEX(range,MATCH(AZ33,gymnasts,0)), "") -> 12.75 | BB32: 1st Place | BC32: =IFERROR(INDEX(range,MATCH(BB33,gymnasts,0)), "") -> 12.85
D33: 0.0 | E33: 0.00 | F33: 0.0 | G33: 0.00 | H33: 0.00 | I33: 14 | J33: 30 | K33: 0 | L33: 14 | M33: 0.0 | N33: 0.00 | O33: 18 | P33: 30 | Q33: 0 | R33: 18 | S33: 0.0 | T33: 0.00 | U33: 18 | V33: 30 | W33: 0 | X33: 18 | Y33: 0.0 | Z33: 0.00 | AA33: 16 | AB33: 30 | AC33: 0 | AD33: 16 | AE33: 0.0 | AF33: 0.00 | AG33: 13 | AH33: 30 | AI33: 0 | AJ33: 13 | AK33: 0.00 | AL33: 20 | AM33: 30 | AN33: 0 | AO33: 20 | AQ33: Range | AR33: =IFERROR(INDEX(gymnasts, SMALL(IF(VALUE(LEFT(AR$32, 1))=RangePos, ROW(RangePos)-MIN(ROW(RangePos))+1, ""), ROW()-32)), "") -> Poppy Carmichael | AS33: =IFERROR( INDEX(entries, MATCH(AR33, gymnasts, 0), 2), "") -> Carlisle | AT33: =IFERROR(INDEX(gymnasts, SMALL(IF(VALUE(LEFT(AT$32, 1))=RangePos, ROW(RangePos)-MIN(ROW(RangePos))+1, ""), ROW()-32)), "") -> Lily May Conway | AU33: =IFERROR( INDEX(entries, MATCH(AT33, gymnasts, 0), 2), "") -> CNGA | AV33: =IFERROR(INDEX(gymnasts, SMALL(IF(VALUE(LEFT(AV$32, 1))=RangePos, ROW(RangePos)-MIN(ROW(RangePos))+1, ""), ROW()-32)), "") -> Aoife McAlister | AW33: =IFERROR( INDEX(entries, MATCH(AV33, gymnasts, 0), 2), "") -> Carlisle | AX33: =IFERROR(INDEX(gymnasts, SMALL(IF(VALUE(LEFT(AX$32, 1))=RangePos, ROW(RangePos)-MIN(ROW(RangePos))+1, ""), ROW()-32)), "") -> Brogan Cairns | AY33: =IFERROR( INDEX(entries, MATCH(AX33, gymnasts, 0), 2), "") -> CNGA | AZ33: =IFERROR(INDEX(gymnasts, SMALL(IF(VALUE(LEFT(AZ$32, 1))=RangePos, ROW(RangePos)-MIN(ROW(RangePos))+1, ""), ROW()-32)), "") -> Daisy Chapman | BA33: =IFERROR( INDEX(entries, MATCH(AZ33, gymnasts, 0), 2), "") -> Redcar | BB33: =IFERROR(INDEX(gymnasts, SMALL(IF(VALUE(LEFT(BB$32, 1))=RangePos, ROW(RangePos)-MIN(ROW(RangePos))+1, ""), ROW()-32)), "") -> Millie Alcock | BC33: =IFERROR( INDEX(entries, MATCH(BB33, gymnasts, 0), 2), "") -> Carlisle
D34: 0.0 | E34: 0.00 | F34: 0.0 | G34: 0.00 | H34: 0.00 | I34: 14 | J34: 31 | K34: 0 | L34: 14 | M34: 0.0 | N34: 0.00 | O34: 18 | P34: 31 | Q34: 0 | R34: 18 | S34: 0.0 | T34: 0.00 | U34: 18 | V34: 31 | W34: 0 | X34: 18 | Y34: 0.0 | Z34: 0.00 | AA34: 16 | AB34: 31 | AC34: 0 | AD34: 16 | AE34: 0.0 | AF34: 0.00 | AG34: 13 | AH34: 31 | AI34: 0 | AJ34: 13 | AK34: 0.00 | AL34: 20 | AM34: 31 | AN34: 0 | AO34: 20 | AR34: Emmi Dickinson - Brown | AS34: =IFERROR( INDEX(entries, MATCH(AR34, gymnasts, 0), 2), "") -> Richmondshire | AT34: Shay Ho | AU34: =IFERROR( INDEX(entries, MATCH(AT34, gymnasts, 0), 2), "") -> Gymtopia | AW34: =IFERROR( INDEX(entries, MATCH(AV34, gymnasts, 0), 2), "") ->  | AY34: =IFERROR( INDEX(entries, MATCH(AX34, gymnasts, 0), 2), "") ->  | BA34: =IFERROR( INDEX(entries, MATCH(AZ34, gymnasts, 0), 2), "") -> 
D35: 0.0 | E35: 0.00 | F35: 0.0 | G35: 0.00 | H35: 0.00 | I35: 14 | J35: 32 | K35: 0 | L35: 14 | M35: 0.0 | N35: 0.00 | O35: 18 | P35: 32 | Q35: 0 | R35: 18 | S35: 0.0 | T35: 0.00 | U35: 18 | V35: 32 | W35: 0 | X35: 18 | Y35: 0.0 | Z35: 0.00 | AA35: 16 | AB35: 32 | AC35: 0 | AD35: 16 | AE35: 0.0 | AF35: 0.00 | AG35: 13 | AH35: 32 | AI35: 0 | AJ35: 13 | AK35: 0.00 | AL35: 20 | AM35: 32 | AN35: 0 | AO35: 20 | AR35: Anna Martin | AS35: North Lakes
D36: 0.0 | E36: 0.00 | F36: 0.0 | G36: 0.00 | H36: 0.00 | I36: 14 | J36: 33 | K36: 0 | L36: 14 | M36: 0.0 | N36: 0.00 | O36: 18 | P36: 33 | Q36: 0 | R36: 18 | S36: 0.0 | T36: 0.00 | U36: 18 | V36: 33 | W36: 0 | X36: 18 | Y36: 0.0 | Z36: 0.00 | AA36: 16 | AB36: 33 | AC36: 0 | AD36: 16 | AE36: 0.0 | AF36: 0.00 | AG36: 13 | AH36: 33 | AI36: 0 | AJ36: 13 | AK36: =SUMIF(D$2:AJ$2, "SCORE", D36:AJ36) -> 0.00 | AL36: 20 | AM36: 33 | AN36: 0 | AO36: 20
D37: 0.0 | E37: 0.00 | F37: 0.0 | G37: 0.00 | H37: 0.00 | I37: 14 | J37: 34 | K37: 0 | L37: 14 | M37: 0.0 | N37: 0.00 | O37: 18 | P37: 34 | Q37: 0 | R37: 18 | S37: 0.0 | T37: 0.00 | U37: 18 | V37: 34 | W37: 0 | X37: 18 | Y37: 0.0 | Z37: 0.00 | AA37: 16 | AB37: 34 | AC37: 0 | AD37: 16 | AE37: 0.0 | AF37: 0.00 | AG37: 13 | AH37: 34 | AI37: 0 | AJ37: 13 | AK37: 0.00 | AL37: 20 | AM37: 34 | AN37: 0 | AO37: 20
D38: 0.0 | E38: 0.00 | F38: 0.0 | G38: 0.00 | H38: 0.00 | I38: 14 | J38: 35 | K38: 0 | L38: 14 | M38: 0.0 | N38: 0.00 | O38: 18 | P38: 35 | Q38: 0 | R38: 18 | S38: 0.0 | T38: 0.00 | U38: 18 | V38: 35 | W38: 0 | X38: 18 | Y38: 0.0 | Z38: 0.00 | AA38: 16 | AB38: 35 | AC38: 0 | AD38: 16 | AE38: 0.0 | AF38: 0.00 | AG38: 13 | AH38: 35 | AI38: 0 | AJ38: 13 | AK38: 0.00 | AL38: 20 | AM38: 35 | AN38: 0 | AO38: 20
D39: 0.0 | E39: 0.00 | F39: 0.0 | G39: 0.00 | H39: 0.00 | I39: 14 | J39: 36 | K39: 0 | L39: 14 | M39: 0.0 | N39: 0.00 | O39: 18 | P39: 36 | Q39: 0 | R39: 18 | S39: 0.0 | T39: 0.00 | U39: 18 | V39: 36 | W39: 0 | X39: 18 | Y39: 0.0 | Z39: 0.00 | AA39: 16 | AB39: 36 | AC39: 0 | AD39: 16 | AE39: 0.0 | AF39: 0.00 | AG39: 13 | AH39: 36 | AI39: 0 | AJ39: 13 | AK39: 0.00 | AL39: 20 | AM39: 36 | AN39: 0 | AO39: 20 | AR39: 6th Place | AS39: =IFERROR(INDEX(AAscores,MATCH(AR40,gymnasts,0)), "") -> 57.95 | AT39: 5th Place | AU39: =IFERROR(INDEX(AAscores,MATCH(AT40,gymnasts,0)), "") -> 58.30 | AV39: 4th Place | AW39: =IFERROR(INDEX(AAscores,MATCH(AV40,gymnasts,0)), "") -> 58.60 | AX39: 3rd Place | AY39: =IFERROR(INDEX(AAscores,MATCH(AX40,gymnasts,0)), "") -> 59.10 | AZ39: 2nd Place | BA39: =IFERROR(INDEX(AAscores,MATCH(AZ40,gymnasts,0)), "") -> 60.40 | BB39: 1st Place | BC39: =IFERROR(INDEX(AAscores,MATCH(BB40,gymnasts,0)), "") -> 62.45
D40: 0.0 | E40: 0.00 | F40: 0.0 | G40: 0.00 | H40: 0.00 | I40: 14 | J40: 37 | K40: 0 | L40: 14 | M40: 0.0 | N40: 0.00 | O40: 18 | P40: 37 | Q40: 0 | R40: 18 | S40: 0.0 | T40: 0.00 | U40: 18 | V40: 37 | W40: 0 | X40: 18 | Y40: 0.0 | Z40: 0.00 | AA40: 16 | AB40: 37 | AC40: 0 | AD40: 16 | AE40: 0.0 | AF40: 0.00 | AG40: 13 | AH40: 37 | AI40: 0 | AJ40: 13 | AK40: 0.00 | AL40: 20 | AM40: 37 | AN40: 0 | AO40: 20 | AQ40: AA | AR40: =IFERROR(INDEX(gymnasts, SMALL(IF(VALUE(LEFT(AR$39, 1))=AApos, ROW(AApos)-MIN(ROW(AApos))+1, ""), ROW()-39)), "") -> Autumn Jackson | AS40: =IFERROR( INDEX(entries, MATCH(AR40, gymnasts, 0), 2), "") -> Darlington | AT40: =IFERROR(INDEX(gymnasts, SMALL(IF(VALUE(LEFT(AT$39, 1))=AApos, ROW(AApos)-MIN(ROW(AApos))+1, ""), ROW()-39)), "") -> Anna Martin | AU40: =IFERROR( INDEX(entries, MATCH(AT40, gymnasts, 0), 2), "") -> North Lakes | AV40: =IFERROR(INDEX(gymnasts, SMALL(IF(VALUE(LEFT(AV$39, 1))=AApos, ROW(AApos)-MIN(ROW(AApos))+1, ""), ROW()-39)), "") -> Brogan Cairns | AW40: =IFERROR( INDEX(entries, MATCH(AV40, gymnasts, 0), 2), "") -> CNGA | AX40: =IFERROR(INDEX(gymnasts, SMALL(IF(VALUE(LEFT(AX$39, 1))=AApos, ROW(AApos)-MIN(ROW(AApos))+1, ""), ROW()-39)), "") -> Poppy Carmichael | AY40: =IFERROR( INDEX(entries, MATCH(AX40, gymnasts, 0), 2), "") -> Carlisle | AZ40: =IFERROR(INDEX(gymnasts, SMALL(IF(VALUE(LEFT(AZ$39, 1))=AApos, ROW(AApos)-MIN(ROW(AApos))+1, ""), ROW()-39)), "") -> Millie Alcock | BA40: =IFERROR( INDEX(entries, MATCH(AZ40, gymnasts, 0), 2), "") -> Carlisle | BB40: =IFERROR(INDEX(gymnasts, SMALL(IF(VALUE(LEFT(BB$39, 1))=AApos, ROW(AApos)-MIN(ROW(AApos))+1, ""), ROW()-39)), "") -> Daisy Chapman | BC40: =IFERROR( INDEX(entries, MATCH(BB40, gymnasts, 0), 2), "") -> Redcar
D41: 0.0 | E41: 0.00 | F41: 0.0 | G41: 0.00 | H41: 0.00 | I41: 14 | J41: 38 | K41: 0 | L41: 14 | M41: 0.0 | N41: 0.00 | O41: 18 | P41: 38 | Q41: 0 | R41: 18 | S41: 0.0 | T41: 0.00 | U41: 18 | V41: 38 | W41: 0 | X41: 18 | Y41: 0.0 | Z41: 0.00 | AA41: 16 | AB41: 38 | AC41: 0 | AD41: 16 | AE41: 0.0 | AF41: 0.00 | AG41: 13 | AH41: 38 | AI41: 0 | AJ41: 13 | AK41: 0.00 | AL41: 20 | AM41: 38 | AN41: 0 | AO41: 20 | AS41: =IFERROR( INDEX(entries, MATCH(AR41, gymnasts, 0), 2), "") ->  | AU41: =IFERROR( INDEX(entries, MATCH(AT41, gymnasts, 0), 2), "") ->  | AW41: =IFERROR( INDEX(entries, MATCH(AV41, gymnasts, 0), 2), "") ->  | AY41: =IFERROR( INDEX(entries, MATCH(AX41, gymnasts, 0), 2), "") ->  | BA41: =IFERROR( INDEX(entries, MATCH(AZ41, gymnasts, 0), 2), "") -> 
D42: 0.0 | E42: 0.00 | F42: 0.0 | G42: 0.00 | H42: 0.00 | I42: 14 | J42: 39 | K42: 0 | L42: 14 | M42: 0.0 | N42: 0.00 | O42: 18 | P42: 39 | Q42: 0 | R42: 18 | S42: 0.0 | T42: 0.00 | U42: 18 | V42: 39 | W42: 0 | X42: 18 | Y42: 0.0 | Z42: 0.00 | AA42: 16 | AB42: 39 | AC42: 0 | AD42: 16 | AE42: 0.0 | AF42: 0.00 | AG42: 13 | AH42: 39 | AI42: 0 | AJ42: 13 | AK42: 0.00 | AL42: 20 | AM42: 39 | AN42: 0 | AO42: 20
D43: 0.0 | E43: 0.00 | F43: 0.0 | G43: 0.00 | H43: 0.00 | I43: 14 | J43: 40 | K43: 0 | L43: 14 | M43: 0.0 | N43: 0.00 | O43: 18 | P43: 40 | Q43: 0 | R43: 18 | S43: 0.0 | T43: 0.00 | U43: 18 | V43: 40 | W43: 0 | X43: 18 | Y43: 0.0 | Z43: 0.00 | AA43: 16 | AB43: 40 | AC43: 0 | AD43: 16 | AE43: 0.0 | AF43: 0.00 | AG43: 13 | AH43: 40 | AI43: 0 | AJ43: 13 | AK43: 0.00 | AL43: 20 | AM43: 40 | AN43: 0 | AO43: 20
D44: 0.0 | E44: 0.00 | F44: 0.0 | G44: 0.00 | H44: 0.00 | I44: 14 | J44: 41 | K44: 0 | L44: 14 | M44: 0.0 | N44: 0.00 | O44: 18 | P44: 41 | Q44: 0 | R44: 18 | S44: 0.0 | T44: 0.00 | U44: 18 | V44: 41 | W44: 0 | X44: 18 | Y44: 0.0 | Z44: 0.00 | AA44: 16 | AB44: 41 | AC44: 0 | AD44: 16 | AE44: 0.0 | AF44: 0.00 | AG44: 13 | AH44: 41 | AI44: 0 | AJ44: 13 | AK44: 0.00 | AL44: 20 | AM44: 41 | AN44: 0 | AO44: 20
D45: 0.0 | E45: 0.00 | F45: 0.0 | G45: 0.00 | H45: 0.00 | I45: 14 | J45: 42 | K45: 0 | L45: 14 | M45: 0.0 | N45: 0.00 | O45: 18 | P45: 42 | Q45: 0 | R45: 18 | S45: 0.0 | T45: 0.00 | U45: 18 | V45: 42 | W45: 0 | X45: 18 | Y45: 0.0 | Z45: 0.00 | AA45: 16 | AB45: 42 | AC45: 0 | AD45: 16 | AE45: 0.0 | AF45: 0.00 | AG45: 13 | AH45: 42 | AI45: 0 | AJ45: 13 | AK45: 0.00 | AL45: 20 | AM45: 42 | AN45: 0 | AO45: 20
D46: 0.0 | E46: 0.00 | F46: 0.0 | G46: 0.00 | H46: 0.00 | I46: 14 | J46: 43 | K46: 0 | L46: 14 | M46: 0.0 | N46: 0.00 | O46: 18 | P46: 43 | Q46: 0 | R46: 18 | S46: 0.0 | T46: 0.00 | U46: 18 | V46: 43 | W46: 0 | X46: 18 | Y46: 0.0 | Z46: 0.00 | AA46: 16 | AB46: 43 | AC46: 0 | AD46: 16 | AE46: 0.0 | AF46: 0.00 | AG46: 13 | AH46: 43 | AI46: 0 | AJ46: 13 | AK46: 0.00 | AL46: 20 | AM46: 43 | AN46: 0 | AO46: 20 | AQ46: Team | AR46: 3rd place Team | AS46: =IF(COUNTIF(AR47, 0), "", INDEX(teamTotals, MATCH(AR47, teams, 0))) -> 173.55 | AV46: 2nd Place Team | AW46: =IF(COUNTIF(AV47, 0), "", INDEX(teamTotals, MATCH(AV47, teams, 0))) -> 174.15 | AZ46: 1st Place Team | BA46: =IF(COUNTIF(AZ47, 0), "", INDEX(teamTotals, MATCH(AZ47, teams, 0))) -> 178.10
D47: 0.0 | E47: 0.00 | F47: 0.0 | G47: 0.00 | H47: 0.00 | I47: 14 | J47: 44 | K47: 0 | L47: 14 | M47: 0.0 | N47: 0.00 | O47: 18 | P47: 44 | Q47: 0 | R47: 18 | S47: 0.0 | T47: 0.00 | U47: 18 | V47: 44 | W47: 0 | X47: 18 | Y47: 0.0 | Z47: 0.00 | AA47: 16 | AB47: 44 | AC47: 0 | AD47: 16 | AE47: 0.0 | AF47: 0.00 | AG47: 13 | AH47: 44 | AI47: 0 | AJ47: 13 | AK47: 0.00 | AL47: 20 | AM47: 44 | AN47: 0 | AO47: 20 | AR47: =IFERROR(INDEX(teams, SMALL(IF(VALUE(LEFT(AR$46, 1))=teamPos, ROW(teamPos)-MIN(ROW(teamPos))+1, ""), ROW()-46)), "") -> CNGA | AS47: =IFERROR(IF(COUNTIF(AR47, 0), "", INDEX(gymnasts, SMALL(IF(AR$47=club, ROW(club)-MIN(ROW(club))+1, ""), ROW()-46))), "") -> Lily May Conway | AV47: =IFERROR(INDEX(teams, SMALL(IF(VALUE(LEFT(AV$46, 1))=teamPos, ROW(teamPos)-MIN(ROW(teamPos))+1, ""), ROW()-46)), "") -> Darlington | AW47: =IFERROR(IF(COUNTIF(AV47, 0), "", INDEX(gymnasts, SMALL(IF(AV$47=club, ROW(club)-MIN(ROW(club))+1, ""), ROW()-46))), "") -> Autumn Jackson | AZ47: =IFERROR(INDEX(teams, SMALL(IF(VALUE(LEFT(AZ$46, 1))=teamPos, ROW(teamPos)-MIN(ROW(teamPos))+1, ""), ROW()-46)), "") -> Carlisle | BA47: =IFERROR(IF(COUNTIF(AZ47, 0), "", INDEX(gymnasts, SMALL(IF(AZ$47=club, ROW(club)-MIN(ROW(club))+1, ""), ROW()-46))), "") -> Millie Alcock
D48: 0.0 | E48: 0.00 | F48: 0.0 | G48: 0.00 | H48: 0.00 | I48: 14 | J48: 45 | K48: 0 | L48: 14 | M48: 0.0 | N48: 0.00 | O48: 18 | P48: 45 | Q48: 0 | R48: 18 | S48: 0.0 | T48: 0.00 | U48: 18 | V48: 45 | W48: 0 | X48: 18 | Y48: 0.0 | Z48: 0.00 | AA48: 16 | AB48: 45 | AC48: 0 | AD48: 16 | AE48: 0.0 | AF48: 0.00 | AG48: 13 | AH48: 45 | AI48: 0 | AJ48: 13 | AK48: 0.00 | AL48: 20 | AM48: 45 | AN48: 0 | AO48: 20 | AS48: =IFERROR(IF(COUNTIF(AR48, 0), "", INDEX(gymnasts, SMALL(IF(AR$47=club, ROW(club)-MIN(ROW(club))+1, ""), ROW()-46))), "") -> Brogan Cairns | AW48: =IFERROR(IF(COUNTIF(AV48, 0), "", INDEX(gymnasts, SMALL(IF(AV$47=club, ROW(club)-MIN(ROW(club))+1, ""), ROW()-46))), "") -> Izzy Kilpatrick | BA48: =IFERROR(IF(COUNTIF(AZ48, 0), "", INDEX(gymnasts, SMALL(IF(AZ$47=club, ROW(club)-MIN(ROW(club))+1, ""), ROW()-46))), "") -> Poppy Carmichael
D49: 0.0 | E49: 0.00 | F49: 0.0 | G49: 0.00 | H49: 0.00 | I49: 14 | J49: 46 | K49: 0 | L49: 14 | M49: 0.0 | N49: 0.00 | O49: 18 | P49: 46 | Q49: 0 | R49: 18 | S49: 0.0 | T49: 0.00 | U49: 18 | V49: 46 | W49: 0 | X49: 18 | Y49: 0.0 | Z49: 0.00 | AA49: 16 | AB49: 46 | AC49: 0 | AD49: 16 | AE49: 0.0 | AF49: 0.00 | AG49: 13 | AH49: 46 | AI49: 0 | AJ49: 13 | AK49: 0.00 | AL49: 20 | AM49: 46 | AN49: 0 | AO49: 20 | AS49: =IFERROR(IF(COUNTIF(AR49, 0), "", INDEX(gymnasts, SMALL(IF(AR$47=club, ROW(club)-MIN(ROW(club))+1, ""), ROW()-46))), "") -> Sarah Little | AW49: =IFERROR(IF(COUNTIF(AV49, 0), "", INDEX(gymnasts, SMALL(IF(AV$47=club, ROW(club)-MIN(ROW(club))+1, ""), ROW()-46))), "") -> Ellie Robinson | BA49: =IFERROR(IF(COUNTIF(AZ49, 0), "", INDEX(gymnasts, SMALL(IF(AZ$47=club, ROW(club)-MIN(ROW(club))+1, ""), ROW()-46))), "") -> Emmy Norman
D50: 0.0 | E50: 0.00 | F50: 0.0 | G50: 0.00 | H50: 0.00 | I50: 14 | J50: 47 | K50: 0 | L50: 14 | M50: 0.0 | N50: 0.00 | O50: 18 | P50: 47 | Q50: 0 | R50: 18 | S50: 0.0 | T50: 0.00 | U50: 18 | V50: 47 | W50: 0 | X50: 18 | Y50: 0.0 | Z50: 0.00 | AA50: 16 | AB50: 47 | AC50: 0 | AD50: 16 | AE50: 0.0 | AF50: 0.00 | AG50: 13 | AH50: 47 | AI50: 0 | AJ50: 13 | AK50: 0.00 | AL50: 20 | AM50: 47 | AN50: 0 | AO50: 20 | AS50: =IFERROR(IF(COUNTIF(AR50, 0), "", INDEX(gymnasts, SMALL(IF(AR$47=club, ROW(club)-MIN(ROW(club))+1, ""), ROW()-46))), "") ->  | AW50: =IFERROR(IF(COUNTIF(AV50, 0), "", INDEX(gymnasts, SMALL(IF(AV$47=club, ROW(club)-MIN(ROW(club))+1, ""), ROW()-46))), "") -> Tia Gavriel | BA50: =IFERROR(IF(COUNTIF(AZ50, 0), "", INDEX(gymnasts, SMALL(IF(AZ$47=club, ROW(club)-MIN(ROW(club))+1, ""), ROW()-46))), "") -> Aoife McAlister
D51: 0.0 | E51: 0.00 | F51: 0.0 | G51: 0.00 | H51: 0.00 | I51: 14 | J51: 48 | K51: 0 | L51: 14 | M51: 0.0 | N51: 0.00 | O51: 18 | P51: 48 | Q51: 0 | R51: 18 | S51: 0.0 | T51: 0.00 | U51: 18 | V51: 48 | W51: 0 | X51: 18 | Y51: 0.0 | Z51: 0.00 | AA51: 16 | AB51: 48 | AC51: 0 | AD51: 16 | AE51: 0.0 | AF51: 0.00 | AG51: 13 | AH51: 48 | AI51: 0 | AJ51: 13 | AK51: 0.00 | AL51: 20 | AM51: 48 | AN51: 0 | AO51: 20 | AS51: =IFERROR(IF(COUNTIF(AR51, 0), "", INDEX(gymnasts, SMALL(IF(AR$47=club, ROW(club)-MIN(ROW(club))+1, ""), ROW()-46))), "") ->  | AW51: =IFERROR(IF(COUNTIF(AV51, 0), "", INDEX(gymnasts, SMALL(IF(AV$47=club, ROW(club)-MIN(ROW(club))+1, ""), ROW()-46))), "") ->  | BA51: =IFERROR(IF(COUNTIF(AZ51, 0), "", INDEX(gymnasts, SMALL(IF(AZ$47=club, ROW(club)-MIN(ROW(club))+1, ""), ROW()-46))), "") -> 
D52: 0.0 | E52: 0.00 | F52: 0.0 | G52: 0.00 | H52: 0.00 | I52: 14 | J52: 49 | K52: 0 | L52: 14 | M52: 0.0 | N52: 0.00 | O52: 18 | P52: 49 | Q52: 0 | R52: 18 | S52: 0.0 | T52: 0.00 | U52: 18 | V52: 49 | W52: 0 | X52: 18 | Y52: 0.0 | Z52: 0.00 | AA52: 16 | AB52: 49 | AC52: 0 | AD52: 16 | AE52: 0.0 | AF52: 0.00 | AG52: 13 | AH52: 49 | AI52: 0 | AJ52: 13 | AK52: 0.00 | AL52: 20 | AM52: 49 | AN52: 0 | AO52: 20 | AR52: =IFERROR(INDEX(teams, SMALL(IF(VALUE(LEFT(AR$46, 1))=teamPos, ROW(teamPos)-MIN(ROW(teamPos))+1, ""), ROW()-50)), "") ->  | AS52: =IFERROR(IF(COUNTIF(AR$52, 0), "", INDEX(gymnasts, SMALL(IF(AR$52=club, ROW(club)-MIN(ROW(club))+1, ""), ROW()-51))), "") -> 0 | AV52: =IFERROR(INDEX(teams, SMALL(IF(VALUE(LEFT(AV$46, 1))=teamPos, ROW(teamPos)-MIN(ROW(teamPos))+1, ""), ROW()-50)), "") ->  | AW52: =IFERROR(IF(COUNTIF(AV$52, 0), "", INDEX(gymnasts, SMALL(IF(AV$52=club, ROW(club)-MIN(ROW(club))+1, ""), ROW()-51))), "") -> 0 | AZ52: =IFERROR(INDEX(teams, SMALL(IF(VALUE(LEFT(AZ$46, 1))=teamPos, ROW(teamPos)-MIN(ROW(teamPos))+1, ""), ROW()-50)), "") ->  | BA52: =IFERROR(IF(COUNTIF(AZ$52, 0), "", INDEX(gymnasts, SMALL(IF(AZ$52=club, ROW(club)-MIN(ROW(club))+1, ""), ROW()-51))), "") -> 0
D53: 0.0 | E53: 0.00 | F53: 0.0 | G53: 0.00 | H53: 0.00 | I53: 14 | J53: 50 | K53: 0 | L53: 14 | M53: 0.0 | N53: 0.00 | O53: 18 | P53: 50 | Q53: 0 | R53: 18 | S53: 0.0 | T53: 0.00 | U53: 18 | V53: 50 | W53: 0 | X53: 18 | Y53: 0.0 | Z53: 0.00 | AA53: 16 | AB53: 50 | AC53: 0 | AD53: 16 | AE53: 0.0 | AF53: 0.00 | AG53: 13 | AH53: 50 | AI53: 0 | AJ53: 13 | AK53: 0.00 | AL53: 20 | AM53: 50 | AN53: 0 | AO53: 20 | AS53: =IFERROR(IF(COUNTIF(AR$52, 0), "", INDEX(gymnasts, SMALL(IF(AR$52=club, ROW(club)-MIN(ROW(club))+1, ""), ROW()-51))), "") -> 0 | AW53: =IFERROR(IF(COUNTIF(AV$52, 0), "", INDEX(gymnasts, SMALL(IF(AV$52=club, ROW(club)-MIN(ROW(club))+1, ""), ROW()-51))), "") -> 0 | BA53: =IFERROR(IF(COUNTIF(AZ$52, 0), "", INDEX(gymnasts, SMALL(IF(AZ$52=club, ROW(club)-MIN(ROW(club))+1, ""), ROW()-51))), "") -> 0
D54: 0.0 | E54: 0.00 | F54: 0.0 | G54: 0.00 | H54: 0.00 | I54: 14 | J54: 51 | K54: 0 | L54: 14 | M54: 0.0 | N54: 0.00 | O54: 18 | P54: 51 | Q54: 0 | R54: 18 | S54: 0.0 | T54: 0.00 | U54: 18 | V54: 51 | W54: 0 | X54: 18 | Y54: 0.0 | Z54: 0.00 | AA54: 16 | AB54: 51 | AC54: 0 | AD54: 16 | AE54: 0.0 | AF54: 0.00 | AG54: 13 | AH54: 51 | AI54: 0 | AJ54: 13 | AK54: 0.00 | AL54: 20 | AM54: 51 | AN54: 0 | AO54: 20 | AS54: =IFERROR(IF(COUNTIF(AR$52, 0), "", INDEX(gymnasts, SMALL(IF(AR$52=club, ROW(club)-MIN(ROW(club))+1, ""), ROW()-51))), "") -> 0 | AW54: =IFERROR(IF(COUNTIF(AV$52, 0), "", INDEX(gymnasts, SMALL(IF(AV$52=club, ROW(club)-MIN(ROW(club))+1, ""), ROW()-51))), "") -> 0 | BA54: =IFERROR(IF(COUNTIF(AZ$52, 0), "", INDEX(gymnasts, SMALL(IF(AZ$52=club, ROW(club)-MIN(ROW(club))+1, ""), ROW()-51))), "") -> 0
D55: 0.0 | E55: 0.00 | F55: 0.0 | G55: 0.00 | H55: 0.00 | I55: 14 | J55: 52 | K55: 0 | L55: 14 | M55: 0.0 | N55: 0.00 | O55: 18 | P55: 52 | Q55: 0 | R55: 18 | S55: 0.0 | T55: 0.00 | U55: 18 | V55: 52 | W55: 0 | X55: 18 | Y55: 0.0 | Z55: 0.00 | AA55: 16 | AB55: 52 | AC55: 0 | AD55: 16 | AE55: 0.0 | AF55: 0.00 | AG55: 13 | AH55: 52 | AI55: 0 | AJ55: 13 | AK55: 0.00 | AL55: 20 | AM55: 52 | AN55: 0 | AO55: 20 | AS55: =IFERROR(IF(COUNTIF(AR$52, 0), "", INDEX(gymnasts, SMALL(IF(AR$52=club, ROW(club)-MIN(ROW(club))+1, ""), ROW()-51))), "") -> 0 | AW55: =IFERROR(IF(COUNTIF(AV$52, 0), "", INDEX(gymnasts, SMALL(IF(AV$52=club, ROW(club)-MIN(ROW(club))+1, ""), ROW()-51))), "") -> 0 | BA55: =IFERROR(IF(COUNTIF(AZ$52, 0), "", INDEX(gymnasts, SMALL(IF(AZ$52=club, ROW(club)-MIN(ROW(club))+1, ""), ROW()-51))), "") -> 0
D56: 0.0 | E56: 0.00 | F56: 0.0 | G56: 0.00 | H56: 0.00 | I56: 14 | J56: 53 | K56: 0 | L56: 14 | M56: 0.0 | N56: 0.00 | O56: 18 | P56: 53 | Q56: 0 | R56: 18 | S56: 0.0 | T56: 0.00 | U56: 18 | V56: 53 | W56: 0 | X56: 18 | Y56: 0.0 | Z56: 0.00 | AA56: 16 | AB56: 53 | AC56: 0 | AD56: 16 | AE56: 0.0 | AF56: 0.00 | AG56: 13 | AH56: 53 | AI56: 0 | AJ56: 13 | AK56: 0.00 | AL56: 20 | AM56: 53 | AN56: 0 | AO56: 20 | AS56: =IFERROR(IF(ISTEXT(AR$52), INDEX(gymnasts, SMALL(IF(AR$52=club, ROW(club)-MIN(ROW(club))+1, ""), ROW()-51)), ""), "") -> 0 | AW56: =IFERROR(IF(ISTEXT(AV$52), INDEX(gymnasts, SMALL(IF(AV$52=club, ROW(club)-MIN(ROW(club))+1, ""), ROW()-51)), ""), "") -> 0 | BA56: =IFERROR(IF(ISTEXT(AZ$52), INDEX(gymnasts, SMALL(IF(AZ$52=club, ROW(club)-MIN(ROW(club))+1, ""), ROW()-51)), ""), "") -> 0
D57: 0.0 | E57: 0.00 | F57: 0.0 | G57: 0.00 | H57: 0.00 | I57: 14 | J57: 54 | K57: 0 | L57: 14 | M57: 0.0 | N57: 0.00 | O57: 18 | P57: 54 | Q57: 0 | R57: 18 | S57: 0.0 | T57: 0.00 | U57: 18 | V57: 54 | W57: 0 | X57: 18 | Y57: 0.0 | Z57: 0.00 | AA57: 16 | AB57: 54 | AC57: 0 | AD57: 16 | AE57: 0.0 | AF57: 0.00 | AG57: 13 | AH57: 54 | AI57: 0 | AJ57: 13 | AK57: 0.00 | AL57: 20 | AM57: 54 | AN57: 0 | AO57: 20
D58: 0.0 | E58: 0.00 | F58: 0.0 | G58: 0.00 | H58: 0.00 | I58: 14 | J58: 55 | K58: 0 | L58: 14 | M58: 0.0 | N58: 0.00 | O58: 18 | P58: 55 | Q58: 0 | R58: 18 | S58: 0.0 | T58: 0.00 | U58: 18 | V58: 55 | W58: 0 | X58: 18 | Y58: 0.0 | Z58: 0.00 | AA58: 16 | AB58: 55 | AC58: 0 | AD58: 16 | AE58: 0.0 | AF58: 0.00 | AG58: 13 | AH58: 55 | AI58: 0 | AJ58: 13 | AK58: 0.00 | AL58: 20 | AM58: 55 | AN58: 0 | AO58: 20
D59: 0.0 | E59: 0.00 | F59: 0.0 | G59: 0.00 | H59: 0.00 | I59: 14 | J59: 56 | K59: 0 | L59: 14 | M59: 0.0 | N59: 0.00 | O59: 18 | P59: 56 | Q59: 0 | R59: 18 | S59: 0.0 | T59: 0.00 | U59: 18 | V59: 56 | W59: 0 | X59: 18 | Y59: 0.0 | Z59: 0.00 | AA59: 16 | AB59: 56 | AC59: 0 | AD59: 16 | AE59: 0.0 | AF59: 0.00 | AG59: 13 | AH59: 56 | AI59: 0 | AJ59: 13 | AK59: 0.00 | AL59: 20 | AM59: 56 | AN59: 0 | AO59: 20
D60: 0.0 | E60: 0.00 | F60: 0.0 | G60: 0.00 | H60: 0.00 | I60: 14 | J60: 57 | K60: 0 | L60: 14 | M60: 0.0 | N60: 0.00 | O60: 18 | P60: 57 | Q60: 0 | R60: 18 | S60: 0.0 | T60: 0.00 | U60: 18 | V60: 57 | W60: 0 | X60: 18 | Y60: 0.0 | Z60: 0.00 | AA60: 16 | AB60: 57 | AC60: 0 | AD60: 16 | AE60: 0.0 | AF60: 0.00 | AG60: 13 | AH60: 57 | AI60: 0 | AJ60: 13 | AK60: 0.00 | AL60: 20 | AM60: 57 | AN60: 0 | AO60: 20
D61: 0.0 | E61: 0.00 | F61: 0.0 | G61: 0.00 | H61: 0.00 | I61: 14 | J61: 58 | K61: 0 | L61: 14 | M61: 0.0 | N61: 0.00 | O61: 18 | P61: 58 | Q61: 0 | R61: 18 | S61: 0.0 | T61: 0.00 | U61: 18 | V61: 58 | W61: 0 | X61: 18 | Y61: 0.0 | Z61: 0.00 | AA61: 16 | AB61: 58 | AC61: 0 | AD61: 16 | AE61: 0.0 | AF61: 0.00 | AG61: 13 | AH61: 58 | AI61: 0 | AJ61: 13 | AK61: 0.00 | AL61: 20 | AM61: 58 | AN61: 0 | AO61: 20
D62: 0.0 | E62: 0.00 | F62: 0.0 | G62: 0.00 | H62: 0.00 | I62: 14 | J62: 59 | K62: 0 | L62: 14 | M62: 0.0 | N62: 0.00 | O62: 18 | P62: 59 | Q62: 0 | R62: 18 | S62: 0.0 | T62: 0.00 | U62: 18 | V62: 59 | W62: 0 | X62: 18 | Y62: 0.0 | Z62: 0.00 | AA62: 16 | AB62: 59 | AC62: 0 | AD62: 16 | AE62: 0.0 | AF62: 0.00 | AG62: 13 | AH62: 59 | AI62: 0 | AJ62: 13 | AK62: 0.00 | AL62: 20 | AM62: 59 | AN62: 0 | AO62: 20
D63: 0.0 | E63: 0.00 | F63: 0.0 | G63: 0.00 | H63: 0.00 | I63: 14 | J63: 60 | K63: 0 | L63: 14 | M63: 0.0 | N63: 0.00 | O63: 18 | P63: 60 | Q63: 0 | R63: 18 | S63: 0.0 | T63: 0.00 | U63: 18 | V63: 60 | W63: 0 | X63: 18 | Y63: 0.0 | Z63: 0.00 | AA63: 16 | AB63: 60 | AC63: 0 | AD63: 16 | AE63: 0.0 | AF63: 0.00 | AG63: 13 | AH63: 60 | AI63: 0 | AJ63: 13 | AK63: 0.00 | AL63: 20 | AM63: 60 | AN63: 0 | AO63: 20
D64: 0.0 | E64: 0.00 | F64: 0.0 | G64: 0.00 | H64: 0.00 | I64: 14 | J64: 61 | K64: 0 | L64: 14 | M64: 0.0 | N64: 0.00 | O64: 18 | P64: 61 | Q64: 0 | R64: 18 | S64: 0.0 | T64: 0.00 | U64: 18 | V64: 61 | W64: 0 | X64: 18 | Y64: 0.0 | Z64: 0.00 | AA64: 16 | AB64: 61 | AC64: 0 | AD64: 16 | AE64: 0.0 | AF64: 0.00 | AG64: 13 | AH64: 61 | AI64: 0 | AJ64: 13 | AK64: 0.00 | AL64: 20 | AM64: 61 | AN64: 0 | AO64: 20
D65: 0.0 | E65: 0.00 | F65: 0.0 | G65: 0.00 | H65: 0.00 | I65: 14 | J65: 62 | K65: 0 | L65: 14 | M65: 0.0 | N65: 0.00 | O65: 18 | P65: 62 | Q65: 0 | R65: 18 | S65: 0.0 | T65: 0.00 | U65: 18 | V65: 62 | W65: 0 | X65: 18 | Y65: 0.0 | Z65: 0.00 | AA65: 16 | AB65: 62 | AC65: 0 | AD65: 16 | AE65: 0.0 | AF65: 0.00 | AG65: 13 | AH65: 62 | AI65: 0 | AJ65: 13 | AK65: 0.00 | AL65: 20 | AM65: 62 | AN65: 0 | AO65: 20
B66: Teams
B67: =IF(AND(COUNTIF(club,C67)>=3,COUNTIF(club,C67)<=5),"TEAM",IF(COUNTIF(club,C67)>5,"Too Many!!!!!","NO TEAM")) -> TEAM | C67: Carlisle | H67: =IF($B67="NO TEAM", 0, SUM(LARGE(IF(club=$C67, vault), ROW($1:$3)))) -> 36.40 | N67: =IF($B67="NO TEAM", 0, SUM(LARGE(IF(club=$C67, bars), ROW($1:$3)))) -> 34.75 | T67: =IF($B67="NO TEAM", 0, SUM(LARGE(IF(club=$C67, beam), ROW($1:$3)))) -> 34.15 | Z67: =IF($B67="NO TEAM", 0, SUM(LARGE(IF(club=$C67, floor), ROW($1:$3)))) -> 35.95 | AF67: =IF($B67="NO TEAM", 0, SUM(LARGE(IF(club=$C67, range), ROW($1:$3)))) -> 36.85 | AK67: =IF(B67="TEAM", SUMIF(D$2:AJ$2, "SCORE", D67:AJ67), 0) -> 178.10 | AL67: =VLOOKUP(AK67,AN$67:AO$81, 2,FALSE) -> 1 | AM67: =IF(ISNUMBER(AM66), AM66+1, 1) -> 1 | AN67: =LARGE((AK$67:AK$81), $AM67) -> 178.1 | AO67: =IF(AN67=AN66, AO66, AO66+1) -> 1
B68: =IF(AND(COUNTIF(club,C68)>=3,COUNTIF(club,C68)<=5),"TEAM",IF(COUNTIF(club,C68)>5,"Too Many!!!!!","NO TEAM")) -> TEAM | C68: Darlington | H68: =IF($B68="NO TEAM", 0, SUM(LARGE(IF(club=$C68, vault), ROW($1:$3)))) -> 37.70 | N68: =IF($B68="NO TEAM", 0, SUM(LARGE(IF(club=$C68, bars), ROW($1:$3)))) -> 34.85 | T68: =IF($B68="NO TEAM", 0, SUM(LARGE(IF(club=$C68, beam), ROW($1:$3)))) -> 32.45 | Z68: =IF($B68="NO TEAM", 0, SUM(LARGE(IF(club=$C68, floor), ROW($1:$3)))) -> 35.90 | AF68: =IF($B68="NO TEAM", 0, SUM(LARGE(IF(club=$C68, range), ROW($1:$3)))) -> 33.25 | AK68: 174.15 | AL68: =VLOOKUP(AK68,AN$67:AO$81, 2,FALSE) -> 2 | AM68: =IF(ISNUMBER(AM67), AM67+1, 1) -> 2 | AN68: =LARGE((AK$67:AK$81), $AM68) -> 174.15 | AO68: =IF(AN68=AN67, AO67, AO67+1) -> 2
B69: =IF(AND(COUNTIF(club,C69)>=3,COUNTIF(club,C69)<=5),"TEAM",IF(COUNTIF(club,C69)>5,"Too Many!!!!!","NO TEAM")) -> TEAM | C69: Richmondshire | H69: =IF($B69="NO TEAM", 0, SUM(LARGE(IF(club=$C69, vault), ROW($1:$3)))) -> 35.75 | N69: =IF($B69="NO TEAM", 0, SUM(LARGE(IF(club=$C69, bars), ROW($1:$3)))) -> 31.80 | T69: =IF($B69="NO TEAM", 0, SUM(LARGE(IF(club=$C69, beam), ROW($1:$3)))) -> 27.75 | Z69: =IF($B69="NO TEAM", 0, SUM(LARGE(IF(club=$C69, floor), ROW($1:$3)))) -> 33.80 | AF69: =IF($B69="NO TEAM", 0, SUM(LARGE(IF(club=$C69, range), ROW($1:$3)))) -> 30.55 | AK69: 159.65 | AL69: 4 | AM69: 3 | AN69: 173.55 | AO69: 3
B70: =IF(AND(COUNTIF(club,C70)>=3,COUNTIF(club,C70)<=5),"TEAM",IF(COUNTIF(club,C70)>5,"Too Many!!!!!","NO TEAM")) -> TEAM | C70: CNGA | H70: =IF($B70="NO TEAM", 0, SUM(LARGE(IF(club=$C70, vault), ROW($1:$3)))) -> 37.35 | N70: =IF($B70="NO TEAM", 0, SUM(LARGE(IF(club=$C70, bars), ROW($1:$3)))) -> 33.30 | T70: =IF($B70="NO TEAM", 0, SUM(LARGE(IF(club=$C70, beam), ROW($1:$3)))) -> 31.90 | Z70: =IF($B70="NO TEAM", 0, SUM(LARGE(IF(club=$C70, floor), ROW($1:$3)))) -> 35.85 | AF70: =IF($B70="NO TEAM", 0, SUM(LARGE(IF(club=$C70, range), ROW($1:$3)))) -> 35.15 | AK70: 173.55 | AL70: 3 | AM70: 4 | AN70: 159.65 | AO70: 4
B71: =IF(AND(COUNTIF(club,C71)>=3,COUNTIF(club,C71)<=5),"TEAM",IF(COUNTIF(club,C71)>5,"Too Many!!!!!","NO TEAM")) -> NO TEAM | H71: =IF($B71="NO TEAM", 0, SUM(LARGE(IF(club=$C71, vault), ROW($1:$3)))) -> 0.00 | N71: =IF($B71="NO TEAM", 0, SUM(LARGE(IF(club=$C71, bars), ROW($1:$3)))) -> 0.00 | T71: =IF($B71="NO TEAM", 0, SUM(LARGE(IF(club=$C71, beam), ROW($1:$3)))) -> 0.00 | Z71: =IF($B71="NO TEAM", 0, SUM(LARGE(IF(club=$C71, floor), ROW($1:$3)))) -> 0.00 | AF71: =IF($B71="NO TEAM", 0, SUM(LARGE(IF(club=$C71, range), ROW($1:$3)))) -> 0.00 | AK71: 0.00 | AL71: 5 | AM71: 5 | AN71: 0 | AO71: 5
B72: =IF(AND(COUNTIF(club,C72)>=3,COUNTIF(club,C72)<=5),"TEAM",IF(COUNTIF(club,C72)>5,"Too Many!!!!!","NO TEAM")) -> NO TEAM | H72: =IF($B72="NO TEAM", 0, SUM(LARGE(IF(club=$C72, vault), ROW($1:$3)))) -> 0.00 | N72: =IF($B72="NO TEAM", 0, SUM(LARGE(IF(club=$C72, bars), ROW($1:$3)))) -> 0.00 | T72: =IF($B72="NO TEAM", 0, SUM(LARGE(IF(club=$C72, beam), ROW($1:$3)))) -> 0.00 | Z72: =IF($B72="NO TEAM", 0, SUM(LARGE(IF(club=$C72, floor), ROW($1:$3)))) -> 0.00 | AF72: =IF($B72="NO TEAM", 0, SUM(LARGE(IF(club=$C72, range), ROW($1:$3)))) -> 0.00 | AK72: 0.00 | AL72: 5 | AM72: 6 | AN72: 0 | AO72: 5
B73: =IF(AND(COUNTIF(club,C73)>=3,COUNTIF(club,C73)<=5),"TEAM",IF(COUNTIF(club,C73)>5,"Too Many!!!!!","NO TEAM")) -> NO TEAM | H73: =IF($B73="NO TEAM", 0, SUM(LARGE(IF(club=$C73, vault), ROW($1:$3)))) -> 0.00 | N73: =IF($B73="NO TEAM", 0, SUM(LARGE(IF(club=$C73, bars), ROW($1:$3)))) -> 0.00 | T73: =IF($B73="NO TEAM", 0, SUM(LARGE(IF(club=$C73, beam), ROW($1:$3)))) -> 0.00 | Z73: =IF($B73="NO TEAM", 0, SUM(LARGE(IF(club=$C73, floor), ROW($1:$3)))) -> 0.00 | AF73: =IF($B73="NO TEAM", 0, SUM(LARGE(IF(club=$C73, range), ROW($1:$3)))) -> 0.00 | AK73: 0.00 | AL73: 5 | AM73: 7 | AN73: 0 | AO73: 5
B74: =IF(AND(COUNTIF(club,C74)>=3,COUNTIF(club,C74)<=5),"TEAM",IF(COUNTIF(club,C74)>5,"Too Many!!!!!","NO TEAM")) -> NO TEAM | H74: =IF($B74="NO TEAM", 0, SUM(LARGE(IF(club=$C74, vault), ROW($1:$3)))) -> 0.00 | N74: =IF($B74="NO TEAM", 0, SUM(LARGE(IF(club=$C74, bars), ROW($1:$3)))) -> 0.00 | T74: =IF($B74="NO TEAM", 0, SUM(LARGE(IF(club=$C74, beam), ROW($1:$3)))) -> 0.00 | Z74: =IF($B74="NO TEAM", 0, SUM(LARGE(IF(club=$C74, floor), ROW($1:$3)))) -> 0.00 | AF74: =IF($B74="NO TEAM", 0, SUM(LARGE(IF(club=$C74, range), ROW($1:$3)))) -> 0.00 | AK74: 0.00 | AL74: 5 | AM74: 8 | AN74: 0 | AO74: 5
B75: =IF(AND(COUNTIF(club,C75)>=3,COUNTIF(club,C75)<=5),"TEAM",IF(COUNTIF(club,C75)>5,"Too Many!!!!!","NO TEAM")) -> NO TEAM | H75: =IF($B75="NO TEAM", 0, SUM(LARGE(IF(club=$C75, vault), ROW($1:$3)))) -> 0.00 | N75: =IF($B75="NO TEAM", 0, SUM(LARGE(IF(club=$C75, bars), ROW($1:$3)))) -> 0.00 | T75: =IF($B75="NO TEAM", 0, SUM(LARGE(IF(club=$C75, beam), ROW($1:$3)))) -> 0.00 | Z75: =IF($B75="NO TEAM", 0, SUM(LARGE(IF(club=$C75, floor), ROW($1:$3)))) -> 0.00 | AF75: =IF($B75="NO TEAM", 0, SUM(LARGE(IF(club=$C75, range), ROW($1:$3)))) -> 0.00 | AK75: 0.00 | AL75: 5 | AM75: 9 | AN75: 0 | AO75: 5
B76: =IF(AND(COUNTIF(club,C76)>=3,COUNTIF(club,C76)<=5),"TEAM",IF(COUNTIF(club,C76)>5,"Too Many!!!!!","NO TEAM")) -> NO TEAM | H76: =IF($B76="NO TEAM", 0, SUM(LARGE(IF(club=$C76, vault), ROW($1:$3)))) -> 0.00 | N76: =IF($B76="NO TEAM", 0, SUM(LARGE(IF(club=$C76, bars), ROW($1:$3)))) -> 0.00 | T76: =IF($B76="NO TEAM", 0, SUM(LARGE(IF(club=$C76, beam), ROW($1:$3)))) -> 0.00 | Z76: =IF($B76="NO TEAM", 0, SUM(LARGE(IF(club=$C76, floor), ROW($1:$3)))) -> 0.00 | AF76: =IF($B76="NO TEAM", 0, SUM(LARGE(IF(club=$C76, range), ROW($1:$3)))) -> 0.00 | AK76: 0.00 | AL76: 5 | AM76: 10 | AN76: 0 | AO76: 5
B77: =IF(AND(COUNTIF(club,C77)>=3,COUNTIF(club,C77)<=5),"TEAM",IF(COUNTIF(club,C77)>5,"Too Many!!!!!","NO TEAM")) -> NO TEAM | H77: =IF($B77="NO TEAM", 0, SUM(LARGE(IF(club=$C77, vault), ROW($1:$3)))) -> 0.00 | N77: =IF($B77="NO TEAM", 0, SUM(LARGE(IF(club=$C77, bars), ROW($1:$3)))) -> 0.00 | T77: =IF($B77="NO TEAM", 0, SUM(LARGE(IF(club=$C77, beam), ROW($1:$3)))) -> 0.00 | Z77: =IF($B77="NO TEAM", 0, SUM(LARGE(IF(club=$C77, floor), ROW($1:$3)))) -> 0.00 | AF77: =IF($B77="NO TEAM", 0, SUM(LARGE(IF(club=$C77, range), ROW($1:$3)))) -> 0.00 | AK77: 0.00 | AL77: 5 | AM77: 11 | AN77: 0 | AO77: 5
B78: =IF(AND(COUNTIF(club,C78)>=3,COUNTIF(club,C78)<=5),"TEAM",IF(COUNTIF(club,C78)>5,"Too Many!!!!!","NO TEAM")) -> NO TEAM | H78: =IF($B78="NO TEAM", 0, SUM(LARGE(IF(club=$C78, vault), ROW($1:$3)))) -> 0.00 | N78: =IF($B78="NO TEAM", 0, SUM(LARGE(IF(club=$C78, bars), ROW($1:$3)))) -> 0.00 | T78: =IF($B78="NO TEAM", 0, SUM(LARGE(IF(club=$C78, beam), ROW($1:$3)))) -> 0.00 | Z78: =IF($B78="NO TEAM", 0, SUM(LARGE(IF(club=$C78, floor), ROW($1:$3)))) -> 0.00 | AF78: =IF($B78="NO TEAM", 0, SUM(LARGE(IF(club=$C78, range), ROW($1:$3)))) -> 0.00 | AK78: 0.00 | AL78: 5 | AM78: 12 | AN78: 0 | AO78: 5
B79: =IF(AND(COUNTIF(club,C79)>=3,COUNTIF(club,C79)<=5),"TEAM",IF(COUNTIF(club,C79)>5,"Too Many!!!!!","NO TEAM")) -> NO TEAM | H79: =IF($B79="NO TEAM", 0, SUM(LARGE(IF(club=$C79, vault), ROW($1:$3)))) -> 0.00 | N79: =SUM(LARGE(IF(club=$C79, bars), ROW($1:$3))) -> 0.00 | T79: =SUM(LARGE(IF(club=$C79, beam), ROW($1:$3))) -> 0.00 | Z79: =SUM(LARGE(IF(club=$C79, floor), ROW($1:$3))) -> 0.00 | AF79: =SUM(LARGE(IF(club=$C79, range), ROW($1:$3))) -> 0.00 | AK79: 0.00 | AL79: 5 | AM79: 13 | AN79: 0 | AO79: 5
B80: =IF(AND(COUNTIF(club,C80)>=3,COUNTIF(club,C80)<=5),"TEAM",IF(COUNTIF(club,C80)>5,"Too Many!!!!!","NO TEAM")) -> NO TEAM | H80: =IF($B80="NO TEAM", 0, SUM(LARGE(IF(club=$C80, vault), ROW($1:$3)))) -> 0.00 | N80: =SUM(LARGE(IF(club=$C80, bars), ROW($1:$3))) -> 0.00 | T80: =SUM(LARGE(IF(club=$C80, beam), ROW($1:$3))) -> 0.00 | Z80: =SUM(LARGE(IF(club=$C80, floor), ROW($1:$3))) -> 0.00 | AF80: =SUM(LARGE(IF(club=$C80, range), ROW($1:$3))) -> 0.00 | AK80: 0.00 | AL80: 5 | AM80: 14 | AN80: 0 | AO80: 5
B81: =IF(AND(COUNTIF(club,C81)>=3,COUNTIF(club,C81)<=5),"TEAM",IF(COUNTIF(club,C81)>5,"Too Many!!!!!","NO TEAM")) -> NO TEAM | H81: =IF($B81="NO TEAM", 0, SUM(LARGE(IF(club=$C81, vault), ROW($1:$3)))) -> 0.00 | N81: =SUM(LARGE(IF(club=$C81, bars), ROW($1:$3))) -> 0.00 | T81: =SUM(LARGE(IF(club=$C81, beam), ROW($1:$3))) -> 0.00 | Z81: =SUM(LARGE(IF(club=$C81, floor), ROW($1:$3))) -> 0.00 | AF81: =SUM(LARGE(IF(club=$C81, range), ROW($1:$3))) -> 0.00 | AK81: 0.00 | AL81: 5 | AM81: 15 | AN81: 0 | AO81: 5

Sheet CGr 5 <11
D1: VAULT | M1: BARS | S1: BEAM | Y1: FLOOR | AE1: RANGE | AK1: AA
A2: No | B2: GYMNAST | C2: CLUB | D2: V1 SV | E2: V1 | F2: V2 SV | G2: V2 | H2: SCORE | I2: POS | J2: idx | K2: sort | L2: ties | M2: SV | N2: SCORE | O2: POS | P2: idx | Q2: sort | R2: ties | S2: SV | T2: SCORE | U2: POS | V2: idx | W2: sort | X2: ties | Y2: SV | Z2: SCORE | AA2: POS | AB2: idx | AC2: sort | AD2: ties | AE2: SV | AF2: SCORE | AG2: POS | AH2: idx | AI2: sort | AJ2: ties | AK2: TOTAL | AL2: POS | AM2: idx | AN2: sort | AO2: ties
B3: Club Grade 5 - 11 & Under | AR3: =B3 -> Club Grade 5 - 11 & Under | AT3: summary results for presentation
A4: 75 | B4: Emmi Bradley | C4: SD | D4: 4.0 | E4: 12.30 | F4: 0.0 | G4: 0.00 | H4: =MAX(E4, G4) -> 12.30 | I4: =VLOOKUP(H4, K$4:L$65, 2,FALSE) -> 6 | J4: =IF(ISNUMBER(J3), J3+1, 1) -> 1 | K4: =LARGE(H$4:H$65,J4) -> 12.7 | L4: =IF(K4=K3, L3, L3+1) -> 1 | M4: 4.0 | N4: 10.85 | O4: =VLOOKUP(N4, Q$4:R$65, 2,FALSE) -> 10 | P4: =IF(ISNUMBER(P3), P3+1, 1) -> 1 | Q4: =LARGE(N$4:N$65,P4) -> 13.15 | R4: =IF(Q4=Q3, R3, R3+1) -> 1 | S4: 4.0 | T4: 9.50 | U4: =VLOOKUP(T4, W$4:X$65, 2,FALSE) -> 10 | V4: =IF(ISNUMBER(V3), V3+1, 1) -> 1 | W4: =LARGE(T$4:T$65,V4) -> 12.05 | X4: =IF(W4=W3, X3, X3+1) -> 1 | Y4: 4.0 | Z4: 12.10 | AA4: =VLOOKUP(Z4, AC$4:AD$65, 2,FALSE) -> 5 | AB4: =IF(ISNUMBER(AB3), AB3+1, 1) -> 1 | AC4: =LARGE(Z$4:Z$65,AB4) -> 12.8 | AD4: =IF(AC4=AC3, AD3, AD3+1) -> 1 | AE4: 4.0 | AF4: 12.55 | AG4: =VLOOKUP(AF4, AI$4:AJ$65, 2,FALSE) -> 3 | AH4: =IF(ISNUMBER(AH3), AH3+1, 1) -> 1 | AI4: =LARGE(AF$4:AF$65,AH4) -> 13.3 | AJ4: =IF(AI4=AI3, AJ3, AJ3+1) -> 1 | AK4: =SUMIF(D$2:AJ$2, "SCORE", D4:AJ4) -> 57.30 | AL4: =VLOOKUP(AK4, AN$4:AO$65, 2,FALSE) -> 7 | AM4: =IF(ISNUMBER(AM3), AM3+1, 1) -> 1 | AN4: =LARGE($AK$4:$AK$65,$AM4) -> 63.6 | AO4: =IF(AN4=AN3, AO3, AO3+1) -> 1 | AR4: 6th Place | AS4: =IFERROR(INDEX(vault,MATCH(AR5,gymnasts,0)), "") -> 12.30 | AT4: 5th Place | AU4: =IFERROR(INDEX(vault,MATCH(AT5,gymnasts,0)), "") -> 12.35 | AV4: 4th Place | AW4: =IFERROR(INDEX(vault,MATCH(AV5,gymnasts,0)), "") -> 12.45 | AX4: 3rd Place | AY4: =IFERROR(INDEX(vault,MATCH(AX5,gymnasts,0)), "") -> 12.50 | AZ4: 2nd Place | BA4: =IFERROR(INDEX(vault,MATCH(AZ5,gymnasts,0)), "") -> 12.60 | BB4: 1st Place | BC4: =IFERROR(INDEX(vault,MATCH(BB5,gymnasts,0)), "") -> 12.70
A5: 76 | B5: Ellie Ritson | C5: SD | D5: 4.0 | E5: 12.35 | F5: 0.0 | G5: 0.00 | H5: =MAX(E5, G5) -> 12.35 | I5: =VLOOKUP(H5, K$4:L$65, 2,FALSE) -> 5 | J5: 2 | K5: =LARGE(H$4:H$65,J5) -> 12.6 | L5: =IF(K5=K4, L4, L4+1) -> 2 | M5: 4.0 | N5: 11.20 | O5: =VLOOKUP(N5, Q$4:R$65, 2,FALSE) -> 9 | P5: 2 | Q5: =LARGE(N$4:N$65,P5) -> 12.5 | R5: =IF(Q5=Q4, R4, R4+1) -> 2 | S5: 3.5 | T5: 11.30 | U5: =VLOOKUP(T5, W$4:X$65, 2,FALSE) -> 4 | V5: 2 | W5: =LARGE(T$4:T$65,V5) -> 11.8 | X5: =IF(W5=W4, X4, X4+1) -> 2 | Y5: 4.0 | Z5: 12.20 | AA5: =VLOOKUP(Z5, AC$4:AD$65, 2,FALSE) -> 4 | AB5: 2 | AC5: =LARGE(Z$4:Z$65,AB5) -> 12.65 | AD5: =IF(AC5=AC4, AD4, AD4+1) -> 2 | AE5: 4.0 | AF5: 11.70 | AG5: =VLOOKUP(AF5, AI$4:AJ$65, 2,FALSE) -> 8 | AH5: 2 | AI5: =LARGE(AF$4:AF$65,AH5) -> 12.8 | AJ5: =IF(AI5=AI4, AJ4, AJ4+1) -> 2 | AK5: 58.75 | AL5: =VLOOKUP(AK5, AN$4:AO$65, 2,FALSE) -> 6 | AM5: 2 | AN5: =LARGE($AK$4:$AK$65,$AM5) -> 61.8 | AO5: =IF(AN5=AN4, AO4, AO4+1) -> 2 | AQ5: Vault | AR5: =IFERROR(INDEX(gymnasts, SMALL(IF(VALUE(LEFT(AR$32, 1))=vaultPos, ROW(vaultPos)-MIN(ROW(vaultPos))+1, ""), ROW()-4)), "") -> Emmi Bradley | AS5: =IFERROR( INDEX(entries, MATCH(AR5, gymnasts, 0), 2), "") -> SD | AT5: =IFERROR(INDEX(gymnasts, SMALL(IF(VALUE(LEFT(AT$32, 1))=vaultPos, ROW(vaultPos)-MIN(ROW(vaultPos))+1, ""), ROW()-4)), "") -> Ellie Ritson | AU5: =IFERROR( INDEX(entries, MATCH(AT5, gymnasts, 0), 2), "") -> SD | AV5: =IFERROR(INDEX(gymnasts, SMALL(IF(VALUE(LEFT(AV$32, 1))=vaultPos, ROW(vaultPos)-MIN(ROW(vaultPos))+1, ""), ROW()-4)), "") -> Evie Almack | AW5: =IFERROR( INDEX(entries, MATCH(AV5, gymnasts, 0), 2), "") -> Richmondshire | AX5: =IFERROR(INDEX(gymnasts, SMALL(IF(VALUE(LEFT(AX$32, 1))=vaultPos, ROW(vaultPos)-MIN(ROW(vaultPos))+1, ""), ROW()-4)), "") -> Zoe Hall | AY5: =IFERROR( INDEX(entries, MATCH(AX5, gymnasts, 0), 2), "") -> Richmondshire | AZ5: =IFERROR(INDEX(gymnasts, SMALL(IF(VALUE(LEFT(AZ$32, 1))=vaultPos, ROW(vaultPos)-MIN(ROW(vaultPos))+1, ""), ROW()-4)), "") -> Hollie Bowers | BA5: =IFERROR( INDEX(entries, MATCH(AZ5, gymnasts, 0), 2), "") -> SD | BB5: =IFERROR(INDEX(gymnasts, SMALL(IF(VALUE(LEFT(BB$32, 1))=vaultPos, ROW(vaultPos)-MIN(ROW(vaultPos))+1, ""), ROW()-4)), "") -> Maya Hanson | BC5: =IFERROR( INDEX(entries, MATCH(BB5, gymnasts, 0), 2), "") -> Gymtopia
A6: 77 | B6: Isabelle Parish | C6: SD | D6: 4.0 | E6: 12.05 | F6: 0.0 | G6: 0.00 | H6: 12.05 | I6: 8 | J6: 3 | K6: 12.6 | L6: 2 | M6: 4.0 | N6: 12.15 | O6: 4 | P6: 3 | Q6: 12.4 | R6: 3 | S6: 3.5 | T6: 11.10 | U6: 5 | V6: 3 | W6: 11.4 | X6: 3 | Y6: 4.0 | Z6: 11.40 | AA6: 8 | AB6: 3 | AC6: 12.25 | AD6: 3 | AE6: 4.0 | AF6: 12.80 | AG6: 2 | AH6: 3 | AI6: 12.55 | AJ6: 3 | AK6: 59.50 | AL6: 5 | AM6: 3 | AN6: 60.05 | AO6: 3 | AR6: Daisy Williams | AS6: =IFERROR( INDEX(entries, MATCH(AR6, gymnasts, 0), 2), "") -> SD | AU6: =IFERROR( INDEX(entries, MATCH(AT6, gymnasts, 0), 2), "") ->  | AV6: Natalia Kowal | AW6: =IFERROR( INDEX(entries, MATCH(AV6, gymnasts, 0), 2), "") -> North Lakes | AY6: =IFERROR( INDEX(entries, MATCH(AX6, gymnasts, 0), 2), "") ->  | AZ6: Abbie Robertson | BA6: =IFERROR( INDEX(entries, MATCH(AZ6, gymnasts, 0), 2), "") -> AAAsports
A7: 78 | B7: Daisy Williams | C7: SD | D7: 4.0 | E7: 12.30 | F7: 0.0 | G7: 0.00 | H7: 12.30 | I7: 6 | J7: 4 | K7: 12.5 | L7: 3 | M7: 4.0 | N7: 13.15 | O7: 1 | P7: 4 | Q7: 12.15 | R7: 4 | S7: 4.0 | T7: 12.05 | U7: 1 | V7: 4 | W7: 11.3 | X7: 4 | Y7: 4.0 | Z7: 12.80 | AA7: 1 | AB7: 4 | AC7: 12.2 | AD7: 4 | AE7: 4.0 | AF7: 13.30 | AG7: 1 | AH7: 4 | AI7: 12.3 | AJ7: 4 | AK7: 63.60 | AL7: 1 | AM7: 4 | AN7: 59.95 | AO7: 4
A8: 79 | B8: Hollie Bowers | C8: SD | D8: 4.0 | E8: 12.60 | F8: 0.0 | G8: 0.00 | H8: 12.60 | I8: 2 | J8: 5 | K8: 12.45 | L8: 4 | M8: 4.0 | N8: 12.50 | O8: 2 | P8: 5 | Q8: 12.05 | R8: 5 | S8: 4.0 | T8: 11.80 | U8: 2 | V8: 5 | W8: 11.1 | X8: 5 | Y8: 4.0 | Z8: 12.65 | AA8: 2 | AB8: 5 | AC8: 12.2 | AD8: 4 | AE8: 4.0 | AF8: 12.25 | AG8: 5 | AH8: 5 | AI8: 12.25 | AJ8: 5 | AK8: 61.80 | AL8: 2 | AM8: 5 | AN8: 59.5 | AO8: 5
A9: 80 | B9: Violet Lumley | C9: Richmondshire | D9: 4.0 | E9: 11.65 | F9: 0.0 | G9: 0.00 | H9: 11.65 | I9: 9 | J9: 6 | K9: 12.45 | L9: 4 | M9: 4.0 | N9: 11.50 | O9: 7 | P9: 6 | Q9: 12 | R9: 6 | S9: 4.0 | T9: 9.95 | U9: 9 | V9: 6 | W9: 11.1 | X9: 5 | Y9: 4.0 | Z9: 11.55 | AA9: 7 | AB9: 6 | AC9: 12.1 | AD9: 5 | AE9: 4.0 | AF9: 11.75 | AG9: 7 | AH9: 6 | AI9: 11.8 | AJ9: 6 | AK9: 56.40 | AL9: 9 | AM9: 6 | AN9: 58.75 | AO9: 6
A10: 81 | B10: Zoe Hall | C10: Richmondshire | D10: 4.0 | E10: 12.50 | F10: 0.0 | G10: 0.00 | H10: 12.50 | I10: 3 | J10: 7 | K10: 12.35 | L10: 5 | M10: 3.5 | N10: 4.95 | O10: 13 | P10: 7 | Q10: 11.5 | R10: 7 | S10: 1.5 | T10: 8.90 | U10: 12 | V10: 7 | W10: 10.8 | X10: 6 | Y10: 4.0 | Z10: 12.05 | AA10: 6 | AB10: 7 | AC10: 12.1 | AD10: 5 | AE10: 4.0 | AF10: 11.80 | AG10: 6 | AH10: 7 | AI10: 11.75 | AJ10: 7 | AK10: 50.20 | AL10: 13 | AM10: 7 | AN10: 57.3 | AO10: 7
A11: 82 | B11: Evie Almack | C11: Richmondshire | D11: 4.0 | E11: 12.45 | F11: 0.0 | G11: 0.00 | H11: 12.45 | I11: 4 | J11: 8 | K11: 12.3 | L11: 6 | M11: 4.0 | N11: 10.50 | O11: 12 | P11: 8 | Q11: 11.25 | R11: 8 | S11: 4.0 | T11: 11.10 | U11: 5 | V11: 8 | W11: 10.35 | X11: 7 | Y11: 4.0 | Z11: 11.05 | AA11: 10 | AB11: 8 | AC11: 12.05 | AD11: 6 | AE11: 3.5 | AF11: 10.80 | AG11: 11 | AH11: 8 | AI11: 11.7 | AJ11: 8 | AK11: 55.90 | AL11: 10 | AM11: 8 | AN11: 56.5 | AO11: 8 | AR11: 6th Place | AS11: =IFERROR(INDEX(bars,MATCH(AR12,gymnasts,0)), "") -> 12.00 | AT11: 5th Place | AU11: =IFERROR(INDEX(bars,MATCH(AT12,gymnasts,0)), "") -> 12.05 | AV11: 4th Place | AW11: =IFERROR(INDEX(bars,MATCH(AV12,gymnasts,0)), "") -> 12.15 | AX11: 3rd Place | AY11: =IFERROR(INDEX(bars,MATCH(AX12,gymnasts,0)), "") -> 12.40 | AZ11: 2nd Place | BA11: =IFERROR(INDEX(bars,MATCH(AZ12,gymnasts,0)), "") -> 12.50 | BB11: 1st Place | BC11: =IFERROR(INDEX(bars,MATCH(BB12,gymnasts,0)), "") -> 13.15
A12: 83 | B12: Abbie Robertson | C12: AAAsports | D12: 4.0 | E12: 12.60 | F12: 0.0 | G12: 0.00 | H12: 12.60 | I12: 2 | J12: 9 | K12: 12.3 | L12: 6 | M12: 4.0 | N12: 12.05 | O12: 5 | P12: 9 | Q12: 11.2 | R12: 9 | S12: 4.0 | T12: 9.25 | U12: 11 | V12: 9 | W12: 10.2 | X12: 8 | Y12: 4.0 | Z12: 12.20 | AA12: 4 | AB12: 9 | AC12: 11.55 | AD12: 7 | AE12: 3.0 | AF12: 10.40 | AG12: 12 | AH12: 9 | AI12: 11.6 | AJ12: 9 | AK12: 56.50 | AL12: 8 | AM12: 9 | AN12: 56.4 | AO12: 9 | AQ12: Bars | AR12: =IFERROR(INDEX(gymnasts, SMALL(IF(VALUE(LEFT(AR$32, 1))=BarPos, ROW(BarPos)-MIN(ROW(BarPos))+1, ""), ROW()-11)), "") -> Maya Hanson | AS12: =IFERROR( INDEX(entries, MATCH(AR12, gymnasts, 0), 2), "") -> Gymtopia | AT12: =IFERROR(INDEX(gymnasts, SMALL(IF(VALUE(LEFT(AT$32, 1))=BarPos, ROW(BarPos)-MIN(ROW(BarPos))+1, ""), ROW()-11)), "") -> Abbie Robertson | AU12: =IFERROR( INDEX(entries, MATCH(AT12, gymnasts, 0), 2), "") -> AAAsports | AV12: =IFERROR(INDEX(gymnasts, SMALL(IF(VALUE(LEFT(AV$32, 1))=BarPos, ROW(BarPos)-MIN(ROW(BarPos))+1, ""), ROW()-11)), "") -> Isabelle Parish | AW12: =IFERROR( INDEX(entries, MATCH(AV12, gymnasts, 0), 2), "") -> SD | AX12: =IFERROR(INDEX(gymnasts, SMALL(IF(VALUE(LEFT(AX$32, 1))=BarPos, ROW(BarPos)-MIN(ROW(BarPos))+1, ""), ROW()-11)), "") -> Natalia Kowal | AY12: =IFERROR( INDEX(entries, MATCH(AX12, gymnasts, 0), 2), "") -> North Lakes | AZ12: =IFERROR(INDEX(gymnasts, SMALL(IF(VALUE(LEFT(AZ$32, 1))=BarPos, ROW(BarPos)-MIN(ROW(BarPos))+1, ""), ROW()-11)), "") -> Hollie Bowers | BA12: =IFERROR( INDEX(entries, MATCH(AZ12, gymnasts, 0), 2), "") -> SD | BB12: =IFERROR(INDEX(gymnasts, SMALL(IF(VALUE(LEFT(BB$32, 1))=BarPos, ROW(BarPos)-MIN(ROW(BarPos))+1, ""), ROW()-11)), "") -> Daisy Williams | BC12: =IFERROR( INDEX(entries, MATCH(BB12, gymnasts, 0), 2), "") -> SD
A13: 84 | B13: Ainka Lobb | C13: Kendal | D13: 4.0 | E13: 12.20 | F13: 0.0 | G13: 0.00 | H13: 12.20 | I13: 7 | J13: 10 | K13: 12.2 | L13: 7 | M13: 4.0 | N13: 10.55 | O13: 11 | P13: 10 | Q13: 10.85 | R13: 10 | S13: 4.0 | T13: 10.35 | U13: 7 | V13: 10 | W13: 9.95 | X13: 9 | Y13: 4.0 | Z13: 11.20 | AA13: 9 | AB13: 10 | AC13: 11.55 | AD13: 7 | AE13: 4.0 | AF13: 11.45 | AG13: 10 | AH13: 10 | AI13: 11.45 | AJ13: 10 | AK13: 55.75 | AL13: 11 | AM13: 10 | AN13: 55.9 | AO13: 10 | AS13: =IFERROR( INDEX(entries, MATCH(AR13, gymnasts, 0), 2), "") ->  | AU13: =IFERROR( INDEX(entries, MATCH(AT13, gymnasts, 0), 2), "") ->  | AW13: =IFERROR( INDEX(entries, MATCH(AV13, gymnasts, 0), 2), "") ->  | AY13: =IFERROR( INDEX(entries, MATCH(AX13, gymnasts, 0), 2), "") ->  | BA13: =IFERROR( INDEX(entries, MATCH(AZ13, gymnasts, 0), 2), "") -> 
A14: 85 | B14: Maya Hanson | C14: Gymtopia | D14: 4.0 | E14: 12.70 | F14: 0.0 | G14: 0.00 | H14: 12.70 | I14: 1 | J14: 11 | K14: 12.2 | L14: 7 | M14: 4.0 | N14: 12.00 | O14: 6 | P14: 11 | Q14: 10.55 | R14: 11 | S14: 3.5 | T14: 10.80 | U14: 6 | V14: 11 | W14: 9.5 | X14: 10 | Y14: 4.0 | Z14: 12.25 | AA14: 3 | AB14: 11 | AC14: 11.4 | AD14: 8 | AE14: 4.0 | AF14: 12.30 | AG14: 4 | AH14: 11 | AI14: 10.8 | AJ14: 11 | AK14: 60.05 | AL14: 3 | AM14: 11 | AN14: 55.75 | AO14: 11
A15: 86 | B15: Ruby Jackson | C15: Gymtopia | D15: 4.0 | E15: 12.20 | F15: 0.0 | G15: 0.00 | H15: 12.20 | I15: 7 | J15: 12 | K15: 12.05 | L15: 8 | M15: 4.0 | N15: 11.25 | O15: 8 | P15: 12 | Q15: 10.5 | R15: 12 | S15: 3.5 | T15: 10.20 | U15: 8 | V15: 12 | W15: 9.25 | X15: 11 | Y15: 4.0 | Z15: 11.55 | AA15: 7 | AB15: 12 | AC15: 11.2 | AD15: 9 | AE15: 3.5 | AF15: 10.40 | AG15: 12 | AH15: 12 | AI15: 10.4 | AJ15: 12 | AK15: 55.60 | AL15: 12 | AM15: 12 | AN15: 55.6 | AO15: 12
A16: 87 | B16: Natalia Kowal | C16: North Lakes | D16: 4.0 | E16: 12.45 | F16: 0.0 | G16: 0.00 | H16: 12.45 | I16: 4 | J16: 13 | K16: 11.65 | L16: 9 | M16: 4.0 | N16: 12.40 | O16: 3 | P16: 13 | Q16: 4.95 | R16: 13 | S16: 4.0 | T16: 11.40 | U16: 3 | V16: 13 | W16: 8.9 | X16: 12 | Y16: 4.0 | Z16: 12.10 | AA16: 5 | AB16: 13 | AC16: 11.05 | AD16: 10 | AE16: 4.0 | AF16: 11.60 | AG16: 9 | AH16: 13 | AI16: 10.4 | AJ16: 12 | AK16: 59.95 | AL16: 4 | AM16: 13 | AN16: 50.2 | AO16: 13
D17: 0.0 | E17: 0.00 | F17: 0.0 | G17: 0.00 | H17: 0.00 | I17: 10 | J17: 14 | K17: 0 | L17: 10 | M17: 0.0 | N17: 0.00 | O17: 14 | P17: 14 | Q17: 0 | R17: 14 | S17: 0.0 | T17: 0.00 | U17: 13 | V17: 14 | W17: 0 | X17: 13 | Y17: 0.0 | Z17: 0.00 | AA17: 11 | AB17: 14 | AC17: 0 | AD17: 11 | AE17: 0.0 | AF17: 0.00 | AG17: 13 | AH17: 14 | AI17: 0 | AJ17: 13 | AK17: 0.00 | AL17: 14 | AM17: 14 | AN17: 0 | AO17: 14
D18: 0.0 | E18: 0.00 | F18: 0.0 | G18: 0.00 | H18: 0.00 | I18: 10 | J18: 15 | K18: 0 | L18: 10 | M18: 0.0 | N18: 0.00 | O18: 14 | P18: 15 | Q18: 0 | R18: 14 | S18: 0.0 | T18: 0.00 | U18: 13 | V18: 15 | W18: 0 | X18: 13 | Y18: 0.0 | Z18: 0.00 | AA18: 11 | AB18: 15 | AC18: 0 | AD18: 11 | AE18: 0.0 | AF18: 0.00 | AG18: 13 | AH18: 15 | AI18: 0 | AJ18: 13 | AK18: 0.00 | AL18: 14 | AM18: 15 | AN18: 0 | AO18: 14 | AR18: 6th Place | AS18: =IFERROR(INDEX(beam,MATCH(AR19,gymnasts,0)), "") -> 10.80 | AT18: 5th Place | AU18: =IFERROR(INDEX(beam,MATCH(AT19,gymnasts,0)), "") -> 11.10 | AV18: 4th Place | AW18: =IFERROR(INDEX(beam,MATCH(AV19,gymnasts,0)), "") -> 11.30 | AX18: 3rd Place | AY18: =IFERROR(INDEX(beam,MATCH(AX19,gymnasts,0)), "") -> 11.40 | AZ18: 2nd Place | BA18: =IFERROR(INDEX(beam,MATCH(AZ19,gymnasts,0)), "") -> 11.80 | BB18: 1st Place | BC18: =IFERROR(INDEX(beam,MATCH(BB19,gymnasts,0)), "") -> 12.05
D19: 0.0 | E19: 0.00 | F19: 0.0 | G19: 0.00 | H19: 0.00 | I19: 10 | J19: 16 | K19: 0 | L19: 10 | M19: 0.0 | N19: 0.00 | O19: 14 | P19: 16 | Q19: 0 | R19: 14 | S19: 0.0 | T19: 0.00 | U19: 13 | V19: 16 | W19: 0 | X19: 13 | Y19: 0.0 | Z19: 0.00 | AA19: 11 | AB19: 16 | AC19: 0 | AD19: 11 | AE19: 0.0 | AF19: 0.00 | AG19: 13 | AH19: 16 | AI19: 0 | AJ19: 13 | AK19: 0.00 | AL19: 14 | AM19: 16 | AN19: 0 | AO19: 14 | AQ19: Beam | AR19: =IFERROR(INDEX(gymnasts, SMALL(IF(VALUE(LEFT(AR$32, 1))=BeamPos, ROW(BeamPos)-MIN(ROW(BeamPos))+1, ""), ROW()-18)), "") -> Maya Hanson | AS19: =IFERROR( INDEX(entries, MATCH(AR19, gymnasts, 0), 2), "") -> Gymtopia | AT19: =IFERROR(INDEX(gymnasts, SMALL(IF(VALUE(LEFT(AT$32, 1))=BeamPos, ROW(BeamPos)-MIN(ROW(BeamPos))+1, ""), ROW()-18)), "") -> Isabelle Parish | AU19: =IFERROR( INDEX(entries, MATCH(AT19, gymnasts, 0), 2), "") -> SD | AV19: =IFERROR(INDEX(gymnasts, SMALL(IF(VALUE(LEFT(AV$32, 1))=BeamPos, ROW(BeamPos)-MIN(ROW(BeamPos))+1, ""), ROW()-18)), "") -> Ellie Ritson | AW19: =IFERROR( INDEX(entries, MATCH(AV19, gymnasts, 0), 2), "") -> SD | AX19: =IFERROR(INDEX(gymnasts, SMALL(IF(VALUE(LEFT(AX$32, 1))=BeamPos, ROW(BeamPos)-MIN(ROW(BeamPos))+1, ""), ROW()-18)), "") -> Natalia Kowal | AY19: =IFERROR( INDEX(entries, MATCH(AX19, gymnasts, 0), 2), "") -> North Lakes | AZ19: =IFERROR(INDEX(gymnasts, SMALL(IF(VALUE(LEFT(AZ$32, 1))=BeamPos, ROW(BeamPos)-MIN(ROW(BeamPos))+1, ""), ROW()-18)), "") -> Hollie Bowers | BA19: =IFERROR( INDEX(entries, MATCH(AZ19, gymnasts, 0), 2), "") -> SD | BB19: =IFERROR(INDEX(gymnasts, SMALL(IF(VALUE(LEFT(BB$32, 1))=BeamPos, ROW(BeamPos)-MIN(ROW(BeamPos))+1, ""), ROW()-18)), "") -> Daisy Williams | BC19: =IFERROR( INDEX(entries, MATCH(BB19, gymnasts, 0), 2), "") -> SD
D20: 0.0 | E20: 0.00 | F20: 0.0 | G20: 0.00 | H20: 0.00 | I20: 10 | J20: 17 | K20: 0 | L20: 10 | M20: 0.0 | N20: 0.00 | O20: 14 | P20: 17 | Q20: 0 | R20: 14 | S20: 0.0 | T20: 0.00 | U20: 13 | V20: 17 | W20: 0 | X20: 13 | Y20: 0.0 | Z20: 0.00 | AA20: 11 | AB20: 17 | AC20: 0 | AD20: 11 | AE20: 0.0 | AF20: 0.00 | AG20: 13 | AH20: 17 | AI20: 0 | AJ20: 13 | AK20: 0.00 | AL20: 14 | AM20: 17 | AN20: 0 | AO20: 14 | AS20: =IFERROR( INDEX(entries, MATCH(AR20, gymnasts, 0), 2), "") ->  | AT20: Evie Almack | AU20: =IFERROR( INDEX(entries, MATCH(AT20, gymnasts, 0), 2), "") -> Richmondshire | AW20: =IFERROR( INDEX(entries, MATCH(AV20, gymnasts, 0), 2), "") ->  | AY20: =IFERROR( INDEX(entries, MATCH(AX20, gymnasts, 0), 2), "") ->  | BA20: =IFERROR( INDEX(entries, MATCH(AZ20, gymnasts, 0), 2), "") -> 
D21: 0.0 | E21: 0.00 | F21: 0.0 | G21: 0.00 | H21: 0.00 | I21: 10 | J21: 18 | K21: 0 | L21: 10 | M21: 0.0 | N21: 0.00 | O21: 14 | P21: 18 | Q21: 0 | R21: 14 | S21: 0.0 | T21: 0.00 | U21: 13 | V21: 18 | W21: 0 | X21: 13 | Y21: 0.0 | Z21: 0.00 | AA21: 11 | AB21: 18 | AC21: 0 | AD21: 11 | AE21: 0.0 | AF21: 0.00 | AG21: 13 | AH21: 18 | AI21: 0 | AJ21: 13 | AK21: 0.00 | AL21: 14 | AM21: 18 | AN21: 0 | AO21: 14
D22: 0.0 | E22: 0.00 | F22: 0.0 | G22: 0.00 | H22: 0.00 | I22: 10 | J22: 19 | K22: 0 | L22: 10 | M22: 0.0 | N22: 0.00 | O22: 14 | P22: 19 | Q22: 0 | R22: 14 | S22: 0.0 | T22: 0.00 | U22: 13 | V22: 19 | W22: 0 | X22: 13 | Y22: 0.0 | Z22: 0.00 | AA22: 11 | AB22: 19 | AC22: 0 | AD22: 11 | AE22: 0.0 | AF22: 0.00 | AG22: 13 | AH22: 19 | AI22: 0 | AJ22: 13 | AK22: 0.00 | AL22: 14 | AM22: 19 | AN22: 0 | AO22: 14
D23: 0.0 | E23: 0.00 | F23: 0.0 | G23: 0.00 | H23: 0.00 | I23: 10 | J23: 20 | K23: 0 | L23: 10 | M23: 0.0 | N23: 0.00 | O23: 14 | P23: 20 | Q23: 0 | R23: 14 | S23: 0.0 | T23: 0.00 | U23: 13 | V23: 20 | W23: 0 | X23: 13 | Y23: 0.0 | Z23: 0.00 | AA23: 11 | AB23: 20 | AC23: 0 | AD23: 11 | AE23: 0.0 | AF23: 0.00 | AG23: 13 | AH23: 20 | AI23: 0 | AJ23: 13 | AK23: 0.00 | AL23: 14 | AM23: 20 | AN23: 0 | AO23: 14
D24: 0.0 | E24: 0.00 | F24: 0.0 | G24: 0.00 | H24: 0.00 | I24: 10 | J24: 21 | K24: 0 | L24: 10 | M24: 0.0 | N24: 0.00 | O24: 14 | P24: 21 | Q24: 0 | R24: 14 | S24: 0.0 | T24: 0.00 | U24: 13 | V24: 21 | W24: 0 | X24: 13 | Y24: 0.0 | Z24: 0.00 | AA24: 11 | AB24: 21 | AC24: 0 | AD24: 11 | AE24: 0.0 | AF24: 0.00 | AG24: 13 | AH24: 21 | AI24: 0 | AJ24: 13 | AK24: 0.00 | AL24: 14 | AM24: 21 | AN24: 0 | AO24: 14
D25: 0.0 | E25: 0.00 | F25: 0.0 | G25: 0.00 | H25: 0.00 | I25: 10 | J25: 22 | K25: 0 | L25: 10 | M25: 0.0 | N25: 0.00 | O25: 14 | P25: 22 | Q25: 0 | R25: 14 | S25: 0.0 | T25: 0.00 | U25: 13 | V25: 22 | W25: 0 | X25: 13 | Y25: 0.0 | Z25: 0.00 | AA25: 11 | AB25: 22 | AC25: 0 | AD25: 11 | AE25: 0.0 | AF25: 0.00 | AG25: 13 | AH25: 22 | AI25: 0 | AJ25: 13 | AK25: 0.00 | AL25: 14 | AM25: 22 | AN25: 0 | AO25: 14 | AR25: 6th Place | AS25: =IFERROR(INDEX(floor,MATCH(AR26,gymnasts,0)), "") -> 12.05 | AT25: 5th Place | AU25: =IFERROR(INDEX(floor,MATCH(AT26,gymnasts,0)), "") -> 12.10 | AV25: 4th Place | AW25: =IFERROR(INDEX(floor,MATCH(AV26,gymnasts,0)), "") -> 12.20 | AX25: 3rd Place | AY25: =IFERROR(INDEX(floor,MATCH(AX26,gymnasts,0)), "") -> 12.25 | AZ25: 2nd Place | BA25: =IFERROR(INDEX(floor,MATCH(AZ26,gymnasts,0)), "") -> 12.65 | BB25: 1st Place | BC25: =IFERROR(INDEX(floor,MATCH(BB26,gymnasts,0)), "") -> 12.80
D26: 0.0 | E26: 0.00 | F26: 0.0 | G26: 0.00 | H26: 0.00 | I26: 10 | J26: 23 | K26: 0 | L26: 10 | M26: 0.0 | N26: 0.00 | O26: 14 | P26: 23 | Q26: 0 | R26: 14 | S26: 0.0 | T26: 0.00 | U26: 13 | V26: 23 | W26: 0 | X26: 13 | Y26: 0.0 | Z26: 0.00 | AA26: 11 | AB26: 23 | AC26: 0 | AD26: 11 | AE26: 0.0 | AF26: 0.00 | AG26: 13 | AH26: 23 | AI26: 0 | AJ26: 13 | AK26: 0.00 | AL26: 14 | AM26: 23 | AN26: 0 | AO26: 14 | AQ26: Floor | AR26: =IFERROR(INDEX(gymnasts, SMALL(IF(VALUE(LEFT(AR$32, 1))=FloorPos, ROW(FloorPos)-MIN(ROW(FloorPos))+1, ""), ROW()-25)), "") -> Zoe Hall | AS26: =IFERROR( INDEX(entries, MATCH(AR26, gymnasts, 0), 2), "") -> Richmondshire | AT26: =IFERROR(INDEX(gymnasts, SMALL(IF(VALUE(LEFT(AT$32, 1))=FloorPos, ROW(FloorPos)-MIN(ROW(FloorPos))+1, ""), ROW()-25)), "") -> Emmi Bradley | AU26: =IFERROR( INDEX(entries, MATCH(AT26, gymnasts, 0), 2), "") -> SD | AV26: =IFERROR(INDEX(gymnasts, SMALL(IF(VALUE(LEFT(AV$32, 1))=FloorPos, ROW(FloorPos)-MIN(ROW(FloorPos))+1, ""), ROW()-25)), "") -> Ellie Ritson | AW26: =IFERROR( INDEX(entries, MATCH(AV26, gymnasts, 0), 2), "") -> SD | AX26: =IFERROR(INDEX(gymnasts, SMALL(IF(VALUE(LEFT(AX$32, 1))=FloorPos, ROW(FloorPos)-MIN(ROW(FloorPos))+1, ""), ROW()-25)), "") -> Maya Hanson | AY26: =IFERROR( INDEX(entries, MATCH(AX26, gymnasts, 0), 2), "") -> Gymtopia | AZ26: =IFERROR(INDEX(gymnasts, SMALL(IF(VALUE(LEFT(AZ$32, 1))=FloorPos, ROW(FloorPos)-MIN(ROW(FloorPos))+1, ""), ROW()-25)), "") -> Hollie Bowers | BA26: =IFERROR( INDEX(entries, MATCH(AZ26, gymnasts, 0), 2), "") -> SD | BB26: =IFERROR(INDEX(gymnasts, SMALL(IF(VALUE(LEFT(BB$32, 1))=FloorPos, ROW(FloorPos)-MIN(ROW(FloorPos))+1, ""), ROW()-25)), "") -> Daisy Williams | BC26: =IFERROR( INDEX(entries, MATCH(BB26, gymnasts, 0), 2), "") -> SD
D27: 0.0 | E27: 0.00 | F27: 0.0 | G27: 0.00 | H27: 0.00 | I27: 10 | J27: 24 | K27: 0 | L27: 10 | M27: 0.0 | N27: 0.00 | O27: 14 | P27: 24 | Q27: 0 | R27: 14 | S27: 0.0 | T27: 0.00 | U27: 13 | V27: 24 | W27: 0 | X27: 13 | Y27: 0.0 | Z27: 0.00 | AA27: 11 | AB27: 24 | AC27: 0 | AD27: 11 | AE27: 0.0 | AF27: 0.00 | AG27: 13 | AH27: 24 | AI27: 0 | AJ27: 13 | AK27: 0.00 | AL27: 14 | AM27: 24 | AN27: 0 | AO27: 14 | AS27: =IFERROR( INDEX(entries, MATCH(AR27, gymnasts, 0), 2), "") ->  | AT27: Natalia Kowal | AU27: =IFERROR( INDEX(entries, MATCH(AT27, gymnasts, 0), 2), "") -> North Lakes | AV27: Abbie Robertson | AW27: =IFERROR( INDEX(entries, MATCH(AV27, gymnasts, 0), 2), "") -> AAAsports | AY27: =IFERROR( INDEX(entries, MATCH(AX27, gymnasts, 0), 2), "") ->  | BA27: =IFERROR( INDEX(entries, MATCH(AZ27, gymnasts, 0), 2), "") -> 
D28: 0.0 | E28: 0.00 | F28: 0.0 | G28: 0.00 | H28: 0.00 | I28: 10 | J28: 25 | K28: 0 | L28: 10 | M28: 0.0 | N28: 0.00 | O28: 14 | P28: 25 | Q28: 0 | R28: 14 | S28: 0.0 | T28: 0.00 | U28: 13 | V28: 25 | W28: 0 | X28: 13 | Y28: 0.0 | Z28: 0.00 | AA28: 11 | AB28: 25 | AC28: 0 | AD28: 11 | AE28: 0.0 | AF28: 0.00 | AG28: 13 | AH28: 25 | AI28: 0 | AJ28: 13 | AK28: 0.00 | AL28: 14 | AM28: 25 | AN28: 0 | AO28: 14
D29: 0.0 | E29: 0.00 | F29: 0.0 | G29: 0.00 | H29: 0.00 | I29: 10 | J29: 26 | K29: 0 | L29: 10 | M29: 0.0 | N29: 0.00 | O29: 14 | P29: 26 | Q29: 0 | R29: 14 | S29: 0.0 | T29: 0.00 | U29: 13 | V29: 26 | W29: 0 | X29: 13 | Y29: 0.0 | Z29: 0.00 | AA29: 11 | AB29: 26 | AC29: 0 | AD29: 11 | AE29: 0.0 | AF29: 0.00 | AG29: 13 | AH29: 26 | AI29: 0 | AJ29: 13 | AK29: 0.00 | AL29: 14 | AM29: 26 | AN29: 0 | AO29: 14
D30: 0.0 | E30: 0.00 | F30: 0.0 | G30: 0.00 | H30: 0.00 | I30: 10 | J30: 27 | K30: 0 | L30: 10 | M30: 0.0 | N30: 0.00 | O30: 14 | P30: 27 | Q30: 0 | R30: 14 | S30: 0.0 | T30: 0.00 | U30: 13 | V30: 27 | W30: 0 | X30: 13 | Y30: 0.0 | Z30: 0.00 | AA30: 11 | AB30: 27 | AC30: 0 | AD30: 11 | AE30: 0.0 | AF30: 0.00 | AG30: 13 | AH30: 27 | AI30: 0 | AJ30: 13 | AK30: 0.00 | AL30: 14 | AM30: 27 | AN30: 0 | AO30: 14
D31: 0.0 | E31: 0.00 | F31: 0.0 | G31: 0.00 | H31: 0.00 | I31: 10 | J31: 28 | K31: 0 | L31: 10 | M31: 0.0 | N31: 0.00 | O31: 14 | P31: 28 | Q31: 0 | R31: 14 | S31: 0.0 | T31: 0.00 | U31: 13 | V31: 28 | W31: 0 | X31: 13 | Y31: 0.0 | Z31: 0.00 | AA31: 11 | AB31: 28 | AC31: 0 | AD31: 11 | AE31: 0.0 | AF31: 0.00 | AG31: 13 | AH31: 28 | AI31: 0 | AJ31: 13 | AK31: 0.00 | AL31: 14 | AM31: 28 | AN31: 0 | AO31: 14
